{"text_format":"1","workbook":"xlsx","n_sheets":15,"sheets":["HVAC-Tool","Equipment Info","HVAC","HELP","Application NEW","Program Requirements","Measures","Equipment","Sheet5","Lookups","CFR 10.430.32","IECC 2009","IECC 2012","CFR Title 10.431.97","Change Log"],"not_rendered":{"charts":0,"images":27,"macros":1,"external_links":0,"defined_names":257,"comments":4,"pivot_tables":0},"unopened":[],"bounds":{"document_bytes":16777216,"sheet_cells":100000,"rows_first":2000,"rows_last":500,"rows_between":2000,"halvings":0,"cell_chars":16384,"cell_head_chars":4096},"cells_cut":0,"cells_raw":0,"read":"whole","date_system":"1900"}

{"sheet":"HVAC-Tool","index":0,"n_rows":22,"n_cols":78,"rows_kept":22,"cut":false,"hidden":false,"merged":[[2,2,3,11],[20,2,20,4],[7,2,7,4],[8,2,8,4],[9,2,9,4],[10,2,10,4],[12,2,12,4],[13,2,13,4],[14,2,14,4],[15,2,15,4],[16,2,16,4],[18,2,18,4],[17,2,17,4],[4,7,4,8],[9,5,9,6],[19,7,19,11],[4,9,4,11],[6,2,6,6],[11,2,11,6],[4,2,4,4],[21,10,21,11],[21,5,21,6],[8,5,8,11],[9,9,9,11],[14,9,14,11],[12,5,12,11],[17,5,17,11],[7,18,7,23],[17,13,17,20],[9,13,9,14],[7,13,7,14],[9,7,9,8],[16,7,16,11],[15,7,15,11],[7,5,7,8],[7,9,7,11],[13,5,13,11],[14,5,14,6],[5,21,5,22],[20,13,20,14],[20,15,20,24],[6,7,6,8],[6,9,6,11],[18,13,18,14],[19,13,19,14],[8,18,8,23],[10,18,10,23],[11,13,15,24],[5,9,5,11],[5,7,5,8],[10,5,10,11],[8,13,8,14],[6,17,6,23],[14,7,14,8],[21,15,21,20],[21,21,21,22],[17,21,17,24],[15,5,15,6],[16,5,16,6],[21,7,21,9],[21,13,21,14],[21,23,21,24],[18,15,18,24],[19,15,19,20],[19,21,19,24],[20,5,20,11],[19,2,19,6],[18,5,18,11],[21,2,21,4]]}
[]
[]
[null,null,"Heat Pump Tool"]
[]
[null,null,{"$f":"\"Version: \" & INDEX(CurrentVersion_List,MATCH(\"a\",CurrentVersionSelected_List,0))","v":"Version: 4012025.1"},null,null,null,null,"Application Date"]
[null,null,null,null,null,null,null,"Invoice/Install Date",null,null,null,null,null,{"$f":"IF(InstallDate=\"\",\"\",INDEX(TariffTable,MATCH(InstallState,InstallStates_List,0),3))","v":""},{"$f":"TODAY()","v":"2026-02-09"},{"$f":"IF(InstallDate=\"\",\"Please enter project date\",IF(ISNUMBER(SEARCH(\"applicable to\",N12)),\"Please contact Coordinator\",\"\"))","v":"Please enter project date"}]
[null,null,"Project Information",null,null,null,null,null,null,null,null,null,null,null,null,null,null,"Instructions"]
[null,null,"Project Name/Type",null,null,null,null,null,null,null,null,null,null,null,null,"User Input Fields",null,null,"1 - Complete all yellow fields, and the \"Equipment Info\" tab",null,null,null,null,null,null,null,null,null,null,null,null,null,null,null,null,null,null,null,null,null,null,null,null,null,null,null,null,null,null,null,null,null,null,null,null,null,null,null,null,null,null,null,null,null,null,null,null,null,null,null,null,null,null,null,null,null,null,true]
[null,null,"Installation Address",null,null,null,null,null,null,null,null,null,null,null,null,"Completed Fields",null,null,"2 - Save a copy of this HVAC tool",null,null,null,null,null,null,null,null,null,null,null,null,null,null,null,null,null,null,null,null,null,null,null,null,null,null,null,null,null,null,null,null,null,null,null,null,null,null,null,null,null,null,null,null,null,null,null,null,null,null,null,null,null,null,null,null,null,null,false]
[null,null,"City/State/Zip",null,null,null,null,"UT",null,null,null,null,null,null,null,"Calculated Fields",null,null,null,null,null,null,null,null,null,null,null,null,null,null,null,null,null,null,null,null,null,null,null,null,null,null,null,null,null,null,null,null,null,null,null,null,null,null,null,null,null,null,null,null,null,null,null,null,null,null,null,null,null,null,null,null,null,null,null,null,null,true]
[null,null,"Contractor/Dealer Name",null,null,null,null,null,null,null,null,null,null,null,null,null,null,null,"4 - Follow the instructions on the incentive application"]
[null,null,"Participant Information",null,null,null,null,null,null,null,null,null,null,{"$f":"IF(AND(InstallState=\"\",InstallDate=\"\", BusinessType=\"\"),\"\",IF(InstallState=\"\",\"Please select the project state to continue.\",IF(BusinessType=\"\",\"Please select the business type to continue.\",IF(InstallDate=\"\",\"Please enter the project invoice/install date to continue.\",\"Calculator results are in accordance with \"&INDEX(StateName_List,MATCH(InstallState,StateAbrev_List,0))&\" Tariff \"&IF(InstallState=\"CA\",\"A-140\",\"140\"))&\", effective \"&TEXT(INDEX(TariffTable,MATCH(InstallState,InstallStates_List,0),3),\"mm/dd/yyyy\")&\", and are estimates only.\"))&IF(InstallState=\"\",\"\",IF(InstallDate=\"\",\"\",IF(InstallDate<INDEX(TariffTable,MATCH(InstallState,InstallStates_List,0),3),\" Please contact your project Coordinator for an HVAC calculator tool applicable to your project.\",\" Actual energy savings and incentives paid will be determined based on the results of a post-installation inspection and review of project invoices.\"&\" Calculator results are only valid for equipment purchased and installed, on or after the tariff effective date.\"))))","v":"Please select the business type to continue."}]
[null,null,"Business Name"]
[null,null,"Address"]
[null,null,"City/State/Zip",null,null,null,null,"UT"]
[null,null,"Contact Person/Title"]
[null,null,"Phone/Email",null,null,null,null,null,null,null,null,null,null,"Incentive Payee Information"]
[null,null,"Business Type",null,null,null,null,null,null,null,null,null,null,"Select where the incentive will be paid in the drop down selector >>",null,null,null,null,null,null,null,"Participant Business Address"]
[null,null,"Participant is >>",null,null,null,null,null,null,null,null,null,null,"Business Name"]
[null,null,"Account Information (as shown on bill)",null,null,null,null,{"$f":"IF(RateSchedule=\"\",\"\",RateScheduleEffectiveDateNote)","v":""},null,null,null,null,null,"Contact Name/Phone"]
[null,null,"Account Name",null,null,null,null,null,null,null,null,null,null,"Address"]
[null,null,"Account/Meter/Rate",null,null,null,null,null,null,null,null,null,null,"City/State/Zip"]

{"sheet":"Equipment Info","index":1,"n_rows":36,"n_cols":21,"rows_kept":36,"cut":false,"hidden":false,"merged":[[4,16,4,20],[2,2,4,4],[0,2,0,5]]}
[null,null,"Heat Pump Tool"]
[null,null,null,null,null,null,null,null,null,null,null,"hide","hide","hide","hide","hide"]
[null,null,"Equipment Information"]
[null,null,null,null,null,null,null,null,null,null,null,null,null,null,null,null,null,{"$f":"SUM(Table3[Incentive])","v":0}]
[null,null,null,null,null,null,null,null,null,null,null,null,null,null,null,null,"Calculated Fields"]
[null,null,"Line","Baseline Equipment","Proposed Equipment","Manufacturer","Model Number","AHRI Reference Number","Capacity (BTU/hr)","Quantity","Equipment Costs","Measure Version ID","Equipment ID","Incentive Per Unit","kWh Savings Per Unit","kW Savings Per Unit","Capacity (Tons)","Incentive","kWh Savings (kWh/yr)","kW Savings","Upgrade Type"]
[null,null,{"$f":"ROW(Table3[[#This Row],[Baseline Equipment]])-6","v":1},null,null,null,null,null,null,null,null,{"$f":"IFERROR(IF(InstallDate=\"\",\"\",\nINDEX(Measures[Measure Version ID],MATCH(1,\n(Table3[[#This Row],[Upgrade Type]]=Measures[Upgrade Type])*\n(IFERROR(Table3[[#This Row],[Capacity (BTU/hr)]]/1000>Measures[Capacity Low (kBTU/hr)],1))*\n(IFERROR(Table3[[#This Row],[Capacity (BTU/hr)]]/1000<=Measures[Capacity High (kBTU/hr)],1))*\n(InstallDate>=Measures[Effective Start Date])*\n(InstallDate<=IF(Measures[Effective End Date]=0,50000,Measures[Effective End Date])),\n0)+0)),\"\")","v":""},{"$f":"IFERROR(IF(Table3[[#This Row],[Proposed Equipment]]=\"\",\"\",\nINDEX(Equipment[ID],MATCH(1,\n(BusinessType=Equipment[Facility Type])*\n(Table3[[#This Row],[Baseline Equipment]]=Equipment[Baseline Equipment])*\n(Table3[[#This Row],[Proposed Equipment]]=Equipment[Proposed Equipment])*\n(IFERROR(Table3[[#This Row],[Capacity (BTU/hr)]]/1000>Equipment[Size Low],1))*\n(IFERROR(Table3[[#This Row],[Capacity (BTU/hr)]]/1000<=Equipment[Size High],1)),\n0)+0)),\"\")","v":""},{"$f":"IF(Table3[[#This Row],[Measure Version ID]]=\"\",\"\",\nINDEX(Measures[Customer Incentive ($/unit)],MATCH(Table3[[#This Row],[Measure Version ID]],Measures[Measure Version ID],0)))","v":""},{"$f":"IF(Table3[[#This Row],[Equipment ID]]=\"\",\"\",\nINDEX(Equipment[kWh Savings Per Unit],MATCH(Table3[[#This Row],[Equipment ID]],Equipment[ID],0)))","v":""},{"$f":"IF(Table3[[#This Row],[Equipment ID]]=\"\",\"\",\nINDEX(Equipment[kW Savings Per Unit],MATCH(Table3[[#This Row],[Equipment ID]],Equipment[ID],0)))","v":""},{"$f":"IF(Table3[[#This Row],[Capacity (BTU/hr)]]=\"\",\"\",ROUND(Table3[[#This Row],[Capacity (BTU/hr)]]/12000,1))","v":""},{"$f":"IF(Table3[[#This Row],[Measure Version ID]]=\"\",\"\",Table3[[#This Row],[Incentive Per Unit]]*Table3[[#This Row],[Capacity (Tons)]]*Table3[[#This Row],[Quantity]])","v":""},{"$f":"IF(OR(Table3[[#This Row],[Equipment ID]]=\"\",Table3[[#This Row],[Capacity (BTU/hr)]]=\"\",Table3[[#This Row],[Quantity]]=\"\"),\"\",Table3[[#This Row],[kWh Savings Per Unit]]*Table3[[#This Row],[Capacity (Tons)]]*Table3[[#This Row],[Quantity]])","v":""},{"$f":"IF(OR(Table3[[#This Row],[Equipment ID]]=\"\",Table3[[#This Row],[Capacity (BTU/hr)]]=\"\",Table3[[#This Row],[Quantity]]=\"\"),\"\",Table3[[#This Row],[kW Savings Per Unit]]*Table3[[#This Row],[Capacity (Tons)]]*Table3[[#This Row],[Quantity]])","v":""},{"$f":"IF(Table3[[#This Row],[Baseline Equipment]]=\"\",\"\",INDEX(BaselineEquipment[Upgrade Type],MATCH(Table3[[#This Row],[Baseline Equipment]],BaselineEquipment[Baseline Equipment],0)))","v":""}]
[null,null,{"$f":"ROW(Table3[[#This Row],[Baseline Equipment]])-6","v":2},null,null,null,null,null,null,null,null,{"$f":"IFERROR(IF(InstallDate=\"\",\"\",\nINDEX(Measures[Measure Version ID],MATCH(1,\n(Table3[[#This Row],[Upgrade Type]]=Measures[Upgrade Type])*\n(IFERROR(Table3[[#This Row],[Capacity (BTU/hr)]]/1000>Measures[Capacity Low (kBTU/hr)],1))*\n(IFERROR(Table3[[#This Row],[Capacity (BTU/hr)]]/1000<=Measures[Capacity High (kBTU/hr)],1))*\n(InstallDate>=Measures[Effective Start Date])*\n(InstallDate<=IF(Measures[Effective End Date]=0,50000,Measures[Effective End Date])),\n0)+0)),\"\")","v":""},{"$f":"IFERROR(IF(Table3[[#This Row],[Proposed Equipment]]=\"\",\"\",\nINDEX(Equipment[ID],MATCH(1,\n(BusinessType=Equipment[Facility Type])*\n(Table3[[#This Row],[Baseline Equipment]]=Equipment[Baseline Equipment])*\n(Table3[[#This Row],[Proposed Equipment]]=Equipment[Proposed Equipment])*\n(IFERROR(Table3[[#This Row],[Capacity (BTU/hr)]]/1000>Equipment[Size Low],1))*\n(IFERROR(Table3[[#This Row],[Capacity (BTU/hr)]]/1000<=Equipment[Size High],1)),\n0)+0)),\"\")","v":""},{"$f":"IF(Table3[[#This Row],[Measure Version ID]]=\"\",\"\",\nINDEX(Measures[Customer Incentive ($/unit)],MATCH(Table3[[#This Row],[Measure Version ID]],Measures[Measure Version ID],0)))","v":""},{"$f":"IF(Table3[[#This Row],[Equipment ID]]=\"\",\"\",\nINDEX(Equipment[kWh Savings Per Unit],MATCH(Table3[[#This Row],[Equipment ID]],Equipment[ID],0)))","v":""},{"$f":"IF(Table3[[#This Row],[Equipment ID]]=\"\",\"\",\nINDEX(Equipment[kW Savings Per Unit],MATCH(Table3[[#This Row],[Equipment ID]],Equipment[ID],0)))","v":""},{"$f":"IF(Table3[[#This Row],[Capacity (BTU/hr)]]=\"\",\"\",ROUND(Table3[[#This Row],[Capacity (BTU/hr)]]/12000,1))","v":""},{"$f":"IF(Table3[[#This Row],[Measure Version ID]]=\"\",\"\",Table3[[#This Row],[Incentive Per Unit]]*Table3[[#This Row],[Capacity (Tons)]]*Table3[[#This Row],[Quantity]])","v":""},{"$f":"IF(OR(Table3[[#This Row],[Equipment ID]]=\"\",Table3[[#This Row],[Capacity (BTU/hr)]]=\"\",Table3[[#This Row],[Quantity]]=\"\"),\"\",Table3[[#This Row],[kWh Savings Per Unit]]*Table3[[#This Row],[Capacity (Tons)]]*Table3[[#This Row],[Quantity]])","v":""},{"$f":"IF(OR(Table3[[#This Row],[Equipment ID]]=\"\",Table3[[#This Row],[Capacity (BTU/hr)]]=\"\",Table3[[#This Row],[Quantity]]=\"\"),\"\",Table3[[#This Row],[kW Savings Per Unit]]*Table3[[#This Row],[Capacity (Tons)]]*Table3[[#This Row],[Quantity]])","v":""},{"$f":"IF(Table3[[#This Row],[Baseline Equipment]]=\"\",\"\",INDEX(BaselineEquipment[Upgrade Type],MATCH(Table3[[#This Row],[Baseline Equipment]],BaselineEquipment[Baseline Equipment],0)))","v":""}]
[null,null,{"$f":"ROW(Table3[[#This Row],[Baseline Equipment]])-6","v":3},null,null,null,null,null,null,null,null,{"$f":"IFERROR(IF(InstallDate=\"\",\"\",\nINDEX(Measures[Measure Version ID],MATCH(1,\n(Table3[[#This Row],[Upgrade Type]]=Measures[Upgrade Type])*\n(IFERROR(Table3[[#This Row],[Capacity (BTU/hr)]]/1000>Measures[Capacity Low (kBTU/hr)],1))*\n(IFERROR(Table3[[#This Row],[Capacity (BTU/hr)]]/1000<=Measures[Capacity High (kBTU/hr)],1))*\n(InstallDate>=Measures[Effective Start Date])*\n(InstallDate<=IF(Measures[Effective End Date]=0,50000,Measures[Effective End Date])),\n0)+0)),\"\")","v":""},{"$f":"IFERROR(IF(Table3[[#This Row],[Proposed Equipment]]=\"\",\"\",\nINDEX(Equipment[ID],MATCH(1,\n(BusinessType=Equipment[Facility Type])*\n(Table3[[#This Row],[Baseline Equipment]]=Equipment[Baseline Equipment])*\n(Table3[[#This Row],[Proposed Equipment]]=Equipment[Proposed Equipment])*\n(IFERROR(Table3[[#This Row],[Capacity (BTU/hr)]]/1000>Equipment[Size Low],1))*\n(IFERROR(Table3[[#This Row],[Capacity (BTU/hr)]]/1000<=Equipment[Size High],1)),\n0)+0)),\"\")","v":""},{"$f":"IF(Table3[[#This Row],[Measure Version ID]]=\"\",\"\",\nINDEX(Measures[Customer Incentive ($/unit)],MATCH(Table3[[#This Row],[Measure Version ID]],Measures[Measure Version ID],0)))","v":""},{"$f":"IF(Table3[[#This Row],[Equipment ID]]=\"\",\"\",\nINDEX(Equipment[kWh Savings Per Unit],MATCH(Table3[[#This Row],[Equipment ID]],Equipment[ID],0)))","v":""},{"$f":"IF(Table3[[#This Row],[Equipment ID]]=\"\",\"\",\nINDEX(Equipment[kW Savings Per Unit],MATCH(Table3[[#This Row],[Equipment ID]],Equipment[ID],0)))","v":""},{"$f":"IF(Table3[[#This Row],[Capacity (BTU/hr)]]=\"\",\"\",ROUND(Table3[[#This Row],[Capacity (BTU/hr)]]/12000,1))","v":""},{"$f":"IF(Table3[[#This Row],[Measure Version ID]]=\"\",\"\",Table3[[#This Row],[Incentive Per Unit]]*Table3[[#This Row],[Capacity (Tons)]]*Table3[[#This Row],[Quantity]])","v":""},{"$f":"IF(OR(Table3[[#This Row],[Equipment ID]]=\"\",Table3[[#This Row],[Capacity (BTU/hr)]]=\"\",Table3[[#This Row],[Quantity]]=\"\"),\"\",Table3[[#This Row],[kWh Savings Per Unit]]*Table3[[#This Row],[Capacity (Tons)]]*Table3[[#This Row],[Quantity]])","v":""},{"$f":"IF(OR(Table3[[#This Row],[Equipment ID]]=\"\",Table3[[#This Row],[Capacity (BTU/hr)]]=\"\",Table3[[#This Row],[Quantity]]=\"\"),\"\",Table3[[#This Row],[kW Savings Per Unit]]*Table3[[#This Row],[Capacity (Tons)]]*Table3[[#This Row],[Quantity]])","v":""},{"$f":"IF(Table3[[#This Row],[Baseline Equipment]]=\"\",\"\",INDEX(BaselineEquipment[Upgrade Type],MATCH(Table3[[#This Row],[Baseline Equipment]],BaselineEquipment[Baseline Equipment],0)))","v":""}]
[null,null,{"$f":"ROW(Table3[[#This Row],[Baseline Equipment]])-6","v":4},null,null,null,null,null,null,null,null,{"$f":"IFERROR(IF(InstallDate=\"\",\"\",\nINDEX(Measures[Measure Version ID],MATCH(1,\n(Table3[[#This Row],[Upgrade Type]]=Measures[Upgrade Type])*\n(IFERROR(Table3[[#This Row],[Capacity (BTU/hr)]]/1000>Measures[Capacity Low (kBTU/hr)],1))*\n(IFERROR(Table3[[#This Row],[Capacity (BTU/hr)]]/1000<=Measures[Capacity High (kBTU/hr)],1))*\n(InstallDate>=Measures[Effective Start Date])*\n(InstallDate<=IF(Measures[Effective End Date]=0,50000,Measures[Effective End Date])),\n0)+0)),\"\")","v":""},{"$f":"IFERROR(IF(Table3[[#This Row],[Proposed Equipment]]=\"\",\"\",\nINDEX(Equipment[ID],MATCH(1,\n(BusinessType=Equipment[Facility Type])*\n(Table3[[#This Row],[Baseline Equipment]]=Equipment[Baseline Equipment])*\n(Table3[[#This Row],[Proposed Equipment]]=Equipment[Proposed Equipment])*\n(IFERROR(Table3[[#This Row],[Capacity (BTU/hr)]]/1000>Equipment[Size Low],1))*\n(IFERROR(Table3[[#This Row],[Capacity (BTU/hr)]]/1000<=Equipment[Size High],1)),\n0)+0)),\"\")","v":""},{"$f":"IF(Table3[[#This Row],[Measure Version ID]]=\"\",\"\",\nINDEX(Measures[Customer Incentive ($/unit)],MATCH(Table3[[#This Row],[Measure Version ID]],Measures[Measure Version ID],0)))","v":""},{"$f":"IF(Table3[[#This Row],[Equipment ID]]=\"\",\"\",\nINDEX(Equipment[kWh Savings Per Unit],MATCH(Table3[[#This Row],[Equipment ID]],Equipment[ID],0)))","v":""},{"$f":"IF(Table3[[#This Row],[Equipment ID]]=\"\",\"\",\nINDEX(Equipment[kW Savings Per Unit],MATCH(Table3[[#This Row],[Equipment ID]],Equipment[ID],0)))","v":""},{"$f":"IF(Table3[[#This Row],[Capacity (BTU/hr)]]=\"\",\"\",ROUND(Table3[[#This Row],[Capacity (BTU/hr)]]/12000,1))","v":""},{"$f":"IF(Table3[[#This Row],[Measure Version ID]]=\"\",\"\",Table3[[#This Row],[Incentive Per Unit]]*Table3[[#This Row],[Capacity (Tons)]]*Table3[[#This Row],[Quantity]])","v":""},{"$f":"IF(OR(Table3[[#This Row],[Equipment ID]]=\"\",Table3[[#This Row],[Capacity (BTU/hr)]]=\"\",Table3[[#This Row],[Quantity]]=\"\"),\"\",Table3[[#This Row],[kWh Savings Per Unit]]*Table3[[#This Row],[Capacity (Tons)]]*Table3[[#This Row],[Quantity]])","v":""},{"$f":"IF(OR(Table3[[#This Row],[Equipment ID]]=\"\",Table3[[#This Row],[Capacity (BTU/hr)]]=\"\",Table3[[#This Row],[Quantity]]=\"\"),\"\",Table3[[#This Row],[kW Savings Per Unit]]*Table3[[#This Row],[Capacity (Tons)]]*Table3[[#This Row],[Quantity]])","v":""},{"$f":"IF(Table3[[#This Row],[Baseline Equipment]]=\"\",\"\",INDEX(BaselineEquipment[Upgrade Type],MATCH(Table3[[#This Row],[Baseline Equipment]],BaselineEquipment[Baseline Equipment],0)))","v":""}]
[null,null,{"$f":"ROW(Table3[[#This Row],[Baseline Equipment]])-6","v":5},null,null,null,null,null,null,null,null,{"$f":"IFERROR(IF(InstallDate=\"\",\"\",\nINDEX(Measures[Measure Version ID],MATCH(1,\n(Table3[[#This Row],[Upgrade Type]]=Measures[Upgrade Type])*\n(IFERROR(Table3[[#This Row],[Capacity (BTU/hr)]]/1000>Measures[Capacity Low (kBTU/hr)],1))*\n(IFERROR(Table3[[#This Row],[Capacity (BTU/hr)]]/1000<=Measures[Capacity High (kBTU/hr)],1))*\n(InstallDate>=Measures[Effective Start Date])*\n(InstallDate<=IF(Measures[Effective End Date]=0,50000,Measures[Effective End Date])),\n0)+0)),\"\")","v":""},{"$f":"IFERROR(IF(Table3[[#This Row],[Proposed Equipment]]=\"\",\"\",\nINDEX(Equipment[ID],MATCH(1,\n(BusinessType=Equipment[Facility Type])*\n(Table3[[#This Row],[Baseline Equipment]]=Equipment[Baseline Equipment])*\n(Table3[[#This Row],[Proposed Equipment]]=Equipment[Proposed Equipment])*\n(IFERROR(Table3[[#This Row],[Capacity (BTU/hr)]]/1000>Equipment[Size Low],1))*\n(IFERROR(Table3[[#This Row],[Capacity (BTU/hr)]]/1000<=Equipment[Size High],1)),\n0)+0)),\"\")","v":""},{"$f":"IF(Table3[[#This Row],[Measure Version ID]]=\"\",\"\",\nINDEX(Measures[Customer Incentive ($/unit)],MATCH(Table3[[#This Row],[Measure Version ID]],Measures[Measure Version ID],0)))","v":""},{"$f":"IF(Table3[[#This Row],[Equipment ID]]=\"\",\"\",\nINDEX(Equipment[kWh Savings Per Unit],MATCH(Table3[[#This Row],[Equipment ID]],Equipment[ID],0)))","v":""},{"$f":"IF(Table3[[#This Row],[Equipment ID]]=\"\",\"\",\nINDEX(Equipment[kW Savings Per Unit],MATCH(Table3[[#This Row],[Equipment ID]],Equipment[ID],0)))","v":""},{"$f":"IF(Table3[[#This Row],[Capacity (BTU/hr)]]=\"\",\"\",ROUND(Table3[[#This Row],[Capacity (BTU/hr)]]/12000,1))","v":""},{"$f":"IF(Table3[[#This Row],[Measure Version ID]]=\"\",\"\",Table3[[#This Row],[Incentive Per Unit]]*Table3[[#This Row],[Capacity (Tons)]]*Table3[[#This Row],[Quantity]])","v":""},{"$f":"IF(OR(Table3[[#This Row],[Equipment ID]]=\"\",Table3[[#This Row],[Capacity (BTU/hr)]]=\"\",Table3[[#This Row],[Quantity]]=\"\"),\"\",Table3[[#This Row],[kWh Savings Per Unit]]*Table3[[#This Row],[Capacity (Tons)]]*Table3[[#This Row],[Quantity]])","v":""},{"$f":"IF(OR(Table3[[#This Row],[Equipment ID]]=\"\",Table3[[#This Row],[Capacity (BTU/hr)]]=\"\",Table3[[#This Row],[Quantity]]=\"\"),\"\",Table3[[#This Row],[kW Savings Per Unit]]*Table3[[#This Row],[Capacity (Tons)]]*Table3[[#This Row],[Quantity]])","v":""},{"$f":"IF(Table3[[#This Row],[Baseline Equipment]]=\"\",\"\",INDEX(BaselineEquipment[Upgrade Type],MATCH(Table3[[#This Row],[Baseline Equipment]],BaselineEquipment[Baseline Equipment],0)))","v":""}]
[null,null,{"$f":"ROW(Table3[[#This Row],[Baseline Equipment]])-6","v":6},null,null,null,null,null,null,null,null,{"$f":"IFERROR(IF(InstallDate=\"\",\"\",\nINDEX(Measures[Measure Version ID],MATCH(1,\n(Table3[[#This Row],[Upgrade Type]]=Measures[Upgrade Type])*\n(IFERROR(Table3[[#This Row],[Capacity (BTU/hr)]]/1000>Measures[Capacity Low (kBTU/hr)],1))*\n(IFERROR(Table3[[#This Row],[Capacity (BTU/hr)]]/1000<=Measures[Capacity High (kBTU/hr)],1))*\n(InstallDate>=Measures[Effective Start Date])*\n(InstallDate<=IF(Measures[Effective End Date]=0,50000,Measures[Effective End Date])),\n0)+0)),\"\")","v":""},{"$f":"IFERROR(IF(Table3[[#This Row],[Proposed Equipment]]=\"\",\"\",\nINDEX(Equipment[ID],MATCH(1,\n(BusinessType=Equipment[Facility Type])*\n(Table3[[#This Row],[Baseline Equipment]]=Equipment[Baseline Equipment])*\n(Table3[[#This Row],[Proposed Equipment]]=Equipment[Proposed Equipment])*\n(IFERROR(Table3[[#This Row],[Capacity (BTU/hr)]]/1000>Equipment[Size Low],1))*\n(IFERROR(Table3[[#This Row],[Capacity (BTU/hr)]]/1000<=Equipment[Size High],1)),\n0)+0)),\"\")","v":""},{"$f":"IF(Table3[[#This Row],[Measure Version ID]]=\"\",\"\",\nINDEX(Measures[Customer Incentive ($/unit)],MATCH(Table3[[#This Row],[Measure Version ID]],Measures[Measure Version ID],0)))","v":""},{"$f":"IF(Table3[[#This Row],[Equipment ID]]=\"\",\"\",\nINDEX(Equipment[kWh Savings Per Unit],MATCH(Table3[[#This Row],[Equipment ID]],Equipment[ID],0)))","v":""},{"$f":"IF(Table3[[#This Row],[Equipment ID]]=\"\",\"\",\nINDEX(Equipment[kW Savings Per Unit],MATCH(Table3[[#This Row],[Equipment ID]],Equipment[ID],0)))","v":""},{"$f":"IF(Table3[[#This Row],[Capacity (BTU/hr)]]=\"\",\"\",ROUND(Table3[[#This Row],[Capacity (BTU/hr)]]/12000,1))","v":""},{"$f":"IF(Table3[[#This Row],[Measure Version ID]]=\"\",\"\",Table3[[#This Row],[Incentive Per Unit]]*Table3[[#This Row],[Capacity (Tons)]]*Table3[[#This Row],[Quantity]])","v":""},{"$f":"IF(OR(Table3[[#This Row],[Equipment ID]]=\"\",Table3[[#This Row],[Capacity (BTU/hr)]]=\"\",Table3[[#This Row],[Quantity]]=\"\"),\"\",Table3[[#This Row],[kWh Savings Per Unit]]*Table3[[#This Row],[Capacity (Tons)]]*Table3[[#This Row],[Quantity]])","v":""},{"$f":"IF(OR(Table3[[#This Row],[Equipment ID]]=\"\",Table3[[#This Row],[Capacity (BTU/hr)]]=\"\",Table3[[#This Row],[Quantity]]=\"\"),\"\",Table3[[#This Row],[kW Savings Per Unit]]*Table3[[#This Row],[Capacity (Tons)]]*Table3[[#This Row],[Quantity]])","v":""},{"$f":"IF(Table3[[#This Row],[Baseline Equipment]]=\"\",\"\",INDEX(BaselineEquipment[Upgrade Type],MATCH(Table3[[#This Row],[Baseline Equipment]],BaselineEquipment[Baseline Equipment],0)))","v":""}]
[null,null,{"$f":"ROW(Table3[[#This Row],[Baseline Equipment]])-6","v":7},null,null,null,null,null,null,null,null,{"$f":"IFERROR(IF(InstallDate=\"\",\"\",\nINDEX(Measures[Measure Version ID],MATCH(1,\n(Table3[[#This Row],[Upgrade Type]]=Measures[Upgrade Type])*\n(IFERROR(Table3[[#This Row],[Capacity (BTU/hr)]]/1000>Measures[Capacity Low (kBTU/hr)],1))*\n(IFERROR(Table3[[#This Row],[Capacity (BTU/hr)]]/1000<=Measures[Capacity High (kBTU/hr)],1))*\n(InstallDate>=Measures[Effective Start Date])*\n(InstallDate<=IF(Measures[Effective End Date]=0,50000,Measures[Effective End Date])),\n0)+0)),\"\")","v":""},{"$f":"IFERROR(IF(Table3[[#This Row],[Proposed Equipment]]=\"\",\"\",\nINDEX(Equipment[ID],MATCH(1,\n(BusinessType=Equipment[Facility Type])*\n(Table3[[#This Row],[Baseline Equipment]]=Equipment[Baseline Equipment])*\n(Table3[[#This Row],[Proposed Equipment]]=Equipment[Proposed Equipment])*\n(IFERROR(Table3[[#This Row],[Capacity (BTU/hr)]]/1000>Equipment[Size Low],1))*\n(IFERROR(Table3[[#This Row],[Capacity (BTU/hr)]]/1000<=Equipment[Size High],1)),\n0)+0)),\"\")","v":""},{"$f":"IF(Table3[[#This Row],[Measure Version ID]]=\"\",\"\",\nINDEX(Measures[Customer Incentive ($/unit)],MATCH(Table3[[#This Row],[Measure Version ID]],Measures[Measure Version ID],0)))","v":""},{"$f":"IF(Table3[[#This Row],[Equipment ID]]=\"\",\"\",\nINDEX(Equipment[kWh Savings Per Unit],MATCH(Table3[[#This Row],[Equipment ID]],Equipment[ID],0)))","v":""},{"$f":"IF(Table3[[#This Row],[Equipment ID]]=\"\",\"\",\nINDEX(Equipment[kW Savings Per Unit],MATCH(Table3[[#This Row],[Equipment ID]],Equipment[ID],0)))","v":""},{"$f":"IF(Table3[[#This Row],[Capacity (BTU/hr)]]=\"\",\"\",ROUND(Table3[[#This Row],[Capacity (BTU/hr)]]/12000,1))","v":""},{"$f":"IF(Table3[[#This Row],[Measure Version ID]]=\"\",\"\",Table3[[#This Row],[Incentive Per Unit]]*Table3[[#This Row],[Capacity (Tons)]]*Table3[[#This Row],[Quantity]])","v":""},{"$f":"IF(OR(Table3[[#This Row],[Equipment ID]]=\"\",Table3[[#This Row],[Capacity (BTU/hr)]]=\"\",Table3[[#This Row],[Quantity]]=\"\"),\"\",Table3[[#This Row],[kWh Savings Per Unit]]*Table3[[#This Row],[Capacity (Tons)]]*Table3[[#This Row],[Quantity]])","v":""},{"$f":"IF(OR(Table3[[#This Row],[Equipment ID]]=\"\",Table3[[#This Row],[Capacity (BTU/hr)]]=\"\",Table3[[#This Row],[Quantity]]=\"\"),\"\",Table3[[#This Row],[kW Savings Per Unit]]*Table3[[#This Row],[Capacity (Tons)]]*Table3[[#This Row],[Quantity]])","v":""},{"$f":"IF(Table3[[#This Row],[Baseline Equipment]]=\"\",\"\",INDEX(BaselineEquipment[Upgrade Type],MATCH(Table3[[#This Row],[Baseline Equipment]],BaselineEquipment[Baseline Equipment],0)))","v":""}]
[null,null,{"$f":"ROW(Table3[[#This Row],[Baseline Equipment]])-6","v":8},null,null,null,null,null,null,null,null,{"$f":"IFERROR(IF(InstallDate=\"\",\"\",\nINDEX(Measures[Measure Version ID],MATCH(1,\n(Table3[[#This Row],[Upgrade Type]]=Measures[Upgrade Type])*\n(IFERROR(Table3[[#This Row],[Capacity (BTU/hr)]]/1000>Measures[Capacity Low (kBTU/hr)],1))*\n(IFERROR(Table3[[#This Row],[Capacity (BTU/hr)]]/1000<=Measures[Capacity High (kBTU/hr)],1))*\n(InstallDate>=Measures[Effective Start Date])*\n(InstallDate<=IF(Measures[Effective End Date]=0,50000,Measures[Effective End Date])),\n0)+0)),\"\")","v":""},{"$f":"IFERROR(IF(Table3[[#This Row],[Proposed Equipment]]=\"\",\"\",\nINDEX(Equipment[ID],MATCH(1,\n(BusinessType=Equipment[Facility Type])*\n(Table3[[#This Row],[Baseline Equipment]]=Equipment[Baseline Equipment])*\n(Table3[[#This Row],[Proposed Equipment]]=Equipment[Proposed Equipment])*\n(IFERROR(Table3[[#This Row],[Capacity (BTU/hr)]]/1000>Equipment[Size Low],1))*\n(IFERROR(Table3[[#This Row],[Capacity (BTU/hr)]]/1000<=Equipment[Size High],1)),\n0)+0)),\"\")","v":""},{"$f":"IF(Table3[[#This Row],[Measure Version ID]]=\"\",\"\",\nINDEX(Measures[Customer Incentive ($/unit)],MATCH(Table3[[#This Row],[Measure Version ID]],Measures[Measure Version ID],0)))","v":""},{"$f":"IF(Table3[[#This Row],[Equipment ID]]=\"\",\"\",\nINDEX(Equipment[kWh Savings Per Unit],MATCH(Table3[[#This Row],[Equipment ID]],Equipment[ID],0)))","v":""},{"$f":"IF(Table3[[#This Row],[Equipment ID]]=\"\",\"\",\nINDEX(Equipment[kW Savings Per Unit],MATCH(Table3[[#This Row],[Equipment ID]],Equipment[ID],0)))","v":""},{"$f":"IF(Table3[[#This Row],[Capacity (BTU/hr)]]=\"\",\"\",ROUND(Table3[[#This Row],[Capacity (BTU/hr)]]/12000,1))","v":""},{"$f":"IF(Table3[[#This Row],[Measure Version ID]]=\"\",\"\",Table3[[#This Row],[Incentive Per Unit]]*Table3[[#This Row],[Capacity (Tons)]]*Table3[[#This Row],[Quantity]])","v":""},{"$f":"IF(OR(Table3[[#This Row],[Equipment ID]]=\"\",Table3[[#This Row],[Capacity (BTU/hr)]]=\"\",Table3[[#This Row],[Quantity]]=\"\"),\"\",Table3[[#This Row],[kWh Savings Per Unit]]*Table3[[#This Row],[Capacity (Tons)]]*Table3[[#This Row],[Quantity]])","v":""},{"$f":"IF(OR(Table3[[#This Row],[Equipment ID]]=\"\",Table3[[#This Row],[Capacity (BTU/hr)]]=\"\",Table3[[#This Row],[Quantity]]=\"\"),\"\",Table3[[#This Row],[kW Savings Per Unit]]*Table3[[#This Row],[Capacity (Tons)]]*Table3[[#This Row],[Quantity]])","v":""},{"$f":"IF(Table3[[#This Row],[Baseline Equipment]]=\"\",\"\",INDEX(BaselineEquipment[Upgrade Type],MATCH(Table3[[#This Row],[Baseline Equipment]],BaselineEquipment[Baseline Equipment],0)))","v":""}]
[null,null,{"$f":"ROW(Table3[[#This Row],[Baseline Equipment]])-6","v":9},null,null,null,null,null,null,null,null,{"$f":"IFERROR(IF(InstallDate=\"\",\"\",\nINDEX(Measures[Measure Version ID],MATCH(1,\n(Table3[[#This Row],[Upgrade Type]]=Measures[Upgrade Type])*\n(IFERROR(Table3[[#This Row],[Capacity (BTU/hr)]]/1000>Measures[Capacity Low (kBTU/hr)],1))*\n(IFERROR(Table3[[#This Row],[Capacity (BTU/hr)]]/1000<=Measures[Capacity High (kBTU/hr)],1))*\n(InstallDate>=Measures[Effective Start Date])*\n(InstallDate<=IF(Measures[Effective End Date]=0,50000,Measures[Effective End Date])),\n0)+0)),\"\")","v":""},{"$f":"IFERROR(IF(Table3[[#This Row],[Proposed Equipment]]=\"\",\"\",\nINDEX(Equipment[ID],MATCH(1,\n(BusinessType=Equipment[Facility Type])*\n(Table3[[#This Row],[Baseline Equipment]]=Equipment[Baseline Equipment])*\n(Table3[[#This Row],[Proposed Equipment]]=Equipment[Proposed Equipment])*\n(IFERROR(Table3[[#This Row],[Capacity (BTU/hr)]]/1000>Equipment[Size Low],1))*\n(IFERROR(Table3[[#This Row],[Capacity (BTU/hr)]]/1000<=Equipment[Size High],1)),\n0)+0)),\"\")","v":""},{"$f":"IF(Table3[[#This Row],[Measure Version ID]]=\"\",\"\",\nINDEX(Measures[Customer Incentive ($/unit)],MATCH(Table3[[#This Row],[Measure Version ID]],Measures[Measure Version ID],0)))","v":""},{"$f":"IF(Table3[[#This Row],[Equipment ID]]=\"\",\"\",\nINDEX(Equipment[kWh Savings Per Unit],MATCH(Table3[[#This Row],[Equipment ID]],Equipment[ID],0)))","v":""},{"$f":"IF(Table3[[#This Row],[Equipment ID]]=\"\",\"\",\nINDEX(Equipment[kW Savings Per Unit],MATCH(Table3[[#This Row],[Equipment ID]],Equipment[ID],0)))","v":""},{"$f":"IF(Table3[[#This Row],[Capacity (BTU/hr)]]=\"\",\"\",ROUND(Table3[[#This Row],[Capacity (BTU/hr)]]/12000,1))","v":""},{"$f":"IF(Table3[[#This Row],[Measure Version ID]]=\"\",\"\",Table3[[#This Row],[Incentive Per Unit]]*Table3[[#This Row],[Capacity (Tons)]]*Table3[[#This Row],[Quantity]])","v":""},{"$f":"IF(OR(Table3[[#This Row],[Equipment ID]]=\"\",Table3[[#This Row],[Capacity (BTU/hr)]]=\"\",Table3[[#This Row],[Quantity]]=\"\"),\"\",Table3[[#This Row],[kWh Savings Per Unit]]*Table3[[#This Row],[Capacity (Tons)]]*Table3[[#This Row],[Quantity]])","v":""},{"$f":"IF(OR(Table3[[#This Row],[Equipment ID]]=\"\",Table3[[#This Row],[Capacity (BTU/hr)]]=\"\",Table3[[#This Row],[Quantity]]=\"\"),\"\",Table3[[#This Row],[kW Savings Per Unit]]*Table3[[#This Row],[Capacity (Tons)]]*Table3[[#This Row],[Quantity]])","v":""},{"$f":"IF(Table3[[#This Row],[Baseline Equipment]]=\"\",\"\",INDEX(BaselineEquipment[Upgrade Type],MATCH(Table3[[#This Row],[Baseline Equipment]],BaselineEquipment[Baseline Equipment],0)))","v":""}]
[null,null,{"$f":"ROW(Table3[[#This Row],[Baseline Equipment]])-6","v":10},null,null,null,null,null,null,null,null,{"$f":"IFERROR(IF(InstallDate=\"\",\"\",\nINDEX(Measures[Measure Version ID],MATCH(1,\n(Table3[[#This Row],[Upgrade Type]]=Measures[Upgrade Type])*\n(IFERROR(Table3[[#This Row],[Capacity (BTU/hr)]]/1000>Measures[Capacity Low (kBTU/hr)],1))*\n(IFERROR(Table3[[#This Row],[Capacity (BTU/hr)]]/1000<=Measures[Capacity High (kBTU/hr)],1))*\n(InstallDate>=Measures[Effective Start Date])*\n(InstallDate<=IF(Measures[Effective End Date]=0,50000,Measures[Effective End Date])),\n0)+0)),\"\")","v":""},{"$f":"IFERROR(IF(Table3[[#This Row],[Proposed Equipment]]=\"\",\"\",\nINDEX(Equipment[ID],MATCH(1,\n(BusinessType=Equipment[Facility Type])*\n(Table3[[#This Row],[Baseline Equipment]]=Equipment[Baseline Equipment])*\n(Table3[[#This Row],[Proposed Equipment]]=Equipment[Proposed Equipment])*\n(IFERROR(Table3[[#This Row],[Capacity (BTU/hr)]]/1000>Equipment[Size Low],1))*\n(IFERROR(Table3[[#This Row],[Capacity (BTU/hr)]]/1000<=Equipment[Size High],1)),\n0)+0)),\"\")","v":""},{"$f":"IF(Table3[[#This Row],[Measure Version ID]]=\"\",\"\",\nINDEX(Measures[Customer Incentive ($/unit)],MATCH(Table3[[#This Row],[Measure Version ID]],Measures[Measure Version ID],0)))","v":""},{"$f":"IF(Table3[[#This Row],[Equipment ID]]=\"\",\"\",\nINDEX(Equipment[kWh Savings Per Unit],MATCH(Table3[[#This Row],[Equipment ID]],Equipment[ID],0)))","v":""},{"$f":"IF(Table3[[#This Row],[Equipment ID]]=\"\",\"\",\nINDEX(Equipment[kW Savings Per Unit],MATCH(Table3[[#This Row],[Equipment ID]],Equipment[ID],0)))","v":""},{"$f":"IF(Table3[[#This Row],[Capacity (BTU/hr)]]=\"\",\"\",ROUND(Table3[[#This Row],[Capacity (BTU/hr)]]/12000,1))","v":""},{"$f":"IF(Table3[[#This Row],[Measure Version ID]]=\"\",\"\",Table3[[#This Row],[Incentive Per Unit]]*Table3[[#This Row],[Capacity (Tons)]]*Table3[[#This Row],[Quantity]])","v":""},{"$f":"IF(OR(Table3[[#This Row],[Equipment ID]]=\"\",Table3[[#This Row],[Capacity (BTU/hr)]]=\"\",Table3[[#This Row],[Quantity]]=\"\"),\"\",Table3[[#This Row],[kWh Savings Per Unit]]*Table3[[#This Row],[Capacity (Tons)]]*Table3[[#This Row],[Quantity]])","v":""},{"$f":"IF(OR(Table3[[#This Row],[Equipment ID]]=\"\",Table3[[#This Row],[Capacity (BTU/hr)]]=\"\",Table3[[#This Row],[Quantity]]=\"\"),\"\",Table3[[#This Row],[kW Savings Per Unit]]*Table3[[#This Row],[Capacity (Tons)]]*Table3[[#This Row],[Quantity]])","v":""},{"$f":"IF(Table3[[#This Row],[Baseline Equipment]]=\"\",\"\",INDEX(BaselineEquipment[Upgrade Type],MATCH(Table3[[#This Row],[Baseline Equipment]],BaselineEquipment[Baseline Equipment],0)))","v":""}]
[null,null,{"$f":"ROW(Table3[[#This Row],[Baseline Equipment]])-6","v":11},null,null,null,null,null,null,null,null,{"$f":"IFERROR(IF(InstallDate=\"\",\"\",\nINDEX(Measures[Measure Version ID],MATCH(1,\n(Table3[[#This Row],[Upgrade Type]]=Measures[Upgrade Type])*\n(IFERROR(Table3[[#This Row],[Capacity (BTU/hr)]]/1000>Measures[Capacity Low (kBTU/hr)],1))*\n(IFERROR(Table3[[#This Row],[Capacity (BTU/hr)]]/1000<=Measures[Capacity High (kBTU/hr)],1))*\n(InstallDate>=Measures[Effective Start Date])*\n(InstallDate<=IF(Measures[Effective End Date]=0,50000,Measures[Effective End Date])),\n0)+0)),\"\")","v":""},{"$f":"IFERROR(IF(Table3[[#This Row],[Proposed Equipment]]=\"\",\"\",\nINDEX(Equipment[ID],MATCH(1,\n(BusinessType=Equipment[Facility Type])*\n(Table3[[#This Row],[Baseline Equipment]]=Equipment[Baseline Equipment])*\n(Table3[[#This Row],[Proposed Equipment]]=Equipment[Proposed Equipment])*\n(IFERROR(Table3[[#This Row],[Capacity (BTU/hr)]]/1000>Equipment[Size Low],1))*\n(IFERROR(Table3[[#This Row],[Capacity (BTU/hr)]]/1000<=Equipment[Size High],1)),\n0)+0)),\"\")","v":""},{"$f":"IF(Table3[[#This Row],[Measure Version ID]]=\"\",\"\",\nINDEX(Measures[Customer Incentive ($/unit)],MATCH(Table3[[#This Row],[Measure Version ID]],Measures[Measure Version ID],0)))","v":""},{"$f":"IF(Table3[[#This Row],[Equipment ID]]=\"\",\"\",\nINDEX(Equipment[kWh Savings Per Unit],MATCH(Table3[[#This Row],[Equipment ID]],Equipment[ID],0)))","v":""},{"$f":"IF(Table3[[#This Row],[Equipment ID]]=\"\",\"\",\nINDEX(Equipment[kW Savings Per Unit],MATCH(Table3[[#This Row],[Equipment ID]],Equipment[ID],0)))","v":""},{"$f":"IF(Table3[[#This Row],[Capacity (BTU/hr)]]=\"\",\"\",ROUND(Table3[[#This Row],[Capacity (BTU/hr)]]/12000,1))","v":""},{"$f":"IF(Table3[[#This Row],[Measure Version ID]]=\"\",\"\",Table3[[#This Row],[Incentive Per Unit]]*Table3[[#This Row],[Capacity (Tons)]]*Table3[[#This Row],[Quantity]])","v":""},{"$f":"IF(OR(Table3[[#This Row],[Equipment ID]]=\"\",Table3[[#This Row],[Capacity (BTU/hr)]]=\"\",Table3[[#This Row],[Quantity]]=\"\"),\"\",Table3[[#This Row],[kWh Savings Per Unit]]*Table3[[#This Row],[Capacity (Tons)]]*Table3[[#This Row],[Quantity]])","v":""},{"$f":"IF(OR(Table3[[#This Row],[Equipment ID]]=\"\",Table3[[#This Row],[Capacity (BTU/hr)]]=\"\",Table3[[#This Row],[Quantity]]=\"\"),\"\",Table3[[#This Row],[kW Savings Per Unit]]*Table3[[#This Row],[Capacity (Tons)]]*Table3[[#This Row],[Quantity]])","v":""},{"$f":"IF(Table3[[#This Row],[Baseline Equipment]]=\"\",\"\",INDEX(BaselineEquipment[Upgrade Type],MATCH(Table3[[#This Row],[Baseline Equipment]],BaselineEquipment[Baseline Equipment],0)))","v":""}]
[null,null,{"$f":"ROW(Table3[[#This Row],[Baseline Equipment]])-6","v":12},null,null,null,null,null,null,null,null,{"$f":"IFERROR(IF(InstallDate=\"\",\"\",\nINDEX(Measures[Measure Version ID],MATCH(1,\n(Table3[[#This Row],[Upgrade Type]]=Measures[Upgrade Type])*\n(IFERROR(Table3[[#This Row],[Capacity (BTU/hr)]]/1000>Measures[Capacity Low (kBTU/hr)],1))*\n(IFERROR(Table3[[#This Row],[Capacity (BTU/hr)]]/1000<=Measures[Capacity High (kBTU/hr)],1))*\n(InstallDate>=Measures[Effective Start Date])*\n(InstallDate<=IF(Measures[Effective End Date]=0,50000,Measures[Effective End Date])),\n0)+0)),\"\")","v":""},{"$f":"IFERROR(IF(Table3[[#This Row],[Proposed Equipment]]=\"\",\"\",\nINDEX(Equipment[ID],MATCH(1,\n(BusinessType=Equipment[Facility Type])*\n(Table3[[#This Row],[Baseline Equipment]]=Equipment[Baseline Equipment])*\n(Table3[[#This Row],[Proposed Equipment]]=Equipment[Proposed Equipment])*\n(IFERROR(Table3[[#This Row],[Capacity (BTU/hr)]]/1000>Equipment[Size Low],1))*\n(IFERROR(Table3[[#This Row],[Capacity (BTU/hr)]]/1000<=Equipment[Size High],1)),\n0)+0)),\"\")","v":""},{"$f":"IF(Table3[[#This Row],[Measure Version ID]]=\"\",\"\",\nINDEX(Measures[Customer Incentive ($/unit)],MATCH(Table3[[#This Row],[Measure Version ID]],Measures[Measure Version ID],0)))","v":""},{"$f":"IF(Table3[[#This Row],[Equipment ID]]=\"\",\"\",\nINDEX(Equipment[kWh Savings Per Unit],MATCH(Table3[[#This Row],[Equipment ID]],Equipment[ID],0)))","v":""},{"$f":"IF(Table3[[#This Row],[Equipment ID]]=\"\",\"\",\nINDEX(Equipment[kW Savings Per Unit],MATCH(Table3[[#This Row],[Equipment ID]],Equipment[ID],0)))","v":""},{"$f":"IF(Table3[[#This Row],[Capacity (BTU/hr)]]=\"\",\"\",ROUND(Table3[[#This Row],[Capacity (BTU/hr)]]/12000,1))","v":""},{"$f":"IF(Table3[[#This Row],[Measure Version ID]]=\"\",\"\",Table3[[#This Row],[Incentive Per Unit]]*Table3[[#This Row],[Capacity (Tons)]]*Table3[[#This Row],[Quantity]])","v":""},{"$f":"IF(OR(Table3[[#This Row],[Equipment ID]]=\"\",Table3[[#This Row],[Capacity (BTU/hr)]]=\"\",Table3[[#This Row],[Quantity]]=\"\"),\"\",Table3[[#This Row],[kWh Savings Per Unit]]*Table3[[#This Row],[Capacity (Tons)]]*Table3[[#This Row],[Quantity]])","v":""},{"$f":"IF(OR(Table3[[#This Row],[Equipment ID]]=\"\",Table3[[#This Row],[Capacity (BTU/hr)]]=\"\",Table3[[#This Row],[Quantity]]=\"\"),\"\",Table3[[#This Row],[kW Savings Per Unit]]*Table3[[#This Row],[Capacity (Tons)]]*Table3[[#This Row],[Quantity]])","v":""},{"$f":"IF(Table3[[#This Row],[Baseline Equipment]]=\"\",\"\",INDEX(BaselineEquipment[Upgrade Type],MATCH(Table3[[#This Row],[Baseline Equipment]],BaselineEquipment[Baseline Equipment],0)))","v":""}]
[null,null,{"$f":"ROW(Table3[[#This Row],[Baseline Equipment]])-6","v":13},null,null,null,null,null,null,null,null,{"$f":"IFERROR(IF(InstallDate=\"\",\"\",\nINDEX(Measures[Measure Version ID],MATCH(1,\n(Table3[[#This Row],[Upgrade Type]]=Measures[Upgrade Type])*\n(IFERROR(Table3[[#This Row],[Capacity (BTU/hr)]]/1000>Measures[Capacity Low (kBTU/hr)],1))*\n(IFERROR(Table3[[#This Row],[Capacity (BTU/hr)]]/1000<=Measures[Capacity High (kBTU/hr)],1))*\n(InstallDate>=Measures[Effective Start Date])*\n(InstallDate<=IF(Measures[Effective End Date]=0,50000,Measures[Effective End Date])),\n0)+0)),\"\")","v":""},{"$f":"IFERROR(IF(Table3[[#This Row],[Proposed Equipment]]=\"\",\"\",\nINDEX(Equipment[ID],MATCH(1,\n(BusinessType=Equipment[Facility Type])*\n(Table3[[#This Row],[Baseline Equipment]]=Equipment[Baseline Equipment])*\n(Table3[[#This Row],[Proposed Equipment]]=Equipment[Proposed Equipment])*\n(IFERROR(Table3[[#This Row],[Capacity (BTU/hr)]]/1000>Equipment[Size Low],1))*\n(IFERROR(Table3[[#This Row],[Capacity (BTU/hr)]]/1000<=Equipment[Size High],1)),\n0)+0)),\"\")","v":""},{"$f":"IF(Table3[[#This Row],[Measure Version ID]]=\"\",\"\",\nINDEX(Measures[Customer Incentive ($/unit)],MATCH(Table3[[#This Row],[Measure Version ID]],Measures[Measure Version ID],0)))","v":""},{"$f":"IF(Table3[[#This Row],[Equipment ID]]=\"\",\"\",\nINDEX(Equipment[kWh Savings Per Unit],MATCH(Table3[[#This Row],[Equipment ID]],Equipment[ID],0)))","v":""},{"$f":"IF(Table3[[#This Row],[Equipment ID]]=\"\",\"\",\nINDEX(Equipment[kW Savings Per Unit],MATCH(Table3[[#This Row],[Equipment ID]],Equipment[ID],0)))","v":""},{"$f":"IF(Table3[[#This Row],[Capacity (BTU/hr)]]=\"\",\"\",ROUND(Table3[[#This Row],[Capacity (BTU/hr)]]/12000,1))","v":""},{"$f":"IF(Table3[[#This Row],[Measure Version ID]]=\"\",\"\",Table3[[#This Row],[Incentive Per Unit]]*Table3[[#This Row],[Capacity (Tons)]]*Table3[[#This Row],[Quantity]])","v":""},{"$f":"IF(OR(Table3[[#This Row],[Equipment ID]]=\"\",Table3[[#This Row],[Capacity (BTU/hr)]]=\"\",Table3[[#This Row],[Quantity]]=\"\"),\"\",Table3[[#This Row],[kWh Savings Per Unit]]*Table3[[#This Row],[Capacity (Tons)]]*Table3[[#This Row],[Quantity]])","v":""},{"$f":"IF(OR(Table3[[#This Row],[Equipment ID]]=\"\",Table3[[#This Row],[Capacity (BTU/hr)]]=\"\",Table3[[#This Row],[Quantity]]=\"\"),\"\",Table3[[#This Row],[kW Savings Per Unit]]*Table3[[#This Row],[Capacity (Tons)]]*Table3[[#This Row],[Quantity]])","v":""},{"$f":"IF(Table3[[#This Row],[Baseline Equipment]]=\"\",\"\",INDEX(BaselineEquipment[Upgrade Type],MATCH(Table3[[#This Row],[Baseline Equipment]],BaselineEquipment[Baseline Equipment],0)))","v":""}]
[null,null,{"$f":"ROW(Table3[[#This Row],[Baseline Equipment]])-6","v":14},null,null,null,null,null,null,null,null,{"$f":"IFERROR(IF(InstallDate=\"\",\"\",\nINDEX(Measures[Measure Version ID],MATCH(1,\n(Table3[[#This Row],[Upgrade Type]]=Measures[Upgrade Type])*\n(IFERROR(Table3[[#This Row],[Capacity (BTU/hr)]]/1000>Measures[Capacity Low (kBTU/hr)],1))*\n(IFERROR(Table3[[#This Row],[Capacity (BTU/hr)]]/1000<=Measures[Capacity High (kBTU/hr)],1))*\n(InstallDate>=Measures[Effective Start Date])*\n(InstallDate<=IF(Measures[Effective End Date]=0,50000,Measures[Effective End Date])),\n0)+0)),\"\")","v":""},{"$f":"IFERROR(IF(Table3[[#This Row],[Proposed Equipment]]=\"\",\"\",\nINDEX(Equipment[ID],MATCH(1,\n(BusinessType=Equipment[Facility Type])*\n(Table3[[#This Row],[Baseline Equipment]]=Equipment[Baseline Equipment])*\n(Table3[[#This Row],[Proposed Equipment]]=Equipment[Proposed Equipment])*\n(IFERROR(Table3[[#This Row],[Capacity (BTU/hr)]]/1000>Equipment[Size Low],1))*\n(IFERROR(Table3[[#This Row],[Capacity (BTU/hr)]]/1000<=Equipment[Size High],1)),\n0)+0)),\"\")","v":""},{"$f":"IF(Table3[[#This Row],[Measure Version ID]]=\"\",\"\",\nINDEX(Measures[Customer Incentive ($/unit)],MATCH(Table3[[#This Row],[Measure Version ID]],Measures[Measure Version ID],0)))","v":""},{"$f":"IF(Table3[[#This Row],[Equipment ID]]=\"\",\"\",\nINDEX(Equipment[kWh Savings Per Unit],MATCH(Table3[[#This Row],[Equipment ID]],Equipment[ID],0)))","v":""},{"$f":"IF(Table3[[#This Row],[Equipment ID]]=\"\",\"\",\nINDEX(Equipment[kW Savings Per Unit],MATCH(Table3[[#This Row],[Equipment ID]],Equipment[ID],0)))","v":""},{"$f":"IF(Table3[[#This Row],[Capacity (BTU/hr)]]=\"\",\"\",ROUND(Table3[[#This Row],[Capacity (BTU/hr)]]/12000,1))","v":""},{"$f":"IF(Table3[[#This Row],[Measure Version ID]]=\"\",\"\",Table3[[#This Row],[Incentive Per Unit]]*Table3[[#This Row],[Capacity (Tons)]]*Table3[[#This Row],[Quantity]])","v":""},{"$f":"IF(OR(Table3[[#This Row],[Equipment ID]]=\"\",Table3[[#This Row],[Capacity (BTU/hr)]]=\"\",Table3[[#This Row],[Quantity]]=\"\"),\"\",Table3[[#This Row],[kWh Savings Per Unit]]*Table3[[#This Row],[Capacity (Tons)]]*Table3[[#This Row],[Quantity]])","v":""},{"$f":"IF(OR(Table3[[#This Row],[Equipment ID]]=\"\",Table3[[#This Row],[Capacity (BTU/hr)]]=\"\",Table3[[#This Row],[Quantity]]=\"\"),\"\",Table3[[#This Row],[kW Savings Per Unit]]*Table3[[#This Row],[Capacity (Tons)]]*Table3[[#This Row],[Quantity]])","v":""},{"$f":"IF(Table3[[#This Row],[Baseline Equipment]]=\"\",\"\",INDEX(BaselineEquipment[Upgrade Type],MATCH(Table3[[#This Row],[Baseline Equipment]],BaselineEquipment[Baseline Equipment],0)))","v":""}]
[null,null,{"$f":"ROW(Table3[[#This Row],[Baseline Equipment]])-6","v":15},null,null,null,null,null,null,null,null,{"$f":"IFERROR(IF(InstallDate=\"\",\"\",\nINDEX(Measures[Measure Version ID],MATCH(1,\n(Table3[[#This Row],[Upgrade Type]]=Measures[Upgrade Type])*\n(IFERROR(Table3[[#This Row],[Capacity (BTU/hr)]]/1000>Measures[Capacity Low (kBTU/hr)],1))*\n(IFERROR(Table3[[#This Row],[Capacity (BTU/hr)]]/1000<=Measures[Capacity High (kBTU/hr)],1))*\n(InstallDate>=Measures[Effective Start Date])*\n(InstallDate<=IF(Measures[Effective End Date]=0,50000,Measures[Effective End Date])),\n0)+0)),\"\")","v":""},{"$f":"IFERROR(IF(Table3[[#This Row],[Proposed Equipment]]=\"\",\"\",\nINDEX(Equipment[ID],MATCH(1,\n(BusinessType=Equipment[Facility Type])*\n(Table3[[#This Row],[Baseline Equipment]]=Equipment[Baseline Equipment])*\n(Table3[[#This Row],[Proposed Equipment]]=Equipment[Proposed Equipment])*\n(IFERROR(Table3[[#This Row],[Capacity (BTU/hr)]]/1000>Equipment[Size Low],1))*\n(IFERROR(Table3[[#This Row],[Capacity (BTU/hr)]]/1000<=Equipment[Size High],1)),\n0)+0)),\"\")","v":""},{"$f":"IF(Table3[[#This Row],[Measure Version ID]]=\"\",\"\",\nINDEX(Measures[Customer Incentive ($/unit)],MATCH(Table3[[#This Row],[Measure Version ID]],Measures[Measure Version ID],0)))","v":""},{"$f":"IF(Table3[[#This Row],[Equipment ID]]=\"\",\"\",\nINDEX(Equipment[kWh Savings Per Unit],MATCH(Table3[[#This Row],[Equipment ID]],Equipment[ID],0)))","v":""},{"$f":"IF(Table3[[#This Row],[Equipment ID]]=\"\",\"\",\nINDEX(Equipment[kW Savings Per Unit],MATCH(Table3[[#This Row],[Equipment ID]],Equipment[ID],0)))","v":""},{"$f":"IF(Table3[[#This Row],[Capacity (BTU/hr)]]=\"\",\"\",ROUND(Table3[[#This Row],[Capacity (BTU/hr)]]/12000,1))","v":""},{"$f":"IF(Table3[[#This Row],[Measure Version ID]]=\"\",\"\",Table3[[#This Row],[Incentive Per Unit]]*Table3[[#This Row],[Capacity (Tons)]]*Table3[[#This Row],[Quantity]])","v":""},{"$f":"IF(OR(Table3[[#This Row],[Equipment ID]]=\"\",Table3[[#This Row],[Capacity (BTU/hr)]]=\"\",Table3[[#This Row],[Quantity]]=\"\"),\"\",Table3[[#This Row],[kWh Savings Per Unit]]*Table3[[#This Row],[Capacity (Tons)]]*Table3[[#This Row],[Quantity]])","v":""},{"$f":"IF(OR(Table3[[#This Row],[Equipment ID]]=\"\",Table3[[#This Row],[Capacity (BTU/hr)]]=\"\",Table3[[#This Row],[Quantity]]=\"\"),\"\",Table3[[#This Row],[kW Savings Per Unit]]*Table3[[#This Row],[Capacity (Tons)]]*Table3[[#This Row],[Quantity]])","v":""},{"$f":"IF(Table3[[#This Row],[Baseline Equipment]]=\"\",\"\",INDEX(BaselineEquipment[Upgrade Type],MATCH(Table3[[#This Row],[Baseline Equipment]],BaselineEquipment[Baseline Equipment],0)))","v":""}]
[null,null,{"$f":"ROW(Table3[[#This Row],[Baseline Equipment]])-6","v":16},null,null,null,null,null,null,null,null,{"$f":"IFERROR(IF(InstallDate=\"\",\"\",\nINDEX(Measures[Measure Version ID],MATCH(1,\n(Table3[[#This Row],[Upgrade Type]]=Measures[Upgrade Type])*\n(IFERROR(Table3[[#This Row],[Capacity (BTU/hr)]]/1000>Measures[Capacity Low (kBTU/hr)],1))*\n(IFERROR(Table3[[#This Row],[Capacity (BTU/hr)]]/1000<=Measures[Capacity High (kBTU/hr)],1))*\n(InstallDate>=Measures[Effective Start Date])*\n(InstallDate<=IF(Measures[Effective End Date]=0,50000,Measures[Effective End Date])),\n0)+0)),\"\")","v":""},{"$f":"IFERROR(IF(Table3[[#This Row],[Proposed Equipment]]=\"\",\"\",\nINDEX(Equipment[ID],MATCH(1,\n(BusinessType=Equipment[Facility Type])*\n(Table3[[#This Row],[Baseline Equipment]]=Equipment[Baseline Equipment])*\n(Table3[[#This Row],[Proposed Equipment]]=Equipment[Proposed Equipment])*\n(IFERROR(Table3[[#This Row],[Capacity (BTU/hr)]]/1000>Equipment[Size Low],1))*\n(IFERROR(Table3[[#This Row],[Capacity (BTU/hr)]]/1000<=Equipment[Size High],1)),\n0)+0)),\"\")","v":""},{"$f":"IF(Table3[[#This Row],[Measure Version ID]]=\"\",\"\",\nINDEX(Measures[Customer Incentive ($/unit)],MATCH(Table3[[#This Row],[Measure Version ID]],Measures[Measure Version ID],0)))","v":""},{"$f":"IF(Table3[[#This Row],[Equipment ID]]=\"\",\"\",\nINDEX(Equipment[kWh Savings Per Unit],MATCH(Table3[[#This Row],[Equipment ID]],Equipment[ID],0)))","v":""},{"$f":"IF(Table3[[#This Row],[Equipment ID]]=\"\",\"\",\nINDEX(Equipment[kW Savings Per Unit],MATCH(Table3[[#This Row],[Equipment ID]],Equipment[ID],0)))","v":""},{"$f":"IF(Table3[[#This Row],[Capacity (BTU/hr)]]=\"\",\"\",ROUND(Table3[[#This Row],[Capacity (BTU/hr)]]/12000,1))","v":""},{"$f":"IF(Table3[[#This Row],[Measure Version ID]]=\"\",\"\",Table3[[#This Row],[Incentive Per Unit]]*Table3[[#This Row],[Capacity (Tons)]]*Table3[[#This Row],[Quantity]])","v":""},{"$f":"IF(OR(Table3[[#This Row],[Equipment ID]]=\"\",Table3[[#This Row],[Capacity (BTU/hr)]]=\"\",Table3[[#This Row],[Quantity]]=\"\"),\"\",Table3[[#This Row],[kWh Savings Per Unit]]*Table3[[#This Row],[Capacity (Tons)]]*Table3[[#This Row],[Quantity]])","v":""},{"$f":"IF(OR(Table3[[#This Row],[Equipment ID]]=\"\",Table3[[#This Row],[Capacity (BTU/hr)]]=\"\",Table3[[#This Row],[Quantity]]=\"\"),\"\",Table3[[#This Row],[kW Savings Per Unit]]*Table3[[#This Row],[Capacity (Tons)]]*Table3[[#This Row],[Quantity]])","v":""},{"$f":"IF(Table3[[#This Row],[Baseline Equipment]]=\"\",\"\",INDEX(BaselineEquipment[Upgrade Type],MATCH(Table3[[#This Row],[Baseline Equipment]],BaselineEquipment[Baseline Equipment],0)))","v":""}]
[null,null,{"$f":"ROW(Table3[[#This Row],[Baseline Equipment]])-6","v":17},null,null,null,null,null,null,null,null,{"$f":"IFERROR(IF(InstallDate=\"\",\"\",\nINDEX(Measures[Measure Version ID],MATCH(1,\n(Table3[[#This Row],[Upgrade Type]]=Measures[Upgrade Type])*\n(IFERROR(Table3[[#This Row],[Capacity (BTU/hr)]]/1000>Measures[Capacity Low (kBTU/hr)],1))*\n(IFERROR(Table3[[#This Row],[Capacity (BTU/hr)]]/1000<=Measures[Capacity High (kBTU/hr)],1))*\n(InstallDate>=Measures[Effective Start Date])*\n(InstallDate<=IF(Measures[Effective End Date]=0,50000,Measures[Effective End Date])),\n0)+0)),\"\")","v":""},{"$f":"IFERROR(IF(Table3[[#This Row],[Proposed Equipment]]=\"\",\"\",\nINDEX(Equipment[ID],MATCH(1,\n(BusinessType=Equipment[Facility Type])*\n(Table3[[#This Row],[Baseline Equipment]]=Equipment[Baseline Equipment])*\n(Table3[[#This Row],[Proposed Equipment]]=Equipment[Proposed Equipment])*\n(IFERROR(Table3[[#This Row],[Capacity (BTU/hr)]]/1000>Equipment[Size Low],1))*\n(IFERROR(Table3[[#This Row],[Capacity (BTU/hr)]]/1000<=Equipment[Size High],1)),\n0)+0)),\"\")","v":""},{"$f":"IF(Table3[[#This Row],[Measure Version ID]]=\"\",\"\",\nINDEX(Measures[Customer Incentive ($/unit)],MATCH(Table3[[#This Row],[Measure Version ID]],Measures[Measure Version ID],0)))","v":""},{"$f":"IF(Table3[[#This Row],[Equipment ID]]=\"\",\"\",\nINDEX(Equipment[kWh Savings Per Unit],MATCH(Table3[[#This Row],[Equipment ID]],Equipment[ID],0)))","v":""},{"$f":"IF(Table3[[#This Row],[Equipment ID]]=\"\",\"\",\nINDEX(Equipment[kW Savings Per Unit],MATCH(Table3[[#This Row],[Equipment ID]],Equipment[ID],0)))","v":""},{"$f":"IF(Table3[[#This Row],[Capacity (BTU/hr)]]=\"\",\"\",ROUND(Table3[[#This Row],[Capacity (BTU/hr)]]/12000,1))","v":""},{"$f":"IF(Table3[[#This Row],[Measure Version ID]]=\"\",\"\",Table3[[#This Row],[Incentive Per Unit]]*Table3[[#This Row],[Capacity (Tons)]]*Table3[[#This Row],[Quantity]])","v":""},{"$f":"IF(OR(Table3[[#This Row],[Equipment ID]]=\"\",Table3[[#This Row],[Capacity (BTU/hr)]]=\"\",Table3[[#This Row],[Quantity]]=\"\"),\"\",Table3[[#This Row],[kWh Savings Per Unit]]*Table3[[#This Row],[Capacity (Tons)]]*Table3[[#This Row],[Quantity]])","v":""},{"$f":"IF(OR(Table3[[#This Row],[Equipment ID]]=\"\",Table3[[#This Row],[Capacity (BTU/hr)]]=\"\",Table3[[#This Row],[Quantity]]=\"\"),\"\",Table3[[#This Row],[kW Savings Per Unit]]*Table3[[#This Row],[Capacity (Tons)]]*Table3[[#This Row],[Quantity]])","v":""},{"$f":"IF(Table3[[#This Row],[Baseline Equipment]]=\"\",\"\",INDEX(BaselineEquipment[Upgrade Type],MATCH(Table3[[#This Row],[Baseline Equipment]],BaselineEquipment[Baseline Equipment],0)))","v":""}]
[null,null,{"$f":"ROW(Table3[[#This Row],[Baseline Equipment]])-6","v":18},null,null,null,null,null,null,null,null,{"$f":"IFERROR(IF(InstallDate=\"\",\"\",\nINDEX(Measures[Measure Version ID],MATCH(1,\n(Table3[[#This Row],[Upgrade Type]]=Measures[Upgrade Type])*\n(IFERROR(Table3[[#This Row],[Capacity (BTU/hr)]]/1000>Measures[Capacity Low (kBTU/hr)],1))*\n(IFERROR(Table3[[#This Row],[Capacity (BTU/hr)]]/1000<=Measures[Capacity High (kBTU/hr)],1))*\n(InstallDate>=Measures[Effective Start Date])*\n(InstallDate<=IF(Measures[Effective End Date]=0,50000,Measures[Effective End Date])),\n0)+0)),\"\")","v":""},{"$f":"IFERROR(IF(Table3[[#This Row],[Proposed Equipment]]=\"\",\"\",\nINDEX(Equipment[ID],MATCH(1,\n(BusinessType=Equipment[Facility Type])*\n(Table3[[#This Row],[Baseline Equipment]]=Equipment[Baseline Equipment])*\n(Table3[[#This Row],[Proposed Equipment]]=Equipment[Proposed Equipment])*\n(IFERROR(Table3[[#This Row],[Capacity (BTU/hr)]]/1000>Equipment[Size Low],1))*\n(IFERROR(Table3[[#This Row],[Capacity (BTU/hr)]]/1000<=Equipment[Size High],1)),\n0)+0)),\"\")","v":""},{"$f":"IF(Table3[[#This Row],[Measure Version ID]]=\"\",\"\",\nINDEX(Measures[Customer Incentive ($/unit)],MATCH(Table3[[#This Row],[Measure Version ID]],Measures[Measure Version ID],0)))","v":""},{"$f":"IF(Table3[[#This Row],[Equipment ID]]=\"\",\"\",\nINDEX(Equipment[kWh Savings Per Unit],MATCH(Table3[[#This Row],[Equipment ID]],Equipment[ID],0)))","v":""},{"$f":"IF(Table3[[#This Row],[Equipment ID]]=\"\",\"\",\nINDEX(Equipment[kW Savings Per Unit],MATCH(Table3[[#This Row],[Equipment ID]],Equipment[ID],0)))","v":""},{"$f":"IF(Table3[[#This Row],[Capacity (BTU/hr)]]=\"\",\"\",ROUND(Table3[[#This Row],[Capacity (BTU/hr)]]/12000,1))","v":""},{"$f":"IF(Table3[[#This Row],[Measure Version ID]]=\"\",\"\",Table3[[#This Row],[Incentive Per Unit]]*Table3[[#This Row],[Capacity (Tons)]]*Table3[[#This Row],[Quantity]])","v":""},{"$f":"IF(OR(Table3[[#This Row],[Equipment ID]]=\"\",Table3[[#This Row],[Capacity (BTU/hr)]]=\"\",Table3[[#This Row],[Quantity]]=\"\"),\"\",Table3[[#This Row],[kWh Savings Per Unit]]*Table3[[#This Row],[Capacity (Tons)]]*Table3[[#This Row],[Quantity]])","v":""},{"$f":"IF(OR(Table3[[#This Row],[Equipment ID]]=\"\",Table3[[#This Row],[Capacity (BTU/hr)]]=\"\",Table3[[#This Row],[Quantity]]=\"\"),\"\",Table3[[#This Row],[kW Savings Per Unit]]*Table3[[#This Row],[Capacity (Tons)]]*Table3[[#This Row],[Quantity]])","v":""},{"$f":"IF(Table3[[#This Row],[Baseline Equipment]]=\"\",\"\",INDEX(BaselineEquipment[Upgrade Type],MATCH(Table3[[#This Row],[Baseline Equipment]],BaselineEquipment[Baseline Equipment],0)))","v":""}]
[null,null,{"$f":"ROW(Table3[[#This Row],[Baseline Equipment]])-6","v":19},null,null,null,null,null,null,null,null,{"$f":"IFERROR(IF(InstallDate=\"\",\"\",\nINDEX(Measures[Measure Version ID],MATCH(1,\n(Table3[[#This Row],[Upgrade Type]]=Measures[Upgrade Type])*\n(IFERROR(Table3[[#This Row],[Capacity (BTU/hr)]]/1000>Measures[Capacity Low (kBTU/hr)],1))*\n(IFERROR(Table3[[#This Row],[Capacity (BTU/hr)]]/1000<=Measures[Capacity High (kBTU/hr)],1))*\n(InstallDate>=Measures[Effective Start Date])*\n(InstallDate<=IF(Measures[Effective End Date]=0,50000,Measures[Effective End Date])),\n0)+0)),\"\")","v":""},{"$f":"IFERROR(IF(Table3[[#This Row],[Proposed Equipment]]=\"\",\"\",\nINDEX(Equipment[ID],MATCH(1,\n(BusinessType=Equipment[Facility Type])*\n(Table3[[#This Row],[Baseline Equipment]]=Equipment[Baseline Equipment])*\n(Table3[[#This Row],[Proposed Equipment]]=Equipment[Proposed Equipment])*\n(IFERROR(Table3[[#This Row],[Capacity (BTU/hr)]]/1000>Equipment[Size Low],1))*\n(IFERROR(Table3[[#This Row],[Capacity (BTU/hr)]]/1000<=Equipment[Size High],1)),\n0)+0)),\"\")","v":""},{"$f":"IF(Table3[[#This Row],[Measure Version ID]]=\"\",\"\",\nINDEX(Measures[Customer Incentive ($/unit)],MATCH(Table3[[#This Row],[Measure Version ID]],Measures[Measure Version ID],0)))","v":""},{"$f":"IF(Table3[[#This Row],[Equipment ID]]=\"\",\"\",\nINDEX(Equipment[kWh Savings Per Unit],MATCH(Table3[[#This Row],[Equipment ID]],Equipment[ID],0)))","v":""},{"$f":"IF(Table3[[#This Row],[Equipment ID]]=\"\",\"\",\nINDEX(Equipment[kW Savings Per Unit],MATCH(Table3[[#This Row],[Equipment ID]],Equipment[ID],0)))","v":""},{"$f":"IF(Table3[[#This Row],[Capacity (BTU/hr)]]=\"\",\"\",ROUND(Table3[[#This Row],[Capacity (BTU/hr)]]/12000,1))","v":""},{"$f":"IF(Table3[[#This Row],[Measure Version ID]]=\"\",\"\",Table3[[#This Row],[Incentive Per Unit]]*Table3[[#This Row],[Capacity (Tons)]]*Table3[[#This Row],[Quantity]])","v":""},{"$f":"IF(OR(Table3[[#This Row],[Equipment ID]]=\"\",Table3[[#This Row],[Capacity (BTU/hr)]]=\"\",Table3[[#This Row],[Quantity]]=\"\"),\"\",Table3[[#This Row],[kWh Savings Per Unit]]*Table3[[#This Row],[Capacity (Tons)]]*Table3[[#This Row],[Quantity]])","v":""},{"$f":"IF(OR(Table3[[#This Row],[Equipment ID]]=\"\",Table3[[#This Row],[Capacity (BTU/hr)]]=\"\",Table3[[#This Row],[Quantity]]=\"\"),\"\",Table3[[#This Row],[kW Savings Per Unit]]*Table3[[#This Row],[Capacity (Tons)]]*Table3[[#This Row],[Quantity]])","v":""},{"$f":"IF(Table3[[#This Row],[Baseline Equipment]]=\"\",\"\",INDEX(BaselineEquipment[Upgrade Type],MATCH(Table3[[#This Row],[Baseline Equipment]],BaselineEquipment[Baseline Equipment],0)))","v":""}]
[null,null,{"$f":"ROW(Table3[[#This Row],[Baseline Equipment]])-6","v":20},null,null,null,null,null,null,null,null,{"$f":"IFERROR(IF(InstallDate=\"\",\"\",\nINDEX(Measures[Measure Version ID],MATCH(1,\n(Table3[[#This Row],[Upgrade Type]]=Measures[Upgrade Type])*\n(IFERROR(Table3[[#This Row],[Capacity (BTU/hr)]]/1000>Measures[Capacity Low (kBTU/hr)],1))*\n(IFERROR(Table3[[#This Row],[Capacity (BTU/hr)]]/1000<=Measures[Capacity High (kBTU/hr)],1))*\n(InstallDate>=Measures[Effective Start Date])*\n(InstallDate<=IF(Measures[Effective End Date]=0,50000,Measures[Effective End Date])),\n0)+0)),\"\")","v":""},{"$f":"IFERROR(IF(Table3[[#This Row],[Proposed Equipment]]=\"\",\"\",\nINDEX(Equipment[ID],MATCH(1,\n(BusinessType=Equipment[Facility Type])*\n(Table3[[#This Row],[Baseline Equipment]]=Equipment[Baseline Equipment])*\n(Table3[[#This Row],[Proposed Equipment]]=Equipment[Proposed Equipment])*\n(IFERROR(Table3[[#This Row],[Capacity (BTU/hr)]]/1000>Equipment[Size Low],1))*\n(IFERROR(Table3[[#This Row],[Capacity (BTU/hr)]]/1000<=Equipment[Size High],1)),\n0)+0)),\"\")","v":""},{"$f":"IF(Table3[[#This Row],[Measure Version ID]]=\"\",\"\",\nINDEX(Measures[Customer Incentive ($/unit)],MATCH(Table3[[#This Row],[Measure Version ID]],Measures[Measure Version ID],0)))","v":""},{"$f":"IF(Table3[[#This Row],[Equipment ID]]=\"\",\"\",\nINDEX(Equipment[kWh Savings Per Unit],MATCH(Table3[[#This Row],[Equipment ID]],Equipment[ID],0)))","v":""},{"$f":"IF(Table3[[#This Row],[Equipment ID]]=\"\",\"\",\nINDEX(Equipment[kW Savings Per Unit],MATCH(Table3[[#This Row],[Equipment ID]],Equipment[ID],0)))","v":""},{"$f":"IF(Table3[[#This Row],[Capacity (BTU/hr)]]=\"\",\"\",ROUND(Table3[[#This Row],[Capacity (BTU/hr)]]/12000,1))","v":""},{"$f":"IF(Table3[[#This Row],[Measure Version ID]]=\"\",\"\",Table3[[#This Row],[Incentive Per Unit]]*Table3[[#This Row],[Capacity (Tons)]]*Table3[[#This Row],[Quantity]])","v":""},{"$f":"IF(OR(Table3[[#This Row],[Equipment ID]]=\"\",Table3[[#This Row],[Capacity (BTU/hr)]]=\"\",Table3[[#This Row],[Quantity]]=\"\"),\"\",Table3[[#This Row],[kWh Savings Per Unit]]*Table3[[#This Row],[Capacity (Tons)]]*Table3[[#This Row],[Quantity]])","v":""},{"$f":"IF(OR(Table3[[#This Row],[Equipment ID]]=\"\",Table3[[#This Row],[Capacity (BTU/hr)]]=\"\",Table3[[#This Row],[Quantity]]=\"\"),\"\",Table3[[#This Row],[kW Savings Per Unit]]*Table3[[#This Row],[Capacity (Tons)]]*Table3[[#This Row],[Quantity]])","v":""},{"$f":"IF(Table3[[#This Row],[Baseline Equipment]]=\"\",\"\",INDEX(BaselineEquipment[Upgrade Type],MATCH(Table3[[#This Row],[Baseline Equipment]],BaselineEquipment[Baseline Equipment],0)))","v":""}]
[null,null,{"$f":"ROW(Table3[[#This Row],[Baseline Equipment]])-6","v":21},null,null,null,null,null,null,null,null,{"$f":"IFERROR(IF(InstallDate=\"\",\"\",\nINDEX(Measures[Measure Version ID],MATCH(1,\n(Table3[[#This Row],[Upgrade Type]]=Measures[Upgrade Type])*\n(IFERROR(Table3[[#This Row],[Capacity (BTU/hr)]]/1000>Measures[Capacity Low (kBTU/hr)],1))*\n(IFERROR(Table3[[#This Row],[Capacity (BTU/hr)]]/1000<=Measures[Capacity High (kBTU/hr)],1))*\n(InstallDate>=Measures[Effective Start Date])*\n(InstallDate<=IF(Measures[Effective End Date]=0,50000,Measures[Effective End Date])),\n0)+0)),\"\")","v":""},{"$f":"IFERROR(IF(Table3[[#This Row],[Proposed Equipment]]=\"\",\"\",\nINDEX(Equipment[ID],MATCH(1,\n(BusinessType=Equipment[Facility Type])*\n(Table3[[#This Row],[Baseline Equipment]]=Equipment[Baseline Equipment])*\n(Table3[[#This Row],[Proposed Equipment]]=Equipment[Proposed Equipment])*\n(IFERROR(Table3[[#This Row],[Capacity (BTU/hr)]]/1000>Equipment[Size Low],1))*\n(IFERROR(Table3[[#This Row],[Capacity (BTU/hr)]]/1000<=Equipment[Size High],1)),\n0)+0)),\"\")","v":""},{"$f":"IF(Table3[[#This Row],[Measure Version ID]]=\"\",\"\",\nINDEX(Measures[Customer Incentive ($/unit)],MATCH(Table3[[#This Row],[Measure Version ID]],Measures[Measure Version ID],0)))","v":""},{"$f":"IF(Table3[[#This Row],[Equipment ID]]=\"\",\"\",\nINDEX(Equipment[kWh Savings Per Unit],MATCH(Table3[[#This Row],[Equipment ID]],Equipment[ID],0)))","v":""},{"$f":"IF(Table3[[#This Row],[Equipment ID]]=\"\",\"\",\nINDEX(Equipment[kW Savings Per Unit],MATCH(Table3[[#This Row],[Equipment ID]],Equipment[ID],0)))","v":""},{"$f":"IF(Table3[[#This Row],[Capacity (BTU/hr)]]=\"\",\"\",ROUND(Table3[[#This Row],[Capacity (BTU/hr)]]/12000,1))","v":""},{"$f":"IF(Table3[[#This Row],[Measure Version ID]]=\"\",\"\",Table3[[#This Row],[Incentive Per Unit]]*Table3[[#This Row],[Capacity (Tons)]]*Table3[[#This Row],[Quantity]])","v":""},{"$f":"IF(OR(Table3[[#This Row],[Equipment ID]]=\"\",Table3[[#This Row],[Capacity (BTU/hr)]]=\"\",Table3[[#This Row],[Quantity]]=\"\"),\"\",Table3[[#This Row],[kWh Savings Per Unit]]*Table3[[#This Row],[Capacity (Tons)]]*Table3[[#This Row],[Quantity]])","v":""},{"$f":"IF(OR(Table3[[#This Row],[Equipment ID]]=\"\",Table3[[#This Row],[Capacity (BTU/hr)]]=\"\",Table3[[#This Row],[Quantity]]=\"\"),\"\",Table3[[#This Row],[kW Savings Per Unit]]*Table3[[#This Row],[Capacity (Tons)]]*Table3[[#This Row],[Quantity]])","v":""},{"$f":"IF(Table3[[#This Row],[Baseline Equipment]]=\"\",\"\",INDEX(BaselineEquipment[Upgrade Type],MATCH(Table3[[#This Row],[Baseline Equipment]],BaselineEquipment[Baseline Equipment],0)))","v":""}]
[null,null,{"$f":"ROW(Table3[[#This Row],[Baseline Equipment]])-6","v":22},null,null,null,null,null,null,null,null,{"$f":"IFERROR(IF(InstallDate=\"\",\"\",\nINDEX(Measures[Measure Version ID],MATCH(1,\n(Table3[[#This Row],[Upgrade Type]]=Measures[Upgrade Type])*\n(IFERROR(Table3[[#This Row],[Capacity (BTU/hr)]]/1000>Measures[Capacity Low (kBTU/hr)],1))*\n(IFERROR(Table3[[#This Row],[Capacity (BTU/hr)]]/1000<=Measures[Capacity High (kBTU/hr)],1))*\n(InstallDate>=Measures[Effective Start Date])*\n(InstallDate<=IF(Measures[Effective End Date]=0,50000,Measures[Effective End Date])),\n0)+0)),\"\")","v":""},{"$f":"IFERROR(IF(Table3[[#This Row],[Proposed Equipment]]=\"\",\"\",\nINDEX(Equipment[ID],MATCH(1,\n(BusinessType=Equipment[Facility Type])*\n(Table3[[#This Row],[Baseline Equipment]]=Equipment[Baseline Equipment])*\n(Table3[[#This Row],[Proposed Equipment]]=Equipment[Proposed Equipment])*\n(IFERROR(Table3[[#This Row],[Capacity (BTU/hr)]]/1000>Equipment[Size Low],1))*\n(IFERROR(Table3[[#This Row],[Capacity (BTU/hr)]]/1000<=Equipment[Size High],1)),\n0)+0)),\"\")","v":""},{"$f":"IF(Table3[[#This Row],[Measure Version ID]]=\"\",\"\",\nINDEX(Measures[Customer Incentive ($/unit)],MATCH(Table3[[#This Row],[Measure Version ID]],Measures[Measure Version ID],0)))","v":""},{"$f":"IF(Table3[[#This Row],[Equipment ID]]=\"\",\"\",\nINDEX(Equipment[kWh Savings Per Unit],MATCH(Table3[[#This Row],[Equipment ID]],Equipment[ID],0)))","v":""},{"$f":"IF(Table3[[#This Row],[Equipment ID]]=\"\",\"\",\nINDEX(Equipment[kW Savings Per Unit],MATCH(Table3[[#This Row],[Equipment ID]],Equipment[ID],0)))","v":""},{"$f":"IF(Table3[[#This Row],[Capacity (BTU/hr)]]=\"\",\"\",ROUND(Table3[[#This Row],[Capacity (BTU/hr)]]/12000,1))","v":""},{"$f":"IF(Table3[[#This Row],[Measure Version ID]]=\"\",\"\",Table3[[#This Row],[Incentive Per Unit]]*Table3[[#This Row],[Capacity (Tons)]]*Table3[[#This Row],[Quantity]])","v":""},{"$f":"IF(OR(Table3[[#This Row],[Equipment ID]]=\"\",Table3[[#This Row],[Capacity (BTU/hr)]]=\"\",Table3[[#This Row],[Quantity]]=\"\"),\"\",Table3[[#This Row],[kWh Savings Per Unit]]*Table3[[#This Row],[Capacity (Tons)]]*Table3[[#This Row],[Quantity]])","v":""},{"$f":"IF(OR(Table3[[#This Row],[Equipment ID]]=\"\",Table3[[#This Row],[Capacity (BTU/hr)]]=\"\",Table3[[#This Row],[Quantity]]=\"\"),\"\",Table3[[#This Row],[kW Savings Per Unit]]*Table3[[#This Row],[Capacity (Tons)]]*Table3[[#This Row],[Quantity]])","v":""},{"$f":"IF(Table3[[#This Row],[Baseline Equipment]]=\"\",\"\",INDEX(BaselineEquipment[Upgrade Type],MATCH(Table3[[#This Row],[Baseline Equipment]],BaselineEquipment[Baseline Equipment],0)))","v":""}]
[null,null,{"$f":"ROW(Table3[[#This Row],[Baseline Equipment]])-6","v":23},null,null,null,null,null,null,null,null,{"$f":"IFERROR(IF(InstallDate=\"\",\"\",\nINDEX(Measures[Measure Version ID],MATCH(1,\n(Table3[[#This Row],[Upgrade Type]]=Measures[Upgrade Type])*\n(IFERROR(Table3[[#This Row],[Capacity (BTU/hr)]]/1000>Measures[Capacity Low (kBTU/hr)],1))*\n(IFERROR(Table3[[#This Row],[Capacity (BTU/hr)]]/1000<=Measures[Capacity High (kBTU/hr)],1))*\n(InstallDate>=Measures[Effective Start Date])*\n(InstallDate<=IF(Measures[Effective End Date]=0,50000,Measures[Effective End Date])),\n0)+0)),\"\")","v":""},{"$f":"IFERROR(IF(Table3[[#This Row],[Proposed Equipment]]=\"\",\"\",\nINDEX(Equipment[ID],MATCH(1,\n(BusinessType=Equipment[Facility Type])*\n(Table3[[#This Row],[Baseline Equipment]]=Equipment[Baseline Equipment])*\n(Table3[[#This Row],[Proposed Equipment]]=Equipment[Proposed Equipment])*\n(IFERROR(Table3[[#This Row],[Capacity (BTU/hr)]]/1000>Equipment[Size Low],1))*\n(IFERROR(Table3[[#This Row],[Capacity (BTU/hr)]]/1000<=Equipment[Size High],1)),\n0)+0)),\"\")","v":""},{"$f":"IF(Table3[[#This Row],[Measure Version ID]]=\"\",\"\",\nINDEX(Measures[Customer Incentive ($/unit)],MATCH(Table3[[#This Row],[Measure Version ID]],Measures[Measure Version ID],0)))","v":""},{"$f":"IF(Table3[[#This Row],[Equipment ID]]=\"\",\"\",\nINDEX(Equipment[kWh Savings Per Unit],MATCH(Table3[[#This Row],[Equipment ID]],Equipment[ID],0)))","v":""},{"$f":"IF(Table3[[#This Row],[Equipment ID]]=\"\",\"\",\nINDEX(Equipment[kW Savings Per Unit],MATCH(Table3[[#This Row],[Equipment ID]],Equipment[ID],0)))","v":""},{"$f":"IF(Table3[[#This Row],[Capacity (BTU/hr)]]=\"\",\"\",ROUND(Table3[[#This Row],[Capacity (BTU/hr)]]/12000,1))","v":""},{"$f":"IF(Table3[[#This Row],[Measure Version ID]]=\"\",\"\",Table3[[#This Row],[Incentive Per Unit]]*Table3[[#This Row],[Capacity (Tons)]]*Table3[[#This Row],[Quantity]])","v":""},{"$f":"IF(OR(Table3[[#This Row],[Equipment ID]]=\"\",Table3[[#This Row],[Capacity (BTU/hr)]]=\"\",Table3[[#This Row],[Quantity]]=\"\"),\"\",Table3[[#This Row],[kWh Savings Per Unit]]*Table3[[#This Row],[Capacity (Tons)]]*Table3[[#This Row],[Quantity]])","v":""},{"$f":"IF(OR(Table3[[#This Row],[Equipment ID]]=\"\",Table3[[#This Row],[Capacity (BTU/hr)]]=\"\",Table3[[#This Row],[Quantity]]=\"\"),\"\",Table3[[#This Row],[kW Savings Per Unit]]*Table3[[#This Row],[Capacity (Tons)]]*Table3[[#This Row],[Quantity]])","v":""},{"$f":"IF(Table3[[#This Row],[Baseline Equipment]]=\"\",\"\",INDEX(BaselineEquipment[Upgrade Type],MATCH(Table3[[#This Row],[Baseline Equipment]],BaselineEquipment[Baseline Equipment],0)))","v":""}]
[null,null,{"$f":"ROW(Table3[[#This Row],[Baseline Equipment]])-6","v":24},null,null,null,null,null,null,null,null,{"$f":"IFERROR(IF(InstallDate=\"\",\"\",\nINDEX(Measures[Measure Version ID],MATCH(1,\n(Table3[[#This Row],[Upgrade Type]]=Measures[Upgrade Type])*\n(IFERROR(Table3[[#This Row],[Capacity (BTU/hr)]]/1000>Measures[Capacity Low (kBTU/hr)],1))*\n(IFERROR(Table3[[#This Row],[Capacity (BTU/hr)]]/1000<=Measures[Capacity High (kBTU/hr)],1))*\n(InstallDate>=Measures[Effective Start Date])*\n(InstallDate<=IF(Measures[Effective End Date]=0,50000,Measures[Effective End Date])),\n0)+0)),\"\")","v":""},{"$f":"IFERROR(IF(Table3[[#This Row],[Proposed Equipment]]=\"\",\"\",\nINDEX(Equipment[ID],MATCH(1,\n(BusinessType=Equipment[Facility Type])*\n(Table3[[#This Row],[Baseline Equipment]]=Equipment[Baseline Equipment])*\n(Table3[[#This Row],[Proposed Equipment]]=Equipment[Proposed Equipment])*\n(IFERROR(Table3[[#This Row],[Capacity (BTU/hr)]]/1000>Equipment[Size Low],1))*\n(IFERROR(Table3[[#This Row],[Capacity (BTU/hr)]]/1000<=Equipment[Size High],1)),\n0)+0)),\"\")","v":""},{"$f":"IF(Table3[[#This Row],[Measure Version ID]]=\"\",\"\",\nINDEX(Measures[Customer Incentive ($/unit)],MATCH(Table3[[#This Row],[Measure Version ID]],Measures[Measure Version ID],0)))","v":""},{"$f":"IF(Table3[[#This Row],[Equipment ID]]=\"\",\"\",\nINDEX(Equipment[kWh Savings Per Unit],MATCH(Table3[[#This Row],[Equipment ID]],Equipment[ID],0)))","v":""},{"$f":"IF(Table3[[#This Row],[Equipment ID]]=\"\",\"\",\nINDEX(Equipment[kW Savings Per Unit],MATCH(Table3[[#This Row],[Equipment ID]],Equipment[ID],0)))","v":""},{"$f":"IF(Table3[[#This Row],[Capacity (BTU/hr)]]=\"\",\"\",ROUND(Table3[[#This Row],[Capacity (BTU/hr)]]/12000,1))","v":""},{"$f":"IF(Table3[[#This Row],[Measure Version ID]]=\"\",\"\",Table3[[#This Row],[Incentive Per Unit]]*Table3[[#This Row],[Capacity (Tons)]]*Table3[[#This Row],[Quantity]])","v":""},{"$f":"IF(OR(Table3[[#This Row],[Equipment ID]]=\"\",Table3[[#This Row],[Capacity (BTU/hr)]]=\"\",Table3[[#This Row],[Quantity]]=\"\"),\"\",Table3[[#This Row],[kWh Savings Per Unit]]*Table3[[#This Row],[Capacity (Tons)]]*Table3[[#This Row],[Quantity]])","v":""},{"$f":"IF(OR(Table3[[#This Row],[Equipment ID]]=\"\",Table3[[#This Row],[Capacity (BTU/hr)]]=\"\",Table3[[#This Row],[Quantity]]=\"\"),\"\",Table3[[#This Row],[kW Savings Per Unit]]*Table3[[#This Row],[Capacity (Tons)]]*Table3[[#This Row],[Quantity]])","v":""},{"$f":"IF(Table3[[#This Row],[Baseline Equipment]]=\"\",\"\",INDEX(BaselineEquipment[Upgrade Type],MATCH(Table3[[#This Row],[Baseline Equipment]],BaselineEquipment[Baseline Equipment],0)))","v":""}]
[null,null,{"$f":"ROW(Table3[[#This Row],[Baseline Equipment]])-6","v":25},null,null,null,null,null,null,null,null,{"$f":"IFERROR(IF(InstallDate=\"\",\"\",\nINDEX(Measures[Measure Version ID],MATCH(1,\n(Table3[[#This Row],[Upgrade Type]]=Measures[Upgrade Type])*\n(IFERROR(Table3[[#This Row],[Capacity (BTU/hr)]]/1000>Measures[Capacity Low (kBTU/hr)],1))*\n(IFERROR(Table3[[#This Row],[Capacity (BTU/hr)]]/1000<=Measures[Capacity High (kBTU/hr)],1))*\n(InstallDate>=Measures[Effective Start Date])*\n(InstallDate<=IF(Measures[Effective End Date]=0,50000,Measures[Effective End Date])),\n0)+0)),\"\")","v":""},{"$f":"IFERROR(IF(Table3[[#This Row],[Proposed Equipment]]=\"\",\"\",\nINDEX(Equipment[ID],MATCH(1,\n(BusinessType=Equipment[Facility Type])*\n(Table3[[#This Row],[Baseline Equipment]]=Equipment[Baseline Equipment])*\n(Table3[[#This Row],[Proposed Equipment]]=Equipment[Proposed Equipment])*\n(IFERROR(Table3[[#This Row],[Capacity (BTU/hr)]]/1000>Equipment[Size Low],1))*\n(IFERROR(Table3[[#This Row],[Capacity (BTU/hr)]]/1000<=Equipment[Size High],1)),\n0)+0)),\"\")","v":""},{"$f":"IF(Table3[[#This Row],[Measure Version ID]]=\"\",\"\",\nINDEX(Measures[Customer Incentive ($/unit)],MATCH(Table3[[#This Row],[Measure Version ID]],Measures[Measure Version ID],0)))","v":""},{"$f":"IF(Table3[[#This Row],[Equipment ID]]=\"\",\"\",\nINDEX(Equipment[kWh Savings Per Unit],MATCH(Table3[[#This Row],[Equipment ID]],Equipment[ID],0)))","v":""},{"$f":"IF(Table3[[#This Row],[Equipment ID]]=\"\",\"\",\nINDEX(Equipment[kW Savings Per Unit],MATCH(Table3[[#This Row],[Equipment ID]],Equipment[ID],0)))","v":""},{"$f":"IF(Table3[[#This Row],[Capacity (BTU/hr)]]=\"\",\"\",ROUND(Table3[[#This Row],[Capacity (BTU/hr)]]/12000,1))","v":""},{"$f":"IF(Table3[[#This Row],[Measure Version ID]]=\"\",\"\",Table3[[#This Row],[Incentive Per Unit]]*Table3[[#This Row],[Capacity (Tons)]]*Table3[[#This Row],[Quantity]])","v":""},{"$f":"IF(OR(Table3[[#This Row],[Equipment ID]]=\"\",Table3[[#This Row],[Capacity (BTU/hr)]]=\"\",Table3[[#This Row],[Quantity]]=\"\"),\"\",Table3[[#This Row],[kWh Savings Per Unit]]*Table3[[#This Row],[Capacity (Tons)]]*Table3[[#This Row],[Quantity]])","v":""},{"$f":"IF(OR(Table3[[#This Row],[Equipment ID]]=\"\",Table3[[#This Row],[Capacity (BTU/hr)]]=\"\",Table3[[#This Row],[Quantity]]=\"\"),\"\",Table3[[#This Row],[kW Savings Per Unit]]*Table3[[#This Row],[Capacity (Tons)]]*Table3[[#This Row],[Quantity]])","v":""},{"$f":"IF(Table3[[#This Row],[Baseline Equipment]]=\"\",\"\",INDEX(BaselineEquipment[Upgrade Type],MATCH(Table3[[#This Row],[Baseline Equipment]],BaselineEquipment[Baseline Equipment],0)))","v":""}]
[null,null,{"$f":"ROW(Table3[[#This Row],[Baseline Equipment]])-6","v":26},null,null,null,null,null,null,null,null,{"$f":"IFERROR(IF(InstallDate=\"\",\"\",\nINDEX(Measures[Measure Version ID],MATCH(1,\n(Table3[[#This Row],[Upgrade Type]]=Measures[Upgrade Type])*\n(IFERROR(Table3[[#This Row],[Capacity (BTU/hr)]]/1000>Measures[Capacity Low (kBTU/hr)],1))*\n(IFERROR(Table3[[#This Row],[Capacity (BTU/hr)]]/1000<=Measures[Capacity High (kBTU/hr)],1))*\n(InstallDate>=Measures[Effective Start Date])*\n(InstallDate<=IF(Measures[Effective End Date]=0,50000,Measures[Effective End Date])),\n0)+0)),\"\")","v":""},{"$f":"IFERROR(IF(Table3[[#This Row],[Proposed Equipment]]=\"\",\"\",\nINDEX(Equipment[ID],MATCH(1,\n(BusinessType=Equipment[Facility Type])*\n(Table3[[#This Row],[Baseline Equipment]]=Equipment[Baseline Equipment])*\n(Table3[[#This Row],[Proposed Equipment]]=Equipment[Proposed Equipment])*\n(IFERROR(Table3[[#This Row],[Capacity (BTU/hr)]]/1000>Equipment[Size Low],1))*\n(IFERROR(Table3[[#This Row],[Capacity (BTU/hr)]]/1000<=Equipment[Size High],1)),\n0)+0)),\"\")","v":""},{"$f":"IF(Table3[[#This Row],[Measure Version ID]]=\"\",\"\",\nINDEX(Measures[Customer Incentive ($/unit)],MATCH(Table3[[#This Row],[Measure Version ID]],Measures[Measure Version ID],0)))","v":""},{"$f":"IF(Table3[[#This Row],[Equipment ID]]=\"\",\"\",\nINDEX(Equipment[kWh Savings Per Unit],MATCH(Table3[[#This Row],[Equipment ID]],Equipment[ID],0)))","v":""},{"$f":"IF(Table3[[#This Row],[Equipment ID]]=\"\",\"\",\nINDEX(Equipment[kW Savings Per Unit],MATCH(Table3[[#This Row],[Equipment ID]],Equipment[ID],0)))","v":""},{"$f":"IF(Table3[[#This Row],[Capacity (BTU/hr)]]=\"\",\"\",ROUND(Table3[[#This Row],[Capacity (BTU/hr)]]/12000,1))","v":""},{"$f":"IF(Table3[[#This Row],[Measure Version ID]]=\"\",\"\",Table3[[#This Row],[Incentive Per Unit]]*Table3[[#This Row],[Capacity (Tons)]]*Table3[[#This Row],[Quantity]])","v":""},{"$f":"IF(OR(Table3[[#This Row],[Equipment ID]]=\"\",Table3[[#This Row],[Capacity (BTU/hr)]]=\"\",Table3[[#This Row],[Quantity]]=\"\"),\"\",Table3[[#This Row],[kWh Savings Per Unit]]*Table3[[#This Row],[Capacity (Tons)]]*Table3[[#This Row],[Quantity]])","v":""},{"$f":"IF(OR(Table3[[#This Row],[Equipment ID]]=\"\",Table3[[#This Row],[Capacity (BTU/hr)]]=\"\",Table3[[#This Row],[Quantity]]=\"\"),\"\",Table3[[#This Row],[kW Savings Per Unit]]*Table3[[#This Row],[Capacity (Tons)]]*Table3[[#This Row],[Quantity]])","v":""},{"$f":"IF(Table3[[#This Row],[Baseline Equipment]]=\"\",\"\",INDEX(BaselineEquipment[Upgrade Type],MATCH(Table3[[#This Row],[Baseline Equipment]],BaselineEquipment[Baseline Equipment],0)))","v":""}]
[null,null,{"$f":"ROW(Table3[[#This Row],[Baseline Equipment]])-6","v":27},null,null,null,null,null,null,null,null,{"$f":"IFERROR(IF(InstallDate=\"\",\"\",\nINDEX(Measures[Measure Version ID],MATCH(1,\n(Table3[[#This Row],[Upgrade Type]]=Measures[Upgrade Type])*\n(IFERROR(Table3[[#This Row],[Capacity (BTU/hr)]]/1000>Measures[Capacity Low (kBTU/hr)],1))*\n(IFERROR(Table3[[#This Row],[Capacity (BTU/hr)]]/1000<=Measures[Capacity High (kBTU/hr)],1))*\n(InstallDate>=Measures[Effective Start Date])*\n(InstallDate<=IF(Measures[Effective End Date]=0,50000,Measures[Effective End Date])),\n0)+0)),\"\")","v":""},{"$f":"IFERROR(IF(Table3[[#This Row],[Proposed Equipment]]=\"\",\"\",\nINDEX(Equipment[ID],MATCH(1,\n(BusinessType=Equipment[Facility Type])*\n(Table3[[#This Row],[Baseline Equipment]]=Equipment[Baseline Equipment])*\n(Table3[[#This Row],[Proposed Equipment]]=Equipment[Proposed Equipment])*\n(IFERROR(Table3[[#This Row],[Capacity (BTU/hr)]]/1000>Equipment[Size Low],1))*\n(IFERROR(Table3[[#This Row],[Capacity (BTU/hr)]]/1000<=Equipment[Size High],1)),\n0)+0)),\"\")","v":""},{"$f":"IF(Table3[[#This Row],[Measure Version ID]]=\"\",\"\",\nINDEX(Measures[Customer Incentive ($/unit)],MATCH(Table3[[#This Row],[Measure Version ID]],Measures[Measure Version ID],0)))","v":""},{"$f":"IF(Table3[[#This Row],[Equipment ID]]=\"\",\"\",\nINDEX(Equipment[kWh Savings Per Unit],MATCH(Table3[[#This Row],[Equipment ID]],Equipment[ID],0)))","v":""},{"$f":"IF(Table3[[#This Row],[Equipment ID]]=\"\",\"\",\nINDEX(Equipment[kW Savings Per Unit],MATCH(Table3[[#This Row],[Equipment ID]],Equipment[ID],0)))","v":""},{"$f":"IF(Table3[[#This Row],[Capacity (BTU/hr)]]=\"\",\"\",ROUND(Table3[[#This Row],[Capacity (BTU/hr)]]/12000,1))","v":""},{"$f":"IF(Table3[[#This Row],[Measure Version ID]]=\"\",\"\",Table3[[#This Row],[Incentive Per Unit]]*Table3[[#This Row],[Capacity (Tons)]]*Table3[[#This Row],[Quantity]])","v":""},{"$f":"IF(OR(Table3[[#This Row],[Equipment ID]]=\"\",Table3[[#This Row],[Capacity (BTU/hr)]]=\"\",Table3[[#This Row],[Quantity]]=\"\"),\"\",Table3[[#This Row],[kWh Savings Per Unit]]*Table3[[#This Row],[Capacity (Tons)]]*Table3[[#This Row],[Quantity]])","v":""},{"$f":"IF(OR(Table3[[#This Row],[Equipment ID]]=\"\",Table3[[#This Row],[Capacity (BTU/hr)]]=\"\",Table3[[#This Row],[Quantity]]=\"\"),\"\",Table3[[#This Row],[kW Savings Per Unit]]*Table3[[#This Row],[Capacity (Tons)]]*Table3[[#This Row],[Quantity]])","v":""},{"$f":"IF(Table3[[#This Row],[Baseline Equipment]]=\"\",\"\",INDEX(BaselineEquipment[Upgrade Type],MATCH(Table3[[#This Row],[Baseline Equipment]],BaselineEquipment[Baseline Equipment],0)))","v":""}]
[null,null,{"$f":"ROW(Table3[[#This Row],[Baseline Equipment]])-6","v":28},null,null,null,null,null,null,null,null,{"$f":"IFERROR(IF(InstallDate=\"\",\"\",\nINDEX(Measures[Measure Version ID],MATCH(1,\n(Table3[[#This Row],[Upgrade Type]]=Measures[Upgrade Type])*\n(IFERROR(Table3[[#This Row],[Capacity (BTU/hr)]]/1000>Measures[Capacity Low (kBTU/hr)],1))*\n(IFERROR(Table3[[#This Row],[Capacity (BTU/hr)]]/1000<=Measures[Capacity High (kBTU/hr)],1))*\n(InstallDate>=Measures[Effective Start Date])*\n(InstallDate<=IF(Measures[Effective End Date]=0,50000,Measures[Effective End Date])),\n0)+0)),\"\")","v":""},{"$f":"IFERROR(IF(Table3[[#This Row],[Proposed Equipment]]=\"\",\"\",\nINDEX(Equipment[ID],MATCH(1,\n(BusinessType=Equipment[Facility Type])*\n(Table3[[#This Row],[Baseline Equipment]]=Equipment[Baseline Equipment])*\n(Table3[[#This Row],[Proposed Equipment]]=Equipment[Proposed Equipment])*\n(IFERROR(Table3[[#This Row],[Capacity (BTU/hr)]]/1000>Equipment[Size Low],1))*\n(IFERROR(Table3[[#This Row],[Capacity (BTU/hr)]]/1000<=Equipment[Size High],1)),\n0)+0)),\"\")","v":""},{"$f":"IF(Table3[[#This Row],[Measure Version ID]]=\"\",\"\",\nINDEX(Measures[Customer Incentive ($/unit)],MATCH(Table3[[#This Row],[Measure Version ID]],Measures[Measure Version ID],0)))","v":""},{"$f":"IF(Table3[[#This Row],[Equipment ID]]=\"\",\"\",\nINDEX(Equipment[kWh Savings Per Unit],MATCH(Table3[[#This Row],[Equipment ID]],Equipment[ID],0)))","v":""},{"$f":"IF(Table3[[#This Row],[Equipment ID]]=\"\",\"\",\nINDEX(Equipment[kW Savings Per Unit],MATCH(Table3[[#This Row],[Equipment ID]],Equipment[ID],0)))","v":""},{"$f":"IF(Table3[[#This Row],[Capacity (BTU/hr)]]=\"\",\"\",ROUND(Table3[[#This Row],[Capacity (BTU/hr)]]/12000,1))","v":""},{"$f":"IF(Table3[[#This Row],[Measure Version ID]]=\"\",\"\",Table3[[#This Row],[Incentive Per Unit]]*Table3[[#This Row],[Capacity (Tons)]]*Table3[[#This Row],[Quantity]])","v":""},{"$f":"IF(OR(Table3[[#This Row],[Equipment ID]]=\"\",Table3[[#This Row],[Capacity (BTU/hr)]]=\"\",Table3[[#This Row],[Quantity]]=\"\"),\"\",Table3[[#This Row],[kWh Savings Per Unit]]*Table3[[#This Row],[Capacity (Tons)]]*Table3[[#This Row],[Quantity]])","v":""},{"$f":"IF(OR(Table3[[#This Row],[Equipment ID]]=\"\",Table3[[#This Row],[Capacity (BTU/hr)]]=\"\",Table3[[#This Row],[Quantity]]=\"\"),\"\",Table3[[#This Row],[kW Savings Per Unit]]*Table3[[#This Row],[Capacity (Tons)]]*Table3[[#This Row],[Quantity]])","v":""},{"$f":"IF(Table3[[#This Row],[Baseline Equipment]]=\"\",\"\",INDEX(BaselineEquipment[Upgrade Type],MATCH(Table3[[#This Row],[Baseline Equipment]],BaselineEquipment[Baseline Equipment],0)))","v":""}]
[null,null,{"$f":"ROW(Table3[[#This Row],[Baseline Equipment]])-6","v":29},null,null,null,null,null,null,null,null,{"$f":"IFERROR(IF(InstallDate=\"\",\"\",\nINDEX(Measures[Measure Version ID],MATCH(1,\n(Table3[[#This Row],[Upgrade Type]]=Measures[Upgrade Type])*\n(IFERROR(Table3[[#This Row],[Capacity (BTU/hr)]]/1000>Measures[Capacity Low (kBTU/hr)],1))*\n(IFERROR(Table3[[#This Row],[Capacity (BTU/hr)]]/1000<=Measures[Capacity High (kBTU/hr)],1))*\n(InstallDate>=Measures[Effective Start Date])*\n(InstallDate<=IF(Measures[Effective End Date]=0,50000,Measures[Effective End Date])),\n0)+0)),\"\")","v":""},{"$f":"IFERROR(IF(Table3[[#This Row],[Proposed Equipment]]=\"\",\"\",\nINDEX(Equipment[ID],MATCH(1,\n(BusinessType=Equipment[Facility Type])*\n(Table3[[#This Row],[Baseline Equipment]]=Equipment[Baseline Equipment])*\n(Table3[[#This Row],[Proposed Equipment]]=Equipment[Proposed Equipment])*\n(IFERROR(Table3[[#This Row],[Capacity (BTU/hr)]]/1000>Equipment[Size Low],1))*\n(IFERROR(Table3[[#This Row],[Capacity (BTU/hr)]]/1000<=Equipment[Size High],1)),\n0)+0)),\"\")","v":""},{"$f":"IF(Table3[[#This Row],[Measure Version ID]]=\"\",\"\",\nINDEX(Measures[Customer Incentive ($/unit)],MATCH(Table3[[#This Row],[Measure Version ID]],Measures[Measure Version ID],0)))","v":""},{"$f":"IF(Table3[[#This Row],[Equipment ID]]=\"\",\"\",\nINDEX(Equipment[kWh Savings Per Unit],MATCH(Table3[[#This Row],[Equipment ID]],Equipment[ID],0)))","v":""},{"$f":"IF(Table3[[#This Row],[Equipment ID]]=\"\",\"\",\nINDEX(Equipment[kW Savings Per Unit],MATCH(Table3[[#This Row],[Equipment ID]],Equipment[ID],0)))","v":""},{"$f":"IF(Table3[[#This Row],[Capacity (BTU/hr)]]=\"\",\"\",ROUND(Table3[[#This Row],[Capacity (BTU/hr)]]/12000,1))","v":""},{"$f":"IF(Table3[[#This Row],[Measure Version ID]]=\"\",\"\",Table3[[#This Row],[Incentive Per Unit]]*Table3[[#This Row],[Capacity (Tons)]]*Table3[[#This Row],[Quantity]])","v":""},{"$f":"IF(OR(Table3[[#This Row],[Equipment ID]]=\"\",Table3[[#This Row],[Capacity (BTU/hr)]]=\"\",Table3[[#This Row],[Quantity]]=\"\"),\"\",Table3[[#This Row],[kWh Savings Per Unit]]*Table3[[#This Row],[Capacity (Tons)]]*Table3[[#This Row],[Quantity]])","v":""},{"$f":"IF(OR(Table3[[#This Row],[Equipment ID]]=\"\",Table3[[#This Row],[Capacity (BTU/hr)]]=\"\",Table3[[#This Row],[Quantity]]=\"\"),\"\",Table3[[#This Row],[kW Savings Per Unit]]*Table3[[#This Row],[Capacity (Tons)]]*Table3[[#This Row],[Quantity]])","v":""},{"$f":"IF(Table3[[#This Row],[Baseline Equipment]]=\"\",\"\",INDEX(BaselineEquipment[Upgrade Type],MATCH(Table3[[#This Row],[Baseline Equipment]],BaselineEquipment[Baseline Equipment],0)))","v":""}]
[null,null,{"$f":"ROW(Table3[[#This Row],[Baseline Equipment]])-6","v":30},null,null,null,null,null,null,null,null,{"$f":"IFERROR(IF(InstallDate=\"\",\"\",\nINDEX(Measures[Measure Version ID],MATCH(1,\n(Table3[[#This Row],[Upgrade Type]]=Measures[Upgrade Type])*\n(IFERROR(Table3[[#This Row],[Capacity (BTU/hr)]]/1000>Measures[Capacity Low (kBTU/hr)],1))*\n(IFERROR(Table3[[#This Row],[Capacity (BTU/hr)]]/1000<=Measures[Capacity High (kBTU/hr)],1))*\n(InstallDate>=Measures[Effective Start Date])*\n(InstallDate<=IF(Measures[Effective End Date]=0,50000,Measures[Effective End Date])),\n0)+0)),\"\")","v":""},{"$f":"IFERROR(IF(Table3[[#This Row],[Proposed Equipment]]=\"\",\"\",\nINDEX(Equipment[ID],MATCH(1,\n(BusinessType=Equipment[Facility Type])*\n(Table3[[#This Row],[Baseline Equipment]]=Equipment[Baseline Equipment])*\n(Table3[[#This Row],[Proposed Equipment]]=Equipment[Proposed Equipment])*\n(IFERROR(Table3[[#This Row],[Capacity (BTU/hr)]]/1000>Equipment[Size Low],1))*\n(IFERROR(Table3[[#This Row],[Capacity (BTU/hr)]]/1000<=Equipment[Size High],1)),\n0)+0)),\"\")","v":""},{"$f":"IF(Table3[[#This Row],[Measure Version ID]]=\"\",\"\",\nINDEX(Measures[Customer Incentive ($/unit)],MATCH(Table3[[#This Row],[Measure Version ID]],Measures[Measure Version ID],0)))","v":""},{"$f":"IF(Table3[[#This Row],[Equipment ID]]=\"\",\"\",\nINDEX(Equipment[kWh Savings Per Unit],MATCH(Table3[[#This Row],[Equipment ID]],Equipment[ID],0)))","v":""},{"$f":"IF(Table3[[#This Row],[Equipment ID]]=\"\",\"\",\nINDEX(Equipment[kW Savings Per Unit],MATCH(Table3[[#This Row],[Equipment ID]],Equipment[ID],0)))","v":""},{"$f":"IF(Table3[[#This Row],[Capacity (BTU/hr)]]=\"\",\"\",ROUND(Table3[[#This Row],[Capacity (BTU/hr)]]/12000,1))","v":""},{"$f":"IF(Table3[[#This Row],[Measure Version ID]]=\"\",\"\",Table3[[#This Row],[Incentive Per Unit]]*Table3[[#This Row],[Capacity (Tons)]]*Table3[[#This Row],[Quantity]])","v":""},{"$f":"IF(OR(Table3[[#This Row],[Equipment ID]]=\"\",Table3[[#This Row],[Capacity (BTU/hr)]]=\"\",Table3[[#This Row],[Quantity]]=\"\"),\"\",Table3[[#This Row],[kWh Savings Per Unit]]*Table3[[#This Row],[Capacity (Tons)]]*Table3[[#This Row],[Quantity]])","v":""},{"$f":"IF(OR(Table3[[#This Row],[Equipment ID]]=\"\",Table3[[#This Row],[Capacity (BTU/hr)]]=\"\",Table3[[#This Row],[Quantity]]=\"\"),\"\",Table3[[#This Row],[kW Savings Per Unit]]*Table3[[#This Row],[Capacity (Tons)]]*Table3[[#This Row],[Quantity]])","v":""},{"$f":"IF(Table3[[#This Row],[Baseline Equipment]]=\"\",\"\",INDEX(BaselineEquipment[Upgrade Type],MATCH(Table3[[#This Row],[Baseline Equipment]],BaselineEquipment[Baseline Equipment],0)))","v":""}]

{"sheet":"HVAC","index":2,"n_rows":371,"n_cols":94,"rows_kept":371,"cut":false,"hidden":true,"merged":[[14,45,14,46],[311,86,313,86],[312,77,313,77],[312,78,312,79],[312,81,313,81],[312,82,313,82],[312,83,313,83],[312,84,312,85],[312,66,312,67],[312,69,313,69],[312,70,313,70],[312,71,313,71],[312,72,312,73],[311,78,311,79],[311,80,313,80],[311,81,311,83],[311,84,311,85],[251,75,252,75],[251,76,252,76],[250,75,250,77],[250,78,250,79],[250,80,252,80],[312,75,313,75],[312,76,313,76],[311,75,311,77],[307,57,307,86],[308,63,309,63],[308,77,308,78],[308,79,309,80],[308,84,308,85],[309,77,309,78],[309,84,309,85],[310,63,310,67],[311,63,311,65],[311,66,311,67],[311,69,311,71],[311,72,311,73],[311,74,313,74],[312,63,313,63],[312,64,313,64],[312,65,313,65],[250,81,250,83],[250,84,250,85],[250,86,252,86],[251,77,252,77],[251,78,251,79],[251,81,252,81],[251,82,252,82],[251,83,252,83],[251,84,251,85],[249,63,249,67],[250,63,250,65],[250,66,250,67],[250,69,250,71],[250,72,250,73],[250,74,252,74],[251,63,252,63],[251,64,252,64],[251,65,252,65],[251,66,251,67],[251,69,252,69],[251,70,252,70],[251,71,252,71],[251,72,251,73],[246,57,246,86],[247,63,248,63],[247,77,247,78],[247,79,248,80],[247,84,247,85],[248,77,248,78],[248,84,248,85],[190,69,191,69],[190,70,191,70],[190,71,191,71],[190,72,190,73],[190,75,191,75],[190,76,191,76],[189,75,189,77],[189,78,189,79],[189,80,191,80],[189,81,189,83],[189,84,189,85],[189,86,191,86],[190,77,191,77],[190,78,190,79],[190,81,191,81],[190,82,191,82],[190,83,191,83],[190,84,190,85],[188,63,188,67],[189,63,189,65],[189,66,189,67],[189,69,189,71],[189,72,189,73],[189,74,191,74],[190,63,191,63],[190,64,191,64],[190,65,191,65],[190,66,190,67],[185,57,185,86],[186,63,187,63],[186,77,186,78],[186,79,187,80],[186,84,186,85],[187,77,187,78],[187,84,187,85],[129,69,130,69],[129,70,130,70],[129,71,130,71],[129,72,129,73],[129,75,130,75],[129,76,130,76],[128,75,128,77],[128,78,128,79],[128,80,130,80],[128,81,128,83],[128,84,128,85],[128,86,130,86],[129,77,130,77],[129,78,129,79],[129,81,130,81],[129,82,130,82],[129,83,130,83],[129,84,129,85],[127,63,127,67],[128,63,128,65],[128,66,128,67],[128,69,128,71],[128,72,128,73],[128,74,130,74],[129,63,130,63],[129,64,130,64],[129,65,130,65],[129,66,129,67],[124,57,124,86],[125,63,126,63],[125,77,125,78],[125,79,126,80],[125,84,125,85],[126,77,126,78],[126,84,126,85],[68,69,69,69],[68,70,69,70],[68,71,69,71],[68,72,68,73],[68,75,69,75],[68,76,69,76],[67,75,67,77],[67,78,67,79],[67,80,69,80],[67,81,67,83],[67,84,67,85],[67,86,69,86],[68,77,69,77],[68,78,68,79],[68,81,69,81],[68,82,69,82],[68,83,69,83],[68,84,68,85],[66,63,66,67],[67,63,67,65],[67,66,67,67],[67,69,67,71],[67,72,67,73],[67,74,69,74],[68,63,69,63],[68,64,69,64],[68,65,69,65],[68,66,68,67],[28,3,29,3],[63,57,63,86],[64,63,65,63],[64,77,64,78],[64,79,65,80],[64,84,64,85],[65,77,65,78],[65,84,65,85],[25,6,25,7],[25,8,25,9],[25,10,25,11],[25,12,25,13],[25,14,25,15],[25,17,25,18],[23,19,24,20],[22,1,22,3],[22,5,22,6],[22,10,22,11],[22,16,22,17],[23,1,25,2],[23,3,24,3],[23,4,24,4],[23,5,24,5],[23,6,24,7],[23,8,24,9],[25,19,25,20],[17,5,17,6],[23,10,24,11],[23,12,24,13],[23,14,24,15],[23,16,24,16],[23,17,24,18],[20,1,20,3],[20,5,20,6],[20,10,20,11],[20,16,20,17],[21,1,21,3],[21,5,21,6],[21,10,21,11],[21,16,21,17],[18,1,18,3],[18,5,18,6],[18,10,18,11],[18,16,18,17],[19,1,19,3],[6,1,6,2],[6,3,6,9],[6,11,6,13],[6,14,6,20],[6,63,6,65],[7,14,7,20],[7,53,9,53],[19,5,19,6],[19,10,19,11],[19,16,19,17],[12,1,12,4],[12,5,12,9],[13,1,15,3],[13,4,15,4],[13,5,15,6],[13,7,15,7],[13,8,15,9],[17,10,17,11],[17,16,17,17],[16,1,16,3],[16,5,16,6],[16,10,16,11],[16,16,16,17],[17,1,17,3],[15,32,15,33],[15,36,15,37],[15,40,15,41],[13,10,15,12],[13,13,15,13],[13,14,15,14],[13,34,14,37],[13,30,14,33],[10,1,10,2],[10,3,10,4],[10,7,10,8],[13,15,15,15],[13,16,13,20],[10,11,11,20],[11,1,11,2],[11,3,11,4],[11,5,11,9],[13,38,14,41],[14,16,15,17],[14,18,15,18],[14,19,15,19],[14,20,15,20],[7,84,7,85],[8,1,8,2],[8,3,8,5],[8,11,8,13],[8,14,8,16],[9,1,9,2],[9,3,9,5],[9,8,9,9],[9,11,9,18],[7,76,8,76],[7,77,8,77],[7,72,7,73],[7,75,8,75],[7,65,8,65],[3,88,3,90],[4,1,4,6],[4,11,4,17],[4,18,4,19],[4,84,4,85],[5,1,5,2],[5,3,5,9],[5,11,5,13],[5,14,5,16],[5,17,5,19],[5,63,5,64],[5,50,6,50],[5,53,6,55],[6,84,6,85],[6,86,8,86],[7,1,7,2],[7,3,7,9],[7,11,7,13],[7,78,7,79],[7,81,8,81],[7,82,8,82],[7,83,8,83],[7,61,7,62],[7,63,8,63],[0,57,0,86],[1,3,2,19],[2,50,4,50],[2,51,9,52],[2,53,4,55],[2,79,4,80],[2,81,2,83],[2,84,3,85],[3,4,3,17],[3,19,3,20],[7,69,8,69],[7,54,7,55],[6,66,6,67],[6,69,6,71],[6,72,6,73],[6,74,8,74],[6,75,6,77],[6,78,6,79],[7,70,8,70],[7,71,8,71],[7,66,7,67],[6,80,8,80],[6,81,6,83],[7,64,8,64]]}
[{"$f":"IF(H9=\"\",\"\",IF(OR(H9=\"UT\",H9=\"ID\",H9=\"WY\"),2,1))","v":2},"RMP or PP",null,null,null,null,null,null,null,null,null,null,null,null,null,null,null,null,null,null,null,null,null,null,null,null,null,null,null,null,null,null,null,null,null,null,null,null,null,null,null,null,null,null,null,null,null,null,null,null,null,null,null,null,null,null,null,"Lookup Tables Do Not Change"]
[null,null,null,"This sheet used for calculations",null,null,null,null,null,null,null,null,null,null,null,null,null,null,null,null,"Version:",null,null,null,null,null,null,null,null,null,null,null,null,null,null,null,null,null,null,null,null,null,null,null,null,null,null,null,null,null,null,null,null,null,null,null,null,null,"HVAC Type","System Type","Phase","Eff2","DB/WB"]
[null,null,null,null,null,null,null,null,null,null,null,null,null,null,null,null,null,null,null,null,{"$f":"INDEX(CurrentVersion_List,MATCH(\"a\",CurrentVersionSelected_List,0))","v":4012025.1},null,null,null,null,null,null,null,null,null,"Effective Dates","Tariff","Tool",null,null,null,null,null,null,null,null,null,null,null,null,null,null,null,1,"ID","RMP","Rate Lookups",null,"Simplified Rate Table For FinAnswer Express",null,null,null,null,null,"Split (1 Phase)",1,"IPLV","47/43",{"$f":"$H$9","v":"UT"},null,null,null,null,null,null,null,null,null,null,null,null,null,null,null,"PTAC Calcs from Deemed Savings",null,"PTAC",null,null,"Incentive $/Ton"]
[null,"Date",null,{"$f":"AY10","v":"2026-02-09"},{"$f":"IF(H9=\"\",\"\",\"Calculator results are in accordance with the tariff effective \"&VLOOKUP(H9,TariffTable,2,FALSE))","v":"Calculator results are in accordance with the tariff effective November 15, 2024"},null,null,null,null,null,null,null,null,null,null,null,null,null,"Project #",{"$f":"ProjectNumber","v":{"$error":"#NAME?"}},null,null,null,null,null,null,null,null,null,null,"CA","January 1, 2023",null,null,null,null,null,null,null,null,null,null,null,null,null,null,null,null,2,"UT",null,null,null,null,null,null,null,null,null,"Package (1 Phase)",3,"SEER","17/15",{"$f":"IF($BL$3=\"UT\",1,IF($BL$3=\"WA\",2,IF($BL$3=\"CA\",3,IF($BL$3=\"ID\",4,IF($BL$3=\"WY\",5,0)))))","v":1},null,null,null,null,null,{"$f":"IF($BL$4=0,0,OFFSET(BR4,$BL$5*$BL$4,0))","v":"Code"},"EFLCH","EFLHH","NTG","CF","Cooling Months",null,null,null,null,null,null,"Cost","kW/Unit","Gross kWh/yr",null,null,null,null,"Incentive"]
[null,"Project/Customer Information (Optional)",null,null,null,null,null,null,null,null,null,"Incentive Payee Information (Optional)",null,null,null,null,null,null,null,null,null,null,null,null,null,null,null,null,null,null,"ID","March 15, 2023","2023-03-15",null,null,null,null,null,null,null,null,null,null,null,null,null,null,null,3,"WY",null,null,null,null,null,null,null,null,null,"Split (3 Phase)","HSPF","IEER",null,61,null,null,null,null,null,"IECC 2018, Tables C403.2.3(1) & C403.2.3(2)",{"$error":"#N/A"},{"$f":"IF($BL$4=0,0,OFFSET(BT5,$BL$5*$BL$4,0))","v":{"$error":"#N/A"}},1,1,5,null,null,null,null,null,null,{"$f":"IF($BL$4=0,0,OFFSET(CD5,$BL$5*$BL$4,0))","v":200},{"$f":"IF($BL$4=0,0,OFFSET(CE5,$BL$5*$BL$4,0))","v":9.8000000000000004E-2},{"$f":"IF($BL$4=0,0,OFFSET(CF5,$BL$5*$BL$4,0))","v":400},{"$f":"IF($BL$4=0,0,OFFSET(CG5,$BL$5*$BL$4,0))","v":50},null,null,null,"Tier",{"$f":"BS6","v":1},{"$f":"BU6","v":25}]
[null,"Project Name",null,{"$f":"ProjectName","v":0},null,null,null,null,null,null,null,"Attention",null,null,null,null,null,null,null,null,null,null,null,null,null,null,null,null,null,null,"UT","November 15, 2024","2024-11-15",null,null,null,null,null,null,null,null,null,null,null,null,null,null,null,4,"CA","PP",null,null,{"$f":"CONCATENATE(AT8,\n\" Ave Secondary rates except where noted\")","v":"Updated 3/31/2025 Ave Secondary rates except where noted"},null,null,null,null,null,"Package (3 Phase)","COP",null,null,"Baseline",null,null,0,{"$f":"BV6","v":"per ton"},null,{"$f":"IF($BL$4=0,0,OFFSET(BR6,$BL$5*$BL$4,0))","v":"Tier"},{"$f":"IF($BL$4=0,0,OFFSET(BS6,$BL$5*$BL$4,0))","v":1},null,{"$f":"IF($BL$4=0,0,OFFSET(BU6,$BL$5*$BL$4,0))","v":25},{"$f":"IF($BL$4=0,0,OFFSET(BV6,$BL$5*$BL$4,0))","v":"per ton"},null,{"$f":"IF($BL$4=0,0,OFFSET(BX6,$BL$5*$BL$4,0))","v":"Tier"},{"$f":"IF($BL$4=0,0,OFFSET(BY6,$BL$5*$BL$4,0))","v":2},null,{"$f":"IF($BL$4=0,0,OFFSET(CA6,$BL$5*$BL$4,0))","v":50},{"$f":"IF($BL$4=0,0,OFFSET(CB6,$BL$5*$BL$4,0))","v":"per ton"},null,{"$f":"IF($BL$4=0,0,OFFSET(CD6,$BL$5*$BL$4,0))","v":"Tier"},{"$f":"IF($BL$4=0,0,OFFSET(CE6,$BL$5*$BL$4,0))","v":3},null,{"$f":"IF($BL$4=0,0,OFFSET(CG6,$BL$5*$BL$4,0))","v":75},{"$f":"IF($BL$4=0,0,OFFSET(CH6,$BL$5*$BL$4,0))","v":"per ton"},null,null,"Tier",{"$f":"BY6","v":2},{"$f":"CA6","v":50}]
[null,"Business Name",null,{"$f":"CustomerBusinessName","v":0},null,null,null,null,null,null,null,"Business Name",null,null,{"$f":"PayeeBusinessName","v":0},null,null,null,null,null,null,null,null,null,null,null,null,null,null,null,"WA","July 1, 2023","2023-07-01",null,null,null,null,null,null,null,null,null,null,null,null,null,null,null,5,"WA",null,null,null,null,null,null,null,null,null,null,null,null,null,"Cooling",null,null,"Heating",null,null,"Cooling",null,null,"Heating",null,"Gross Incremental Cost/Ton","Cooling",null,null,"Heating",null,"Gross Incremental Cost/Ton","Cooling",null,null,"Heating",null,"Gross Incremental Cost/Ton",null,"Tier",{"$f":"CE6","v":3},{"$f":"CG6","v":75}]
[null,"Address",null,{"$f":"InstallAddress","v":0},null,null,null,null,null,null,null,"Address",null,null,{"$f":"PayeeAddress","v":0},null,null,null,null,null,null,null,null,null,null,null,null,null,null,null,"WY","March 15, 2023","2023-03-15",null,null,null,null,null,null,null,null,null,null,null,null,"Updated 3/31/2025",null,null,6,"AK","Required Filled out",null,null,"State","Cost",null,null,null,null,null,null,"Size (BTU/Hr or CFM)",null,"EER","SEER IPLV","IEER","HSPF COP @ DB/WB",null,null,"EER","SEER IPLV","IEER","HSPF COP @ DB/WB",null,null,"EER","SEER IPLV","IEER","HSPF COP @ DB/WB",null,null,"EER","SEER IPLV","IEER","HSPF COP @ DB/WB"]
[null,"City",null,{"$f":"InstallCity","v":0},null,null,"State",{"$f":"InstallState","v":"UT"},"Zip",{"$f":"InstallZip","v":0},null,"City",null,null,{"$f":"PayeeCity","v":0},null,null,"State",{"$f":"PayeeState","v":0},"Zip",{"$f":"PayeeZip","v":0},null,null,null,null,null,null,null,null,null,null,null,null,null,null,null,null,null,null,null,null,null,null,null,null,"Rates Effective as of:",null,null,7,"AL",{"$f":"IF(F12=\"Project Name, State, and Rate are Required.\",FALSE,TRUE)","v":true},null,null,null,{"$f":"IF($H$9=\"\",\"\",VLOOKUP($H$9&\" \"&$J$11,$BB$11:$BD$67,2,0))","v":{"$error":"#N/A"}},{"$f":"IF($H$9=\"\",\"\",IF(VLOOKUP($H$9&\" \"&$J$11,$BB$11:$BD$67,3,0)=0,0,VLOOKUP($H$9&\" \"&$J$11,$BB$12:$BD$67,3,0)))","v":{"$error":"#N/A"}},null,null,"Equip Type","Category","Phase","Min","Max",null,null,null,"47/43","17/15",null,null,null,null,"47/43","17/15",null,null,null,null,"47/43","17/15",null,null,null,null,"47/43","17/15",null,null,"HVAC Type_140",null,null,"HVAC Type_115"]
[null,"Contact Person",null,{"$f":"CustomerContactName","v":0},null,null,null,"Phone",{"$f":"CustomerContactPhone","v":0},null,null,"Note",null,null,null,null,null,null,null,null,null,null,null,null,null,null,null,null,null,null,null,null,null,null,null,null,null,null,null,null,null,null,null,null,null,"CA","2025-02-06",null,8,"AR",{"$f":"TODAY()","v":"2026-02-09"},null,null,null,"kWh","Demand",null,1,{"$f":"IF($BL$4=0,0,OFFSET(BG10,$BL$5*$BL$4,0))","v":"Heat Pump (Air Cooled)"},"Split (1 Phase)",1,0,65000,0,14,0,8.1999999999999993,8.1999999999999993,0,0,0,0,0,0,{"$f":"IF($BL$4=0,0,OFFSET(BW10,$BL$5*$BL$4,0))","v":0},0,16,0,9.1999999999999993,9.1999999999999993,150,0,0,0,0,0,0,null,"Heat Pump (Air Cooled)",null,null,"Unitary AC (Air Cooled)"]
[null,"Account Number",null,{"$f":"AccountNumber","v":0},null,null,null,"Rate Schedule",null,{"$f":"RateSchedule","v":0},null,"Please fill in all blue fields.  Incentive and energy savings are estimates only.  The actual incentive paid will be determined based on the results of a post-installation inspection and review of project invoices.  Please be sure all capacities and efficiencies are reported @ AHRI conditions.",null,null,null,null,null,null,null,null,null,null,null,null,null,null,null,null,null,null,null,null,null,null,null,null,null,null,null,null,null,null,null,null,null,"ID","2025-02-06",null,9,"AZ",null,{"$f":"IF(ISERROR(MID(VLOOKUP(LARGE($BA$11:$BA$67,AW3),$BA$11:$BB$68,2,),4,5)),\"\",MID(VLOOKUP(LARGE($BA$11:$BA$67,AW3),$BA$11:$BB$68,2,),4,5))","v":"6"},{"$f":"IF(LEFT(BB11,2)=$H$9,AW3,\"\")","v":""},"WY 212",null,null,null,2,{"$f":"IF($BL$4=0,0,OFFSET(BG11,$BL$5*$BL$4,0))","v":"Heat Pump (Air Cooled)"},"Package (1 Phase)",1,0,65000,0,14,0,8,8,0,0,0,0,0,0,0,0,16,0,8.5,8.5,150,0,0,0,0,0,0,null,"Heat Pump (Water Cooled)",null,null,"Heat Pump (Air Cooled)"]
[null,"Meter Number",null,{"$f":"MeterNumber","v":0},null,{"$f":"IF(OR($H$9=\"\",$J$11=\"\",$D$6=\"\"),\"Project Name, State, and Rate are Required.\",IF(ISERROR(MATCH($J$11,$AZ$11:$AZ$67,0)),CONCATENATE($J$11,\" is not a valid rate for \",$H$9),IF($BC$9=0,\"Non-Qualifing Rate\",CONCATENATE(\"Rate \",J11,\" effective as of \",TEXT(VLOOKUP(H9,AT10:AU14,2,FALSE),\"mm/dd/yyyy\")))))","v":"0 is not a valid rate for UT"},null,null,null,null,null,null,null,null,null,null,null,null,null,null,null,null,null,null,null,null,null,null,null,null,null,null,null,null,null,null,null,null,null,null,null,null,null,null,null,"UT","2025-02-06",null,10,"CO",null,"8",{"$f":"IF(LEFT(BB12,2)=$H$9,AW4,\"\")","v":""},"WY 210",null,null,null,3,"Heat Pump (Air Cooled)","Split (3 Phase)",3,0,65000,0,14,0,8.1999999999999993,8.1999999999999993,0,0,16,0,8.5,8.5,105,0,16,0,9.1999999999999993,9.1999999999999993,150,0,0,0,0,0,0,null,"Heat Pump (Air Cooled, Replacing Electric Resistance)",null,null,"Heat Pump (Water Cooled)"]
[null,"Project Information and Energy/Cost Savings",null,null,null,null,null,null,null,null,null,null,null,null,null,null,null,null,null,null,null,null,null,null,null,null,null,null,null,null,null,null,null,null,null,null,null,null,null,null,null,null,null,null,null,"WA","2025-02-06",null,11,"CT",null,"9A","","WY 58",6.5320000000000003E-2,0,null,4,"Heat Pump (Air Cooled)","Package (3 Phase)",3,0,65000,0,14,0,8,8,0,0,16,0,8.1999999999999993,8.1999999999999993,105,0,16,0,8.5,8.5,150,0,0,0,0,0,0,null,"Ground-Source Heat Pump (Water-to-Air)",null,null,"Ground-Source Heat Pump (Water-to-Air)"]
[null,"HVAC Type",null,null,"System Type","Cooling Capacity (BTU/Hr)",null,"Eff 1 (EER)","Eff 2\n(SEER, IPLV, or IEER)",null,"Eff 3                                  (HSPF COP)",null,null,"Wet/Dry Bulb (F°)","QTY","Tier",{"$f":"IF(SUM(O17:O23)=0,\"\",IF(H9=\"WA\",CONCATENATE(\"Tier \",CL6,\" = $\",CM6,\"/ton, \",\"Tier \",CL7,\" = $\",CM7,\"/ton.\"),CONCATENATE(\"Tier \",CL5,\" = $\",CM5,\"/ton, \",\"Tier \",CL6,\" = $\",CM6,\"/ton, \",\"Tier \",CL7,\" = $\",CM7,\"/ton.\")))","v":{"$error":"#REF!"}},null,null,null,null,null,null,null,null,null,null,null,null,null,"Eff1",null,null,null,"Eff2",null,null,null,"Eff3",null,null,null,null,null,null,"WY","2025-02-06",null,12,"DE",null,"9","","WY 54",6.4939999999999998E-2,0,null,5,"Heat Pump (Air Cooled)","Split (3 Phase) Package (3 Phase)",3,65000,135000,10.8,0,13.9,3.4,2.25,0,10.8,0,14.6,3.4,2.4,105,0,0,0,0,0,150,0,0,0,0,0,{"$f":"IF($BL$4=0,0,OFFSET(CI14,$BL$5*$BL$4,0))","v":0},null,"Ground-Source Heat Pump (Water-to-Water)",null,null,"Ground-Source Heat Pump (Water-to-Water)"]
[null,null,null,null,null,null,null,null,null,null,null,null,null,null,null,null,"Incentive",null,"kWh/Yr","kW/Month","Deemed Cost",null,{"$f":"COUNT(SEARCH({\"UT\",\"WY\"},State))","v":1},null,null,null,"For Demand","For Cooling","For heating",null,null,null,null,null,null,null,null,null,null,null,null,null,null,null,null,"Rates for Software 2-6-2025",null,null,13,"FL",null,"10","","WY 48T",0,0,null,6,"Heat Pump (Air Cooled)","Split (3 Phase) Package (3 Phase)",3,135000,240000,10.4,0,13.3,3.3,2.0499999999999998,0,10.4,0,13.8,3.3,2.1,105,0,0,0,0,0,150,0,0,0,0,0,0,null,"Ground-Source Heat Pump (DGX)",null,null,"Unitary AC (Water Cooled)"]
[null,null,null,null,null,null,null,null,null,null,null,null,null,null,null,null,null,null,null,null,null,null,"Cooling kWh","Heating kWh","Row","Cap/1000","1/EFF1","1/EFF2","1/EFF3","Cooling Months","Tier","Code","Min",null,"Tier","Code","Min",null,"Tier","Code","Min",null,null,null,null,null,null,null,14,"GA",null,"23","","WY 46",4.9189999999999998E-2,21.109000000000002,null,7,"Heat Pump (Air Cooled)","Split (3 Phase) Package (3 Phase)",3,240000,10000000,9.3000000000000007,0,12.3,3.2,2.0499999999999998,0,9.3000000000000007,0,12.8,3.3,2.1,105,0,0,0,0,0,150,0,0,0,0,0,0,null,"Unitary AC (Air Cooled)",null,null,"Unitary AC (Evaporatively Cooled)"]
[null,{"$f":"'HVAC-Tool'!#REF!","v":{"$error":"#REF!"}},null,null,{"$f":"IF(OR(HVAC_Type_1=\"Ground-Source Heat Pump\",HVAC_Type_1=\"Groundwater Source Heat Pump\", HVAC_Type_1=\"Heat Pump (Water Cooled)\"),0,'HVAC-Tool'!#REF!)","v":{"$error":"#REF!"}},{"$f":"'HVAC-Tool'!#REF!","v":{"$error":"#REF!"}},null,{"$f":"'HVAC-Tool'!#REF!","v":{"$error":"#REF!"}},{"$f":"'HVAC-Tool'!#REF!","v":{"$error":"#REF!"}},{"$f":"'HVAC-Tool'!#REF!","v":{"$error":"#REF!"}},{"$f":"'HVAC-Tool'!#REF!","v":{"$error":"#REF!"}},null,{"$f":"'HVAC-Tool'!#REF!","v":{"$error":"#REF!"}},{"$f":"IF('HVAC-Tool'!#REF!=\"\",\"\",'HVAC-Tool'!#REF!)","v":{"$error":"#REF!"}},{"$f":"IF('HVAC-Tool'!#REF!=\"\",\"\",'HVAC-Tool'!#REF!)","v":{"$error":"#REF!"}},{"$f":"IF(OR($B17=\"\",$F17=\"\",$H17=\"\",$O17=\"\",IF($B17=HVACType_UnitaryAC_AirCooled,OR($E17=\"\",$I17=\"\",$J17=\"\"),IF($B17=HVACType_HeatPump_WaterCooled,OR($K17=\"\",$M17=\"\"),IF($B17=HVACType_HeatPump_AirCooled,OR($E17=\"\",$I17=\"\",$J17=\"\",$K17=\"\",$M17=\"\",$N17=\"\"),FALSE)))),\"\",MIN($AE17,$AI17,$AM17))","v":{"$error":"#REF!"}},{"$f":"IF($P17=0,\"Does not qualify\",IF($P17=\"\",\"\",IF(AND(COUNT(SEARCH(\"VRF\",B17)),COUNT(SEARCH({\"UT\",\"WY\",\"ID\"},HVAC!InstallState))),(VLOOKUP(P17,$CL$5:$CM$7,2,FALSE)+50)*(ROUND($F17/12000,1)*$O17),IF(ISNUMBER(SEARCH(\"electric resistance\",B17)),(ROUNDDOWN(200*1.25,0)+(VLOOKUP(P17,$CL$5:$CM$7,2,FALSE)*(P17-1)))*ROUND($F17/12000,1)*$O17,VLOOKUP(P17,$CL$5:$CM$7,2,FALSE)*ROUND($F17/12000,1)*$O17) + IF(AND('HVAC-Tool'!#REF!=\"Yes\",ISNUMBER(SEARCH(\"heat pump\",B17))),100,0))))","v":{"$error":"#REF!"}},null,{"$f":"IF(P17=0,0,IF(P17=\"\",\"\",SUM(W17:X17)*O17))","v":{"$error":"#REF!"}},{"$f":"IF($P17=0,0,IF($P17=\"\",\"\",IF(AA17=0,\"n/a\",Z17*AA17*O17*IF(OR($B17=HVACType_UnitaryAC_AirCooled,$B17=HVACType_UnitaryAC_EvapCooled,$B17=HVACType_UnitaryAC_WaterCooled),$BV$5*$BU$5,1))))","v":{"$error":"#REF!"}},{"$f":"IF($P17=0,0,IF($P17=\"\",\"\",IF($P17=0,0,$O17*$F17/12000*OFFSET($BQ$9,$Y17,P17*6))))","v":{"$error":"#REF!"}},null,{"$f":"EFLCH*AB17*NTG*Z17","v":{"$error":"#N/A"}},{"$f":"$AC17*EFLHH*$Z17/IF($M17=\"COP\",3.412,1)","v":{"$error":"#N/A"}},{"$f":"IF(OR($B17=\"\",$F17=\"\"),0,SUMPRODUCT($BF$10:$BF$63*($BG$10:$BG$63=$B17)*($F17>=$BJ$10:$BJ$63)*(F17<$BK$10:$BK$63)*(ISNUMBER(FIND($E17,$BH$10:$BH$63)))))","v":{"$error":"#REF!"}},{"$f":"F17/1000","v":{"$error":"#REF!"}},{"$f":"IF(ISERROR(1/(OFFSET($BL$9,$Y17,0))-1/($H17)),0,1/(OFFSET($BL$9,$Y17,0))-1/($H17))","v":0},{"$f":"IF(ISERROR(1/(OFFSET($BM$9,$Y17,IF($J17=\"IEER\",1,0)))-1/($I17)),0,1/(OFFSET($BM$9,$Y17,IF($J17=\"IEER\",1,0)))-1/($I17))","v":0},{"$f":"IF(ISERROR((1/OFFSET($BO$9,$Y17,IF($N17=$BK$4,1,0))-1/$K17)),0,(1/OFFSET($BO$9,$Y17,IF($N17=$BK$4,1,0))-1/$K17))","v":0},{"$f":"IF(OR($B17=$CK$14,$B17=$CK$16,$B17=$CK$17),$BW$5,12)","v":{"$error":"#REF!"}},{"$f":"IF($Y17=0,0,IF(AND(AF17=0),MIN(AI17,AM17),IF(OR(AND($H17>=OFFSET($CD$9,$Y17,0),OFFSET($CD$9,$Y17,0)>0),AND($H17=0,AF17=0)),$CE$6,IF(AND($H17>=OFFSET($BX$9,$Y17,0),OFFSET($BX$9,$Y17,0)>0),$BY$6,IF(AND($H17>=OFFSET($BR$9,$Y17,0),OFFSET($BR$9,$Y17,0)>0),$BS$6,0)))))","v":{"$error":"#REF!"}},{"$f":"IF($Y17=0,0,OFFSET($BL$9,$Y17,0))","v":{"$error":"#REF!"}},{"$f":"IF($Y17=0,0,OFFSET($BL$9,$Y17,$AE17*6))","v":{"$error":"#REF!"}},{"$f":"IF($Y17=0,0,\"EER\")","v":{"$error":"#REF!"}},{"$f":"IF($Y17=0,0,IF(AND(AJ17=0),3,IF(OR($B17=HVACType_HeatPump_WaterCooled,$B17=HVACType_GroundSourceHeatPump,$B17=HVACType_GroundwaterSourceHeatPump,$B17=HVACType_VRF_HP__Water_Source,AND($I17>=OFFSET($CE$9,$Y17,IF($J17=$BJ$5,1,0)),OFFSET($CE$9,$Y17,IF($J17=$BJ$5,1,0))>0)),$CE$6,IF(AND($I17>=OFFSET($BY$9,$Y17,IF($J17=$BJ$5,1,0)),OFFSET($BY$9,$Y17,IF($J17=$BJ$5,1,0))>0),$BY$6,IF(AND($I17>=OFFSET($BS$9,$Y17,IF($J17=$BJ$5,1,0)),OFFSET($BS$9,$Y17,IF($J17=$BJ$5,1,0))>0),$BS$6,0)))))","v":{"$error":"#REF!"}},{"$f":"IF($Y17=0,0,OFFSET($BM$9,$Y17,IF($J17=$BJ$5,1,0)))","v":{"$error":"#REF!"}},{"$f":"IF($Y17=0,0,OFFSET($BM$9,$Y17,$AE17*6+IF($J17=\"IEER\",1,0)))","v":{"$error":"#REF!"}},{"$f":"$J17","v":{"$error":"#REF!"}},{"$f":"IF($Y17=0,0,IF(AND(AN17=0),3,IF(OR(OR($B17=HVACType_UnitaryAC_AirCooled,$B17=HVACType_UnitaryAC_EvapCooled,$B17=HVACType_UnitaryAC_WaterCooled),AND($K17>=OFFSET($CG$9,$Y17,IF($N17=$BK$4,1,0)),OFFSET($CG$9,$Y17,IF($N17=$BK$4,1,0))>0)),$CE$6,IF(AND($K17>=OFFSET($CA$9,$Y17,IF($N17=$BK$4,1,0)),OFFSET($CA$9,$Y17,IF($N17=$BK$4,1,0))>0),$BY$6,IF(AND($K17>=OFFSET($BU$9,$Y17,IF($N17=$BK$4,1,0)),OFFSET($BU$9,$Y17,IF($N17=$BK$4,1,0))>0),$BS$6,0)))))","v":{"$error":"#REF!"}},{"$f":"IF($Y17=0,0,OFFSET($BO$9,$Y17,IF($N17=$BK$4,1,0)))","v":{"$error":"#REF!"}},{"$f":"IF($Y17=0,0,OFFSET($BO$9,$Y17,$AE17*6+IF($N17=$BK$4,1,0)))","v":{"$error":"#REF!"}},{"$f":"$M17","v":{"$error":"#REF!"}},null,null,null,null,null,null,15,"HI",null,"","","WY 40",6.6409999999999997E-2,9.8379999999999992,null,8,"Heat Pump (Water Cooled)",0,0,0,17000,12.2,0,14.029999999999998,4.3,4.3,0,0,0,0,0,0,0,14,0,0,4.5999999999999996,4.5999999999999996,100,0,0,0,0,0,0,null,"Unitary AC (Water Cooled)"]
[null,{"$f":"'HVAC-Tool'!#REF!","v":{"$error":"#REF!"}},null,null,{"$f":"IF(OR(HVAC_Type_2=\"Ground-Source Heat Pump\",HVAC_Type_2=\"Groundwater Source Heat Pump\", HVAC_Type_2=\"Heat Pump (Water Cooled)\"),0,'HVAC-Tool'!#REF!)","v":{"$error":"#REF!"}},{"$f":"'HVAC-Tool'!#REF!","v":{"$error":"#REF!"}},null,{"$f":"'HVAC-Tool'!#REF!","v":{"$error":"#REF!"}},{"$f":"'HVAC-Tool'!#REF!","v":{"$error":"#REF!"}},{"$f":"'HVAC-Tool'!#REF!","v":{"$error":"#REF!"}},{"$f":"'HVAC-Tool'!#REF!","v":{"$error":"#REF!"}},null,{"$f":"'HVAC-Tool'!#REF!","v":{"$error":"#REF!"}},{"$f":"IF('HVAC-Tool'!#REF!=\"\",\"\",'HVAC-Tool'!#REF!)","v":{"$error":"#REF!"}},{"$f":"IF('HVAC-Tool'!#REF!=\"\",\"\",'HVAC-Tool'!#REF!)","v":{"$error":"#REF!"}},{"$f":"IF(OR($B18=\"\",$F18=\"\",$H18=\"\",$O18=\"\",IF($B18=HVACType_UnitaryAC_AirCooled,OR($E18=\"\",$I18=\"\",$J18=\"\"),IF($B18=HVACType_HeatPump_WaterCooled,OR($K18=\"\",$M18=\"\"),IF($B18=HVACType_HeatPump_AirCooled,OR($E18=\"\",$I18=\"\",$J18=\"\",$K18=\"\",$M18=\"\",$N18=\"\"),FALSE)))),\"\",MIN($AE18,$AI18,$AM18))","v":{"$error":"#REF!"}},{"$f":"IF($P18=0,\"Does not qualify\",IF($P18=\"\",\"\",IF(AND(COUNT(SEARCH(\"VRF\",B18)),COUNT(SEARCH({\"UT\",\"WY\",\"ID\"},HVAC!InstallState))),(VLOOKUP(P18,$CL$5:$CM$7,2,FALSE)+50)*(ROUND($F18/12000,1)*$O18),IF(ISNUMBER(SEARCH(\"electric resistance\",B18)),(ROUNDDOWN(200*1.25,0)+(VLOOKUP(P18,$CL$5:$CM$7,2,FALSE)*(P18-1)))*ROUND($F18/12000,1)*$O18,VLOOKUP(P18,$CL$5:$CM$7,2,FALSE)*ROUND($F18/12000,1)*$O18) + IF(AND('HVAC-Tool'!#REF!=\"Yes\",ISNUMBER(SEARCH(\"heat pump\",B18))),100,0))))","v":{"$error":"#REF!"}},null,{"$f":"IF(P18=0,0,IF(P18=\"\",\"\",SUM(W18:X18)*O18))","v":{"$error":"#REF!"}},{"$f":"IF($P18=0,0,IF($P18=\"\",\"\",IF(AA18=0,\"n/a\",Z18*AA18*O18*IF(OR($B18=HVACType_UnitaryAC_AirCooled,$B18=HVACType_UnitaryAC_EvapCooled,$B18=HVACType_UnitaryAC_WaterCooled),$BV$5*$BU$5,1))))","v":{"$error":"#REF!"}},{"$error":"#REF!"},null,{"$error":"#N/A"},{"$error":"#N/A"},{"$error":"#REF!"},{"$error":"#REF!"},0,0,0,{"$error":"#REF!"},{"$f":"IF($Y18=0,0,IF(AND(AF18=0),MIN(AI18,AM18),IF(OR(AND($H18>=OFFSET($CD$9,$Y18,0),OFFSET($CD$9,$Y18,0)>0),AND($H18=0,AF18=0)),$CE$6,IF(AND($H18>=OFFSET($BX$9,$Y18,0),OFFSET($BX$9,$Y18,0)>0),$BY$6,IF(AND($H18>=OFFSET($BR$9,$Y18,0),OFFSET($BR$9,$Y18,0)>0),$BS$6,0)))))","v":{"$error":"#REF!"}},{"$f":"IF($Y18=0,0,OFFSET($BL$9,$Y18,0))","v":{"$error":"#REF!"}},{"$f":"IF($Y18=0,0,OFFSET($BL$9,$Y18,$AE18*6))","v":{"$error":"#REF!"}},{"$f":"IF($Y18=0,0,\"EER\")","v":{"$error":"#REF!"}},{"$error":"#REF!"},{"$error":"#REF!"},{"$error":"#REF!"},{"$error":"#REF!"},{"$error":"#REF!"},{"$error":"#REF!"},{"$error":"#REF!"},{"$error":"#REF!"},null,null,null,null,null,null,16,"IA",null,"","","WY 33",0.48280000000000001,21.472999999999999,null,9,"Heat Pump (Water Cooled)",0,0,17000,65000,13,0,14.95,4.3,4.3,0,0,0,0,0,0,0,14,0,0,4.5999999999999996,4.5999999999999996,100,0,0,0,0,0,0,null,"Unitary AC (Evaporatively Cooled)"]
[null,{"$f":"'HVAC-Tool'!#REF!","v":{"$error":"#REF!"}},null,null,{"$f":"IF(OR(HVAC_Type_3=\"Ground-Source Heat Pump\",HVAC_Type_3=\"Groundwater Source Heat Pump\", HVAC_Type_3=\"Heat Pump (Water Cooled)\"),0,'HVAC-Tool'!#REF!)","v":{"$error":"#REF!"}},{"$f":"'HVAC-Tool'!#REF!","v":{"$error":"#REF!"}},null,{"$f":"'HVAC-Tool'!#REF!","v":{"$error":"#REF!"}},{"$f":"'HVAC-Tool'!#REF!","v":{"$error":"#REF!"}},{"$f":"'HVAC-Tool'!#REF!","v":{"$error":"#REF!"}},{"$f":"'HVAC-Tool'!#REF!","v":{"$error":"#REF!"}},null,{"$f":"'HVAC-Tool'!#REF!","v":{"$error":"#REF!"}},{"$f":"IF('HVAC-Tool'!#REF!=\"\",\"\",'HVAC-Tool'!#REF!)","v":{"$error":"#REF!"}},{"$f":"IF('HVAC-Tool'!#REF!=\"\",\"\",'HVAC-Tool'!#REF!)","v":{"$error":"#REF!"}},{"$error":"#REF!"},{"$f":"IF($P19=0,\"Does not qualify\",IF($P19=\"\",\"\",IF(AND(COUNT(SEARCH(\"VRF\",B19)),COUNT(SEARCH({\"UT\",\"WY\",\"ID\"},HVAC!InstallState))),(VLOOKUP(P19,$CL$5:$CM$7,2,FALSE)+50)*(ROUND($F19/12000,1)*$O19),IF(ISNUMBER(SEARCH(\"electric resistance\",B19)),(ROUNDDOWN(200*1.25,0)+(VLOOKUP(P19,$CL$5:$CM$7,2,FALSE)*(P19-1)))*ROUND($F19/12000,1)*$O19,VLOOKUP(P19,$CL$5:$CM$7,2,FALSE)*ROUND($F19/12000,1)*$O19) + IF(AND('HVAC-Tool'!#REF!=\"Yes\",ISNUMBER(SEARCH(\"heat pump\",B19))),100,0))))","v":{"$error":"#REF!"}},null,{"$f":"IF(P19=0,0,IF(P19=\"\",\"\",SUM(W19:X19)*O19))","v":{"$error":"#REF!"}},{"$error":"#REF!"},{"$error":"#REF!"},null,{"$f":"EFLCH*AB19*NTG*Z19","v":{"$error":"#N/A"}},{"$error":"#N/A"},{"$error":"#REF!"},{"$error":"#REF!"},0,{"$f":"IF(ISERROR(1/(OFFSET($BM$9,$Y19,IF($J19=\"IEER\",1,0)))-1/($I19)),0,1/(OFFSET($BM$9,$Y19,IF($J19=\"IEER\",1,0)))-1/($I19))","v":0},0,{"$error":"#REF!"},{"$f":"IF($Y19=0,0,IF(AND(AF19=0),MIN(AI19,AM19),IF(OR(AND($H19>=OFFSET($CD$9,$Y19,0),OFFSET($CD$9,$Y19,0)>0),AND($H19=0,AF19=0)),$CE$6,IF(AND($H19>=OFFSET($BX$9,$Y19,0),OFFSET($BX$9,$Y19,0)>0),$BY$6,IF(AND($H19>=OFFSET($BR$9,$Y19,0),OFFSET($BR$9,$Y19,0)>0),$BS$6,0)))))","v":{"$error":"#REF!"}},{"$error":"#REF!"},{"$error":"#REF!"},{"$error":"#REF!"},{"$f":"IF($Y19=0,0,IF(AND(AJ19=0),3,IF(OR($B19=HVACType_HeatPump_WaterCooled,$B19=HVACType_GroundSourceHeatPump,$B19=HVACType_GroundwaterSourceHeatPump,$B19=HVACType_VRF_HP__Water_Source,AND($I19>=OFFSET($CE$9,$Y19,IF($J19=$BJ$5,1,0)),OFFSET($CE$9,$Y19,IF($J19=$BJ$5,1,0))>0)),$CE$6,IF(AND($I19>=OFFSET($BY$9,$Y19,IF($J19=$BJ$5,1,0)),OFFSET($BY$9,$Y19,IF($J19=$BJ$5,1,0))>0),$BY$6,IF(AND($I19>=OFFSET($BS$9,$Y19,IF($J19=$BJ$5,1,0)),OFFSET($BS$9,$Y19,IF($J19=$BJ$5,1,0))>0),$BS$6,0)))))","v":{"$error":"#REF!"}},{"$error":"#REF!"},{"$error":"#REF!"},{"$error":"#REF!"},{"$error":"#REF!"},{"$error":"#REF!"},{"$error":"#REF!"},{"$error":"#REF!"},null,null,null,null,null,null,17,"IL",null,"","","WY 28",4.7800000000000002E-2,21.651,null,10,"Heat Pump (Water Cooled)",0,0,65000,135000,13,0,14.95,4.3,4.3,0,0,0,0,0,0,0,14,0,0,4.5999999999999996,4.5999999999999996,100,0,0,0,0,0,0,null,"VRF HP (Air Cooled)"]
[null,{"$f":"'HVAC-Tool'!#REF!","v":{"$error":"#REF!"}},null,null,{"$f":"IF(OR(HVAC_Type_4=\"Ground-Source Heat Pump\",HVAC_Type_4=\"Groundwater Source Heat Pump\", HVAC_Type_4=\"Heat Pump (Water Cooled)\"),0,'HVAC-Tool'!#REF!)","v":{"$error":"#REF!"}},{"$f":"'HVAC-Tool'!#REF!","v":{"$error":"#REF!"}},null,{"$f":"'HVAC-Tool'!#REF!","v":{"$error":"#REF!"}},{"$f":"'HVAC-Tool'!#REF!","v":{"$error":"#REF!"}},{"$f":"'HVAC-Tool'!#REF!","v":{"$error":"#REF!"}},{"$f":"'HVAC-Tool'!#REF!","v":{"$error":"#REF!"}},null,{"$f":"'HVAC-Tool'!#REF!","v":{"$error":"#REF!"}},{"$f":"IF('HVAC-Tool'!#REF!=\"\",\"\",'HVAC-Tool'!#REF!)","v":{"$error":"#REF!"}},{"$f":"IF('HVAC-Tool'!#REF!=\"\",\"\",'HVAC-Tool'!#REF!)","v":{"$error":"#REF!"}},{"$error":"#REF!"},{"$f":"IF($P20=0,\"Does not qualify\",IF($P20=\"\",\"\",IF(AND(COUNT(SEARCH(\"VRF\",B20)),COUNT(SEARCH({\"UT\",\"WY\",\"ID\"},HVAC!InstallState))),(VLOOKUP(P20,$CL$5:$CM$7,2,FALSE)+50)*(ROUND($F20/12000,1)*$O20),IF(ISNUMBER(SEARCH(\"electric resistance\",B20)),(ROUNDDOWN(200*1.25,0)+(VLOOKUP(P20,$CL$5:$CM$7,2,FALSE)*(P20-1)))*ROUND($F20/12000,1)*$O20,VLOOKUP(P20,$CL$5:$CM$7,2,FALSE)*ROUND($F20/12000,1)*$O20) + IF(AND('HVAC-Tool'!#REF!=\"Yes\",ISNUMBER(SEARCH(\"heat pump\",B20))),100,0))))","v":{"$error":"#REF!"}},null,{"$f":"IF(P20=0,0,IF(P20=\"\",\"\",SUM(W20:X20)*O20))","v":{"$error":"#REF!"}},{"$error":"#REF!"},{"$error":"#REF!"},null,{"$error":"#N/A"},{"$error":"#N/A"},{"$error":"#REF!"},{"$error":"#REF!"},0,0,0,{"$error":"#REF!"},{"$error":"#REF!"},{"$error":"#REF!"},{"$error":"#REF!"},{"$error":"#REF!"},{"$f":"IF($Y20=0,0,IF(AND(AJ20=0),3,IF(OR($B20=HVACType_HeatPump_WaterCooled,$B20=HVACType_GroundSourceHeatPump,$B20=HVACType_GroundwaterSourceHeatPump,$B20=HVACType_VRF_HP__Water_Source,AND($I20>=OFFSET($CE$9,$Y20,IF($J20=$BJ$5,1,0)),OFFSET($CE$9,$Y20,IF($J20=$BJ$5,1,0))>0)),$CE$6,IF(AND($I20>=OFFSET($BY$9,$Y20,IF($J20=$BJ$5,1,0)),OFFSET($BY$9,$Y20,IF($J20=$BJ$5,1,0))>0),$BY$6,IF(AND($I20>=OFFSET($BS$9,$Y20,IF($J20=$BJ$5,1,0)),OFFSET($BS$9,$Y20,IF($J20=$BJ$5,1,0))>0),$BS$6,0)))))","v":{"$error":"#REF!"}},{"$error":"#REF!"},{"$error":"#REF!"},{"$error":"#REF!"},{"$error":"#REF!"},{"$error":"#REF!"},{"$error":"#REF!"},{"$error":"#REF!"},null,null,null,null,null,null,18,"IN",null,"","","WY 25",0.1051,0,null,11,"Unitary AC (Air Cooled)","Split (1 Phase)",1,0,45000,11,13,0,0,0,0,0,0,0,0,0,0,11,16,0,0,0,235,11,18,0,0,0,375,null,"VRF HP (Water Source)"]
[null,{"$f":"'HVAC-Tool'!#REF!","v":{"$error":"#REF!"}},null,null,{"$f":"IF(OR(HVAC_Type_5=\"Ground-Source Heat Pump\",HVAC_Type_5=\"Groundwater Source Heat Pump\", HVAC_Type_5=\"Heat Pump (Water Cooled)\"),0,'HVAC-Tool'!#REF!)","v":{"$error":"#REF!"}},{"$f":"'HVAC-Tool'!#REF!","v":{"$error":"#REF!"}},null,{"$f":"'HVAC-Tool'!#REF!","v":{"$error":"#REF!"}},{"$f":"'HVAC-Tool'!#REF!","v":{"$error":"#REF!"}},{"$f":"'HVAC-Tool'!#REF!","v":{"$error":"#REF!"}},{"$f":"'HVAC-Tool'!#REF!","v":{"$error":"#REF!"}},null,{"$f":"'HVAC-Tool'!#REF!","v":{"$error":"#REF!"}},{"$f":"IF('HVAC-Tool'!#REF!=\"\",\"\",'HVAC-Tool'!#REF!)","v":{"$error":"#REF!"}},{"$f":"IF('HVAC-Tool'!#REF!=\"\",\"\",'HVAC-Tool'!#REF!)","v":{"$error":"#REF!"}},{"$error":"#REF!"},{"$f":"IF($P21=0,\"Does not qualify\",IF($P21=\"\",\"\",IF(AND(COUNT(SEARCH(\"VRF\",B21)),COUNT(SEARCH({\"UT\",\"WY\",\"ID\"},HVAC!InstallState))),(VLOOKUP(P21,$CL$5:$CM$7,2,FALSE)+50)*(ROUND($F21/12000,1)*$O21),IF(ISNUMBER(SEARCH(\"electric resistance\",B21)),(ROUNDDOWN(200*1.25,0)+(VLOOKUP(P21,$CL$5:$CM$7,2,FALSE)*(P21-1)))*ROUND($F21/12000,1)*$O21,VLOOKUP(P21,$CL$5:$CM$7,2,FALSE)*ROUND($F21/12000,1)*$O21) + IF(AND('HVAC-Tool'!#REF!=\"Yes\",ISNUMBER(SEARCH(\"heat pump\",B21))),100,0))))","v":{"$error":"#REF!"}},null,{"$error":"#REF!"},{"$error":"#REF!"},{"$error":"#REF!"},null,{"$error":"#N/A"},{"$error":"#N/A"},{"$error":"#REF!"},{"$error":"#REF!"},0,0,0,{"$error":"#REF!"},{"$error":"#REF!"},{"$error":"#REF!"},{"$error":"#REF!"},{"$error":"#REF!"},{"$error":"#REF!"},{"$error":"#REF!"},{"$error":"#REF!"},{"$error":"#REF!"},{"$error":"#REF!"},{"$error":"#REF!"},{"$error":"#REF!"},{"$error":"#REF!"},null,null,null,null,null,null,19,"KS",null,"","",null,null,null,null,12,"Unitary AC (Air Cooled)","Split (1 Phase)",1,45000,65000,11,13,0,0,0,0,0,0,0,0,0,0,11,16,0,0,0,235,11,18,0,0,0,375]
[null,{"$f":"'HVAC-Tool'!#REF!","v":{"$error":"#REF!"}},null,null,{"$f":"IF(OR(HVAC_Type_6=\"Ground-Source Heat Pump\",HVAC_Type_6=\"Groundwater Source Heat Pump\", HVAC_Type_6=\"Heat Pump (Water Cooled)\"),0,'HVAC-Tool'!#REF!)","v":{"$error":"#REF!"}},{"$f":"'HVAC-Tool'!#REF!","v":{"$error":"#REF!"}},null,{"$f":"'HVAC-Tool'!#REF!","v":{"$error":"#REF!"}},{"$f":"'HVAC-Tool'!#REF!","v":{"$error":"#REF!"}},{"$f":"'HVAC-Tool'!#REF!","v":{"$error":"#REF!"}},{"$f":"'HVAC-Tool'!#REF!","v":{"$error":"#REF!"}},null,{"$f":"'HVAC-Tool'!#REF!","v":{"$error":"#REF!"}},{"$f":"IF('HVAC-Tool'!#REF!=\"\",\"\",'HVAC-Tool'!#REF!)","v":{"$error":"#REF!"}},{"$f":"IF('HVAC-Tool'!#REF!=\"\",\"\",'HVAC-Tool'!#REF!)","v":{"$error":"#REF!"}},{"$error":"#REF!"},{"$f":"IF($P22=0,\"Does not qualify\",IF($P22=\"\",\"\",IF(AND(COUNT(SEARCH(\"VRF\",B22)),COUNT(SEARCH({\"UT\",\"WY\",\"ID\"},HVAC!InstallState))),(VLOOKUP(P22,$CL$5:$CM$7,2,FALSE)+50)*(ROUND($F22/12000,1)*$O22),IF(ISNUMBER(SEARCH(\"electric resistance\",B22)),(ROUNDDOWN(200*1.25,0)+(VLOOKUP(P22,$CL$5:$CM$7,2,FALSE)*(P22-1)))*ROUND($F22/12000,1)*$O22,VLOOKUP(P22,$CL$5:$CM$7,2,FALSE)*ROUND($F22/12000,1)*$O22) + IF(AND('HVAC-Tool'!#REF!=\"Yes\",ISNUMBER(SEARCH(\"heat pump\",B22))),100,0))))","v":{"$error":"#REF!"}},null,{"$error":"#REF!"},{"$error":"#REF!"},{"$error":"#REF!"},null,{"$error":"#N/A"},{"$error":"#N/A"},{"$error":"#REF!"},{"$error":"#REF!"},0,0,0,{"$error":"#REF!"},{"$error":"#REF!"},{"$error":"#REF!"},{"$error":"#REF!"},{"$error":"#REF!"},{"$error":"#REF!"},{"$error":"#REF!"},{"$error":"#REF!"},{"$error":"#REF!"},{"$error":"#REF!"},{"$error":"#REF!"},{"$error":"#REF!"},{"$error":"#REF!"},null,null,null,null,null,null,20,"KY",null,"","",null,null,null,null,13,"Unitary AC (Air Cooled)","Package (1 Phase)",1,0,65000,11,14,0,0,0,0,0,0,0,0,0,0,10000,10000,0,0,0,235,10000,10000,0,0,0,0,null,"VRF System Type",null,null,"SystemType_UT",null,"LoopType_GSHP"]
[null,{"$f":"'HVAC-Tool'!#REF!","v":{"$error":"#REF!"}},null,null,{"$f":"IF(OR(HVAC_Type_7=\"Ground-Source Heat Pump\",HVAC_Type_7=\"Groundwater Source Heat Pump\", HVAC_Type_7=\"Heat Pump (Water Cooled)\"),0,'HVAC-Tool'!#REF!)","v":{"$error":"#REF!"}},{"$f":"'HVAC-Tool'!#REF!","v":{"$error":"#REF!"}},null,{"$f":"'HVAC-Tool'!#REF!","v":{"$error":"#REF!"}},{"$f":"'HVAC-Tool'!#REF!","v":{"$error":"#REF!"}},{"$f":"'HVAC-Tool'!#REF!","v":{"$error":"#REF!"}},{"$f":"'HVAC-Tool'!#REF!","v":{"$error":"#REF!"}},null,{"$f":"'HVAC-Tool'!#REF!","v":{"$error":"#REF!"}},{"$f":"IF('HVAC-Tool'!#REF!=\"\",\"\",'HVAC-Tool'!#REF!)","v":{"$error":"#REF!"}},{"$f":"IF('HVAC-Tool'!#REF!=\"\",\"\",'HVAC-Tool'!#REF!)","v":{"$error":"#REF!"}},{"$error":"#REF!"},{"$f":"IF($P23=0,\"Does not qualify\",IF($P23=\"\",\"\",IF(AND(COUNT(SEARCH(\"VRF\",B23)),COUNT(SEARCH({\"UT\",\"WY\",\"ID\"},HVAC!InstallState))),(VLOOKUP(P23,$CL$5:$CM$7,2,FALSE)+50)*(ROUND($F23/12000,1)*$O23),IF(ISNUMBER(SEARCH(\"electric resistance\",B23)),(ROUNDDOWN(200*1.25,0)+(VLOOKUP(P23,$CL$5:$CM$7,2,FALSE)*(P23-1)))*ROUND($F23/12000,1)*$O23,VLOOKUP(P23,$CL$5:$CM$7,2,FALSE)*ROUND($F23/12000,1)*$O23) + IF(AND('HVAC-Tool'!#REF!=\"Yes\",ISNUMBER(SEARCH(\"heat pump\",B23))),100,0))))","v":{"$error":"#REF!"}},null,{"$f":"IF(P23=0,0,IF(P23=\"\",\"\",SUM(W23:X23)*O23))","v":{"$error":"#REF!"}},{"$error":"#REF!"},{"$error":"#REF!"},null,{"$error":"#N/A"},{"$error":"#N/A"},{"$error":"#REF!"},{"$error":"#REF!"},0,0,0,{"$error":"#REF!"},{"$error":"#REF!"},{"$error":"#REF!"},{"$error":"#REF!"},{"$error":"#REF!"},{"$error":"#REF!"},{"$error":"#REF!"},{"$error":"#REF!"},{"$error":"#REF!"},{"$error":"#REF!"},{"$error":"#REF!"},{"$error":"#REF!"},{"$error":"#REF!"},null,null,null,null,null,null,21,"LA",null,"","",null,null,null,null,14,"Unitary AC (Air Cooled)","Split (3 Phase)",3,0,65000,11,13,0,0,0,0,0,0,0,0,0,0,11,16,0,0,0,175,{"$f":"IF($BL$4=0,0,OFFSET(CD23,$BL$5*$BL$4,0))","v":11},18,0,0,0,375,null,"Multi-split System",null,null,"Split (1 Phase)",null,"Closed Loop"]
[null,"Total Project",null,"Baseline Energy Code","Energy Savings (kWh/Yr) ","Demand Savings (kW)","Deemed Cost",null,"Incentive",null,"Monthly Savings",null,"Annual Savings",null,"% of Cost Paid by Incentive",null,"Net Project Cost","Pre-incentive Payback (Yr)",null,"Post-incentive Payback (Yr)",null,null,null,null,null,null,null,null,null,null,null,null,null,null,null,null,null,null,null,null,null,null,null,null,null,null,null,null,22,"MA",null,"","",null,null,null,null,15,"Unitary AC (Air Cooled)","Package (3 Phase)",3,0,65000,11,14,0,0,0,0,0,0,0,0,0,0,10000,10000,0,0,0,175,10000,10000,0,0,0,0,null,"Multi-split w/Heat Recovery",null,null,"Split (3 Phase)",null,"Open Loop"]
[null,null,null,null,null,null,null,null,null,null,null,null,null,null,null,null,null,null,null,null,null,null,null,null,null,null,null,null,null,null,null,null,null,null,null,null,null,null,null,null,null,null,null,null,null,null,null,null,23,"MD",null,"","",null,null,null,null,16,"Unitary AC (Air Cooled)","Split (3 Phase)",3,65000,135000,11,10000,14.6,0,0,0,0,0,0,0,0,0,11,0,16.100000000000001,0,0,150,11,0,17.8,0,0,300]
[null,null,null,{"$f":"$BR$5","v":"IECC 2018, Tables C403.2.3(1) & C403.2.3(2)"},{"$f":"IF(SUM($P$17:$P$23)=0,0,SUM($S$17:$S$23))","v":{"$error":"#REF!"}},{"$f":"IF(SUM($P$17:$P$23)=0,0,SUM($T$17:$T$23))","v":{"$error":"#REF!"}},{"$f":"IF(SUM($P$17:$P$23)=0,0,SUM($U$17:$U$23))","v":{"$error":"#REF!"}},null,{"$f":"IF(SUM($P$17:$P$23)=0,0,SUM($Q$17:$Q$23))","v":{"$error":"#REF!"}},null,{"$f":"IF(SUM(P17:P23)=0,0,$M$26/12)","v":{"$error":"#REF!"}},null,{"$f":"IF(SUM(P17:P23)=0,0,$E$26*$BC$9+$BD$9*SUMPRODUCT($T$17:$T$23,$AD$17:$AD$23))","v":{"$error":"#REF!"}},null,{"$f":"IF(SUM(P17:P23)=0,0,$I$26/$G$26)","v":{"$error":"#REF!"}},null,{"$f":"IF(SUM(P17:P23)=0,0,$G$26-$I$26)","v":{"$error":"#REF!"}},{"$f":"IF(SUM(P17:P23)=0,0,$G$26/$M$26)","v":{"$error":"#REF!"}},null,{"$f":"IF(SUM(P17:P23)=0,0,$Q$26/$M$26)","v":{"$error":"#REF!"}},null,null,null,null,null,null,null,null,null,null,null,null,null,null,null,null,null,null,null,null,null,null,null,null,null,null,null,null,24,"ME",null,"",16,"UT 23",7.7890000000000001E-2,10.563000000000001,null,17,"Unitary AC (Air Cooled)","Split (3 Phase) Package (3 Phase)",3,135000,240000,10.8,10000,14,0,0,0,0,0,0,0,{"$f":"IF($BL$4=0,0,OFFSET(BV26,$BL$5*$BL$4,0))","v":0},0,10.8,0,15.4,0,0,125,10.8,0,16.8,0,0,205]
[null,null,null,null,null,null,null,null,null,null,null,null,null,null,null,null,null,null,null,null,null,null,null,null,null,null,null,null,null,null,null,null,null,null,null,null,null,null,null,null,null,null,null,null,null,null,null,null,25,"MI",null,"",17,"UT 10",6.8190000000000001E-2,9.2609999999999992,null,18,{"$f":"IF($BL$4=0,0,OFFSET(BG27,$BL$5*$BL$4,0))","v":"Unitary AC (Air Cooled)"},"Split (3 Phase) Package (3 Phase)",3,240000,760000,9.8000000000000007,10000,13,0,0,0,0,0,0,0,0,0,9.8000000000000007,0,14.3,0,0,95,9.8000000000000007,0,15.6,0,0,185]
[null,null,null,null,null,null,null,null,null,null,null,null,null,null,null,null,null,null,null,null,null,null,null,null,null,null,null,null,null,null,null,null,null,null,null,null,null,null,null,null,null,null,null,null,null,null,null,null,26,"MN",null,"",18,"UT 9",6.8959999999999994E-2,21.475000000000001,null,19,"Unitary AC (Air Cooled)","Split (3 Phase) Package (3 Phase)",3,760000,10000000,9.5,10000,11,0,0,0,0,0,0,0,0,0,9.5,0,13.6,0,0,160,9.5,0,14.9,0,0,0]
[null,null,null,"User Input Cells",null,null,null,null,null,null,null,null,null,null,null,null,null,null,null,null,null,null,null,null,null,null,null,null,null,null,null,null,null,null,null,null,null,null,null,null,null,null,null,null,null,null,null,null,27,"MO",null,"",19,"UT 9A",7.0739999999999997E-2,null,null,20,"Ground-Source Heat Pump",0,0,0,10000000,14.1,0,16.215,3.2,3.2,0,0,0,0,0,0,0,17.100000000000001,0,0,3.6,3.6,150,0,0,0,0,0,0]
[null,null,null,null,null,null,null,null,null,null,null,null,null,null,null,null,null,null,null,null,null,null,null,null,null,null,null,null,null,null,null,null,null,null,null,null,null,null,null,null,null,null,null,null,null,null,null,null,28,"MS",null,"",20,"UT 8",7.3859999999999995E-2,24.742999999999999,null,21,"Groundwater Source Heat Pump",0,0,0,10000000,18,0,20.7,3.7,3.7,0,0,0,0,0,0,0,21.1,0,0,4.0999999999999996,4.0999999999999996,150,0,0,0,0,0,0]
[null,null,null,null,null,null,null,null,null,null,null,null,null,null,null,null,null,null,null,null,null,null,null,{"$f":"OFFSET($BO$9,$Y19,IF($N19=$BK$4,1,0))","v":{"$error":"#REF!"}},null,null,null,null,null,null,null,null,null,null,null,null,null,null,null,null,null,null,null,null,null,null,null,null,29,"MT",null,"",21,"UT 6",4.802E-2,16.388000000000002,null,22,"Unitary AC (Water Cooled)","Split (1 Phase)",1,0,65000,12.1,0,12.3,0,0,0,0,0,0,0,0,0,14,0,0,0,0,100,0,0,0,0,0,0]
[null,null,null,null,null,null,null,null,null,null,null,null,null,null,null,null,null,null,null,null,null,null,null,null,null,null,null,null,null,null,null,null,null,null,null,null,null,null,null,null,null,null,null,null,null,null,null,null,30,"NC",null,"","",null,null,null,null,23,"Unitary AC (Water Cooled)","Package (1 Phase)",1,0,65000,12.1,0,12.3,0,0,0,0,0,0,0,0,0,14,0,0,0,0,100,0,0,0,0,0,0]
[null,null,null,null,null,null,null,null,null,null,null,null,null,null,null,null,null,null,null,null,null,null,null,null,null,null,null,null,null,null,null,null,null,null,null,null,null,null,null,null,null,null,null,null,null,null,null,null,31,"ND",null,"","",null,null,null,null,24,"Unitary AC (Water Cooled)","Split (3 Phase)",3,0,65000,12.1,0,12.3,0,0,0,0,0,0,0,0,0,14,0,0,0,0,100,0,0,0,0,0,0]
[null,null,null,null,null,null,null,null,null,null,null,null,null,null,null,null,null,null,null,null,null,null,null,null,null,null,null,null,null,null,null,null,null,null,null,null,null,null,null,null,null,null,null,null,null,null,null,null,32,"NE",null,"","",null,null,null,null,25,"Unitary AC (Water Cooled)","Package (3 Phase)",3,0,65000,12.1,0,12.3,0,0,0,0,0,0,0,0,0,14,0,0,0,0,100,{"$f":"IF($BL$4=0,0,OFFSET(CD34,$BL$5*$BL$4,0))","v":0},0,0,0,0,0]
[null,null,null,null,null,null,null,null,null,null,null,null,null,null,null,null,null,null,null,null,null,null,null,null,null,null,null,null,null,null,null,null,null,null,null,null,null,null,null,null,null,null,null,null,null,null,null,null,33,"NH",null,"","","ID 35",7.8619999999999995E-2,20.459,null,26,"Unitary AC (Water Cooled)","Split (3 Phase) Package (3 Phase)",3,65000,135000,11.9,10000,13.7,0,0,0,0,0,0,0,0,0,11.9,0,15.1,0,0,100,0,0,0,0,0,0]
[null,null,null,null,null,null,null,null,null,null,null,null,null,null,null,null,null,null,null,null,null,null,null,null,null,null,null,null,null,null,null,null,null,null,null,null,null,null,null,null,null,null,null,null,null,null,null,null,34,"NJ",null,null,"","ID 23",0.11264,0,null,27,"Unitary AC (Water Cooled)","Split (3 Phase) Package (3 Phase)",3,135000,240000,12.3,10000,13.7,0,0,0,0,0,0,0,0,0,12.3,0,14.6,0,0,100,0,0,0,0,0,0]
[null,null,null,null,null,null,null,null,null,null,null,null,null,null,null,null,null,null,null,null,null,null,null,null,null,null,null,null,null,null,null,null,null,null,null,null,null,null,null,null,null,null,null,null,null,null,null,null,35,"NM",null,null,"","ID 10",7.3429999999999995E-2,7.226,null,28,"Unitary AC (Water Cooled)","Split (3 Phase) Package (3 Phase)",3,240000,760000,12.2,10000,13.4,0,0,0,0,0,0,0,0,0,12.3,0,14.6,0,0,100,0,0,0,0,0,0]
[null,null,null,null,null,null,null,null,null,null,null,null,null,null,null,null,null,null,null,null,null,null,null,null,null,null,null,null,null,null,null,null,null,null,null,null,null,null,null,null,null,null,null,null,null,null,null,null,36,"NV",null,null,"","ID 9",7.2590000000000002E-2,11.7,null,29,"Unitary AC (Water Cooled)","Split (3 Phase) Package (3 Phase)",3,760000,10000000,12,10000,13.3,0,0,0,0,0,0,0,0,0,12.3,0,14.6,0,0,100,0,0,0,0,0,0]
[null,null,null,null,null,null,null,null,null,null,null,null,null,null,null,null,null,null,null,null,null,null,null,null,null,null,null,null,null,null,null,null,null,null,null,null,null,null,null,null,null,null,null,null,null,null,null,null,37,"NY",null,null,"","ID 6",6.4140000000000003E-2,15.585000000000001,null,30,"Unitary AC (Evaporatively Cooled)","Split (1 Phase)",1,0,65000,12.1,0,12.3,0,0,0,0,0,0,0,0,0,14,0,0,0,0,100,0,0,0,0,0,0]
[null,null,null,null,null,null,null,null,null,null,null,null,null,null,null,null,null,null,null,null,null,null,null,null,null,null,null,null,null,null,null,null,null,null,null,null,null,null,null,null,null,null,null,null,null,null,null,null,38,"OH",null,null,{"$f":"IF(LEFT(BB40,2)=$H$9,AW32,\"\")","v":""},"ID 6A",6.4149999999999999E-2,15.585000000000001,null,31,"Unitary AC (Evaporatively Cooled)","Package (1 Phase)",1,0,65000,12.1,0,12.3,0,0,0,0,0,0,0,0,0,14,0,0,0,0,100,0,0,0,0,0,0]
[null,null,null,null,null,null,null,null,null,null,null,null,null,null,null,null,null,null,null,null,null,null,null,null,null,null,null,null,null,null,null,null,null,null,null,null,null,null,null,null,null,null,null,null,null,null,null,null,39,"OK",null,null,{"$f":"IF(LEFT(BB41,2)=$H$9,AW33,\"\")","v":""},null,null,null,null,32,"Unitary AC (Evaporatively Cooled)","Split (3 Phase)",3,0,65000,12.1,0,12.3,0,0,0,0,0,0,0,0,0,14,0,0,0,0,100,0,0,0,0,0,0]
[null,null,null,null,null,null,null,null,null,null,null,null,null,null,null,null,null,null,null,null,null,null,null,null,null,null,null,null,null,null,null,null,null,null,null,null,null,null,null,null,null,null,null,null,null,null,null,null,40,"OR",null,null,{"$f":"IF(LEFT(BB42,2)=$H$9,AW34,\"\")","v":""},null,null,null,null,33,"Unitary AC (Evaporatively Cooled)","Package (3 Phase)",3,0,65000,12.1,0,12.3,0,0,0,0,0,0,0,0,0,14,0,0,0,0,100,0,0,0,0,0,0]
[null,null,null,null,null,null,null,null,null,null,null,null,null,null,null,null,null,null,null,null,null,null,null,null,null,null,null,null,null,null,null,null,null,null,null,null,null,null,null,null,null,null,null,null,null,null,null,null,41,"PA",null,null,null,null,null,null,null,34,"Unitary AC (Evaporatively Cooled)","Split (3 Phase) Package (3 Phase)",3,65000,135000,11.9,10000,12.1,0,0,0,0,0,0,0,0,0,11.9,0,15.1,0,0,100,0,0,0,0,0,0]
[null,null,null,null,null,null,null,null,null,null,null,null,null,null,null,null,null,null,null,null,null,null,null,null,null,null,null,null,null,null,null,null,null,null,null,null,null,null,null,null,null,null,null,null,null,null,null,null,42,"RI",null,{"$f":"IF(ISERROR(MID(VLOOKUP(LARGE($BA$11:$BA$67,AW28),$BA$11:$BB$68,2,),4,5)),\"\",MID(VLOOKUP(LARGE($BA$11:$BA$67,AW28),$BA$11:$BB$68,2,),4,5))","v":""},{"$f":"IF(LEFT(BB36,2)=$H$9,AW28,\"\")","v":""},null,null,null,null,35,"Unitary AC (Evaporatively Cooled)","Split (3 Phase) Package (3 Phase)",3,135000,240000,11.8,10000,12,0,0,0,0,0,0,0,0,0,11.8,0,14.1,0,0,100,0,0,0,0,0,0]
[null,null,null,null,null,null,null,null,null,null,null,null,null,null,null,null,null,null,null,null,null,null,null,null,null,null,null,null,null,null,null,null,null,null,null,null,null,null,null,null,null,null,null,null,null,null,null,null,43,"SC",null,"","",null,null,null,null,36,"Unitary AC (Evaporatively Cooled)","Split (3 Phase) Package (3 Phase)",3,240000,760000,11.7,10000,11.9,0,0,0,0,0,0,0,0,0,11.8,0,14.1,0,0,100,0,0,0,0,0,0]
[null,null,null,null,null,null,null,null,null,null,null,null,null,null,null,null,null,null,null,null,null,null,null,null,null,null,null,null,null,null,null,null,null,null,null,null,null,null,null,null,null,null,null,null,null,null,null,null,44,"SD",null,"","",null,null,null,null,37,"Unitary AC (Evaporatively Cooled)","Split (3 Phase) Package (3 Phase)",3,760000,10000000,11.5,10000,11.7,0,0,0,0,0,0,0,0,0,11.8,0,14.1,0,0,100,0,0,0,0,0,0]
[null,null,null,null,null,null,null,null,null,null,null,null,null,null,null,null,null,null,null,null,null,null,null,null,null,null,null,null,null,null,null,null,null,null,null,null,null,null,null,null,null,null,null,null,null,null,null,null,45,"TN",null,"","",null,null,null,null,38,"VRF HP (Air Cooled)","Multi-split System",{"$f":"IF($BL$4=0,0,OFFSET(BI47,$BL$5*$BL$4,0))","v":0},0,65000,11,13,0,8.1999999999999993,7.7,0,0,0,0,0,0,0,0,{"$f":"IF($BL$4=0,0,OFFSET(BY47,$BL$5*$BL$4,0))","v":0},0,0,0,0,1,15.2,0,8.6999999999999993,8.6999999999999993,535]
[null,null,null,null,null,null,null,null,null,null,null,null,null,null,null,null,null,null,null,null,null,null,null,null,null,null,null,null,null,null,null,null,null,null,null,null,null,null,null,null,null,null,null,null,null,null,null,null,46,"TX",null,"",{"$f":"IF(LEFT(BB40,2)=$H$9,AW32,\"\")","v":""},null,null,null,null,39,"VRF HP (Air Cooled)","Multi-split w/Heat Recovery",0,0,65000,11,13,0,8.1999999999999993,7.7,0,0,0,0,0,0,0,0,0,0,0,0,0,1,15.2,0,8.6999999999999993,8.6999999999999993,535]
[null,null,null,null,null,null,null,null,null,null,null,null,null,null,null,null,null,null,null,null,null,null,null,null,null,null,null,null,null,null,null,null,null,null,null,null,null,null,null,null,null,null,null,null,null,null,null,null,47,"VA",null,"",{"$f":"IF(LEFT(BB41,2)=$H$9,AW33,\"\")","v":""},null,null,null,null,40,"VRF HP (Air Cooled)","Multi-split System",0,65000,135000,11,10000,12.9,3.4,2.25,0,0,0,0,0,0,0,0,0,0,0,0,0,10.8,0,17,3.5,2.2999999999999998,535]
[null,null,null,null,null,null,null,null,null,null,null,null,null,null,null,null,null,null,null,null,null,null,null,null,null,null,null,null,null,null,null,null,null,null,null,null,null,null,null,null,null,null,null,null,null,null,null,null,48,"VT",null,"",{"$f":"IF(LEFT(BB42,2)=$H$9,AW34,\"\")","v":""},null,null,null,null,41,"VRF HP (Air Cooled)","Multi-split w/Heat Recovery",0,65000,135000,10.8,10000,12.7,3.4,2.25,0,0,0,0,0,0,0,0,0,0,0,0,0,10.8,0,17,3.5,2.2999999999999998,775]
[null,null,null,null,null,null,null,null,null,null,null,null,null,null,null,null,null,null,null,null,null,null,null,null,null,null,null,null,null,null,null,null,null,null,null,null,null,null,null,null,null,null,null,null,null,null,null,null,49,"WI",null,"",{"$f":"IF(LEFT(BB51,2)=$H$9,AW35,\"\")","v":""},null,null,null,null,42,"VRF HP (Air Cooled)","Multi-split System",0,135000,240000,10.6,10000,12.3,3.3,2.0499999999999998,0,0,0,0,0,0,0,0,0,0,0,0,0,10.4,0,16.399999999999999,3.4,2.1,560]
[null,null,null,null,null,null,null,null,null,null,null,null,null,null,null,null,null,null,null,null,null,null,null,null,null,null,null,null,null,null,null,null,null,null,null,null,null,null,null,null,null,null,null,null,null,null,null,null,50,"WV",null,"",{"$f":"IF(LEFT(BB52,2)=$H$9,AW36,\"\")","v":""},null,null,null,null,43,"VRF HP (Air Cooled)","Multi-split w/Heat Recovery",0,135000,240000,10.4,10000,12.1,3.3,2.0499999999999998,0,0,0,0,0,0,0,0,0,0,0,0,0,10.4,0,16.399999999999999,3.4,2.1,735]
[null,null,null,null,null,null,null,null,null,null,null,null,null,null,null,null,null,null,null,null,null,null,null,null,null,null,null,null,null,null,null,null,null,null,null,null,null,null,null,null,null,null,null,null,null,null,null,null,null,null,null,"",{"$f":"IF(LEFT(BB53,2)=$H$9,AW37,\"\")","v":""},null,null,null,null,44,"VRF HP (Air Cooled)","Multi-split System",0,240000,10000000,9.5,10000,11,3.2,2.0499999999999998,0,0,0,0,0,0,0,0,0,0,0,0,0,9.3000000000000007,0,15.3,3.3,2.1,525]
[null,null,null,null,null,null,null,null,null,null,null,null,null,null,null,null,null,null,null,null,null,null,null,null,null,null,null,null,null,null,null,null,null,null,null,null,null,null,null,null,null,null,null,null,null,null,null,null,null,null,null,"",{"$f":"IF(LEFT(BB54,2)=$H$9,AW38,\"\")","v":""},null,null,null,null,45,"VRF HP (Air Cooled)","Multi-split w/Heat Recovery",0,240000,10000000,9.3000000000000007,10000,10.8,3.2,2.0499999999999998,0,0,0,0,0,0,0,0,0,0,0,0,0,9.3000000000000007,0,15.3,3.3,2.1,800]
[null,null,null,null,null,null,null,null,null,null,null,null,null,null,null,null,null,null,null,null,null,null,null,null,null,null,null,null,null,null,null,null,null,null,null,null,null,null,null,null,null,null,null,null,null,null,null,null,null,null,null,null,null,null,null,null,null,46,"VRF HP (Water Source)","Multi-split System",0,0,760000,12,0,13.799999999999999,4.3,4.2,0,0,0,0,0,0,0,0,0,0,0,0,0,14,0,0,4.5999999999999996,4.5999999999999996,535]
[null,null,null,null,null,null,null,null,null,null,null,null,null,null,null,null,null,null,null,null,null,null,null,null,null,null,null,null,null,null,null,null,null,null,null,null,null,null,null,null,null,null,null,null,null,null,null,null,null,null,null,null,null,null,null,null,null,47,"VRF HP (Water Source)","Multi-split w/Heat Recovery",0,0,760000,11.8,0,13.57,4.3,4.2,0,0,0,0,0,0,0,0,0,0,0,0,0,13.8,0,0,4.5999999999999996,4.5999999999999996,775]
[null,null,null,null,null,null,null,null,null,null,null,null,null,null,null,null,null,null,null,null,null,null,null,null,null,null,null,null,null,null,null,null,null,null,null,null,null,null,null,null,null,null,null,null,null,null,null,null,null,null,null,null,null,null,null,null,null,48,0,0,0,0,0,0,0,0,0,0,0,0,0,0,0,0,0,0,0,0,0,0,0,0,0,0,0,0,0]
[null,null,null,null,null,null,null,null,null,null,null,null,null,null,null,null,null,null,null,null,null,null,null,null,null,null,null,null,null,null,null,null,null,null,null,null,null,null,null,null,null,null,null,null,null,null,null,null,null,null,null,null,null,null,null,null,null,49,0,0,0,0,0,0,0,0,0,0,0,0,0,0,0,0,0,0,0,0,0,0,0,0,0,0,0,0,0]
[null,null,null,null,null,null,null,null,null,null,null,null,null,null,null,null,null,null,null,null,null,null,null,null,null,null,null,null,null,null,null,null,null,null,null,null,null,null,null,null,null,null,null,null,null,null,null,null,null,null,null,null,null,null,null,null,null,50,0,0,0,0,0,0,0,0,0,0,0,0,0,0,0,0,0,0,0,0,0,0,0,0,0,0,0,0,0]
[null,null,null,null,null,null,null,null,null,null,null,null,null,null,null,null,null,null,null,null,null,null,null,null,null,null,null,null,null,null,null,null,null,null,null,null,null,null,null,null,null,null,null,null,null,null,null,null,null,null,null,null,null,null,null,null,null,51,0,0,0,0,0,0,0,0,0,0,0,0,0,0,0,0,0,0,0,0,0,0,0,0,0,0,0,0,0]
[null,null,null,null,null,null,null,null,null,null,null,null,null,null,null,null,null,null,null,null,null,null,null,null,null,null,null,null,null,null,null,null,null,null,null,null,null,null,null,null,null,null,null,null,null,null,null,null,null,null,null,null,null,null,null,null,null,52,0,0,0,0,0,0,0,0,0,0,0,0,0,0,0,0,0,0,0,0,0,0,0,0,0,0,0,0,0]
[null,null,null,null,null,null,null,null,null,null,null,null,null,null,null,null,null,null,null,null,null,null,null,null,null,null,null,null,null,null,null,null,null,null,null,null,null,null,null,null,null,null,null,null,null,null,null,null,null,null,null,{"$f":"IF(ISERROR(MID(VLOOKUP(LARGE($BA$11:$BA$67,AW39),$BA$11:$BB$68,2,),4,5)),\"\",MID(VLOOKUP(LARGE($BA$11:$BA$67,AW39),$BA$11:$BB$68,2,),4,5))","v":""},{"$f":"IF(LEFT(BB62,2)=$H$9,AW39,\"\")","v":""},"","","",null,53,0,0,0,0,0,0,0,0,0,0,0,0,0,0,0,0,0,0,0,0,0,0,0,0,0,0,0,0,0]
[null,null,null,null,null,null,null,null,null,null,null,null,null,null,null,null,null,null,null,null,null,null,null,null,null,null,null,null,null,null,null,null,null,null,null,null,null,null,null,null,null,null,null,null,null,null,null,null,null,null,null,"","","","","",null,54,0,0,0,{"$f":"IF($BL$4=0,0,OFFSET(BJ63,$BL$5*$BL$4,0))","v":0},0,0,0,0,0,0,0,0,0,0,0,0,0,0,0,0,0,0,0,0,0,0,0,0,0]
[null,null,null,null,null,null,null,null,null,null,null,null,null,null,null,null,null,null,null,null,null,null,null,null,null,null,null,null,null,null,null,null,null,null,null,null,null,null,null,null,null,null,null,null,null,null,null,null,null,null,null,"","","","","",null,"↓ ADD OR CHANGE EFFICIENCY REQUIRMENTS BELOW↓"]
[null,null,null,null,null,null,null,null,null,null,null,null,null,null,null,null,null,null,null,null,null,null,null,null,null,null,null,null,null,null,null,null,null,null,null,null,null,null,null,null,null,null,null,null,null,null,null,null,null,null,null,"","","","","",null,null,null,null,null,null,null,"UT",null,null,null,null,null,"Code","EFLCH","EFLHH","NTG","CF","Cooling Months","Defined in Fed Code","Estimation","Defined in State Code",null,"PTAC Calcs from Deemed Savings",null,"Cost","kW/Unit","Gross kWh/yr","$/ton"]
[null,null,null,null,null,null,null,null,null,null,null,null,null,null,null,null,null,null,null,null,null,null,null,null,null,null,null,null,null,null,null,null,null,null,null,null,null,null,null,null,null,null,null,null,null,null,null,null,null,null,null,"","","","","",null,null,null,null,null,null,null,null,null,null,null,null,null,"IECC 2018, Tables C403.2.3(1) & C403.2.3(2)",{"$f":"INDEX(Segment_EFLH,MATCH(BusinessType,HVAC!BusinessType_List,0),MATCH(BL65& \" \"&BS65,Lookups!$S$12:$Y$12,0))","v":{"$error":"#N/A"}},{"$f":"INDEX(Segment_EFLH,MATCH(BusinessType,HVAC!BusinessType_List,0),MATCH(BL65& \" \"&BT65,Lookups!$S$12:$Y$12,0))","v":{"$error":"#N/A"}},1,1,5,null,"Not Used","Existing in Program",null,null,null,200,9.8000000000000004E-2,400,50]
[null,null,null,null,null,null,null,null,null,null,null,null,null,null,null,null,null,null,null,null,null,null,null,null,null,null,null,null,null,null,null,null,null,null,null,null,null,null,null,null,null,null,null,null,null,null,null,null,null,null,null,"","","","","",null,null,null,null,null,null,null,"Baseline",null,null,null,null,null,"Tier",1,null,25,"per ton",null,"Tier",2,null,50,{"$f":"BV67","v":"per ton"},null,"Tier",3,null,75,{"$f":"CB67","v":"per ton"}]
[null,null,null,null,null,null,null,null,null,null,null,null,null,null,null,null,null,null,null,null,null,null,null,null,null,null,null,null,null,null,null,null,null,null,null,null,null,null,null,null,null,null,null,null,null,null,null,null,null,null,null,null,null,null,null,null,null,null,null,null,null,null,null,"Cooling",null,null,"Heating",null,null,"Cooling",null,null,"Heating",null,"Gross Incremental Cost/Ton","Cooling",null,null,"Heating",null,"Gross Incremental Cost/Ton","Cooling",null,null,"Heating",null,"Gross Incremental Cost/Ton"]
[null,null,null,null,null,null,null,null,null,null,null,null,null,null,null,null,null,null,null,null,null,null,null,null,null,null,null,null,null,null,null,null,null,null,null,null,null,null,null,null,null,null,null,null,null,null,null,null,null,null,null,null,null,null,null,null,null,null,null,null,null,null,null,"EER","SEER IPLV","IEER","HSPF COP @ DB/WB",null,null,"EER","SEER IPLV","IEER","HSPF COP @ DB/WB",null,null,"EER","SEER IPLV","IEER","HSPF COP @ DB/WB",null,null,"EER","SEER IPLV","IEER","HSPF COP @ DB/WB"]
[null,null,null,null,null,null,null,null,null,null,null,null,null,null,null,null,null,null,null,null,null,null,null,null,null,null,null,null,null,null,null,null,null,null,null,null,null,null,null,null,null,null,null,null,null,null,null,null,null,null,null,null,null,null,null,null,null,null,"Equip Type","Category","Phase","Min (>=)","Max (<)",null,null,null,"47/43","17/15",null,null,null,null,"47/43","17/15",null,null,null,null,"47/43","17/15",null,null,null,null,"47/43","17/15"]
[null,null,null,null,null,null,null,null,null,null,null,null,null,null,null,null,null,null,null,null,null,null,null,null,null,null,null,null,null,null,null,null,null,null,null,null,null,null,null,null,null,null,null,null,null,null,null,null,null,null,null,null,null,null,null,null,null,1,"Heat Pump (Air Cooled)","Split (1 Phase)",1,0,65000,null,14,null,8.1999999999999993,8.1999999999999993,null,null,null,null,null,null,null,null,16,null,9.1999999999999993,9.1999999999999993,150]
[null,null,null,null,null,null,null,null,null,null,null,null,null,null,null,null,null,null,null,null,null,null,null,null,null,null,null,null,null,null,null,null,null,null,null,null,null,null,null,null,null,null,null,null,null,null,null,null,null,null,null,null,null,null,null,null,null,2,"Heat Pump (Air Cooled)","Package (1 Phase)",1,0,65000,null,14,null,8,8,null,null,null,null,null,null,null,null,16,null,8.5,8.5,150]
[null,null,null,null,null,null,null,null,null,null,null,null,null,null,null,null,null,null,null,null,null,null,null,null,null,null,null,null,null,null,null,null,null,null,null,null,null,null,null,null,null,null,null,null,null,null,null,null,null,null,null,null,null,null,null,null,null,3,"Heat Pump (Air Cooled)","Split (3 Phase)",3,0,65000,null,14,null,8.1999999999999993,8.1999999999999993,null,null,16,null,8.5,8.5,105,null,16,null,9.1999999999999993,9.1999999999999993,150]
[null,null,null,null,null,null,null,null,null,null,null,null,null,null,null,null,null,null,null,null,null,null,null,null,null,null,null,null,null,null,null,null,null,null,null,null,null,null,null,null,null,null,null,null,null,null,null,null,null,null,null,null,null,null,null,null,null,4,"Heat Pump (Air Cooled)","Package (3 Phase)",3,0,65000,null,14,null,8,8,null,null,16,null,8.1999999999999993,8.1999999999999993,105,null,16,null,8.5,8.5,150]
[null,null,null,null,null,null,null,null,null,null,null,null,null,null,null,null,null,null,null,null,null,null,null,null,null,null,null,null,null,null,null,null,null,null,null,null,null,null,null,null,null,null,null,null,null,null,null,null,null,null,null,null,null,null,null,null,null,5,"Heat Pump (Air Cooled)","Split (3 Phase) Package (3 Phase)",3,65000,135000,10.8,null,13.9,3.4,2.25,null,10.8,null,14.6,3.4,2.4,105,null,null,null,null,null,150]
[null,null,null,null,null,null,null,null,null,null,null,null,null,null,null,null,null,null,null,null,null,null,null,null,null,null,null,null,null,null,null,null,null,null,null,null,null,null,null,null,null,null,null,null,null,null,null,null,null,null,null,null,null,null,null,null,null,6,"Heat Pump (Air Cooled)","Split (3 Phase) Package (3 Phase)",3,135000,240000,10.4,null,13.3,3.3,2.0499999999999998,null,10.4,null,13.8,3.3,2.1,105,null,null,null,null,null,150]
[null,null,null,null,null,null,null,null,null,null,null,null,null,null,null,null,null,null,null,null,null,null,null,null,null,null,null,null,null,null,null,null,null,null,null,null,null,null,null,null,null,null,null,null,null,null,null,null,null,null,null,null,null,null,null,null,null,7,"Heat Pump (Air Cooled)","Split (3 Phase) Package (3 Phase)",3,240000,10000000,9.3000000000000007,null,12.3,3.2,2.0499999999999998,null,9.3000000000000007,null,12.8,3.3,2.1,105,null,null,null,null,null,150]
[null,null,null,null,null,null,null,null,null,null,null,null,null,null,null,null,null,null,null,null,null,null,null,null,null,null,null,null,null,null,null,null,null,null,null,null,null,null,null,null,null,null,null,null,null,null,null,null,null,null,null,null,null,null,null,null,null,8,"Heat Pump (Water Cooled)",null,null,0,17000,12.2,null,{"$f":"BL78*1.15","v":14.029999999999998},4.3,4.3,null,null,null,null,null,null,null,14,null,null,4.5999999999999996,4.5999999999999996,100]
[null,null,null,null,null,null,null,null,null,null,null,null,null,null,null,null,null,null,null,null,null,null,null,null,null,null,null,null,null,null,null,null,null,null,null,null,null,null,null,null,null,null,null,null,null,null,null,null,null,null,null,null,null,null,null,null,null,9,"Heat Pump (Water Cooled)",null,null,17000,65000,13,null,{"$f":"BL79*1.15","v":14.95},4.3,4.3,null,null,null,null,null,null,null,14,null,null,4.5999999999999996,4.5999999999999996,100]
[null,null,null,null,null,null,null,null,null,null,null,null,null,null,null,null,null,null,null,null,null,null,null,null,null,null,null,null,null,null,null,null,null,null,null,null,null,null,null,null,null,null,null,null,null,null,null,null,null,null,null,null,null,null,null,null,null,10,"Heat Pump (Water Cooled)",null,null,65000,135000,13,null,{"$f":"BL80*1.15","v":14.95},4.3,4.3,null,null,null,null,null,null,null,14,null,null,4.5999999999999996,4.5999999999999996,100]
[null,null,null,null,null,null,null,null,null,null,null,null,null,null,null,null,null,null,null,null,null,null,null,null,null,null,null,null,null,null,null,null,null,null,null,null,null,null,null,null,null,null,null,null,null,null,null,null,null,null,null,null,null,null,null,null,null,11,"Unitary AC (Air Cooled)","Split (1 Phase)",1,0,45000,11,13,null,null,null,null,null,null,null,null,null,null,11,16,null,null,null,235,11,18,null,null,null,375]
[null,null,null,null,null,null,null,null,null,null,null,null,null,null,null,null,null,null,null,null,null,null,null,null,null,null,null,null,null,null,null,null,null,null,null,null,null,null,null,null,null,null,null,null,null,null,null,null,null,null,null,null,null,null,null,null,null,12,"Unitary AC (Air Cooled)","Split (1 Phase)",1,45000,65000,11,13,null,null,null,null,null,null,null,null,null,null,11,16,null,null,null,235,11,18,null,null,null,375]
[null,null,null,null,null,null,null,null,null,null,null,null,null,null,null,null,null,null,null,null,null,null,null,null,null,null,null,null,null,null,null,null,null,null,null,null,null,null,null,null,null,null,null,null,null,null,null,null,null,null,null,null,null,null,null,null,null,13,"Unitary AC (Air Cooled)","Package (1 Phase)",1,0,65000,11,14,null,null,null,null,null,null,null,null,null,null,10000,10000,null,null,null,235,10000,10000]
[null,null,null,null,null,null,null,null,null,null,null,null,null,null,null,null,null,null,null,null,null,null,null,null,null,null,null,null,null,null,null,null,null,null,null,null,null,null,null,null,null,null,null,null,null,null,null,null,null,null,null,null,null,null,null,null,null,14,"Unitary AC (Air Cooled)","Split (3 Phase)",3,0,65000,11,13,null,null,null,null,null,null,null,null,null,null,11,16,null,null,null,175,11,18,null,null,null,375]
[null,null,null,null,null,null,null,null,null,null,null,null,null,null,null,null,null,null,null,null,null,null,null,null,null,null,null,null,null,null,null,null,null,null,null,null,null,null,null,null,null,null,null,null,null,null,null,null,null,null,null,null,null,null,null,null,null,15,"Unitary AC (Air Cooled)","Package (3 Phase)",3,0,65000,11,14,null,null,null,null,null,null,null,null,null,null,10000,10000,null,null,null,175,10000,10000]
[null,null,null,null,null,null,null,null,null,null,null,null,null,null,null,null,null,null,null,null,null,null,null,null,null,null,null,null,null,null,null,null,null,null,null,null,null,null,null,null,null,null,null,null,null,null,null,null,null,null,null,null,null,null,null,null,null,16,"Unitary AC (Air Cooled)","Split (3 Phase)",3,65000,135000,11,10000,14.6,null,null,null,null,null,null,null,null,null,11,null,16.100000000000001,null,null,150,11,null,17.8,null,null,300]
[null,null,null,null,null,null,null,null,null,null,null,null,null,null,null,null,null,null,null,null,null,null,null,null,null,null,null,null,null,null,null,null,null,null,null,null,null,null,null,null,null,null,null,null,null,null,null,null,null,null,null,null,null,null,null,null,null,17,"Unitary AC (Air Cooled)","Split (3 Phase) Package (3 Phase)",3,135000,240000,10.8,10000,14,null,null,null,null,null,null,null,null,null,10.8,null,15.4,null,null,125,10.8,null,16.8,null,null,205]
[null,null,null,null,null,null,null,null,null,null,null,null,null,null,null,null,null,null,null,null,null,null,null,null,null,null,null,null,null,null,null,null,null,null,null,null,null,null,null,null,null,null,null,null,null,null,null,null,null,null,null,null,null,null,null,null,null,18,"Unitary AC (Air Cooled)","Split (3 Phase) Package (3 Phase)",3,240000,760000,9.8000000000000007,10000,13,null,null,null,null,null,null,null,null,null,9.8000000000000007,null,14.3,null,null,95,9.8000000000000007,null,15.6,null,null,185]
[null,null,null,null,null,null,null,null,null,null,null,null,null,null,null,null,null,null,null,null,null,null,null,null,null,null,null,null,null,null,null,null,null,null,null,null,null,null,null,null,null,null,null,null,null,null,null,null,null,null,null,null,null,null,null,null,null,19,"Unitary AC (Air Cooled)","Split (3 Phase) Package (3 Phase)",3,760000,10000000,9.5,10000,11,null,null,null,null,null,null,null,null,null,9.5,null,13.6,null,null,160,9.5,null,14.9]
[null,null,null,null,null,null,null,null,null,null,null,null,null,null,null,null,null,null,null,null,null,null,null,null,null,null,null,null,null,null,null,null,null,null,null,null,null,null,null,null,null,null,null,null,null,null,null,null,null,null,null,null,null,null,null,null,null,20,"Ground-Source Heat Pump",null,null,0,10000000,14.1,null,{"$f":"BL90*1.15","v":16.215},3.2,3.2,null,null,null,null,null,null,null,17.100000000000001,null,null,3.6,3.6,150]
[null,null,null,null,null,null,null,null,null,null,null,null,null,null,null,null,null,null,null,null,null,null,null,null,null,null,null,null,null,null,null,null,null,null,null,null,null,null,null,null,null,null,null,null,null,null,null,null,null,null,null,null,null,null,null,null,null,21,"Groundwater Source Heat Pump",null,null,0,10000000,18,null,{"$f":"BL91*1.15","v":20.7},3.7,3.7,null,null,null,null,null,null,null,21.1,null,null,4.0999999999999996,4.0999999999999996,150]
[null,null,null,null,null,null,null,null,null,null,null,null,null,null,null,null,null,null,null,null,null,null,null,null,null,null,null,null,null,null,null,null,null,null,null,null,null,null,null,null,null,null,null,null,null,null,null,null,null,null,null,null,null,null,null,null,null,22,"Unitary AC (Water Cooled)","Split (1 Phase)",1,0,65000,12.1,null,12.3,null,null,null,null,null,null,null,null,null,14,null,null,null,null,100]
[null,null,null,null,null,null,null,null,null,null,null,null,null,null,null,null,null,null,null,null,null,null,null,null,null,null,null,null,null,null,null,null,null,null,null,null,null,null,null,null,null,null,null,null,null,null,null,null,null,null,null,null,null,null,null,null,null,23,"Unitary AC (Water Cooled)","Package (1 Phase)",1,0,65000,12.1,null,12.3,null,null,null,null,null,null,null,null,null,14,null,null,null,null,100]
[null,null,null,null,null,null,null,null,null,null,null,null,null,null,null,null,null,null,null,null,null,null,null,null,null,null,null,null,null,null,null,null,null,null,null,null,null,null,null,null,null,null,null,null,null,null,null,null,null,null,null,null,null,null,null,null,null,24,"Unitary AC (Water Cooled)","Split (3 Phase)",3,0,65000,12.1,null,12.3,null,null,null,null,null,null,null,null,null,14,null,null,null,null,100]
[null,null,null,null,null,null,null,null,null,null,null,null,null,null,null,null,null,null,null,null,null,null,null,null,null,null,null,null,null,null,null,null,null,null,null,null,null,null,null,null,null,null,null,null,null,null,null,null,null,null,null,null,null,null,null,null,null,25,"Unitary AC (Water Cooled)","Package (3 Phase)",3,0,65000,12.1,null,12.3,null,null,null,null,null,null,null,null,null,14,null,null,null,null,100]
[null,null,null,null,null,null,null,null,null,null,null,null,null,null,null,null,null,null,null,null,null,null,null,null,null,null,null,null,null,null,null,null,null,null,null,null,null,null,null,null,null,null,null,null,null,null,null,null,null,null,null,null,null,null,null,null,null,26,"Unitary AC (Water Cooled)","Split (3 Phase) Package (3 Phase)",3,65000,135000,11.9,10000,13.7,null,null,null,null,null,null,null,null,null,11.9,null,15.1,null,null,100]
[null,null,null,null,null,null,null,null,null,null,null,null,null,null,null,null,null,null,null,null,null,null,null,null,null,null,null,null,null,null,null,null,null,null,null,null,null,null,null,null,null,null,null,null,null,null,null,null,null,null,null,null,null,null,null,null,null,27,"Unitary AC (Water Cooled)","Split (3 Phase) Package (3 Phase)",3,135000,240000,12.3,10000,13.7,null,null,null,null,null,null,null,null,null,12.3,null,14.6,null,null,100]
[null,null,null,null,null,null,null,null,null,null,null,null,null,null,null,null,null,null,null,null,null,null,null,null,null,null,null,null,null,null,null,null,null,null,null,null,null,null,null,null,null,null,null,null,null,null,null,null,null,null,null,null,null,null,null,null,null,28,"Unitary AC (Water Cooled)","Split (3 Phase) Package (3 Phase)",3,240000,760000,12.2,10000,13.4,null,null,null,null,null,null,null,null,null,12.3,null,14.6,null,null,100]
[null,null,null,null,null,null,null,null,null,null,null,null,null,null,null,null,null,null,null,null,null,null,null,null,null,null,null,null,null,null,null,null,null,null,null,null,null,null,null,null,null,null,null,null,null,null,null,null,null,null,null,null,null,null,null,null,null,29,"Unitary AC (Water Cooled)","Split (3 Phase) Package (3 Phase)",3,760000,10000000,12,10000,13.3,null,null,null,null,null,null,null,null,null,12.3,null,14.6,null,null,100]
[null,null,null,null,null,null,null,null,null,null,null,null,null,null,null,null,null,null,null,null,null,null,null,null,null,null,null,null,null,null,null,null,null,null,null,null,null,null,null,null,null,null,null,null,null,null,null,null,null,null,null,null,null,null,null,null,null,30,"Unitary AC (Evaporatively Cooled)","Split (1 Phase)",1,0,65000,12.1,null,12.3,null,null,null,null,null,null,null,null,null,14,null,null,null,null,100]
[null,null,null,null,null,null,null,null,null,null,null,null,null,null,null,null,null,null,null,null,null,null,null,null,null,null,null,null,null,null,null,null,null,null,null,null,null,null,null,null,null,null,null,null,null,null,null,null,null,null,null,null,null,null,null,null,null,31,"Unitary AC (Evaporatively Cooled)","Package (1 Phase)",1,0,65000,12.1,null,12.3,null,null,null,null,null,null,null,null,null,14,null,null,null,null,100]
[null,null,null,null,null,null,null,null,null,null,null,null,null,null,null,null,null,null,null,null,null,null,null,null,null,null,null,null,null,null,null,null,null,null,null,null,null,null,null,null,null,null,null,null,null,null,null,null,null,null,null,null,null,null,null,null,null,32,"Unitary AC (Evaporatively Cooled)","Split (3 Phase)",3,0,65000,12.1,null,12.3,null,null,null,null,null,null,null,null,null,14,null,null,null,null,100]
[null,null,null,null,null,null,null,null,null,null,null,null,null,null,null,null,null,null,null,null,null,null,null,null,null,null,null,null,null,null,null,null,null,null,null,null,null,null,null,null,null,null,null,null,null,null,null,null,null,null,null,null,null,null,null,null,null,33,"Unitary AC (Evaporatively Cooled)","Package (3 Phase)",3,0,65000,12.1,null,12.3,null,null,null,null,null,null,null,null,null,14,null,null,null,null,100]
[null,null,null,null,null,null,null,null,null,null,null,null,null,null,null,null,null,null,null,null,null,null,null,null,null,null,null,null,null,null,null,null,null,null,null,null,null,null,null,null,null,null,null,null,null,null,null,null,null,null,null,null,null,null,null,null,null,34,"Unitary AC (Evaporatively Cooled)","Split (3 Phase) Package (3 Phase)",3,65000,135000,11.9,10000,12.1,null,null,null,null,null,null,null,null,null,11.9,null,15.1,null,null,100]
[null,null,null,null,null,null,null,null,null,null,null,null,null,null,null,null,null,null,null,null,null,null,null,null,null,null,null,null,null,null,null,null,null,null,null,null,null,null,null,null,null,null,null,null,null,null,null,null,null,null,null,null,null,null,null,null,null,35,"Unitary AC (Evaporatively Cooled)","Split (3 Phase) Package (3 Phase)",3,135000,240000,11.8,10000,12,null,null,null,null,null,null,null,null,null,11.8,null,14.1,null,null,100]
[null,null,null,null,null,null,null,null,null,null,null,null,null,null,null,null,null,null,null,null,null,null,null,null,null,null,null,null,null,null,null,null,null,null,null,null,null,null,null,null,null,null,null,null,null,null,null,null,null,null,null,null,null,null,null,null,null,36,"Unitary AC (Evaporatively Cooled)","Split (3 Phase) Package (3 Phase)",3,240000,760000,11.7,10000,11.9,null,null,null,null,null,null,null,null,null,11.8,null,14.1,null,null,100]
[null,null,null,null,null,null,null,null,null,null,null,null,null,null,null,null,null,null,null,null,null,null,null,null,null,null,null,null,null,null,null,null,null,null,null,null,null,null,null,null,null,null,null,null,null,null,null,null,null,null,null,null,null,null,null,null,null,37,"Unitary AC (Evaporatively Cooled)","Split (3 Phase) Package (3 Phase)",3,760000,10000000,11.5,10000,11.7,null,null,null,null,null,null,null,null,null,11.8,null,14.1,null,null,100]
[null,null,null,null,null,null,null,null,null,null,null,null,null,null,null,null,null,null,null,null,null,null,null,null,null,null,null,null,null,null,null,null,null,null,null,null,null,null,null,null,null,null,null,null,null,null,null,null,null,null,null,null,null,null,null,null,null,38,"VRF HP (Air Cooled)","Multi-split System",null,0,65000,11,13,null,8.1999999999999993,7.7,null,null,null,null,null,null,null,null,null,null,null,null,null,1,15.2,null,8.6999999999999993,8.6999999999999993,535]
[null,null,null,null,null,null,null,null,null,null,null,null,null,null,null,null,null,null,null,null,null,null,null,null,null,null,null,null,null,null,null,null,null,null,null,null,null,null,null,null,null,null,null,null,null,null,null,null,null,null,null,null,null,null,null,null,null,39,"VRF HP (Air Cooled)","Multi-split w/Heat Recovery",null,0,65000,11,13,null,8.1999999999999993,7.7,null,null,null,null,null,null,null,null,null,null,null,null,null,1,15.2,null,8.6999999999999993,8.6999999999999993,535]
[null,null,null,null,null,null,null,null,null,null,null,null,null,null,null,null,null,null,null,null,null,null,null,null,null,null,null,null,null,null,null,null,null,null,null,null,null,null,null,null,null,null,null,null,null,null,null,null,null,null,null,null,null,null,null,null,null,40,"VRF HP (Air Cooled)","Multi-split System",null,65000,135000,11,10000,12.9,3.4,2.25,null,null,null,null,null,null,null,null,null,null,null,null,null,10.8,null,17,3.5,2.2999999999999998,535]
[null,null,null,null,null,null,null,null,null,null,null,null,null,null,null,null,null,null,null,null,null,null,null,null,null,null,null,null,null,null,null,null,null,null,null,null,null,null,null,null,null,null,null,null,null,null,null,null,null,null,null,null,null,null,null,null,null,41,"VRF HP (Air Cooled)","Multi-split w/Heat Recovery",null,65000,135000,10.8,10000,12.7,3.4,2.25,null,null,null,null,null,null,null,null,null,null,null,null,null,10.8,null,17,3.5,2.2999999999999998,775]
[null,null,null,null,null,null,null,null,null,null,null,null,null,null,null,null,null,null,null,null,null,null,null,null,null,null,null,null,null,null,null,null,null,null,null,null,null,null,null,null,null,null,null,null,null,null,null,null,null,null,null,null,null,null,null,null,null,42,"VRF HP (Air Cooled)","Multi-split System",null,135000,240000,10.6,10000,12.3,3.3,2.0499999999999998,null,null,null,null,null,null,null,null,null,null,null,null,null,10.4,null,16.399999999999999,3.4,2.1,560]
[null,null,null,null,null,null,null,null,null,null,null,null,null,null,null,null,null,null,null,null,null,null,null,null,null,null,null,null,null,null,null,null,null,null,null,null,null,null,null,null,null,null,null,null,null,null,null,null,null,null,null,null,null,null,null,null,null,43,"VRF HP (Air Cooled)","Multi-split w/Heat Recovery",null,135000,240000,10.4,10000,12.1,3.3,2.0499999999999998,null,null,null,null,null,null,null,null,null,null,null,null,null,10.4,null,16.399999999999999,3.4,2.1,735]
[null,null,null,null,null,null,null,null,null,null,null,null,null,null,null,null,null,null,null,null,null,null,null,null,null,null,null,null,null,null,null,null,null,null,null,null,null,null,null,null,null,null,null,null,null,null,null,null,null,null,null,null,null,null,null,null,null,44,"VRF HP (Air Cooled)","Multi-split System",null,240000,10000000,9.5,10000,11,3.2,2.0499999999999998,null,null,null,null,null,null,null,null,null,null,null,null,null,9.3000000000000007,null,15.3,3.3,2.1,525]
[null,null,null,null,null,null,null,null,null,null,null,null,null,null,null,null,null,null,null,null,null,null,null,null,null,null,null,null,null,null,null,null,null,null,null,null,null,null,null,null,null,null,null,null,null,null,null,null,null,null,null,null,null,null,null,null,null,45,"VRF HP (Air Cooled)","Multi-split w/Heat Recovery",null,240000,10000000,9.3000000000000007,10000,10.8,3.2,2.0499999999999998,null,null,null,null,null,null,null,null,null,null,null,null,null,9.3000000000000007,null,15.3,3.3,2.1,800]
[null,null,null,null,null,null,null,null,null,null,null,null,null,null,null,null,null,null,null,null,null,null,null,null,null,null,null,null,null,null,null,null,null,null,null,null,null,null,null,null,null,null,null,null,null,null,null,null,null,null,null,null,null,null,null,null,null,46,"VRF HP (Water Source)","Multi-split System",null,0,760000,12,null,{"$f":"BL116*1.15","v":13.799999999999999},4.3,4.2,null,null,null,null,null,null,null,null,null,null,null,null,null,14,null,null,4.5999999999999996,4.5999999999999996,535]
[null,null,null,null,null,null,null,null,null,null,null,null,null,null,null,null,null,null,null,null,null,null,null,null,null,null,null,null,null,null,null,null,null,null,null,null,null,null,null,null,null,null,null,null,null,null,null,null,null,null,null,null,null,null,null,null,null,47,"VRF HP (Water Source)","Multi-split w/Heat Recovery",null,0,760000,11.8,null,{"$f":"BL117*1.15","v":13.57},4.3,4.2,null,null,null,null,null,null,null,null,null,null,null,null,null,13.8,null,null,4.5999999999999996,4.5999999999999996,775]
[null,null,null,null,null,null,null,null,null,null,null,null,null,null,null,null,null,null,null,null,null,null,null,null,null,null,null,null,null,null,null,null,null,null,null,null,null,null,null,null,null,null,null,null,null,null,null,null,null,null,null,null,null,null,null,null,null,48]
[null,null,null,null,null,null,null,null,null,null,null,null,null,null,null,null,null,null,null,null,null,null,null,null,null,null,null,null,null,null,null,null,null,null,null,null,null,null,null,null,null,null,null,null,null,null,null,null,null,null,null,null,null,null,null,null,null,49]
[null,null,null,null,null,null,null,null,null,null,null,null,null,null,null,null,null,null,null,null,null,null,null,null,null,null,null,null,null,null,null,null,null,null,null,null,null,null,null,null,null,null,null,null,null,null,null,null,null,null,null,null,null,null,null,null,null,50]
[null,null,null,null,null,null,null,null,null,null,null,null,null,null,null,null,null,null,null,null,null,null,null,null,null,null,null,null,null,null,null,null,null,null,null,null,null,null,null,null,null,null,null,null,null,null,null,null,null,null,null,null,null,null,null,null,null,51]
[null,null,null,null,null,null,null,null,null,null,null,null,null,null,null,null,null,null,null,null,null,null,null,null,null,null,null,null,null,null,null,null,null,null,null,null,null,null,null,null,null,null,null,null,null,null,null,null,null,null,null,null,null,null,null,null,null,52]
[null,null,null,null,null,null,null,null,null,null,null,null,null,null,null,null,null,null,null,null,null,null,null,null,null,null,null,null,null,null,null,null,null,null,null,null,null,null,null,null,null,null,null,null,null,null,null,null,null,null,null,null,null,null,null,null,null,53]
[null,null,null,null,null,null,null,null,null,null,null,null,null,null,null,null,null,null,null,null,null,null,null,null,null,null,null,null,null,null,null,null,null,null,null,null,null,null,null,null,null,null,null,null,null,null,null,null,null,null,null,null,null,null,null,null,null,54]
[]
[null,null,null,null,null,null,null,null,null,null,null,null,null,null,null,null,null,null,null,null,null,null,null,null,null,null,null,null,null,null,null,null,null,null,null,null,null,null,null,null,null,null,null,null,null,null,null,null,null,null,null,null,null,null,null,null,null,null,null,null,null,null,null,"WA",null,null,null,null,null,"Code","EFLCH","EFLHH","NTG","CF","Cooling Months","Defined in Fed Code","Estimation","Defined in Code",null,"PTAC Calcs from Deemed Savings",null,"Cost","kW/Unit","Gross kWh/yr","$/ton"]
[null,null,null,null,null,null,null,null,null,null,null,null,null,null,null,null,null,null,null,null,null,null,null,null,null,null,null,null,null,null,null,null,null,null,null,null,null,null,null,null,null,null,null,null,null,null,null,null,null,null,null,null,null,null,null,null,null,null,null,null,null,null,null,null,null,null,null,null,null,"WSEC 2018, Tables C403.2.3(1)A, C403.2.3(1)D, C403.2.3(2)",710.21,2201,1,1,5,null,"Not Used","Existing in Program",null,null,null,200,9.8000000000000004E-2,377,50]
[null,null,null,null,null,null,null,null,null,null,null,null,null,null,null,null,null,null,null,null,null,null,null,null,null,null,null,null,null,null,null,null,null,null,null,null,null,null,null,null,null,null,null,null,null,null,null,null,null,null,null,null,null,null,null,null,null,null,null,null,null,null,null,"Baseline",null,null,null,null,null,"Tier",1,null,31,"per ton",null,"Tier",2,null,62,{"$f":"BV128","v":"per ton"},null,"Tier",3,null,93,{"$f":"CB128","v":"per ton"}]
[null,null,null,null,null,null,null,null,null,null,null,null,null,null,null,null,null,null,null,null,null,null,null,null,null,null,null,null,null,null,null,null,null,null,null,null,null,null,null,null,null,null,null,null,null,null,null,null,null,null,null,null,null,null,null,null,null,null,null,null,null,null,null,"Cooling",null,null,"Heating",null,null,"Cooling",null,null,"Heating",null,"Gross Incremental Cost/Ton","Cooling",null,null,"Heating",null,"Gross Incremental Cost/Ton","Cooling",null,null,"Heating",null,"Gross Incremental Cost/Ton"]
[null,null,null,null,null,null,null,null,null,null,null,null,null,null,null,null,null,null,null,null,null,null,null,null,null,null,null,null,null,null,null,null,null,null,null,null,null,null,null,null,null,null,null,null,null,null,null,null,null,null,null,null,null,null,null,null,null,null,null,null,null,null,null,"EER","SEER IPLV","IEER","HSPF COP @ DB/WB",null,null,"EER","SEER IPLV","IEER","HSPF COP @ DB/WB",null,null,"EER","SEER IPLV","IEER","HSPF COP @ DB/WB",null,null,"EER","SEER IPLV","IEER","HSPF COP @ DB/WB"]
[null,null,null,null,null,null,null,null,null,null,null,null,null,null,null,null,null,null,null,null,null,null,null,null,null,null,null,null,null,null,null,null,null,null,null,null,null,null,null,null,null,null,null,null,null,null,null,null,null,null,null,null,null,null,null,null,null,null,"Equip Type","Category","Phase","Min (>=)","Max (<)",null,null,null,"47/43","17/15",null,null,null,null,"47/43","17/15",null,null,null,null,"47/43","17/15",null,null,null,null,"47/43","17/15"]
[null,null,null,null,null,null,null,null,null,null,null,null,null,null,null,null,null,null,null,null,null,null,null,null,null,null,null,null,null,null,null,null,null,null,null,null,null,null,null,null,null,null,null,null,null,null,null,null,null,null,null,null,null,null,null,null,null,1,"Heat Pump (Air Cooled)","Split (1 Phase)",1,0,65000,null,14,null,8.1999999999999993,8.1999999999999993,null,null,15,null,8.5,8.5,105,12.1,16,null,9.1999999999999993,9.1999999999999993,450]
[null,null,null,null,null,null,null,null,null,null,null,null,null,null,null,null,null,null,null,null,null,null,null,null,null,null,null,null,null,null,null,null,null,null,null,null,null,null,null,null,null,null,null,null,null,null,null,null,null,null,null,null,null,null,null,null,null,2,"Heat Pump (Air Cooled)","Package (1 Phase)",1,0,65000,null,14,null,8,8,null,null,15,null,8.1999999999999993,8.1999999999999993,105,11,16,null,8.5,8.5,450]
[null,null,null,null,null,null,null,null,null,null,null,null,null,null,null,null,null,null,null,null,null,null,null,null,null,null,null,null,null,null,null,null,null,null,null,null,null,null,null,null,null,null,null,null,null,null,null,null,null,null,null,null,null,null,null,null,null,3,"Heat Pump (Air Cooled)","Split (3 Phase)",3,0,65000,null,14,null,8.1999999999999993,8.1999999999999993,null,null,15,null,8.5,8.5,105,12.1,16,null,9.1999999999999993,9.1999999999999993,150]
[null,null,null,null,null,null,null,null,null,null,null,null,null,null,null,null,null,null,null,null,null,null,null,null,null,null,null,null,null,null,null,null,null,null,null,null,null,null,null,null,null,null,null,null,null,null,null,null,null,null,null,null,null,null,null,null,null,4,"Heat Pump (Air Cooled)","Package (3 Phase)",3,0,65000,null,14,null,8,8,null,null,15,null,8.1999999999999993,8.1999999999999993,105,11,16,null,8.5,8.5,150]
[null,null,null,null,null,null,null,null,null,null,null,null,null,null,null,null,null,null,null,null,null,null,null,null,null,null,null,null,null,null,null,null,null,null,null,null,null,null,null,null,null,null,null,null,null,null,null,null,null,null,null,null,null,null,null,null,null,5,"Heat Pump (Air Cooled)","Split (1 Phase) Package (1 Phase) Split (3 Phase) Package (3 Phase)",3,65000,135000,10.8,null,13.9,3.4,2.25,null,null,null,null,null,null,105,11.6,null,15.1,3.5,2.4,150]
[null,null,null,null,null,null,null,null,null,null,null,null,null,null,null,null,null,null,null,null,null,null,null,null,null,null,null,null,null,null,null,null,null,null,null,null,null,null,null,null,null,null,null,null,null,null,null,null,null,null,null,null,null,null,null,null,null,6,"Heat Pump (Air Cooled)","Split (1 Phase) Package (1 Phase) Split (3 Phase) Package (3 Phase)",3,135000,240000,10.4,null,13.3,3.3,2.0499999999999998,null,null,null,null,null,null,105,10.9,null,14.3,3.4,2.1,150]
[null,null,null,null,null,null,null,null,null,null,null,null,null,null,null,null,null,null,null,null,null,null,null,null,null,null,null,null,null,null,null,null,null,null,null,null,null,null,null,null,null,null,null,null,null,null,null,null,null,null,null,null,null,null,null,null,null,7,"Heat Pump (Air Cooled)","Split (1 Phase) Package (1 Phase) Split (3 Phase) Package (3 Phase)",3,240000,760000,9.3000000000000007,null,12.3,3.2,2.0499999999999998,null,null,null,null,null,null,105,null,null,null,null,null,150]
[null,null,null,null,null,null,null,null,null,null,null,null,null,null,null,null,null,null,null,null,null,null,null,null,null,null,null,null,null,null,null,null,null,null,null,null,null,null,null,null,null,null,null,null,null,null,null,null,null,null,null,null,null,null,null,null,null,8,"Heat Pump (Air Cooled, Replacing Electric Resistance)","Split (1 Phase)",1,0,65000,null,14,null,8.1999999999999993,8.1999999999999993,null,null,15,null,8.5,8.5,105,null,16,null,9,9,450]
[null,null,null,null,null,null,null,null,null,null,null,null,null,null,null,null,null,null,null,null,null,null,null,null,null,null,null,null,null,null,null,null,null,null,null,null,null,null,null,null,null,null,null,null,null,null,null,null,null,null,null,null,null,null,null,null,null,9,"Heat Pump (Air Cooled, Replacing Electric Resistance)","Package (1 Phase)",1,0,65000,null,14,null,8,8,null,null,15,null,8.1999999999999993,8.1999999999999993,105,null,16,null,8.1999999999999993,8.1999999999999993,450]
[null,null,null,null,null,null,null,null,null,null,null,null,null,null,null,null,null,null,null,null,null,null,null,null,null,null,null,null,null,null,null,null,null,null,null,null,null,null,null,null,null,null,null,null,null,null,null,null,null,null,null,null,null,null,null,null,null,10,"Heat Pump (Air Cooled, Replacing Electric Resistance)","Split (3 Phase)",3,0,65000,null,14,null,8.1999999999999993,8.1999999999999993,null,null,15,null,8.5,8.5,105,null,16,null,9,9,150]
[null,null,null,null,null,null,null,null,null,null,null,null,null,null,null,null,null,null,null,null,null,null,null,null,null,null,null,null,null,null,null,null,null,null,null,null,null,null,null,null,null,null,null,null,null,null,null,null,null,null,null,null,null,null,null,null,null,11,"Heat Pump (Air Cooled, Replacing Electric Resistance)","Package (3 Phase)",3,0,65000,null,14,null,8,8,null,null,15,null,8.1999999999999993,8.1999999999999993,105,null,16,null,8.1999999999999993,8.1999999999999993,150]
[null,null,null,null,null,null,null,null,null,null,null,null,null,null,null,null,null,null,null,null,null,null,null,null,null,null,null,null,null,null,null,null,null,null,null,null,null,null,null,null,null,null,null,null,null,null,null,null,null,null,null,null,null,null,null,null,null,12,"Heat Pump (Air Cooled, Replacing Electric Resistance)","Split (1 Phase) Package (1 Phase) Split (3 Phase) Package (3 Phase)",3,65000,135000,null,null,13.9,3.4,2.25,null,null,null,null,null,null,105,11.8,null,15.3,3.5,2.4,150]
[null,null,null,null,null,null,null,null,null,null,null,null,null,null,null,null,null,null,null,null,null,null,null,null,null,null,null,null,null,null,null,null,null,null,null,null,null,null,null,null,null,null,null,null,null,null,null,null,null,null,null,null,null,null,null,null,null,13,"Heat Pump (Air Cooled, Replacing Electric Resistance)","Split (1 Phase) Package (1 Phase) Split (3 Phase) Package (3 Phase)",3,135000,240000,null,null,13.3,3.3,2.0499999999999998,null,null,null,null,null,null,105,11.1,null,14.5,3.4,2.1,150]
[null,null,null,null,null,null,null,null,null,null,null,null,null,null,null,null,null,null,null,null,null,null,null,null,null,null,null,null,null,null,null,null,null,null,null,null,null,null,null,null,null,null,null,null,null,null,null,null,null,null,null,null,null,null,null,null,null,14,"Heat Pump (Air Cooled, Replacing Electric Resistance)","Split (1 Phase) Package (1 Phase) Split (3 Phase) Package (3 Phase)",3,240000,760000,null,null,12.3,3.2,2.0499999999999998,null,null,null,null,null,null,105,null,null,null,null,null,150]
[null,null,null,null,null,null,null,null,null,null,null,null,null,null,null,null,null,null,null,null,null,null,null,null,null,null,null,null,null,null,null,null,null,null,null,null,null,null,null,null,null,null,null,null,null,null,null,null,null,null,null,null,null,null,null,null,null,15,"Heat Pump (Water Cooled)",null,null,0,17000,12.2,null,{"$f":"BL146*1.15","v":14.029999999999998},4.3,4.3,null,null,null,null,null,null,null,14,null,null,4.5999999999999996,4.5999999999999996,100]
[null,null,null,null,null,null,null,null,null,null,null,null,null,null,null,null,null,null,null,null,null,null,null,null,null,null,null,null,null,null,null,null,null,null,null,null,null,null,null,null,null,null,null,null,null,null,null,null,null,null,null,null,null,null,null,null,null,16,"Heat Pump (Water Cooled)",null,null,17000,65000,13,null,{"$f":"BL147*1.15","v":14.95},4.3,4.3,null,null,null,null,null,null,null,14,null,null,4.5999999999999996,4.5999999999999996,100]
[null,null,null,null,null,null,null,null,null,null,null,null,null,null,null,null,null,null,null,null,null,null,null,null,null,null,null,null,null,null,null,null,null,null,null,null,null,null,null,null,null,null,null,null,null,null,null,null,null,null,null,null,null,null,null,null,null,17,"Heat Pump (Water Cooled)",null,null,65000,135000,13,null,{"$f":"BL148*1.15","v":14.95},4.3,4.3,null,null,null,null,null,null,null,14,null,null,4.5999999999999996,4.5999999999999996,100]
[null,null,null,null,null,null,null,null,null,null,null,null,null,null,null,null,null,null,null,null,null,null,null,null,null,null,null,null,null,null,null,null,null,null,null,null,null,null,null,null,null,null,null,null,null,null,null,null,null,null,null,null,null,null,null,null,null,18,"Unitary AC (Air Cooled)","Split (1 Phase)",1,0,45000,null,13,null,null,null,null,null,null,null,null,null,null,null,16,null,null,null,375,null,18,null,null,null,400]
[null,null,null,null,null,null,null,null,null,null,null,null,null,null,null,null,null,null,null,null,null,null,null,null,null,null,null,null,null,null,null,null,null,null,null,null,null,null,null,null,null,null,null,null,null,null,null,null,null,null,null,null,null,null,null,null,null,19,"Unitary AC (Air Cooled)","Split (1 Phase)",1,45000,65000,null,13,null,null,null,null,null,null,null,null,null,null,null,16,null,null,null,375,null,18,null,null,null,400]
[null,null,null,null,null,null,null,null,null,null,null,null,null,null,null,null,null,null,null,null,null,null,null,null,null,null,null,null,null,null,null,null,null,null,null,null,null,null,null,null,null,null,null,null,null,null,null,null,null,null,null,null,null,null,null,null,null,20,"Unitary AC (Air Cooled)","Package (1 Phase)",1,0,65000,null,14,null,null,null,null,null,null,null,null,null,null,null,16,null,null,null,375,null,17,null,null,null,400]
[null,null,null,null,null,null,null,null,null,null,null,null,null,null,null,null,null,null,null,null,null,null,null,null,null,null,null,null,null,null,null,null,null,null,null,null,null,null,null,null,null,null,null,null,null,null,null,null,null,null,null,null,null,null,null,null,null,21,"Unitary AC (Air Cooled)","Split (3 Phase)",3,0,65000,null,13,null,null,null,null,null,null,null,null,null,null,null,16,null,null,null,175,null,18,null,null,null,375]
[null,null,null,null,null,null,null,null,null,null,null,null,null,null,null,null,null,null,null,null,null,null,null,null,null,null,null,null,null,null,null,null,null,null,null,null,null,null,null,null,null,null,null,null,null,null,null,null,null,null,null,null,null,null,null,null,null,22,"Unitary AC (Air Cooled)","Package (3 Phase)",3,0,65000,null,14,null,null,null,null,null,null,null,null,null,null,null,16,null,null,null,175,null,17,null,null,null,375]
[null,null,null,null,null,null,null,null,null,null,null,null,null,null,null,null,null,null,null,null,null,null,null,null,null,null,null,null,null,null,null,null,null,null,null,null,null,null,null,null,null,null,null,null,null,null,null,null,null,null,null,null,null,null,null,null,null,23,"Unitary AC (Air Cooled)","Split (3 Phase) Package (3 Phase)",3,65000,135000,11.2,null,14.6,null,null,null,null,null,null,null,null,null,null,null,null,null,null,150,11,null,17.8,null,null,300]
[null,null,null,null,null,null,null,null,null,null,null,null,null,null,null,null,null,null,null,null,null,null,null,null,null,null,null,null,null,null,null,null,null,null,null,null,null,null,null,null,null,null,null,null,null,null,null,null,null,null,null,null,null,null,null,null,null,24,"Unitary AC (Air Cooled)","Split (3 Phase) Package (3 Phase)",3,135000,240000,11,null,14,null,null,null,null,null,null,null,null,null,null,null,null,null,null,125,10.8,null,16.8,null,null,205]
[null,null,null,null,null,null,null,null,null,null,null,null,null,null,null,null,null,null,null,null,null,null,null,null,null,null,null,null,null,null,null,null,null,null,null,null,null,null,null,null,null,null,null,null,null,null,null,null,null,null,null,null,null,null,null,null,null,25,"Unitary AC (Air Cooled)","Split (3 Phase) Package (3 Phase)",3,240000,760000,10,null,13,null,null,null,null,null,null,null,null,null,null,null,null,null,null,150,9.8000000000000007,null,14.3,null,null,185]
[null,null,null,null,null,null,null,null,null,null,null,null,null,null,null,null,null,null,null,null,null,null,null,null,null,null,null,null,null,null,null,null,null,null,null,null,null,null,null,null,null,null,null,null,null,null,null,null,null,null,null,null,null,null,null,null,null,26,"Unitary AC (Air Cooled)","Split (3 Phase) Package (3 Phase)",3,760000,10000000,9.6999999999999993,null,11,null,null,null,null,null,null,null,null,null,null,null,null,null,null,75]
[null,null,null,null,null,null,null,null,null,null,null,null,null,null,null,null,null,null,null,null,null,null,null,null,null,null,null,null,null,null,null,null,null,null,null,null,null,null,null,null,null,null,null,null,null,null,null,null,null,null,null,null,null,null,null,null,null,27,"Ground-Source Heat Pump",null,null,0,10000000,14.1,null,{"$f":"BL158*1.15","v":16.215},3.2,3.2,null,null,null,null,null,null,null,17.100000000000001,null,null,3.6,3.6,100]
[null,null,null,null,null,null,null,null,null,null,null,null,null,null,null,null,null,null,null,null,null,null,null,null,null,null,null,null,null,null,null,null,null,null,null,null,null,null,null,null,null,null,null,null,null,null,null,null,null,null,null,null,null,null,null,null,null,28,"Groundwater Source Heat Pump",null,null,0,10000000,18,null,{"$f":"BL159*1.15","v":20.7},3.7,3.7,null,null,null,null,null,null,null,21.1,null,null,4.0999999999999996,4.0999999999999996,100]
[null,null,null,null,null,null,null,null,null,null,null,null,null,null,null,null,null,null,null,null,null,null,null,null,null,null,null,null,null,null,null,null,null,null,null,null,null,null,null,null,null,null,null,null,null,null,null,null,null,null,null,null,null,null,null,null,null,29,"Unitary AC (Water Cooled)","Split (1 Phase)",1,0,65000,12.1,null,12.3,null,null,null,14,null,12.3,null,null,100]
[null,null,null,null,null,null,null,null,null,null,null,null,null,null,null,null,null,null,null,null,null,null,null,null,null,null,null,null,null,null,null,null,null,null,null,null,null,null,null,null,null,null,null,null,null,null,null,null,null,null,null,null,null,null,null,null,null,30,"Unitary AC (Water Cooled)","Package (1 Phase)",1,0,65000,12.1,null,12.3,null,null,null,14,null,12.3,null,null,100]
[null,null,null,null,null,null,null,null,null,null,null,null,null,null,null,null,null,null,null,null,null,null,null,null,null,null,null,null,null,null,null,null,null,null,null,null,null,null,null,null,null,null,null,null,null,null,null,null,null,null,null,null,null,null,null,null,null,31,"Unitary AC (Water Cooled)","Split (3 Phase)",3,0,65000,12.1,null,12.3,null,null,null,14,null,12.3,null,null,100]
[null,null,null,null,null,null,null,null,null,null,null,null,null,null,null,null,null,null,null,null,null,null,null,null,null,null,null,null,null,null,null,null,null,null,null,null,null,null,null,null,null,null,null,null,null,null,null,null,null,null,null,null,null,null,null,null,null,32,"Unitary AC (Water Cooled)","Package (3 Phase)",3,0,65000,12.1,null,12.3,null,null,null,14,null,12.3,null,null,100]
[null,null,null,null,null,null,null,null,null,null,null,null,null,null,null,null,null,null,null,null,null,null,null,null,null,null,null,null,null,null,null,null,null,null,null,null,null,null,null,null,null,null,null,null,null,null,null,null,null,null,null,null,null,null,null,null,null,33,"Unitary AC (Water Cooled)","Split (3 Phase) Package (3 Phase)",3,65000,135000,12.1,null,13.9,null,null,null,11.9,null,15.1,null,null,100]
[null,null,null,null,null,null,null,null,null,null,null,null,null,null,null,null,null,null,null,null,null,null,null,null,null,null,null,null,null,null,null,null,null,null,null,null,null,null,null,null,null,null,null,null,null,null,null,null,null,null,null,null,null,null,null,null,null,34,"Unitary AC (Water Cooled)","Split (3 Phase) Package (3 Phase)",3,135000,240000,12.5,null,13.9,null,null,null,12.3,null,14.6,null,null,100]
[null,null,null,null,null,null,null,null,null,null,null,null,null,null,null,null,null,null,null,null,null,null,null,null,null,null,null,null,null,null,null,null,null,null,null,null,null,null,null,null,null,null,null,null,null,null,null,null,null,null,null,null,null,null,null,null,null,35,"Unitary AC (Water Cooled)","Split (3 Phase) Package (3 Phase)",3,240000,760000,12.4,null,13.6,null,null,null,12.3,null,14.6,null,null,100]
[null,null,null,null,null,null,null,null,null,null,null,null,null,null,null,null,null,null,null,null,null,null,null,null,null,null,null,null,null,null,null,null,null,null,null,null,null,null,null,null,null,null,null,null,null,null,null,null,null,null,null,null,null,null,null,null,null,36,"Unitary AC (Water Cooled)","Split (3 Phase) Package (3 Phase)",3,760000,10000000,12.2,null,13.5,null,null,null,12.3,null,14.6,null,null,100]
[null,null,null,null,null,null,null,null,null,null,null,null,null,null,null,null,null,null,null,null,null,null,null,null,null,null,null,null,null,null,null,null,null,null,null,null,null,null,null,null,null,null,null,null,null,null,null,null,null,null,null,null,null,null,null,null,null,37,"Unitary AC (Evaporatively Cooled)","Split (1 Phase)",1,0,65000,12.1,null,12.3,null,null,null,null,null,null,null,null,null,14,null,12.3,null,null,100]
[null,null,null,null,null,null,null,null,null,null,null,null,null,null,null,null,null,null,null,null,null,null,null,null,null,null,null,null,null,null,null,null,null,null,null,null,null,null,null,null,null,null,null,null,null,null,null,null,null,null,null,null,null,null,null,null,null,38,"Unitary AC (Evaporatively Cooled)","Package (1 Phase)",1,0,65000,12.1,null,12.3,null,null,null,null,null,null,null,null,null,14,null,12.3,null,null,100]
[null,null,null,null,null,null,null,null,null,null,null,null,null,null,null,null,null,null,null,null,null,null,null,null,null,null,null,null,null,null,null,null,null,null,null,null,null,null,null,null,null,null,null,null,null,null,null,null,null,null,null,null,null,null,null,null,null,39,"Unitary AC (Evaporatively Cooled)","Split (3 Phase)",3,0,65000,12.1,null,12.3,null,null,null,null,null,null,null,null,null,14,null,12.3,null,null,100]
[null,null,null,null,null,null,null,null,null,null,null,null,null,null,null,null,null,null,null,null,null,null,null,null,null,null,null,null,null,null,null,null,null,null,null,null,null,null,null,null,null,null,null,null,null,null,null,null,null,null,null,null,null,null,null,null,null,40,"Unitary AC (Evaporatively Cooled)","Package (3 Phase)",3,0,65000,12.1,null,12.3,null,null,null,null,null,null,null,null,null,14,null,12.3,null,null,100]
[null,null,null,null,null,null,null,null,null,null,null,null,null,null,null,null,null,null,null,null,null,null,null,null,null,null,null,null,null,null,null,null,null,null,null,null,null,null,null,null,null,null,null,null,null,null,null,null,null,null,null,null,null,null,null,null,null,41,"Unitary AC (Evaporatively Cooled)","Split (1 Phase) Package (1 Phase) Split (3 Phase) Package (3 Phase)",3,65000,135000,12.1,null,12.3,null,null,null,null,null,null,null,null,null,11.9,null,15.1,null,null,100]
[null,null,null,null,null,null,null,null,null,null,null,null,null,null,null,null,null,null,null,null,null,null,null,null,null,null,null,null,null,null,null,null,null,null,null,null,null,null,null,null,null,null,null,null,null,null,null,null,null,null,null,null,null,null,null,null,null,42,"Unitary AC (Evaporatively Cooled)","Split (1 Phase) Package (1 Phase) Split (3 Phase) Package (3 Phase)",3,135000,240000,12,null,12.2,null,null,null,null,null,null,null,null,null,11.8,null,14.1,null,null,100]
[null,null,null,null,null,null,null,null,null,null,null,null,null,null,null,null,null,null,null,null,null,null,null,null,null,null,null,null,null,null,null,null,null,null,null,null,null,null,null,null,null,null,null,null,null,null,null,null,null,null,null,null,null,null,null,null,null,43,"Unitary AC (Evaporatively Cooled)","Split (1 Phase) Package (1 Phase) Split (3 Phase) Package (3 Phase)",3,240000,760000,11.9,null,12.1,null,null,null,null,null,null,null,null,null,11.8,null,14.1,null,null,100]
[null,null,null,null,null,null,null,null,null,null,null,null,null,null,null,null,null,null,null,null,null,null,null,null,null,null,null,null,null,null,null,null,null,null,null,null,null,null,null,null,null,null,null,null,null,null,null,null,null,null,null,null,null,null,null,null,null,44,"Unitary AC (Evaporatively Cooled)","Split (1 Phase) Package (1 Phase) Split (3 Phase) Package (3 Phase)",3,760000,10000000,11.7,null,11.9,null,null,null,null,null,null,null,null,null,11.8,null,14.1,null,null,100]
[null,null,null,null,null,null,null,null,null,null,null,null,null,null,null,null,null,null,null,null,null,null,null,null,null,null,null,null,null,null,null,null,null,null,null,null,null,null,null,null,null,null,null,null,null,null,null,null,null,null,null,null,null,null,null,null,null,45,"VRF HP (Air Cooled)","Multi-split System",null,0,65000,10.87,13,null,8.1999999999999993,8.1999999999999993,null,null,null,null,null,null,null,null,null,null,null,null,null,12.5,15,null,8.5,8.5,400]
[null,null,null,null,null,null,null,null,null,null,null,null,null,null,null,null,null,null,null,null,null,null,null,null,null,null,null,null,null,null,null,null,null,null,null,null,null,null,null,null,null,null,null,null,null,null,null,null,null,null,null,null,null,null,null,null,null,46,"VRF HP (Air Cooled)","Multi-split w/Heat Recovery",null,0,65000,10.87,13,null,8.1999999999999993,8.1999999999999993,null,null,null,null,null,null,null,null,null,null,null,null,null,12.5,15,null,8.5,8.5,400]
[null,null,null,null,null,null,null,null,null,null,null,null,null,null,null,null,null,null,null,null,null,null,null,null,null,null,null,null,null,null,null,null,null,null,null,null,null,null,null,null,null,null,null,null,null,null,null,null,null,null,null,null,null,null,null,null,null,47,"VRF HP (Air Cooled)","Multi-split System",null,65000,135000,11,null,14.6,3.4,2.25,null,null,null,null,null,null,null,null,null,null,null,null,null,11.5,null,16,3.4,2.4,400]
[null,null,null,null,null,null,null,null,null,null,null,null,null,null,null,null,null,null,null,null,null,null,null,null,null,null,null,null,null,null,null,null,null,null,null,null,null,null,null,null,null,null,null,null,null,null,null,null,null,null,null,null,null,null,null,null,null,48,"VRF HP (Air Cooled)","Multi-split w/Heat Recovery",null,65000,135000,11,null,14.4,3.4,2.25,null,null,null,null,null,null,null,null,null,null,null,null,null,11.5,null,16,3.4,2.4,400]
[null,null,null,null,null,null,null,null,null,null,null,null,null,null,null,null,null,null,null,null,null,null,null,null,null,null,null,null,null,null,null,null,null,null,null,null,null,null,null,null,null,null,null,null,null,null,null,null,null,null,null,null,null,null,null,null,null,49,"VRF HP (Air Cooled)","Multi-split System",null,135000,240000,10.8,null,13.9,3.3,2.0499999999999998,null,null,null,null,null,null,null,null,null,null,null,null,null,10.9,null,15.4,3.2,2.0499999999999998,400]
[null,null,null,null,null,null,null,null,null,null,null,null,null,null,null,null,null,null,null,null,null,null,null,null,null,null,null,null,null,null,null,null,null,null,null,null,null,null,null,null,null,null,null,null,null,null,null,null,null,null,null,null,null,null,null,null,null,50,"VRF HP (Air Cooled)","Multi-split w/Heat Recovery",null,135000,240000,10.8,null,13.7,3.3,2.0499999999999998,null,null,null,null,null,null,null,null,null,null,null,null,null,10.9,null,15.4,3.2,2.0499999999999998,400]
[null,null,null,null,null,null,null,null,null,null,null,null,null,null,null,null,null,null,null,null,null,null,null,null,null,null,null,null,null,null,null,null,null,null,null,null,null,null,null,null,null,null,null,null,null,null,null,null,null,null,null,null,null,null,null,null,null,51,"VRF HP (Air Cooled)","Multi-split System",null,240000,10000000,9.8000000000000007,null,12.7,3.2,2.0499999999999998,null,null,null,null,null,null,null,null,null,null,null,null,null,9.6,null,14.3,3.2,2.0499999999999998,400]
[null,null,null,null,null,null,null,null,null,null,null,null,null,null,null,null,null,null,null,null,null,null,null,null,null,null,null,null,null,null,null,null,null,null,null,null,null,null,null,null,null,null,null,null,null,null,null,null,null,null,null,null,null,null,null,null,null,52,"VRF HP (Air Cooled)","Multi-split w/Heat Recovery",null,240000,10000000,9.8000000000000007,null,12.5,3.2,2.0499999999999998,null,null,null,null,null,null,null,null,null,null,null,null,null,9.6,null,14.3,3.2,2.0499999999999998,400]
[null,null,null,null,null,null,null,null,null,null,null,null,null,null,null,null,null,null,null,null,null,null,null,null,null,null,null,null,null,null,null,null,null,null,null,null,null,null,null,null,null,null,null,null,null,null,null,null,null,null,null,null,null,null,null,null,null,53,"VRF HP (Water Source)","Multi-split System",null,0,135000,12,null,16,4.3,4.3,null,null,null,null,null,null,null,null,null,null,null,null,null,14,null,16,4.5999999999999996,4.5999999999999996,400]
[null,null,null,null,null,null,null,null,null,null,null,null,null,null,null,null,null,null,null,null,null,null,null,null,null,null,null,null,null,null,null,null,null,null,null,null,null,null,null,null,null,null,null,null,null,null,null,null,null,null,null,null,null,null,null,null,null,54,"VRF HP (Water Source)","Multi-split w/Heat Recovery",null,0,135000,11.8,null,15.8,4.3,4.3,null,null,null,null,null,null,null,null,null,null,null,null,null,13.8,null,15.8,4.5999999999999996,4.5999999999999996,400]
[]
[null,null,null,null,null,null,null,null,null,null,null,null,null,null,null,null,null,null,null,null,null,null,null,null,null,null,null,null,null,null,null,null,null,null,null,null,null,null,null,null,null,null,null,null,null,null,null,null,null,null,null,null,null,null,null,null,null,null,null,null,null,null,null,"CA",null,null,null,null,null,"Code","EFLCH","EFLHH","NTG","CF","Cooling Months","Defined in Fed Code","Estimation","Defined in Code",null,"PTAC Calcs from Deemed Savings",null,"Cost","kW/Unit","Gross kWh/yr","$/ton"]
[null,null,null,null,null,null,null,null,null,null,null,null,null,null,null,null,null,null,null,null,null,null,null,null,null,null,null,null,null,null,null,null,null,null,null,null,null,null,null,null,null,null,null,null,null,null,null,null,null,null,null,null,null,null,null,null,null,null,null,null,null,null,null,null,null,null,null,null,null,"Title 24 - 2013, Table 110.2-A, 110.2-B, 110.2-I",837.93,2016,1,1,5,null,"Not Used","Existing in Program",null,null,null,200,9.8000000000000004E-2,313,50]
[null,null,null,null,null,null,null,null,null,null,null,null,null,null,null,null,null,null,null,null,null,null,null,null,null,null,null,null,null,null,null,null,null,null,null,null,null,null,null,null,null,null,null,null,null,null,null,null,null,null,null,null,null,null,null,null,null,null,null,null,null,null,null,"Baseline",null,null,null,null,null,"Tier",1,null,null,"per ton",null,"Tier",2,null,50,"per ton",null,"Tier",3,null,50,"per ton"]
[null,null,null,null,null,null,null,null,null,null,null,null,null,null,null,null,null,null,null,null,null,null,null,null,null,null,null,null,null,null,null,null,null,null,null,null,null,null,null,null,null,null,null,null,null,null,null,null,null,null,null,null,null,null,null,null,null,null,null,null,null,null,null,"Cooling",null,null,"Heating",null,null,"Cooling",null,null,"Heating",null,"Gross Incremental Cost/Ton","Cooling",null,null,"Heating",null,"Gross Incremental Cost/Ton","Cooling",null,null,"Heating",null,"Gross Incremental Cost/Ton"]
[null,null,null,null,null,null,null,null,null,null,null,null,null,null,null,null,null,null,null,null,null,null,null,null,null,null,null,null,null,null,null,null,null,null,null,null,null,null,null,null,null,null,null,null,null,null,null,null,null,null,null,null,null,null,null,null,null,null,null,null,null,null,null,"EER","SEER IPLV","IEER","HSPF COP @ DB/WB",null,null,"EER","SEER IPLV","IEER","HSPF COP @ DB/WB",null,null,"EER","SEER IPLV","IEER","HSPF COP @ DB/WB",null,null,"EER","SEER IPLV","IEER","HSPF COP @ DB/WB"]
[null,null,null,null,null,null,null,null,null,null,null,null,null,null,null,null,null,null,null,null,null,null,null,null,null,null,null,null,null,null,null,null,null,null,null,null,null,null,null,null,null,null,null,null,null,null,null,null,null,null,null,null,null,null,null,null,null,null,"Equip Type","Category","Phase","Min (>=)","Max (<)",null,null,null,"47/43","17/15",null,null,null,null,"47/43","17/15",null,null,null,null,"47/43","17/15",null,null,null,null,"47/43","17/15"]
[null,null,null,null,null,null,null,null,null,null,null,null,null,null,null,null,null,null,null,null,null,null,null,null,null,null,null,null,null,null,null,null,null,null,null,null,null,null,null,null,null,null,null,null,null,null,null,null,null,null,null,null,null,null,null,null,null,1,"Heat Pump (Air Cooled)","Split (1 Phase)",1,0,65000,10.87,14,null,8.1999999999999993,8.1999999999999993,null,10000,10000,10000,10000,10000,null,10000,10000,10000,10000,10000,450,10000,10000,10000,10000,10000]
[null,null,null,null,null,null,null,null,null,null,null,null,null,null,null,null,null,null,null,null,null,null,null,null,null,null,null,null,null,null,null,null,null,null,null,null,null,null,null,null,null,null,null,null,null,null,null,null,null,null,null,null,null,null,null,null,null,2,"Heat Pump (Air Cooled)","Package (1 Phase)",1,0,65000,10.87,14,null,8,8,null,10000,10000,10000,10000,10000,null,10000,10000,10000,10000,10000,450,10000,10000,10000,10000,10000]
[null,null,null,null,null,null,null,null,null,null,null,null,null,null,null,null,null,null,null,null,null,null,null,null,null,null,null,null,null,null,null,null,null,null,null,null,null,null,null,null,null,null,null,null,null,null,null,null,null,null,null,null,null,null,null,null,null,3,"Heat Pump (Air Cooled)","Split (3 Phase)",3,0,65000,9.23,14,null,7.7,7.7,null,10000,10000,10000,10000,10000,null,10000,10000,10000,10000,10000,150,10000,10000,10000,10000,10000,450]
[null,null,null,null,null,null,null,null,null,null,null,null,null,null,null,null,null,null,null,null,null,null,null,null,null,null,null,null,null,null,null,null,null,null,null,null,null,null,null,null,null,null,null,null,null,null,null,null,null,null,null,null,null,null,null,null,null,4,"Heat Pump (Air Cooled)","Package (3 Phase)",3,0,65000,9.23,14,null,7.7,7.7,null,10000,10000,10000,10000,10000,null,10000,10000,10000,10000,10000,150,10000,10000,10000,10000,10000,450]
[null,null,null,null,null,null,null,null,null,null,null,null,null,null,null,null,null,null,null,null,null,null,null,null,null,null,null,null,null,null,null,null,null,null,null,null,null,null,null,null,null,null,null,null,null,null,null,null,null,null,null,null,null,null,null,null,null,5,"Heat Pump (Air Cooled)","Split (3 Phase) Package (3 Phase)",3,65000,135000,11,10.199999999999999,12.2,3.3,2.25,null,10000,10000,10000,10000,10000,null,10000,10000,10000,10000,10000,150,10000,10000,10000,10000,10000]
[null,null,null,null,null,null,null,null,null,null,null,null,null,null,null,null,null,null,null,null,null,null,null,null,null,null,null,null,null,null,null,null,null,null,null,null,null,null,null,null,null,null,null,null,null,null,null,null,null,null,null,null,null,null,null,null,null,6,"Heat Pump (Air Cooled)","Split (3 Phase) Package (3 Phase)",3,135000,240000,10.6,9.5,11.6,3.2,2.0499999999999998,null,10000,10000,10000,10000,10000,null,10000,10000,10000,10000,10000,150,10000,10000,10000,10000,10000]
[null,null,null,null,null,null,null,null,null,null,null,null,null,null,null,null,null,null,null,null,null,null,null,null,null,null,null,null,null,null,null,null,null,null,null,null,null,null,null,null,null,null,null,null,null,null,null,null,null,null,null,null,null,null,null,null,null,7,"Heat Pump (Air Cooled)","Split (3 Phase) Package (3 Phase)",3,240000,10000000,9.5,9.1999999999999993,10.6,3.2,2.0499999999999998,null,10000,10000,10000,10000,10000,null,10000,10000,10000,10000,10000,150,10000,10000,10000,10000,10000]
[null,null,null,null,null,null,null,null,null,null,null,null,null,null,null,null,null,null,null,null,null,null,null,null,null,null,null,null,null,null,null,null,null,null,null,null,null,null,null,null,null,null,null,null,null,null,null,null,null,null,null,null,null,null,null,null,null,8,"Heat Pump (Air Cooled, Replacing Electric Resistance)","Split (1 Phase)",1,0,65000,10.87,14,null,8.1999999999999993,8.1999999999999993,null,10000,10000,10000,10000,10000,null,10.87,15,null,8.5,8.5,105,1,16,null,9,9,450]
[null,null,null,null,null,null,null,null,null,null,null,null,null,null,null,null,null,null,null,null,null,null,null,null,null,null,null,null,null,null,null,null,null,null,null,null,null,null,null,null,null,null,null,null,null,null,null,null,null,null,null,null,null,null,null,null,null,9,"Heat Pump (Air Cooled, Replacing Electric Resistance)","Package (1 Phase)",1,0,65000,10.87,14,null,8,8,null,10000,10000,10000,10000,10000,null,10.87,15,null,8.1999999999999993,8.1999999999999993,105,1,16,null,8.1999999999999993,8.1999999999999993,450]
[null,null,null,null,null,null,null,null,null,null,null,null,null,null,null,null,null,null,null,null,null,null,null,null,null,null,null,null,null,null,null,null,null,null,null,null,null,null,null,null,null,null,null,null,null,null,null,null,null,null,null,null,null,null,null,null,null,10,"Heat Pump (Air Cooled, Replacing Electric Resistance)","Split (3 Phase)",3,0,65000,9.23,14,null,7.7,7.7,null,10000,10000,10000,10000,10000,null,9.23,15,null,8.5,8.5,105,1,16,null,9,9,150]
[null,null,null,null,null,null,null,null,null,null,null,null,null,null,null,null,null,null,null,null,null,null,null,null,null,null,null,null,null,null,null,null,null,null,null,null,null,null,null,null,null,null,null,null,null,null,null,null,null,null,null,null,null,null,null,null,null,11,"Heat Pump (Air Cooled, Replacing Electric Resistance)","Package (3 Phase)",3,0,65000,9.23,14,null,7.7,7.7,null,10000,10000,10000,10000,10000,null,9.23,15,null,8.1999999999999993,8.1999999999999993,105,1,16,null,8.1999999999999993,8.1999999999999993,150]
[null,null,null,null,null,null,null,null,null,null,null,null,null,null,null,null,null,null,null,null,null,null,null,null,null,null,null,null,null,null,null,null,null,null,null,null,null,null,null,null,null,null,null,null,null,null,null,null,null,null,null,null,null,null,null,null,null,12,"Heat Pump (Air Cooled, Replacing Electric Resistance)","Split (1 Phase) Package (1 Phase) Split (3 Phase) Package (3 Phase)",3,65000,135000,11,10.199999999999999,12.2,3.3,2.25,null,10000,10000,10000,10000,10000,null,11,null,13.6,3.4,2.4,105,null,null,null,null,null,150]
[null,null,null,null,null,null,null,null,null,null,null,null,null,null,null,null,null,null,null,null,null,null,null,null,null,null,null,null,null,null,null,null,null,null,null,null,null,null,null,null,null,null,null,null,null,null,null,null,null,null,null,null,null,null,null,null,null,13,"Heat Pump (Air Cooled, Replacing Electric Resistance)","Split (1 Phase) Package (1 Phase) Split (3 Phase) Package (3 Phase)",3,135000,240000,10.6,9.5,11.6,3.2,2.0499999999999998,null,10000,10000,10000,10000,10000,null,10.6,null,12.8,3.3,2.1,105,null,null,null,null,null,150]
[null,null,null,null,null,null,null,null,null,null,null,null,null,null,null,null,null,null,null,null,null,null,null,null,null,null,null,null,null,null,null,null,null,null,null,null,null,null,null,null,null,null,null,null,null,null,null,null,null,null,null,null,null,null,null,null,null,14,"Heat Pump (Air Cooled, Replacing Electric Resistance)","Split (1 Phase) Package (1 Phase) Split (3 Phase) Package (3 Phase)",3,240000,760000,9.5,9.1999999999999993,10.6,3.2,2.0499999999999998,null,10000,10000,10000,10000,10000,null,9.5,null,11.8,3.3,2.1,105,null,null,null,null,null,150]
[null,null,null,null,null,null,null,null,null,null,null,null,null,null,null,null,null,null,null,null,null,null,null,null,null,null,null,null,null,null,null,null,null,null,null,null,null,null,null,null,null,null,null,null,null,null,null,null,null,null,null,null,null,null,null,null,null,15,"Heat Pump (Water Cooled)",null,null,0,17000,12.2,null,{"$f":"BL207*1.15","v":14.029999999999998},4.3,4.3,null,10000,10000,10000,10000,10000,null,10000,10000,10000,10000,10000,100,10000,10000,10000,10000,10000]
[null,null,null,null,null,null,null,null,null,null,null,null,null,null,null,null,null,null,null,null,null,null,null,null,null,null,null,null,null,null,null,null,null,null,null,null,null,null,null,null,null,null,null,null,null,null,null,null,null,null,null,null,null,null,null,null,null,16,"Heat Pump (Water Cooled)",null,null,17000,65000,13,null,{"$f":"BL208*1.15","v":14.95},4.3,4.3,null,10000,10000,10000,10000,10000,null,10000,10000,10000,10000,10000,100,10000,10000,10000,10000,10000]
[null,null,null,null,null,null,null,null,null,null,null,null,null,null,null,null,null,null,null,null,null,null,null,null,null,null,null,null,null,null,null,null,null,null,null,null,null,null,null,null,null,null,null,null,null,null,null,null,null,null,null,null,null,null,null,null,null,17,"Heat Pump (Water Cooled)",null,null,65000,135000,13,null,{"$f":"BL209*1.15","v":14.95},4.3,4.3,null,10000,10000,10000,10000,10000,null,10000,10000,10000,10000,10000,100,10000,10000,10000,10000,10000]
[null,null,null,null,null,null,null,null,null,null,null,null,null,null,null,null,null,null,null,null,null,null,null,null,null,null,null,null,null,null,null,null,null,null,null,null,null,null,null,null,null,null,null,null,null,null,null,null,null,null,null,null,null,null,null,null,null,18,"Unitary AC (Air Cooled)","Split (1 Phase)",1,0,45000,12.2,14,null,null,null,null,10000,10000,10000,10000,10000,null,10000,10000,10000,10000,10000,375,10000,10000,10000,10000,10000,400]
[null,null,null,null,null,null,null,null,null,null,null,null,null,null,null,null,null,null,null,null,null,null,null,null,null,null,null,null,null,null,null,null,null,null,null,null,null,null,null,null,null,null,null,null,null,null,null,null,null,null,null,null,null,null,null,null,null,19,"Unitary AC (Air Cooled)","Split (1 Phase)",1,45000,65000,11.7,14,null,null,null,null,10000,10000,10000,10000,10000,null,10000,10000,10000,10000,10000,375,10000,10000,10000,10000,10000,400]
[null,null,null,null,null,null,null,null,null,null,null,null,null,null,null,null,null,null,null,null,null,null,null,null,null,null,null,null,null,null,null,null,null,null,null,null,null,null,null,null,null,null,null,null,null,null,null,null,null,null,null,null,null,null,null,null,null,20,"Unitary AC (Air Cooled)","Package (1 Phase)",1,0,65000,11,14,null,null,null,null,10000,10000,10000,10000,10000,null,10000,10000,10000,10000,10000,375,10000,10000,10000,10000,10000,400]
[null,null,null,null,null,null,null,null,null,null,null,null,null,null,null,null,null,null,null,null,null,null,null,null,null,null,null,null,null,null,null,null,null,null,null,null,null,null,null,null,null,null,null,null,null,null,null,null,null,null,null,null,null,null,null,null,null,21,"Unitary AC (Air Cooled)","Split (3 Phase)",3,0,65000,9.23,13,null,null,null,null,10000,10000,10000,10000,10000,null,10000,10000,10000,10000,10000,175,10000,10000,10000,10000,10000,375]
[null,null,null,null,null,null,null,null,null,null,null,null,null,null,null,null,null,null,null,null,null,null,null,null,null,null,null,null,null,null,null,null,null,null,null,null,null,null,null,null,null,null,null,null,null,null,null,null,null,null,null,null,null,null,null,null,null,22,"Unitary AC (Air Cooled)","Package (3 Phase)",3,0,65000,9.23,13,null,null,null,null,10000,10000,10000,10000,10000,null,10000,10000,10000,10000,10000,175,10000,10000,10000,10000,10000,375]
[null,null,null,null,null,null,null,null,null,null,null,null,null,null,null,null,null,null,null,null,null,null,null,null,null,null,null,null,null,null,null,null,null,null,null,null,null,null,null,null,null,null,null,null,null,null,null,null,null,null,null,null,null,null,null,null,null,23,"Unitary AC (Air Cooled)","Split (3 Phase) Package (3 Phase)",3,65000,135000,11.2,11.2,11.399999999999999,null,null,null,10000,10000,10000,10000,10000,null,10000,10000,10000,10000,10000,150,10000,10000,10000,10000,10000,325]
[null,null,null,null,null,null,null,null,null,null,null,null,null,null,null,null,null,null,null,null,null,null,null,null,null,null,null,null,null,null,null,null,null,null,null,null,null,null,null,null,null,null,null,null,null,null,null,null,null,null,null,null,null,null,null,null,null,24,"Unitary AC (Air Cooled)","Split (3 Phase) Package (3 Phase)",3,135000,240000,11,11,11.2,null,null,null,10000,10000,10000,10000,10000,null,10000,10000,10000,10000,10000,125,10000,10000,10000,10000,10000,225]
[null,null,null,null,null,null,null,null,null,null,null,null,null,null,null,null,null,null,null,null,null,null,null,null,null,null,null,null,null,null,null,null,null,null,null,null,null,null,null,null,null,null,null,null,null,null,null,null,null,null,null,null,null,null,null,null,null,25,"Unitary AC (Air Cooled)","Split (3 Phase) Package (3 Phase)",3,240000,760000,10,9.6999999999999993,10.1,null,null,null,10000,10000,10000,10000,10000,null,10000,10000,10000,10000,10000,150,10000,10000,10000,10000,10000,200]
[null,null,null,null,null,null,null,null,null,null,null,null,null,null,null,null,null,null,null,null,null,null,null,null,null,null,null,null,null,null,null,null,null,null,null,null,null,null,null,null,null,null,null,null,null,null,null,null,null,null,null,null,null,null,null,null,null,26,"Unitary AC (Air Cooled)","Split (3 Phase) Package (3 Phase)",3,760000,10000000,9.6999999999999993,9.4,9.8000000000000007,null,null,null,10000,10000,10000,10000,10000,null,10000,10000,10000,10000,10000,75,10000,10000,10000,10000,10000,150]
[null,null,null,null,null,null,null,null,null,null,null,null,null,null,null,null,null,null,null,null,null,null,null,null,null,null,null,null,null,null,null,null,null,null,null,null,null,null,null,null,null,null,null,null,null,null,null,null,null,null,null,null,null,null,null,null,null,27,"Ground-Source Heat Pump",null,null,0,10000000,13.4,null,{"$f":"BL219*1.15","v":15.409999999999998},3.1,3.1,null,10000,10000,10000,10000,10000,null,10000,10000,10000,10000,10000,100,10000,10000,10000,10000,10000]
[null,null,null,null,null,null,null,null,null,null,null,null,null,null,null,null,null,null,null,null,null,null,null,null,null,null,null,null,null,null,null,null,null,null,null,null,null,null,null,null,null,null,null,null,null,null,null,null,null,null,null,null,null,null,null,null,null,28,"Groundwater Source Heat Pump",null,null,0,10000000,16.2,null,{"$f":"BL220*1.15","v":18.63},3.6,3.6,null,10000,10000,10000,10000,10000,null,10000,10000,10000,10000,10000,100,10000,10000,10000,10000,10000]
[null,null,null,null,null,null,null,null,null,null,null,null,null,null,null,null,null,null,null,null,null,null,null,null,null,null,null,null,null,null,null,null,null,null,null,null,null,null,null,null,null,null,null,null,null,null,null,null,null,null,null,null,null,null,null,null,null,29,"Unitary AC (Water Cooled)","Split (1 Phase)",1,0,65000,12.1,null,12.3,null,null,null,10000,10000,10000,10000,10000,null,10000,10000,10000,10000,10000,100,10000,10000,10000,10000,10000]
[null,null,null,null,null,null,null,null,null,null,null,null,null,null,null,null,null,null,null,null,null,null,null,null,null,null,null,null,null,null,null,null,null,null,null,null,null,null,null,null,null,null,null,null,null,null,null,null,null,null,null,null,null,null,null,null,null,30,"Unitary AC (Water Cooled)","Package (1 Phase)",1,0,65000,12.1,null,12.3,null,null,null,10000,10000,10000,10000,10000,null,10000,10000,10000,10000,10000,100,10000,10000,10000,10000,10000]
[null,null,null,null,null,null,null,null,null,null,null,null,null,null,null,null,null,null,null,null,null,null,null,null,null,null,null,null,null,null,null,null,null,null,null,null,null,null,null,null,null,null,null,null,null,null,null,null,null,null,null,null,null,null,null,null,null,31,"Unitary AC (Water Cooled)","Split (3 Phase)",3,0,65000,12.1,null,12.3,null,null,null,10000,10000,10000,10000,10000,null,10000,10000,10000,10000,10000,100,10000,10000,10000,10000,10000]
[null,null,null,null,null,null,null,null,null,null,null,null,null,null,null,null,null,null,null,null,null,null,null,null,null,null,null,null,null,null,null,null,null,null,null,null,null,null,null,null,null,null,null,null,null,null,null,null,null,null,null,null,null,null,null,null,null,32,"Unitary AC (Water Cooled)","Package (3 Phase)",3,0,65000,12.1,null,12.3,null,null,null,10000,10000,10000,10000,10000,null,10000,10000,10000,10000,10000,100,10000,10000,10000,10000,10000]
[null,null,null,null,null,null,null,null,null,null,null,null,null,null,null,null,null,null,null,null,null,null,null,null,null,null,null,null,null,null,null,null,null,null,null,null,null,null,null,null,null,null,null,null,null,null,null,null,null,null,null,null,null,null,null,null,null,33,"Unitary AC (Water Cooled)","Split (3 Phase) Package (3 Phase)",3,65000,135000,12.1,null,12.5,null,null,null,10000,10000,10000,10000,10000,null,10000,10000,10000,10000,10000,100,10000,10000,10000,10000,10000]
[null,null,null,null,null,null,null,null,null,null,null,null,null,null,null,null,null,null,null,null,null,null,null,null,null,null,null,null,null,null,null,null,null,null,null,null,null,null,null,null,null,null,null,null,null,null,null,null,null,null,null,null,null,null,null,null,null,34,"Unitary AC (Water Cooled)","Split (3 Phase) Package (3 Phase)",3,135000,240000,12.5,null,12.7,null,null,null,10000,10000,10000,10000,10000,null,10000,10000,10000,10000,10000,100,10000,10000,10000,10000,10000]
[null,null,null,null,null,null,null,null,null,null,null,null,null,null,null,null,null,null,null,null,null,null,null,null,null,null,null,null,null,null,null,null,null,null,null,null,null,null,null,null,null,null,null,null,null,null,null,null,null,null,null,null,null,null,null,null,null,35,"Unitary AC (Water Cooled)","Split (3 Phase) Package (3 Phase)",3,240000,760000,12.4,null,12.6,null,null,null,10000,10000,10000,10000,10000,null,10000,10000,10000,10000,10000,100,10000,10000,10000,10000,10000]
[null,null,null,null,null,null,null,null,null,null,null,null,null,null,null,null,null,null,null,null,null,null,null,null,null,null,null,null,null,null,null,null,null,null,null,null,null,null,null,null,null,null,null,null,null,null,null,null,null,null,null,null,null,null,null,null,null,36,"Unitary AC (Water Cooled)","Split (3 Phase) Package (3 Phase)",3,760000,10000000,12.2,null,12.4,null,null,null,10000,10000,10000,10000,10000,null,10000,10000,10000,10000,10000,100,10000,10000,10000,10000,10000]
[null,null,null,null,null,null,null,null,null,null,null,null,null,null,null,null,null,null,null,null,null,null,null,null,null,null,null,null,null,null,null,null,null,null,null,null,null,null,null,null,null,null,null,null,null,null,null,null,null,null,null,null,null,null,null,null,null,37,"Unitary AC (Evaporatively Cooled)","Split (1 Phase)",1,0,65000,12.1,null,12.3,null,null,null,10000,10000,10000,10000,10000,null,10000,10000,10000,10000,10000,100,10000,10000,10000,10000,10000]
[null,null,null,null,null,null,null,null,null,null,null,null,null,null,null,null,null,null,null,null,null,null,null,null,null,null,null,null,null,null,null,null,null,null,null,null,null,null,null,null,null,null,null,null,null,null,null,null,null,null,null,null,null,null,null,null,null,38,"Unitary AC (Evaporatively Cooled)","Package (1 Phase)",1,0,65000,12.1,null,12.3,null,null,null,10000,10000,10000,10000,10000,null,10000,10000,10000,10000,10000,100,10000,10000,10000,10000,10000]
[null,null,null,null,null,null,null,null,null,null,null,null,null,null,null,null,null,null,null,null,null,null,null,null,null,null,null,null,null,null,null,null,null,null,null,null,null,null,null,null,null,null,null,null,null,null,null,null,null,null,null,null,null,null,null,null,null,39,"Unitary AC (Evaporatively Cooled)","Split (3 Phase)",3,0,65000,12.1,null,12.3,null,null,null,10000,10000,10000,10000,10000,null,10000,10000,10000,10000,10000,100,10000,10000,10000,10000,10000]
[null,null,null,null,null,null,null,null,null,null,null,null,null,null,null,null,null,null,null,null,null,null,null,null,null,null,null,null,null,null,null,null,null,null,null,null,null,null,null,null,null,null,null,null,null,null,null,null,null,null,null,null,null,null,null,null,null,40,"Unitary AC (Evaporatively Cooled)","Package (3 Phase)",3,0,65000,12.1,null,12.3,null,null,null,10000,10000,10000,10000,10000,null,10000,10000,10000,10000,10000,100,10000,10000,10000,10000,10000]
[null,null,null,null,null,null,null,null,null,null,null,null,null,null,null,null,null,null,null,null,null,null,null,null,null,null,null,null,null,null,null,null,null,null,null,null,null,null,null,null,null,null,null,null,null,null,null,null,null,null,null,null,null,null,null,null,null,41,"Unitary AC (Evaporatively Cooled)","Split (3 Phase) Package (3 Phase)",3,65000,135000,12.1,null,12.3,null,null,null,10000,10000,10000,10000,10000,null,10000,10000,10000,10000,10000,100,10000,10000,10000,10000,10000]
[null,null,null,null,null,null,null,null,null,null,null,null,null,null,null,null,null,null,null,null,null,null,null,null,null,null,null,null,null,null,null,null,null,null,null,null,null,null,null,null,null,null,null,null,null,null,null,null,null,null,null,null,null,null,null,null,null,42,"Unitary AC (Evaporatively Cooled)","Split (3 Phase) Package (3 Phase)",3,135000,240000,12,null,12.2,null,null,null,10000,10000,10000,10000,10000,null,10000,10000,10000,10000,10000,100,10000,10000,10000,10000,10000]
[null,null,null,null,null,null,null,null,null,null,null,null,null,null,null,null,null,null,null,null,null,null,null,null,null,null,null,null,null,null,null,null,null,null,null,null,null,null,null,null,null,null,null,null,null,null,null,null,null,null,null,null,null,null,null,null,null,43,"Unitary AC (Evaporatively Cooled)","Split (3 Phase) Package (3 Phase)",3,240000,760000,11.9,null,12.1,null,null,null,10000,10000,10000,10000,10000,null,10000,10000,10000,10000,10000,100,10000,10000,10000,10000,10000]
[null,null,null,null,null,null,null,null,null,null,null,null,null,null,null,null,null,null,null,null,null,null,null,null,null,null,null,null,null,null,null,null,null,null,null,null,null,null,null,null,null,null,null,null,null,null,null,null,null,null,null,null,null,null,null,null,null,44,"Unitary AC (Evaporatively Cooled)","Split (3 Phase) Package (3 Phase)",3,760000,10000000,11.7,null,11.9,null,null,null,10000,10000,10000,10000,10000,null,10000,10000,10000,10000,10000,100,10000,10000,10000,10000,10000]
[null,null,null,null,null,null,null,null,null,null,null,null,null,null,null,null,null,null,null,null,null,null,null,null,null,null,null,null,null,null,null,null,null,null,null,null,null,null,null,null,null,null,null,null,null,null,null,null,null,null,null,null,null,null,null,null,null,45,"VRF HP (Air Cooled)","Multi-split System",null,0,65000,10.87,13,null,7.7,7.7,null,10000,10000,10000,10000,10000,null,10000,10000,10000,10000,10000,null,10000,10000,10000,10000,10000,400]
[null,null,null,null,null,null,null,null,null,null,null,null,null,null,null,null,null,null,null,null,null,null,null,null,null,null,null,null,null,null,null,null,null,null,null,null,null,null,null,null,null,null,null,null,null,null,null,null,null,null,null,null,null,null,null,null,null,46,"VRF HP (Air Cooled)","Multi-split w/Heat Recovery",null,0,65000,10.87,13,null,7.7,7.7,null,10000,10000,10000,10000,10000,null,10000,10000,10000,10000,10000,null,10000,10000,10000,10000,10000,400]
[null,null,null,null,null,null,null,null,null,null,null,null,null,null,null,null,null,null,null,null,null,null,null,null,null,null,null,null,null,null,null,null,null,null,null,null,null,null,null,null,null,null,null,null,null,null,null,null,null,null,null,null,null,null,null,null,null,47,"VRF HP (Air Cooled)","Multi-split System",null,65000,135000,11,null,12.9,3.3,2.25,null,10000,10000,10000,10000,10000,null,10000,10000,10000,10000,10000,null,10000,10000,10000,10000,10000,400]
[null,null,null,null,null,null,null,null,null,null,null,null,null,null,null,null,null,null,null,null,null,null,null,null,null,null,null,null,null,null,null,null,null,null,null,null,null,null,null,null,null,null,null,null,null,null,null,null,null,null,null,null,null,null,null,null,null,48,"VRF HP (Air Cooled)","Multi-split w/Heat Recovery",null,65000,135000,10.8,null,12.7,3.3,2.25,null,10000,10000,10000,10000,10000,null,10000,10000,10000,10000,10000,null,10000,10000,10000,10000,10000,400]
[null,null,null,null,null,null,null,null,null,null,null,null,null,null,null,null,null,null,null,null,null,null,null,null,null,null,null,null,null,null,null,null,null,null,null,null,null,null,null,null,null,null,null,null,null,null,null,null,null,null,null,null,null,null,null,null,null,49,"VRF HP (Air Cooled)","Multi-split System",null,135000,240000,10.6,null,12.3,3.2,2.0499999999999998,null,10000,10000,10000,10000,10000,null,10000,10000,10000,10000,10000,null,10000,10000,10000,10000,10000,400]
[null,null,null,null,null,null,null,null,null,null,null,null,null,null,null,null,null,null,null,null,null,null,null,null,null,null,null,null,null,null,null,null,null,null,null,null,null,null,null,null,null,null,null,null,null,null,null,null,null,null,null,null,null,null,null,null,null,50,"VRF HP (Air Cooled)","Multi-split w/Heat Recovery",null,135000,240000,10.4,null,12.1,3.2,2.0499999999999998,null,10000,10000,10000,10000,10000,null,10000,10000,10000,10000,10000,null,10000,10000,10000,10000,10000,400]
[null,null,null,null,null,null,null,null,null,null,null,null,null,null,null,null,null,null,null,null,null,null,null,null,null,null,null,null,null,null,null,null,null,null,null,null,null,null,null,null,null,null,null,null,null,null,null,null,null,null,null,null,null,null,null,null,null,51,"VRF HP (Air Cooled)","Multi-split System",null,240000,10000000,9.5,null,11,3.2,2.0499999999999998,null,10000,10000,10000,10000,10000,null,10000,10000,10000,10000,10000,null,10000,10000,10000,10000,10000,400]
[null,null,null,null,null,null,null,null,null,null,null,null,null,null,null,null,null,null,null,null,null,null,null,null,null,null,null,null,null,null,null,null,null,null,null,null,null,null,null,null,null,null,null,null,null,null,null,null,null,null,null,null,null,null,null,null,null,52,"VRF HP (Air Cooled)","Multi-split w/Heat Recovery",null,240000,10000000,9.3000000000000007,null,10.8,3.2,2.0499999999999998,null,10000,10000,10000,10000,10000,null,10000,10000,10000,10000,10000,null,10000,10000,10000,10000,10000,400]
[null,null,null,null,null,null,null,null,null,null,null,null,null,null,null,null,null,null,null,null,null,null,null,null,null,null,null,null,null,null,null,null,null,null,null,null,null,null,null,null,null,null,null,null,null,null,null,null,null,null,null,null,null,null,null,null,null,53,"VRF HP (Water Source)","Multi-split System",null,0,135000,12,null,{"$f":"BL245*1.15","v":13.799999999999999},4.2,4.2,null,10000,10000,10000,10000,10000,null,10000,10000,10000,10000,10000,null,10000,10000,10000,10000,10000,400]
[null,null,null,null,null,null,null,null,null,null,null,null,null,null,null,null,null,null,null,null,null,null,null,null,null,null,null,null,null,null,null,null,null,null,null,null,null,null,null,null,null,null,null,null,null,null,null,null,null,null,null,null,null,null,null,null,null,54,"VRF HP (Water Source)","Multi-split w/Heat Recovery",null,0,135000,11.8,null,{"$f":"BL246*1.15","v":13.57},4.2,4.2,null,10000,10000,10000,10000,10000,null,10000,10000,10000,10000,10000,null,10000,10000,10000,10000,10000,400]
[]
[null,null,null,null,null,null,null,null,null,null,null,null,null,null,null,null,null,null,null,null,null,null,null,null,null,null,null,null,null,null,null,null,null,null,null,null,null,null,null,null,null,null,null,null,null,null,null,null,null,null,null,null,null,null,null,null,null,null,null,null,null,null,null,"ID",null,null,null,null,null,"Code","EFLCH","EFLHH","NTG","CF","Cooling Months","Defined in Fed Code","Estimation","Defined in Code",null,"PTAC Calcs from Deemed Savings",null,"Cost","kW/Unit","Gross kWh/yr","$/ton"]
[null,null,null,null,null,null,null,null,null,null,null,null,null,null,null,null,null,null,null,null,null,null,null,null,null,null,null,null,null,null,null,null,null,null,null,null,null,null,null,null,null,null,null,null,null,null,null,null,null,null,null,null,null,null,null,null,null,null,null,null,null,null,null,null,null,null,null,null,null,"IECC 2018, Tables C403.2.3(1) & C403.2.3(2)",{"$f":"INDEX(Segment_EFLH,MATCH(BusinessType,HVAC!BusinessType_List,0),MATCH(BL248& \" \"&BS248,Lookups!$S$12:$Y$12,0))","v":{"$error":"#N/A"}},{"$f":"INDEX(Segment_EFLH,MATCH(BusinessType,HVAC!BusinessType_List,0),MATCH(BL248& \" \"&BT248,Lookups!$S$12:$Y$12,0))","v":{"$error":"#N/A"}},1,1,6,null,"Not Used","Existing in Program",null,null,null,200,9.8000000000000004E-2,446,50]
[null,null,null,null,null,null,null,null,null,null,null,null,null,null,null,null,null,null,null,null,null,null,null,null,null,null,null,null,null,null,null,null,null,null,null,null,null,null,null,null,null,null,null,null,null,null,null,null,null,null,null,null,null,null,null,null,null,null,null,null,null,null,null,"Baseline",null,null,null,null,null,"Tier",1,null,25,"per ton",null,"Tier",2,null,50,{"$f":"BV250","v":"per ton"},null,"Tier",3,null,75,{"$f":"CB250","v":"per ton"}]
[null,null,null,null,null,null,null,null,null,null,null,null,null,null,null,null,null,null,null,null,null,null,null,null,null,null,null,null,null,null,null,null,null,null,null,null,null,null,null,null,null,null,null,null,null,null,null,null,null,null,null,null,null,null,null,null,null,null,null,null,null,null,null,"Cooling",null,null,"Heating",null,null,"Cooling",null,null,"Heating",null,"Gross Incremental Cost/Ton","Cooling",null,null,"Heating",null,"Gross Incremental Cost/Ton","Cooling",null,null,"Heating",null,"Gross Incremental Cost/Ton"]
[null,null,null,null,null,null,null,null,null,null,null,null,null,null,null,null,null,null,null,null,null,null,null,null,null,null,null,null,null,null,null,null,null,null,null,null,null,null,null,null,null,null,null,null,null,null,null,null,null,null,null,null,null,null,null,null,null,null,null,null,null,null,null,"EER","SEER IPLV","IEER","HSPF COP @ DB/WB",null,null,"EER","SEER IPLV","IEER","HSPF COP @ DB/WB",null,null,"EER","SEER IPLV","IEER","HSPF COP @ DB/WB",null,null,"EER","SEER IPLV","IEER","HSPF COP @ DB/WB"]
[null,null,null,null,null,null,null,null,null,null,null,null,null,null,null,null,null,null,null,null,null,null,null,null,null,null,null,null,null,null,null,null,null,null,null,null,null,null,null,null,null,null,null,null,null,null,null,null,null,null,null,null,null,null,null,null,null,null,"Equip Type","Category","Phase","Min (>=)","Max (<)",null,null,null,"47/43","17/15",null,null,null,null,"47/43","17/15",null,null,null,null,"47/43","17/15",null,null,null,null,"47/43","17/15"]
[null,null,null,null,null,null,null,null,null,null,null,null,null,null,null,null,null,null,null,null,null,null,null,null,null,null,null,null,null,null,null,null,null,null,null,null,null,null,null,null,null,null,null,null,null,null,null,null,null,null,null,null,null,null,null,null,null,1,"Heat Pump (Air Cooled)","Split (1 Phase)",1,0,65000,null,14,null,8.1999999999999993,8.1999999999999993,null,null,null,null,null,null,null,1,16,null,9.1999999999999993,9.1999999999999993,150]
[null,null,null,null,null,null,null,null,null,null,null,null,null,null,null,null,null,null,null,null,null,null,null,null,null,null,null,null,null,null,null,null,null,null,null,null,null,null,null,null,null,null,null,null,null,null,null,null,null,null,null,null,null,null,null,null,null,2,"Heat Pump (Air Cooled)","Package (1 Phase)",1,0,65000,null,14,null,8,8,null,null,null,null,null,null,null,1,16,null,8.5,8.5,150]
[null,null,null,null,null,null,null,null,null,null,null,null,null,null,null,null,null,null,null,null,null,null,null,null,null,null,null,null,null,null,null,null,null,null,null,null,null,null,null,null,null,null,null,null,null,null,null,null,null,null,null,null,null,null,null,null,null,3,"Heat Pump (Air Cooled)","Split (3 Phase)",3,0,65000,null,14,null,8.1999999999999993,8.1999999999999993,null,1,15,null,8.5,8.5,105,1,16,null,9.1999999999999993,9.1999999999999993,150]
[null,null,null,null,null,null,null,null,null,null,null,null,null,null,null,null,null,null,null,null,null,null,null,null,null,null,null,null,null,null,null,null,null,null,null,null,null,null,null,null,null,null,null,null,null,null,null,null,null,null,null,null,null,null,null,null,null,4,"Heat Pump (Air Cooled)","Package (3 Phase)",3,0,65000,null,14,null,8,8,null,1,15,null,8.1999999999999993,8.1999999999999993,105,1,16,null,8.5,8.5,150]
[null,null,null,null,null,null,null,null,null,null,null,null,null,null,null,null,null,null,null,null,null,null,null,null,null,null,null,null,null,null,null,null,null,null,null,null,null,null,null,null,null,null,null,null,null,null,null,null,null,null,null,null,null,null,null,null,null,5,"Heat Pump (Air Cooled)","Split (3 Phase) Package (3 Phase)",3,65000,135000,11,10.199999999999999,13.9,3.4,2.25,null,11,null,13.6,3.4,2.4,105,11,null,15.3,3.5,2.4,150]
[null,null,null,null,null,null,null,null,null,null,null,null,null,null,null,null,null,null,null,null,null,null,null,null,null,null,null,null,null,null,null,null,null,null,null,null,null,null,null,null,null,null,null,null,null,null,null,null,null,null,null,null,null,null,null,null,null,6,"Heat Pump (Air Cooled)","Split (3 Phase) Package (3 Phase)",3,135000,240000,10.6,9.5,13.3,3.3,2.0499999999999998,null,10.6,null,12.8,3.3,2.1,105,10.6,null,14.5,3.4,2.1,150]
[null,null,null,null,null,null,null,null,null,null,null,null,null,null,null,null,null,null,null,null,null,null,null,null,null,null,null,null,null,null,null,null,null,null,null,null,null,null,null,null,null,null,null,null,null,null,null,null,null,null,null,null,null,null,null,null,null,7,"Heat Pump (Air Cooled)","Split (3 Phase) Package (3 Phase)",3,240000,10000000,9.5,9.1999999999999993,12.3,3.2,2.0499999999999998]
[null,null,null,null,null,null,null,null,null,null,null,null,null,null,null,null,null,null,null,null,null,null,null,null,null,null,null,null,null,null,null,null,null,null,null,null,null,null,null,null,null,null,null,null,null,null,null,null,null,null,null,null,null,null,null,null,null,8,"Heat Pump (Water Cooled)",null,null,0,17000,12.2,null,{"$f":"BL261*1.15","v":14.029999999999998},4.3,4.3,null,null,null,null,null,null,null,14,null,null,4.5999999999999996,4.5999999999999996,100]
[null,null,null,null,null,null,null,null,null,null,null,null,null,null,null,null,null,null,null,null,null,null,null,null,null,null,null,null,null,null,null,null,null,null,null,null,null,null,null,null,null,null,null,null,null,null,null,null,null,null,null,null,null,null,null,null,null,9,"Heat Pump (Water Cooled)",null,null,17000,65000,13,null,{"$f":"BL262*1.15","v":14.95},4.3,4.3,null,null,null,null,null,null,null,14,null,null,4.5999999999999996,4.5999999999999996,100]
[null,null,null,null,null,null,null,null,null,null,null,null,null,null,null,null,null,null,null,null,null,null,null,null,null,null,null,null,null,null,null,null,null,null,null,null,null,null,null,null,null,null,null,null,null,null,null,null,null,null,null,null,null,null,null,null,null,10,"Heat Pump (Water Cooled)",null,null,65000,135000,13,null,{"$f":"BL263*1.15","v":14.95},4.3,4.3,null,null,null,null,null,null,null,14,null,null,4.5999999999999996,4.5999999999999996,100]
[null,null,null,null,null,null,null,null,null,null,null,null,null,null,null,null,null,null,null,null,null,null,null,null,null,null,null,null,null,null,null,null,null,null,null,null,null,null,null,null,null,null,null,null,null,null,null,null,null,null,null,null,null,null,null,null,null,11,"Unitary AC (Air Cooled)","Split (1 Phase)",1,0,45000,null,13,null,null,null,null,null,null,null,null,null,null,1,16,null,null,null,375,1,18,null,null,null,400]
[null,null,null,null,null,null,null,null,null,null,null,null,null,null,null,null,null,null,null,null,null,null,null,null,null,null,null,null,null,null,null,null,null,null,null,null,null,null,null,null,null,null,null,null,null,null,null,null,null,null,null,null,null,null,null,null,null,12,"Unitary AC (Air Cooled)","Split (1 Phase)",1,45000,65000,null,13,null,null,null,null,null,null,null,null,null,null,1,16,null,null,null,375,1,18,null,null,null,400]
[null,null,null,null,null,null,null,null,null,null,null,null,null,null,null,null,null,null,null,null,null,null,null,null,null,null,null,null,null,null,null,null,null,null,null,null,null,null,null,null,null,null,null,null,null,null,null,null,null,null,null,null,null,null,null,null,null,13,"Unitary AC (Air Cooled)","Package (1 Phase)",1,0,65000,null,14,null,null,null,null,null,null,null,null,null,null,1,16,null,null,null,375,1,17,null,null,null,400]
[null,null,null,null,null,null,null,null,null,null,null,null,null,null,null,null,null,null,null,null,null,null,null,null,null,null,null,null,null,null,null,null,null,null,null,null,null,null,null,null,null,null,null,null,null,null,null,null,null,null,null,null,null,null,null,null,null,14,"Unitary AC (Air Cooled)","Split (3 Phase)",3,0,65000,null,13,null,null,null,null,null,null,null,null,null,null,1,16,null,null,null,175,1,18,null,null,null,375]
[null,null,null,null,null,null,null,null,null,null,null,null,null,null,null,null,null,null,null,null,null,null,null,null,null,null,null,null,null,null,null,null,null,null,null,null,null,null,null,null,null,null,null,null,null,null,null,null,null,null,null,null,null,null,null,null,null,15,"Unitary AC (Air Cooled)","Package (3 Phase)",3,0,65000,null,14,null,null,null,null,null,null,null,null,null,null,1,16,null,null,null,175,1,17,null,null,null,375]
[null,null,null,null,null,null,null,null,null,null,null,null,null,null,null,null,null,null,null,null,null,null,null,null,null,null,null,null,null,null,null,null,null,null,null,null,null,null,null,null,null,null,null,null,null,null,null,null,null,null,null,null,null,null,null,null,null,16,"Unitary AC (Air Cooled)","Split (3 Phase) Package (3 Phase)",3,65000,135000,11,null,14.6,null,null,null,null,null,null,null,null,null,11,null,14.6,null,null,150,11,null,17.8,null,null,325]
[null,null,null,null,null,null,null,null,null,null,null,null,null,null,null,null,null,null,null,null,null,null,null,null,null,null,null,null,null,null,null,null,null,null,null,null,null,null,null,null,null,null,null,null,null,null,null,null,null,null,null,null,null,null,null,null,null,17,"Unitary AC (Air Cooled)","Split (3 Phase) Package (3 Phase)",3,135000,240000,10.8,null,14,null,null,null,null,null,null,null,null,null,10.8,null,14,null,null,125,10.8,null,16.8,null,null,225]
[null,null,null,null,null,null,null,null,null,null,null,null,null,null,null,null,null,null,null,null,null,null,null,null,null,null,null,null,null,null,null,null,null,null,null,null,null,null,null,null,null,null,null,null,null,null,null,null,null,null,null,null,null,null,null,null,null,18,"Unitary AC (Air Cooled)","Split (3 Phase) Package (3 Phase)",3,240000,760000,9.8000000000000007,null,13,null,null,null,null,null,null,null,null,null,9.8000000000000007,null,13,null,null,150,9.8000000000000007,null,14.3,null,null,200]
[null,null,null,null,null,null,null,null,null,null,null,null,null,null,null,null,null,null,null,null,null,null,null,null,null,null,null,null,null,null,null,null,null,null,null,null,null,null,null,null,null,null,null,null,null,null,null,null,null,null,null,null,null,null,null,null,null,19,"Unitary AC (Air Cooled)","Split (3 Phase) Package (3 Phase)",3,760000,10000000,9.5,null,11,null,null,null,null,null,null,null,null,null,9.5,null,12.1,null,null,75]
[null,null,null,null,null,null,null,null,null,null,null,null,null,null,null,null,null,null,null,null,null,null,null,null,null,null,null,null,null,null,null,null,null,null,null,null,null,null,null,null,null,null,null,null,null,null,null,null,null,null,null,null,null,null,null,null,null,20,"Ground-Source Heat Pump",null,null,0,10000000,13.4,null,{"$f":"BL273*1.15","v":15.409999999999998},3.1,3.1,null,null,null,null,null,null,null,17.100000000000001,null,null,3.6,3.6,150]
[null,null,null,null,null,null,null,null,null,null,null,null,null,null,null,null,null,null,null,null,null,null,null,null,null,null,null,null,null,null,null,null,null,null,null,null,null,null,null,null,null,null,null,null,null,null,null,null,null,null,null,null,null,null,null,null,null,21,"Groundwater Source Heat Pump",null,null,0,10000000,16.2,null,{"$f":"BL274*1.15","v":18.63},3.6,3.6,null,null,null,null,null,null,null,21.1,null,null,4.0999999999999996,4.0999999999999996,150]
[null,null,null,null,null,null,null,null,null,null,null,null,null,null,null,null,null,null,null,null,null,null,null,null,null,null,null,null,null,null,null,null,null,null,null,null,null,null,null,null,null,null,null,null,null,null,null,null,null,null,null,null,null,null,null,null,null,22,"Unitary AC (Water Cooled)","Split (1 Phase)",1,0,65000,12.1,null,12.3,null,null,null,null,null,null,null,null,null,14,null,12.3,null,null,100]
[null,null,null,null,null,null,null,null,null,null,null,null,null,null,null,null,null,null,null,null,null,null,null,null,null,null,null,null,null,null,null,null,null,null,null,null,null,null,null,null,null,null,null,null,null,null,null,null,null,null,null,null,null,null,null,null,null,23,"Unitary AC (Water Cooled)","Package (1 Phase)",1,0,65000,12.1,null,12.3,null,null,null,null,null,null,null,null,null,14,null,12.3,null,null,100]
[null,null,null,null,null,null,null,null,null,null,null,null,null,null,null,null,null,null,null,null,null,null,null,null,null,null,null,null,null,null,null,null,null,null,null,null,null,null,null,null,null,null,null,null,null,null,null,null,null,null,null,null,null,null,null,null,null,24,"Unitary AC (Water Cooled)","Split (3 Phase)",3,0,65000,12.1,null,12.3,null,null,null,null,null,null,null,null,null,14,null,12.3,null,null,100]
[null,null,null,null,null,null,null,null,null,null,null,null,null,null,null,null,null,null,null,null,null,null,null,null,null,null,null,null,null,null,null,null,null,null,null,null,null,null,null,null,null,null,null,null,null,null,null,null,null,null,null,null,null,null,null,null,null,25,"Unitary AC (Water Cooled)","Package (3 Phase)",3,0,65000,12.1,null,12.3,null,null,null,null,null,null,null,null,null,14,null,12.3,null,null,100]
[null,null,null,null,null,null,null,null,null,null,null,null,null,null,null,null,null,null,null,null,null,null,null,null,null,null,null,null,null,null,null,null,null,null,null,null,null,null,null,null,null,null,null,null,null,null,null,null,null,null,null,null,null,null,null,null,null,26,"Unitary AC (Water Cooled)","Split (3 Phase) Package (3 Phase)",3,65000,135000,11.9,null,13.7,null,null,null,null,null,null,null,null,null,11.9,null,15.1,null,null,100]
[null,null,null,null,null,null,null,null,null,null,null,null,null,null,null,null,null,null,null,null,null,null,null,null,null,null,null,null,null,null,null,null,null,null,null,null,null,null,null,null,null,null,null,null,null,null,null,null,null,null,null,null,null,null,null,null,null,27,"Unitary AC (Water Cooled)","Split (3 Phase) Package (3 Phase)",3,135000,240000,12.3,null,13.7,null,null,null,null,null,null,null,null,null,12.3,null,14.6,null,null,100]
[null,null,null,null,null,null,null,null,null,null,null,null,null,null,null,null,null,null,null,null,null,null,null,null,null,null,null,null,null,null,null,null,null,null,null,null,null,null,null,null,null,null,null,null,null,null,null,null,null,null,null,null,null,null,null,null,null,28,"Unitary AC (Water Cooled)","Split (3 Phase) Package (3 Phase)",3,240000,760000,12.2,null,13.4,null,null,null,null,null,null,null,null,null,12.3,null,14.6,null,null,100]
[null,null,null,null,null,null,null,null,null,null,null,null,null,null,null,null,null,null,null,null,null,null,null,null,null,null,null,null,null,null,null,null,null,null,null,null,null,null,null,null,null,null,null,null,null,null,null,null,null,null,null,null,null,null,null,null,null,29,"Unitary AC (Water Cooled)","Split (3 Phase) Package (3 Phase)",3,760000,10000000,12,null,13.3,null,null,null,null,null,null,null,null,null,12.3,null,14.6,null,null,100]
[null,null,null,null,null,null,null,null,null,null,null,null,null,null,null,null,null,null,null,null,null,null,null,null,null,null,null,null,null,null,null,null,null,null,null,null,null,null,null,null,null,null,null,null,null,null,null,null,null,null,null,null,null,null,null,null,null,30,"Unitary AC (Evaporatively Cooled)","Split (1 Phase)",1,0,65000,12.1,null,12.3,null,null,null,null,null,null,null,null,null,14,null,12.3,null,null,100]
[null,null,null,null,null,null,null,null,null,null,null,null,null,null,null,null,null,null,null,null,null,null,null,null,null,null,null,null,null,null,null,null,null,null,null,null,null,null,null,null,null,null,null,null,null,null,null,null,null,null,null,null,null,null,null,null,null,31,"Unitary AC (Evaporatively Cooled)","Package (1 Phase)",1,0,65000,12.1,null,12.3,null,null,null,null,null,null,null,null,null,14,null,12.3,null,null,100]
[null,null,null,null,null,null,null,null,null,null,null,null,null,null,null,null,null,null,null,null,null,null,null,null,null,null,null,null,null,null,null,null,null,null,null,null,null,null,null,null,null,null,null,null,null,null,null,null,null,null,null,null,null,null,null,null,null,32,"Unitary AC (Evaporatively Cooled)","Split (3 Phase)",3,0,65000,12.1,null,12.3,null,null,null,null,null,null,null,null,null,14,null,12.3,null,null,100]
[null,null,null,null,null,null,null,null,null,null,null,null,null,null,null,null,null,null,null,null,null,null,null,null,null,null,null,null,null,null,null,null,null,null,null,null,null,null,null,null,null,null,null,null,null,null,null,null,null,null,null,null,null,null,null,null,null,33,"Unitary AC (Evaporatively Cooled)","Package (3 Phase)",3,0,65000,12.1,null,12.3,null,null,null,null,null,null,null,null,null,14,null,12.3,null,null,100]
[null,null,null,null,null,null,null,null,null,null,null,null,null,null,null,null,null,null,null,null,null,null,null,null,null,null,null,null,null,null,null,null,null,null,null,null,null,null,null,null,null,null,null,null,null,null,null,null,null,null,null,null,null,null,null,null,null,34,"Unitary AC (Evaporatively Cooled)","Split (3 Phase) Package (3 Phase)",3,65000,135000,11.9,null,12.1,null,null,null,null,null,null,null,null,null,11.9,null,15.1,null,null,100]
[null,null,null,null,null,null,null,null,null,null,null,null,null,null,null,null,null,null,null,null,null,null,null,null,null,null,null,null,null,null,null,null,null,null,null,null,null,null,null,null,null,null,null,null,null,null,null,null,null,null,null,null,null,null,null,null,null,35,"Unitary AC (Evaporatively Cooled)","Split (3 Phase) Package (3 Phase)",3,135000,240000,11.8,null,12,null,null,null,null,null,null,null,null,null,11.8,null,14.1,null,null,100]
[null,null,null,null,null,null,null,null,null,null,null,null,null,null,null,null,null,null,null,null,null,null,null,null,null,null,null,null,null,null,null,null,null,null,null,null,null,null,null,null,null,null,null,null,null,null,null,null,null,null,null,null,null,null,null,null,null,36,"Unitary AC (Evaporatively Cooled)","Split (3 Phase) Package (3 Phase)",3,240000,760000,11.7,null,11.9,null,null,null,null,null,null,null,null,null,11.8,null,14.1,null,null,100]
[null,null,null,null,null,null,null,null,null,null,null,null,null,null,null,null,null,null,null,null,null,null,null,null,null,null,null,null,null,null,null,null,null,null,null,null,null,null,null,null,null,null,null,null,null,null,null,null,null,null,null,null,null,null,null,null,null,37,"Unitary AC (Evaporatively Cooled)","Split (3 Phase) Package (3 Phase)",3,760000,10000000,11.5,null,11.7,null,null,null,null,null,null,null,null,null,11.8,null,14.1,null,null,100]
[null,null,null,null,null,null,null,null,null,null,null,null,null,null,null,null,null,null,null,null,null,null,null,null,null,null,null,null,null,null,null,null,null,null,null,null,null,null,null,null,null,null,null,null,null,null,null,null,null,null,null,null,null,null,null,null,null,38,"VRF HP (Air Cooled)","Multi-split System",null,0,65000,10.87,13,null,8.1999999999999993,7.7,null,null,null,null,null,null,null,null,null,null,null,null,null,1,15,null,8.5,8.5,535]
[null,null,null,null,null,null,null,null,null,null,null,null,null,null,null,null,null,null,null,null,null,null,null,null,null,null,null,null,null,null,null,null,null,null,null,null,null,null,null,null,null,null,null,null,null,null,null,null,null,null,null,null,null,null,null,null,null,39,"VRF HP (Air Cooled)","Multi-split w/Heat Recovery",null,0,65000,10.87,13,null,8.1999999999999993,7.7,null,null,null,null,null,null,null,null,null,null,null,null,null,1,15,null,8.5,8.5,535]
[null,null,null,null,null,null,null,null,null,null,null,null,null,null,null,null,null,null,null,null,null,null,null,null,null,null,null,null,null,null,null,null,null,null,null,null,null,null,null,null,null,null,null,null,null,null,null,null,null,null,null,null,null,null,null,null,null,40,"VRF HP (Air Cooled)","Multi-split System",null,65000,135000,11,null,12.9,3.4,2.25,null,null,null,null,null,null,null,null,null,null,null,null,null,11,null,14.2,3.4,2.4,535]
[null,null,null,null,null,null,null,null,null,null,null,null,null,null,null,null,null,null,null,null,null,null,null,null,null,null,null,null,null,null,null,null,null,null,null,null,null,null,null,null,null,null,null,null,null,null,null,null,null,null,null,null,null,null,null,null,null,41,"VRF HP (Air Cooled)","Multi-split w/Heat Recovery",null,65000,135000,10.8,null,12.7,3.4,2.25,null,null,null,null,null,null,null,null,null,null,null,null,null,10.8,null,14,3.4,2.4,775]
[null,null,null,null,null,null,null,null,null,null,null,null,null,null,null,null,null,null,null,null,null,null,null,null,null,null,null,null,null,null,null,null,null,null,null,null,null,null,null,null,null,null,null,null,null,null,null,null,null,null,null,null,null,null,null,null,null,42,"VRF HP (Air Cooled)","Multi-split System",null,135000,240000,10.6,null,12.3,3.3,2.0499999999999998,null,null,null,null,null,null,null,null,null,null,null,null,null,10.6,null,13.7,3.2,2.1,560]
[null,null,null,null,null,null,null,null,null,null,null,null,null,null,null,null,null,null,null,null,null,null,null,null,null,null,null,null,null,null,null,null,null,null,null,null,null,null,null,null,null,null,null,null,null,null,null,null,null,null,null,null,null,null,null,null,null,43,"VRF HP (Air Cooled)","Multi-split w/Heat Recovery",null,135000,240000,10.4,null,12.1,3.3,2.0499999999999998,null,null,null,null,null,null,null,null,null,null,null,null,null,10.4,null,13.5,3.2,2.1,735]
[null,null,null,null,null,null,null,null,null,null,null,null,null,null,null,null,null,null,null,null,null,null,null,null,null,null,null,null,null,null,null,null,null,null,null,null,null,null,null,null,null,null,null,null,null,null,null,null,null,null,null,null,null,null,null,null,null,44,"VRF HP (Air Cooled)","Multi-split System",null,240000,10000000,9.5,null,11,3.2,2.0499999999999998,null,null,null,null,null,null,null,null,null,null,null,null,null,9.5,null,12.5,3.2,2.1,525]
[null,null,null,null,null,null,null,null,null,null,null,null,null,null,null,null,null,null,null,null,null,null,null,null,null,null,null,null,null,null,null,null,null,null,null,null,null,null,null,null,null,null,null,null,null,null,null,null,null,null,null,null,null,null,null,null,null,45,"VRF HP (Air Cooled)","Multi-split w/Heat Recovery",null,240000,10000000,9.3000000000000007,null,10.8,3.2,2.0499999999999998,null,null,null,null,null,null,null,null,null,null,null,null,null,9.3000000000000007,null,12.3,3.2,2.1,800]
[null,null,null,null,null,null,null,null,null,null,null,null,null,null,null,null,null,null,null,null,null,null,null,null,null,null,null,null,null,null,null,null,null,null,null,null,null,null,null,null,null,null,null,null,null,null,null,null,null,null,null,null,null,null,null,null,null,46,"VRF HP (Water Source)","Multi-split System",null,0,135000,12,null,{"$f":"BL299*1.15","v":13.799999999999999},4.3,4.2,null,null,null,null,null,null,null,null,null,null,null,null,null,14,null,null,4.5999999999999996,4.5999999999999996,535]
[null,null,null,null,null,null,null,null,null,null,null,null,null,null,null,null,null,null,null,null,null,null,null,null,null,null,null,null,null,null,null,null,null,null,null,null,null,null,null,null,null,null,null,null,null,null,null,null,null,null,null,null,null,null,null,null,null,47,"VRF HP (Water Source)","Multi-split w/Heat Recovery",null,0,135000,11.8,null,{"$f":"BL300*1.15","v":13.57},4.3,4.2,null,null,null,null,null,null,null,null,null,null,null,null,null,13.8,null,null,4.5999999999999996,4.5999999999999996,775]
[null,null,null,null,null,null,null,null,null,null,null,null,null,null,null,null,null,null,null,null,null,null,null,null,null,null,null,null,null,null,null,null,null,null,null,null,null,null,null,null,null,null,null,null,null,null,null,null,null,null,null,null,null,null,null,null,null,48]
[null,null,null,null,null,null,null,null,null,null,null,null,null,null,null,null,null,null,null,null,null,null,null,null,null,null,null,null,null,null,null,null,null,null,null,null,null,null,null,null,null,null,null,null,null,null,null,null,null,null,null,null,null,null,null,null,null,49]
[null,null,null,null,null,null,null,null,null,null,null,null,null,null,null,null,null,null,null,null,null,null,null,null,null,null,null,null,null,null,null,null,null,null,null,null,null,null,null,null,null,null,null,null,null,null,null,null,null,null,null,null,null,null,null,null,null,50]
[null,null,null,null,null,null,null,null,null,null,null,null,null,null,null,null,null,null,null,null,null,null,null,null,null,null,null,null,null,null,null,null,null,null,null,null,null,null,null,null,null,null,null,null,null,null,null,null,null,null,null,null,null,null,null,null,null,51]
[null,null,null,null,null,null,null,null,null,null,null,null,null,null,null,null,null,null,null,null,null,null,null,null,null,null,null,null,null,null,null,null,null,null,null,null,null,null,null,null,null,null,null,null,null,null,null,null,null,null,null,null,null,null,null,null,null,52]
[null,null,null,null,null,null,null,null,null,null,null,null,null,null,null,null,null,null,null,null,null,null,null,null,null,null,null,null,null,null,null,null,null,null,null,null,null,null,null,null,null,null,null,null,null,null,null,null,null,null,null,null,null,null,null,null,null,53]
[null,null,null,null,null,null,null,null,null,null,null,null,null,null,null,null,null,null,null,null,null,null,null,null,null,null,null,null,null,null,null,null,null,null,null,null,null,null,null,null,null,null,null,null,null,null,null,null,null,null,null,null,null,null,null,null,null,54]
[]
[null,null,null,null,null,null,null,null,null,null,null,null,null,null,null,null,null,null,null,null,null,null,null,null,null,null,null,null,null,null,null,null,null,null,null,null,null,null,null,null,null,null,null,null,null,null,null,null,null,null,null,null,null,null,null,null,null,null,null,null,null,null,null,"WY",null,null,null,null,null,"Code","EFLCH","EFLHH","NTG","CF","Cooling Months","Defined in Fed Code","Estimation","Defined in Code",null,"PTAC Calcs from Deemed Savings",null,"Cost","kW/Unit","Gross kWh/yr","$/ton"]
[null,null,null,null,null,null,null,null,null,null,null,null,null,null,null,null,null,null,null,null,null,null,null,null,null,null,null,null,null,null,null,null,null,null,null,null,null,null,null,null,null,null,null,null,null,null,null,null,null,null,null,null,null,null,null,null,null,null,null,null,null,null,null,null,null,null,null,null,null,"IECC 2009, Tables 503.2.3(1) & 503.2.3(2)",{"$f":"INDEX(Segment_EFLH,MATCH(BusinessType,HVAC!BusinessType_List,0),MATCH(BL309& \" \"&BS309,Lookups!$S$12:$Y$12,0))","v":{"$error":"#N/A"}},{"$f":"INDEX(Segment_EFLH,MATCH(BusinessType,HVAC!BusinessType_List,0),MATCH(BL309& \" \"&BT309,Lookups!$S$12:$Y$12,0))","v":{"$error":"#N/A"}},1,1,5,null,"Not Used","Existing in Program",null,null,null,200,9.8000000000000004E-2,400,50]
[null,null,null,null,null,null,null,null,null,null,null,null,null,null,null,null,null,null,null,null,null,null,null,null,null,null,null,null,null,null,null,null,null,null,null,null,null,null,null,null,null,null,null,null,null,null,null,null,null,null,null,null,null,null,null,null,null,null,null,null,null,null,null,"Baseline",null,null,null,null,null,"Tier",1,null,25,"per ton",null,"Tier",2,null,62,{"$f":"BV311","v":"per ton"},null,"Tier",3,null,75,{"$f":"CB311","v":"per ton"}]
[null,null,null,null,null,null,null,null,null,null,null,null,null,null,null,null,null,null,null,null,null,null,null,null,null,null,null,null,null,null,null,null,null,null,null,null,null,null,null,null,null,null,null,null,null,null,null,null,null,null,null,null,null,null,null,null,null,null,null,null,null,null,null,"Cooling",null,null,"Heating",null,null,"Cooling",null,null,"Heating",null,"Gross Incremental Cost/Ton","Cooling",null,null,"Heating",null,"Gross Incremental Cost/Ton","Cooling",null,null,"Heating",null,"Gross Incremental Cost/Ton"]
[null,null,null,null,null,null,null,null,null,null,null,null,null,null,null,null,null,null,null,null,null,null,null,null,null,null,null,null,null,null,null,null,null,null,null,null,null,null,null,null,null,null,null,null,null,null,null,null,null,null,null,null,null,null,null,null,null,null,null,null,null,null,null,"EER","SEER IPLV","IEER","HSPF COP @ DB/WB",null,null,"EER","SEER IPLV","IEER","HSPF COP @ DB/WB",null,null,"EER","SEER IPLV","IEER","HSPF COP @ DB/WB",null,null,"EER","SEER IPLV","IEER","HSPF COP @ DB/WB"]
[null,null,null,null,null,null,null,null,null,null,null,null,null,null,null,null,null,null,null,null,null,null,null,null,null,null,null,null,null,null,null,null,null,null,null,null,null,null,null,null,null,null,null,null,null,null,null,null,null,null,null,null,null,null,null,null,null,null,"Equip Type","Category","Phase","Min (>=)","Max (<)",null,null,null,"47/43","17/15",null,null,null,null,"47/43","17/15",null,null,null,null,"47/43","17/15",null,null,null,null,"47/43","17/15"]
[null,null,null,null,null,null,null,null,null,null,null,null,null,null,null,null,null,null,null,null,null,null,null,null,null,null,null,null,null,null,null,null,null,null,null,null,null,null,null,null,null,null,null,null,null,null,null,null,null,null,null,null,null,null,null,null,null,1,"Heat Pump (Air Cooled)","Split (1 Phase)",1,0,65000,null,14,null,8.1999999999999993,8.1999999999999993,null,null,null,null,null,null,null,1,16,null,9,9,450]
[null,null,null,null,null,null,null,null,null,null,null,null,null,null,null,null,null,null,null,null,null,null,null,null,null,null,null,null,null,null,null,null,null,null,null,null,null,null,null,null,null,null,null,null,null,null,null,null,null,null,null,null,null,null,null,null,null,2,"Heat Pump (Air Cooled)","Package (1 Phase)",1,0,65000,null,14,null,8,8,null,null,null,null,null,null,null,1,16,null,8.1999999999999993,8.1999999999999993,450]
[null,null,null,null,null,null,null,null,null,null,null,null,null,null,null,null,null,null,null,null,null,null,null,null,null,null,null,null,null,null,null,null,null,null,null,null,null,null,null,null,null,null,null,null,null,null,null,null,null,null,null,null,null,null,null,null,null,3,"Heat Pump (Air Cooled)","Split (3 Phase)",3,0,65000,null,14,null,8.1999999999999993,7.7,null,null,null,null,null,null,null,1,16,null,8.5,8.5,150,1,16,null,9,9,450]
[null,null,null,null,null,null,null,null,null,null,null,null,null,null,null,null,null,null,null,null,null,null,null,null,null,null,null,null,null,null,null,null,null,null,null,null,null,null,null,null,null,null,null,null,null,null,null,null,null,null,null,null,null,null,null,null,null,4,"Heat Pump (Air Cooled)","Package (3 Phase)",3,0,65000,null,14,null,8,7.7,null,null,null,null,null,null,null,1,16,null,8.1999999999999993,8.1999999999999993,150,1,16,null,8.1999999999999993,8.1999999999999993,450]
[null,null,null,null,null,null,null,null,null,null,null,null,null,null,null,null,null,null,null,null,null,null,null,null,null,null,null,null,null,null,null,null,null,null,null,null,null,null,null,null,null,null,null,null,null,null,null,null,null,null,null,null,null,null,null,null,null,5,"Heat Pump (Air Cooled)","Split (3 Phase) Package (3 Phase)",3,65000,135000,12.2,10.199999999999999,13.9,3.4,2.25,null,null,null,null,null,null,null,12.2,null,15.1,3.4,2.4,150]
[null,null,null,null,null,null,null,null,null,null,null,null,null,null,null,null,null,null,null,null,null,null,null,null,null,null,null,null,null,null,null,null,null,null,null,null,null,null,null,null,null,null,null,null,null,null,null,null,null,null,null,null,null,null,null,null,null,6,"Heat Pump (Air Cooled)","Split (3 Phase) Package (3 Phase)",3,135000,240000,13,9.5,13.3,3.3,2.0499999999999998,null,null,null,null,null,null,null,12.2,null,14.3,3.3,2.1,150]
[null,null,null,null,null,null,null,null,null,null,null,null,null,null,null,null,null,null,null,null,null,null,null,null,null,null,null,null,null,null,null,null,null,null,null,null,null,null,null,null,null,null,null,null,null,null,null,null,null,null,null,null,null,null,null,null,null,7,"Heat Pump (Air Cooled)","Split (3 Phase) Package (3 Phase)",3,240000,10000000,13,9.1999999999999993,12.3,3.2,2.0499999999999998,null,null,null,null,null,null,null,null,null,null,null,null,150]
[null,null,null,null,null,null,null,null,null,null,null,null,null,null,null,null,null,null,null,null,null,null,null,null,null,null,null,null,null,null,null,null,null,null,null,null,null,null,null,null,null,null,null,null,null,null,null,null,null,null,null,null,null,null,null,null,null,8,"Heat Pump (Water Cooled)",null,null,0,17000,12.2,null,{"$f":"BL322*1.15","v":14.029999999999998},4.3,4.3,null,null,null,null,null,null,null,14,null,null,4.5999999999999996,4.5999999999999996,100]
[null,null,null,null,null,null,null,null,null,null,null,null,null,null,null,null,null,null,null,null,null,null,null,null,null,null,null,null,null,null,null,null,null,null,null,null,null,null,null,null,null,null,null,null,null,null,null,null,null,null,null,null,null,null,null,null,null,9,"Heat Pump (Water Cooled)",null,null,17000,65000,13,null,{"$f":"BL323*1.15","v":14.95},4.3,4.3,null,null,null,null,null,null,null,14,null,null,4.5999999999999996,4.5999999999999996,100]
[null,null,null,null,null,null,null,null,null,null,null,null,null,null,null,null,null,null,null,null,null,null,null,null,null,null,null,null,null,null,null,null,null,null,null,null,null,null,null,null,null,null,null,null,null,null,null,null,null,null,null,null,null,null,null,null,null,10,"Heat Pump (Water Cooled)",null,null,65000,135000,13,null,{"$f":"BL324*1.15","v":14.95},4.3,4.3,null,null,null,null,null,null,null,14,null,null,4.5999999999999996,4.5999999999999996,100]
[null,null,null,null,null,null,null,null,null,null,null,null,null,null,null,null,null,null,null,null,null,null,null,null,null,null,null,null,null,null,null,null,null,null,null,null,null,null,null,null,null,null,null,null,null,null,null,null,null,null,null,null,null,null,null,null,null,11,"Unitary AC (Air Cooled)","Split (1 Phase)",1,0,45000,null,13,null,null,null,null,null,null,null,null,null,null,1,16,null,null,null,375,null,null,null,null,null,400]
[null,null,null,null,null,null,null,null,null,null,null,null,null,null,null,null,null,null,null,null,null,null,null,null,null,null,null,null,null,null,null,null,null,null,null,null,null,null,null,null,null,null,null,null,null,null,null,null,null,null,null,null,null,null,null,null,null,12,"Unitary AC (Air Cooled)","Split (1 Phase)",1,45000,65000,null,13,null,null,null,null,null,null,null,null,null,null,1,16,null,null,null,375,null,null,null,null,null,400]
[null,null,null,null,null,null,null,null,null,null,null,null,null,null,null,null,null,null,null,null,null,null,null,null,null,null,null,null,null,null,null,null,null,null,null,null,null,null,null,null,null,null,null,null,null,null,null,null,null,null,null,null,null,null,null,null,null,13,"Unitary AC (Air Cooled)","Package (1 Phase)",1,0,65000,null,14,null,null,null,null,null,null,null,null,null,null,1,16,null,null,null,375,null,null,null,null,null,400]
[null,null,null,null,null,null,null,null,null,null,null,null,null,null,null,null,null,null,null,null,null,null,null,null,null,null,null,null,null,null,null,null,null,null,null,null,null,null,null,null,null,null,null,null,null,null,null,null,null,null,null,null,null,null,null,null,null,14,"Unitary AC (Air Cooled)","Split (3 Phase)",3,0,65000,null,13,null,null,null,null,null,null,null,null,null,null,1,16,null,null,null,175,1,18,null,null,null,375]
[null,null,null,null,null,null,null,null,null,null,null,null,null,null,null,null,null,null,null,null,null,null,null,null,null,null,null,null,null,null,null,null,null,null,null,null,null,null,null,null,null,null,null,null,null,null,null,null,null,null,null,null,null,null,null,null,null,15,"Unitary AC (Air Cooled)","Package (3 Phase)",3,0,65000,null,14,null,null,null,null,null,null,null,null,null,null,1,16,null,null,null,175,1,17,null,null,null,375]
[null,null,null,null,null,null,null,null,null,null,null,null,null,null,null,null,null,null,null,null,null,null,null,null,null,null,null,null,null,null,null,null,null,null,null,null,null,null,null,null,null,null,null,null,null,null,null,null,null,null,null,null,null,null,null,null,null,16,"Unitary AC (Air Cooled)","Split (3 Phase) Package (3 Phase)",3,65000,135000,11,9.8000000000000007,14.6,null,null,null,null,null,null,null,null,null,11,null,13.8,null,null,150,11,null,17.8,null,null,325]
[null,null,null,null,null,null,null,null,null,null,null,null,null,null,null,null,null,null,null,null,null,null,null,null,null,null,null,null,null,null,null,null,null,null,null,null,null,null,null,null,null,null,null,null,null,null,null,null,null,null,null,null,null,null,null,null,null,17,"Unitary AC (Air Cooled)","Split (3 Phase) Package (3 Phase)",3,135000,240000,10.8,9.6999999999999993,14,null,null,null,null,null,null,null,null,null,10.8,null,13,null,null,125,10.8,null,16.8,null,null,225]
[null,null,null,null,null,null,null,null,null,null,null,null,null,null,null,null,null,null,null,null,null,null,null,null,null,null,null,null,null,null,null,null,null,null,null,null,null,null,null,null,null,null,null,null,null,null,null,null,null,null,null,null,null,null,null,null,null,18,"Unitary AC (Air Cooled)","Split (3 Phase) Package (3 Phase)",3,240000,760000,9.8000000000000007,9.6999999999999993,13,null,null,null,null,null,null,null,null,null,9.8000000000000007,null,12.1,null,null,150,9.8000000000000007,null,14.2,null,null,200]
[null,null,null,null,null,null,null,null,null,null,null,null,null,null,null,null,null,null,null,null,null,null,null,null,null,null,null,null,null,null,null,null,null,null,null,null,null,null,null,null,null,null,null,null,null,null,null,null,null,null,null,null,null,null,null,null,null,19,"Unitary AC (Air Cooled)","Split (3 Phase) Package (3 Phase)",3,760000,10000000,9.5,9.4,9.8000000000000007,null,null,null,null,null,null,null,null,null,9.5,null,12.1,null,null,75,9.5,null,14.2,null,null,150]
[null,null,null,null,null,null,null,null,null,null,null,null,null,null,null,null,null,null,null,null,null,null,null,null,null,null,null,null,null,null,null,null,null,null,null,null,null,null,null,null,null,null,null,null,null,null,null,null,null,null,null,null,null,null,null,null,null,20,"Ground-Source Heat Pump (Water-to-Air)","Closed Loop",null,0,10000000,13.4,null,{"$f":"BL334*1.15","v":15.409999999999998},3.1,3.1,null,null,null,null,null,null,null,17.100000000000001,null,null,3.6,3.6,150]
[null,null,null,null,null,null,null,null,null,null,null,null,null,null,null,null,null,null,null,null,null,null,null,null,null,null,null,null,null,null,null,null,null,null,null,null,null,null,null,null,null,null,null,null,null,null,null,null,null,null,null,null,null,null,null,null,null,21,"Ground-Source Heat Pump (Water-to-Air)","Open Loop",null,0,10000000,13.4,null,{"$f":"BL335*1.15","v":15.409999999999998},3.1,3.1,null,null,null,null,null,null,null,21.1,null,null,4.0999999999999996,4.0999999999999996,150]
[null,null,null,null,null,null,null,null,null,null,null,null,null,null,null,null,null,null,null,null,null,null,null,null,null,null,null,null,null,null,null,null,null,null,null,null,null,null,null,null,null,null,null,null,null,null,null,null,null,null,null,null,null,null,null,null,null,22,"Ground-Source Heat Pump (Water-to-Water)","Closed Loop",null,0,10000000,13.4,null,{"$f":"BL336*1.15","v":15.409999999999998},3.1,3.1,null,null,null,null,null,null,null,16.100000000000001,null,null,3.1,3.1,150]
[null,null,null,null,null,null,null,null,null,null,null,null,null,null,null,null,null,null,null,null,null,null,null,null,null,null,null,null,null,null,null,null,null,null,null,null,null,null,null,null,null,null,null,null,null,null,null,null,null,null,null,null,null,null,null,null,null,23,"Ground-Source Heat Pump (Water-to-Water)","Open Loop",null,0,10000000,13.4,null,{"$f":"BL337*1.15","v":15.409999999999998},3.1,3.1,null,null,null,null,null,null,null,20.100000000000001,null,null,3.5,3.5,150]
[null,null,null,null,null,null,null,null,null,null,null,null,null,null,null,null,null,null,null,null,null,null,null,null,null,null,null,null,null,null,null,null,null,null,null,null,null,null,null,null,null,null,null,null,null,null,null,null,null,null,null,null,null,null,null,null,null,24,"Ground-Source Heat Pump (DGX)",null,null,0,10000000,13.4,null,{"$f":"BL338*1.15","v":15.409999999999998},3.1,3.1,null,null,null,null,null,null,null,16,null,null,3.6,3.6,150]
[null,null,null,null,null,null,null,null,null,null,null,null,null,null,null,null,null,null,null,null,null,null,null,null,null,null,null,null,null,null,null,null,null,null,null,null,null,null,null,null,null,null,null,null,null,null,null,null,null,null,null,null,null,null,null,null,null,25,"Unitary AC (Water Cooled)","Split (1 Phase)",1,0,65000,12.1,null,12.3,null,null,null,null,null,null,null,null,null,14,null,12.3,null,null,100]
[null,null,null,null,null,null,null,null,null,null,null,null,null,null,null,null,null,null,null,null,null,null,null,null,null,null,null,null,null,null,null,null,null,null,null,null,null,null,null,null,null,null,null,null,null,null,null,null,null,null,null,null,null,null,null,null,null,26,"Unitary AC (Water Cooled)","Package (1 Phase)",1,0,65000,12.1,null,12.3,null,null,null,null,null,null,null,null,null,14,null,12.3,null,null,100]
[null,null,null,null,null,null,null,null,null,null,null,null,null,null,null,null,null,null,null,null,null,null,null,null,null,null,null,null,null,null,null,null,null,null,null,null,null,null,null,null,null,null,null,null,null,null,null,null,null,null,null,null,null,null,null,null,null,27,"Unitary AC (Water Cooled)","Split (3 Phase)",3,0,65000,12.1,null,12.3,null,null,null,null,null,null,null,null,null,14,null,12.3,null,null,100]
[null,null,null,null,null,null,null,null,null,null,null,null,null,null,null,null,null,null,null,null,null,null,null,null,null,null,null,null,null,null,null,null,null,null,null,null,null,null,null,null,null,null,null,null,null,null,null,null,null,null,null,null,null,null,null,null,null,28,"Unitary AC (Water Cooled)","Package (3 Phase)",3,0,65000,12.1,null,12.3,null,null,null,null,null,null,null,null,null,14,null,12.3,null,null,100]
[null,null,null,null,null,null,null,null,null,null,null,null,null,null,null,null,null,null,null,null,null,null,null,null,null,null,null,null,null,null,null,null,null,null,null,null,null,null,null,null,null,null,null,null,null,null,null,null,null,null,null,null,null,null,null,null,null,29,"Unitary AC (Water Cooled)","Split (3 Phase) Package (3 Phase)",3,65000,135000,11.9,null,12.3,null,null,null,null,null,null,null,null,null,11.9,null,15.1,null,null,100]
[null,null,null,null,null,null,null,null,null,null,null,null,null,null,null,null,null,null,null,null,null,null,null,null,null,null,null,null,null,null,null,null,null,null,null,null,null,null,null,null,null,null,null,null,null,null,null,null,null,null,null,null,null,null,null,null,null,30,"Unitary AC (Water Cooled)","Split (3 Phase) Package (3 Phase)",3,135000,240000,12.3,null,12.7,null,null,null,null,null,null,null,null,null,12.3,null,14.6,null,null,100]
[null,null,null,null,null,null,null,null,null,null,null,null,null,null,null,null,null,null,null,null,null,null,null,null,null,null,null,null,null,null,null,null,null,null,null,null,null,null,null,null,null,null,null,null,null,null,null,null,null,null,null,null,null,null,null,null,null,31,"Unitary AC (Water Cooled)","Split (3 Phase) Package (3 Phase)",3,240000,760000,12.2,null,12.6,null,null,null,null,null,null,null,null,null,12.3,null,14.6,null,null,100]
[null,null,null,null,null,null,null,null,null,null,null,null,null,null,null,null,null,null,null,null,null,null,null,null,null,null,null,null,null,null,null,null,null,null,null,null,null,null,null,null,null,null,null,null,null,null,null,null,null,null,null,null,null,null,null,null,null,32,"Unitary AC (Water Cooled)","Split (3 Phase) Package (3 Phase)",3,760000,10000000,12.2,null,12.4,null,null,null,null,null,null,null,null,null,12.3,null,14.6,null,null,100]
[null,null,null,null,null,null,null,null,null,null,null,null,null,null,null,null,null,null,null,null,null,null,null,null,null,null,null,null,null,null,null,null,null,null,null,null,null,null,null,null,null,null,null,null,null,null,null,null,null,null,null,null,null,null,null,null,null,33,"Unitary AC (Evaporatively Cooled)","Split (1 Phase)",1,0,65000,12.1,null,12.3,null,null,null,null,null,null,null,null,null,14,null,12.3,null,null,100]
[null,null,null,null,null,null,null,null,null,null,null,null,null,null,null,null,null,null,null,null,null,null,null,null,null,null,null,null,null,null,null,null,null,null,null,null,null,null,null,null,null,null,null,null,null,null,null,null,null,null,null,null,null,null,null,null,null,34,"Unitary AC (Evaporatively Cooled)","Package (1 Phase)",1,0,65000,12.1,null,12.3,null,null,null,null,null,null,null,null,null,14,null,12.3,null,null,100]
[null,null,null,null,null,null,null,null,null,null,null,null,null,null,null,null,null,null,null,null,null,null,null,null,null,null,null,null,null,null,null,null,null,null,null,null,null,null,null,null,null,null,null,null,null,null,null,null,null,null,null,null,null,null,null,null,null,35,"Unitary AC (Evaporatively Cooled)","Split (3 Phase)",3,0,65000,12.1,null,12.3,null,null,null,null,null,null,null,null,null,14,null,12.3,null,null,100]
[null,null,null,null,null,null,null,null,null,null,null,null,null,null,null,null,null,null,null,null,null,null,null,null,null,null,null,null,null,null,null,null,null,null,null,null,null,null,null,null,null,null,null,null,null,null,null,null,null,null,null,null,null,null,null,null,null,36,"Unitary AC (Evaporatively Cooled)","Package (3 Phase)",3,0,65000,12.1,null,12.3,null,null,null,null,null,null,null,null,null,14,null,12.3,null,null,100]
[null,null,null,null,null,null,null,null,null,null,null,null,null,null,null,null,null,null,null,null,null,null,null,null,null,null,null,null,null,null,null,null,null,null,null,null,null,null,null,null,null,null,null,null,null,null,null,null,null,null,null,null,null,null,null,null,null,37,"Unitary AC (Evaporatively Cooled)","Split (3 Phase) Package (3 Phase)",3,65000,135000,11.9,null,12.3,null,null,null,null,null,null,null,null,null,11.9,null,15.1,null,null,100]
[null,null,null,null,null,null,null,null,null,null,null,null,null,null,null,null,null,null,null,null,null,null,null,null,null,null,null,null,null,null,null,null,null,null,null,null,null,null,null,null,null,null,null,null,null,null,null,null,null,null,null,null,null,null,null,null,null,38,"Unitary AC (Evaporatively Cooled)","Split (3 Phase) Package (3 Phase)",3,135000,240000,11.8,null,12.2,null,null,null,null,null,null,null,null,null,11.8,null,14.1,null,null,100]
[null,null,null,null,null,null,null,null,null,null,null,null,null,null,null,null,null,null,null,null,null,null,null,null,null,null,null,null,null,null,null,null,null,null,null,null,null,null,null,null,null,null,null,null,null,null,null,null,null,null,null,null,null,null,null,null,null,39,"Unitary AC (Evaporatively Cooled)","Split (3 Phase) Package (3 Phase)",3,240000,760000,11.7,null,12.1,null,null,null,null,null,null,null,null,null,11.8,null,14.1,null,null,100]
[null,null,null,null,null,null,null,null,null,null,null,null,null,null,null,null,null,null,null,null,null,null,null,null,null,null,null,null,null,null,null,null,null,null,null,null,null,null,null,null,null,null,null,null,null,null,null,null,null,null,null,null,null,null,null,null,null,40,"Unitary AC (Evaporatively Cooled)","Split (3 Phase) Package (3 Phase)",3,760000,10000000,11.7,null,11.9,null,null,null,null,null,null,null,null,null,11.8,null,14.1,null,null,100]
[null,null,null,null,null,null,null,null,null,null,null,null,null,null,null,null,null,null,null,null,null,null,null,null,null,null,null,null,null,null,null,null,null,null,null,null,null,null,null,null,null,null,null,null,null,null,null,null,null,null,null,null,null,null,null,null,null,41,"VRF HP (Air Cooled)","Multi-split System",null,0,65000,10.87,13,null,8.1999999999999993,7.7,null,null,null,null,null,null,null,null,null,null,null,null,null,1,15,null,8.5,8.5,400]
[null,null,null,null,null,null,null,null,null,null,null,null,null,null,null,null,null,null,null,null,null,null,null,null,null,null,null,null,null,null,null,null,null,null,null,null,null,null,null,null,null,null,null,null,null,null,null,null,null,null,null,null,null,null,null,null,null,42,"VRF HP (Air Cooled)","Multi-split w/Heat Recovery",null,0,65000,10.87,13,null,8.1999999999999993,7.7,null,null,null,null,null,null,null,null,null,null,null,null,null,1,15,null,8.5,8.5,400]
[null,null,null,null,null,null,null,null,null,null,null,null,null,null,null,null,null,null,null,null,null,null,null,null,null,null,null,null,null,null,null,null,null,null,null,null,null,null,null,null,null,null,null,null,null,null,null,null,null,null,null,null,null,null,null,null,null,43,"VRF HP (Air Cooled)","Multi-split System",null,65000,135000,11,null,12.9,3.4,2.25,null,null,null,null,null,null,null,null,null,null,null,null,null,11,null,14.2,3.4,2.4,400]
[null,null,null,null,null,null,null,null,null,null,null,null,null,null,null,null,null,null,null,null,null,null,null,null,null,null,null,null,null,null,null,null,null,null,null,null,null,null,null,null,null,null,null,null,null,null,null,null,null,null,null,null,null,null,null,null,null,44,"VRF HP (Air Cooled)","Multi-split w/Heat Recovery",null,65000,135000,10.8,null,12.7,3.4,2.25,null,null,null,null,null,null,null,null,null,null,null,null,null,10.8,null,14,3.4,2.4,400]
[null,null,null,null,null,null,null,null,null,null,null,null,null,null,null,null,null,null,null,null,null,null,null,null,null,null,null,null,null,null,null,null,null,null,null,null,null,null,null,null,null,null,null,null,null,null,null,null,null,null,null,null,null,null,null,null,null,45,"VRF HP (Air Cooled)","Multi-split System",null,135000,240000,10.6,null,12.3,3.3,2.0499999999999998,null,null,null,null,null,null,null,null,null,null,null,null,null,10.6,null,13.7,3.2,2.1,400]
[null,null,null,null,null,null,null,null,null,null,null,null,null,null,null,null,null,null,null,null,null,null,null,null,null,null,null,null,null,null,null,null,null,null,null,null,null,null,null,null,null,null,null,null,null,null,null,null,null,null,null,null,null,null,null,null,null,46,"VRF HP (Air Cooled)","Multi-split w/Heat Recovery",null,135000,240000,10.4,null,12.1,3.3,2.0499999999999998,null,null,null,null,null,null,null,null,null,null,null,null,null,10.4,null,13.5,3.2,2.1,400]
[null,null,null,null,null,null,null,null,null,null,null,null,null,null,null,null,null,null,null,null,null,null,null,null,null,null,null,null,null,null,null,null,null,null,null,null,null,null,null,null,null,null,null,null,null,null,null,null,null,null,null,null,null,null,null,null,null,47,"VRF HP (Air Cooled)","Multi-split System",null,240000,10000000,9.5,null,11,3.2,2.0499999999999998,null,null,null,null,null,null,null,null,null,null,null,null,null,9.5,null,12.5,3.2,2.1,400]
[null,null,null,null,null,null,null,null,null,null,null,null,null,null,null,null,null,null,null,null,null,null,null,null,null,null,null,null,null,null,null,null,null,null,null,null,null,null,null,null,null,null,null,null,null,null,null,null,null,null,null,null,null,null,null,null,null,48,"VRF HP (Air Cooled)","Multi-split w/Heat Recovery",null,240000,10000000,9.3000000000000007,null,10.8,3.2,2.0499999999999998,null,null,null,null,null,null,null,null,null,null,null,null,null,9.3000000000000007,null,12.3,3.2,2.1,400]
[null,null,null,null,null,null,null,null,null,null,null,null,null,null,null,null,null,null,null,null,null,null,null,null,null,null,null,null,null,null,null,null,null,null,null,null,null,null,null,null,null,null,null,null,null,null,null,null,null,null,null,null,null,null,null,null,null,49,"VRF HP (Water Source)","Multi-split System",null,0,135000,12,null,{"$f":"BL363*1.15","v":13.799999999999999},4.3,4.2,null,null,null,null,null,null,null,null,null,null,null,null,null,14,null,null,4.5999999999999996,4.5999999999999996,400]
[null,null,null,null,null,null,null,null,null,null,null,null,null,null,null,null,null,null,null,null,null,null,null,null,null,null,null,null,null,null,null,null,null,null,null,null,null,null,null,null,null,null,null,null,null,null,null,null,null,null,null,null,null,null,null,null,null,50,"VRF HP (Water Source)","Multi-split w/Heat Recovery",null,0,135000,11.8,null,{"$f":"BL364*1.15","v":13.57},4.3,4.2,null,null,null,null,null,null,null,null,null,null,null,null,null,13.8,null,null,4.5999999999999996,4.5999999999999996,400]
[null,null,null,null,null,null,null,null,null,null,null,null,null,null,null,null,null,null,null,null,null,null,null,null,null,null,null,null,null,null,null,null,null,null,null,null,null,null,null,null,null,null,null,null,null,null,null,null,null,null,null,null,null,null,null,null,null,51]
[null,null,null,null,null,null,null,null,null,null,null,null,null,null,null,null,null,null,null,null,null,null,null,null,null,null,null,null,null,null,null,null,null,null,null,null,null,null,null,null,null,null,null,null,null,null,null,null,null,null,null,null,null,null,null,null,null,52]
[null,null,null,null,null,null,null,null,null,null,null,null,null,null,null,null,null,null,null,null,null,null,null,null,null,null,null,null,null,null,null,null,null,null,null,null,null,null,null,null,null,null,null,null,null,null,null,null,null,null,null,null,null,null,null,null,null,53]
[null,null,null,null,null,null,null,null,null,null,null,null,null,null,null,null,null,null,null,null,null,null,null,null,null,null,null,null,null,null,null,null,null,null,null,null,null,null,null,null,null,null,null,null,null,null,null,null,null,null,null,null,null,null,null,null,null,54]
[null,null,null,null,null,null,null,null,null,null,null,null,null,null,null,null,null,null,null,null,null,null,null,null,null,null,null,null,null,null,null,null,null,null,null,null,null,null,null,null,null,null,null,null,null,null,null,null,null,null,null,null,null,null,null,null,null,55]
[null,null,null,null,null,null,null,null,null,null,null,null,null,null,null,null,null,null,null,null,null,null,null,null,null,null,null,null,null,null,null,null,null,null,null,null,null,null,null,null,null,null,null,null,null,null,null,null,null,null,null,null,null,null,null,null,null,56]
[null,null,null,null,null,null,null,null,null,null,null,null,null,null,null,null,null,null,null,null,null,null,null,null,null,null,null,null,null,null,null,null,null,null,null,null,null,null,null,null,null,null,null,null,null,null,null,null,null,null,null,null,null,null,null,null,null,57]

{"sheet":"HELP","index":3,"n_rows":54,"n_cols":8,"rows_kept":54,"cut":false,"hidden":false,"merged":[[6,3,16,9],[1,1,2,11],[3,3,3,9],[4,1,4,11],[45,1,45,11],[35,1,35,11],[18,3,18,4],[29,5,31,5],[18,7,26,9],[24,5,27,5],[19,5,22,5],[32,5,33,5],[32,3,32,4],[33,3,33,4],[53,1,53,11],[54,3,54,9],[55,3,55,9],[46,3,46,9],[36,3,36,9],[37,1,37,11],[38,3,38,9]]}
[]
[null,"HVAC Calculator Tool Help"]
[]
[null,null,null,{"$f":"\"The HVAC Calculator Tool estimates savings attributed to the installation of unitary air-cooled air conditioners, air-source heat pumps and water-source heat pumps over an energy code baseline.\"&\"  The calculator will also provide incentive amounts available for equipment meeting \"&IF(InstallState=\"\",\"\",INDEX(Program_name,MATCH(InstallState,StateAbrev_List,0)))&\" program requirements.\"","v":"The HVAC Calculator Tool estimates savings attributed to the installation of unitary air-cooled air conditioners, air-source heat pumps and water-source heat pumps over an energy code baseline.  The calculator will also provide incentive amounts available for equipment meeting wattsmart Business program requirements."}]
[null,"Applicability"]
[]
[null,null,null,{"$f":"\"The HVAC Calculator Tool may be used to determine savings/incentives in each State where the \"&IF(InstallState=\"\",\"\",INDEX(Program_name,MATCH(InstallState,StateAbrev_List,0)))&\" program is offered, which includes Northern \" &\"California, Central and Southeast Washington, Southeast Idaho, and large areas of Wyoming and Utah.  \" &\n\"The tool computes savings by comparing the user-entered efficiency of the HVAC equipment to the minimum efficiency required by the respective state code.  \" &\"Required efficiencies may include the Energy Efficiency Ratio (EER), Seasonal Energy Efficiency Ratio (SEER), Integrated Energy Effeciency Ratio (IEER), Integrated Part \" &\"Load Value (IPLV, Coefficient of Performance (COP), and Heating Seasonal Performance Factor (HSPF).\n\" &\n\"\nEfficiencies and cooling capacities must meet or exceed minimum program requirements and be reported in accordance with the applicable testing standard as listed in the table below.\n\" &\n\"\nFor further details and requirements, please contact your project coordinator or visit wattsmart.com\"","v":"The HVAC Calculator Tool may be used to determine savings/incentives in each State where the wattsmart Business program is offered, which includes Northern California, Central and Southeast Washington, Southeast Idaho, and large areas of Wyoming and Utah.  The tool computes savings by comparing the user-entered efficiency of the HVAC equipment to the minimum efficiency required by the respective state code.  Required efficiencies may include the Energy Efficiency Ratio (EER), Seasonal Energy Efficiency Ratio (SEER), Integrated Energy Effeciency Ratio (IEER), Integrated Part Load Value (IPLV, Coefficient of Performance (COP), and Heating Seasonal Performance Factor (HSPF).\n\nEfficiencies and cooling capacities must meet or exceed minimum program requirements and be reported in accordance with the applicable testing standard as listed in the table below.\n\nFor further details and requirements, please contact your project coordinator or visit wattsmart.com"}]
[]
[]
[]
[]
[]
[]
[]
[]
[]
[]
[]
[null,null,null,"Equipment Type",null,"Testing Standard",null,"Note: \n\n-Incentives are not available for installations of condensing units only. \n\n-Equipment with a system classification of \"Split System\" must be tested as a complete system including: the indoor (coil) unit and the outdoor (condensing) unit.\n\n-If an AHRI certificate does not exist for the installed equipment, please contact your EEA coordinator by calling 1-866-415-9800."]
[null,null,null,"Unitary AC (Air Cooled)","<65,000 btu/h","AHRI 210/240"]
[null,null,null,"Unitary AC (Water Cooled) ","<65,000 btu/h"]
[null,null,null,"Unitary AC (Evaporitvely Cooled) ","<65,000 btu/h"]
[null,null,null,"Heat Pump (Air Cooled) ","<65,000 btu/h"]
[]
[null,null,null,"Unitary AC (Air Cooled) ","≥65,000 btu/h","AHRI 340/360"]
[null,null,null,"Unitary AC (Water Cooled)  ","≥65,000 btu/h"]
[null,null,null,"Unitary AC (Evaporitvely Cooled)  ","≥65,000 btu/h"]
[null,null,null,"Heat Pump (Air Cooled)","≥65,000 btu/h"]
[]
[null,null,null,"Heat Pump (Water Cooled)",null,"ISO 13256-1"]
[null,null,null,"Ground-Source Heat Pump"]
[null,null,null,"Groundwater Source Heat Pump"]
[null,null,null,"VRF Heat Pump (Air Cooled)",null,"AHRI 1230"]
[null,null,null,"VRF Heat Pump (Water Cooled)"]
[]
[null,"Instructions"]
[null,null,null,{"$f":"\"The user should input data into the yellow fields in the Project/Customer Information sections, identifying the business name, address, state, and utility account and meter numbers, in addition to the rate schedule the project location is served by.\"&\n\"\n\nUse the drop-down menus to select the equipment and system types in the blue fields identified in the Project Information and Energy/Cost Savings section.  Enter the AHRI cooling capacity in Btu/hr.\"&\n\"\n\nEach equipment type with a unique system type and size must be entered on a separate line.\"&\n\"\n\nOnce all required the data is entered, the HVAC Calculator will display the estimated savings and available incentive.  Click the 'Create Application' button for a PDF copy of the application. \"&\"\n\nTo submit follow the instructions as found in the application.\"&\"\n\nIf zeros are displayed, the equipment may not meet the minimum efficiency requirements to qualify for an incentive.  Please contact your project coordinator or refer to the Program Requirements tab for more information.\"","v":"The user should input data into the yellow fields in the Project/Customer Information sections, identifying the business name, address, state, and utility account and meter numbers, in addition to the rate schedule the project location is served by.\n\nUse the drop-down menus to select the equipment and system types in the blue fields identified in the Project Information and Energy/Cost Savings section.  Enter the AHRI cooling capacity in Btu/hr.\n\nEach equipment type with a unique system type and size must be entered on a separate line.\n\nOnce all required the data is entered, the HVAC Calculator will display the estimated savings and available incentive.  Click the 'Create Application' button for a PDF copy of the application. \n\nTo submit follow the instructions as found in the application.\n\nIf zeros are displayed, the equipment may not meet the minimum efficiency requirements to qualify for an incentive.  Please contact your project coordinator or refer to the Program Requirements tab for more information."}]
[null,"Applicable Energy Codes"]
[null,null,null,{"$f":"\"This calculator uses the energy codes listed below as the baseline for calculating energy savings.  If a different energy code applies, please contact \" & IF(InstallState=\"\",\"Rocky Mountain Power/Pacific Power\",INDEX(Lookups!$W$2:$W$6,MATCH(InstallState,Lookups!$V$2:$V$6,0))) & \".\"","v":"This calculator uses the energy codes listed below as the baseline for calculating energy savings.  If a different energy code applies, please contact Rocky Mountain Power."}]
[]
[null,null,null,null,{"$f":"\"Idaho: \"","v":"Idaho: "},{"$f":"INDEX(EnergyCodeBaseline_List,MATCH(\"ID\",StateAbrev_List,0))","v":"International Energy Conservation Code 2018"}]
[null,null,null,null,{"$f":"\"Utah: \"","v":"Utah: "},{"$f":"INDEX(EnergyCodeBaseline_List,MATCH(\"UT\",StateAbrev_List,0))","v":"International Energy Conservation Code 2021"}]
[null,null,null,null,{"$f":"\"Wyoming: \"","v":"Wyoming: "},{"$f":"INDEX(EnergyCodeBaseline_List,MATCH(\"WY\",StateAbrev_List,0))","v":"International Energy Conservation Code 2009"}]
[]
[]
[null,"Applicable Tariffs"]
[null,null,null,{"$f":"\"The incentives are calculated in accordance with the applicable state tariff, with the effective date for each as listed below.  For equipment purchased prior to these dates, please contact \" & IF(InstallState=\"\",\"Rocky Mountain Power/Pacific Power\",INDEX(Lookups!$W$2:$W$6,MATCH(InstallState,Lookups!$V$2:$V$6,0))) & \".\"","v":"The incentives are calculated in accordance with the applicable state tariff, with the effective date for each as listed below.  For equipment purchased prior to these dates, please contact Rocky Mountain Power."}]
[]
[null,null,null,null,"Idaho 115:  ",{"$f":"VLOOKUP(LEFT(E49,2),TariffTable,2,FALSE)","v":"March 15, 2023"}]
[null,null,null,null,"Utah 140:",{"$f":"VLOOKUP(LEFT(E50,2),TariffTable,2,FALSE)","v":"November 15, 2024"}]
[null,null,null,null,"Wyoming 140:",{"$f":"VLOOKUP(LEFT(E51,2),TariffTable,2,FALSE)","v":"March 15, 2023"}]
[]
[]
[null,"Note"]

{"sheet":"Application NEW","index":4,"n_rows":109,"n_cols":48,"rows_kept":109,"cut":false,"hidden":true,"merged":[[83,28,87,48],[77,28,82,48],[77,7,77,25],[80,7,80,25],[82,7,82,25],[85,7,85,25],[94,5,94,24],[95,5,95,24],[78,6,79,6],[78,7,79,25],[88,5,88,25],[92,5,92,25],[93,5,93,25],[86,7,86,25],[87,7,87,25],[89,5,91,25],[81,5,81,25],[83,6,84,6],[83,7,84,25],[93,28,93,48],[92,28,92,48],[88,28,91,48],[108,33,109,47],[100,33,104,47],[105,33,106,47],[98,33,98,47],[99,33,99,47],[102,7,102,31],[104,7,104,31],[106,7,106,31],[108,7,108,31],[96,5,96,24],[98,5,100,31],[55,5,55,28],[56,5,56,28],[55,29,55,48],[56,29,56,48],[75,7,75,25],[76,7,76,25],[65,5,65,48],[59,5,59,48],[61,6,61,20],[61,22,61,36],[61,38,61,47],[62,6,62,20],[62,22,62,36],[62,38,62,47],[68,5,68,25],[74,5,74,25],[72,7,73,25],[67,28,76,48],[58,5,58,48],[60,5,60,48],[67,5,67,25],[69,7,69,25],[70,7,70,25],[71,7,71,25],[37,5,37,48],[39,7,39,18],[41,7,41,18],[43,7,43,18],[45,7,45,18],[47,7,47,18],[40,20,47,47],[39,20,39,47],[53,5,53,28],[53,29,53,38],[53,39,53,43],[53,44,53,48],[54,5,54,28],[54,29,54,38],[54,39,54,43],[54,44,54,48],[50,5,50,48],[51,5,51,48],[52,5,52,48],[35,5,36,15],[35,16,36,28],[35,29,35,48],[36,29,36,48],[33,16,34,38],[33,5,34,15],[33,44,34,48],[33,39,34,43],[20,17,20,28],[20,29,20,48],[32,5,32,28],[32,29,32,38],[32,39,32,43],[32,44,32,48],[30,5,30,48],[31,5,31,28],[31,29,31,38],[31,39,31,43],[14,5,14,48],[11,5,11,17],[13,5,13,48],[9,5,9,48],[10,5,10,48],[18,5,18,28],[23,5,23,30],[23,31,23,48],[29,5,29,48],[19,17,19,27],[24,5,24,48],[25,7,25,15],[25,17,25,24],[25,26,25,30],[25,32,25,36],[25,38,25,42],[25,44,25,48],[18,29,18,48],[28,5,28,48],[19,5,19,16],[19,29,19,48],[20,5,20,16],[16,5,16,28],[16,29,16,38],[16,39,16,43],[16,44,16,48],[17,29,17,48],[17,5,17,28],[31,44,31,48],[22,5,22,48],[15,5,15,28],[15,29,15,38],[15,39,15,43],[15,44,15,48]]}
[]
[]
[]
[]
[]
[null,null,null,null,null,"General Application"]
[]
[]
[]
[null,null,null,null,null,"PARTICIPANT INFORMATION"]
[null,null,null,null,null,"(Check will be issued to the business name and address listed below unless the payment release section below has been filled out)"]
[null,null,null,null,null,"Participant is (check all that apply)",null,null,null,null,null,null,null,null,null,null,null,null,{"$f":"IF(CheckBoxLink_AccountHolder=TRUE,\"X\",\"\")","v":""},"Customer",null,null,null,null,null,{"$f":"IF(CheckBoxLink_FacilityOwner=TRUE,\"X\",\"\")","v":""},"Facility Owner",null,null,null,null,null,{"$f":"IF(CheckBoxLink_ElectricityUser=TRUE,\"X\",\"\")","v":""},"Tenant/Electricity user"]
[null,null,null,null,null,null,null,null,null,null,null,null,null,null,null,null,null,null,false,null,null,null,null,null,null,false,null,null,null,null,null,null,false]
[null,null,null,null,null,"Participant business name (As shown on income tax return):"]
[null,null,null,null,null,{"$f":"CustomerBusinessName","v":0}]
[null,null,null,null,null,"Mailing address:",null,null,null,null,null,null,null,null,null,null,null,null,null,null,null,null,null,null,null,null,null,null,null,"City:",null,null,null,null,null,null,null,null,null,"State:",null,null,null,null,"Zip:"]
[null,null,null,null,null,{"$f":"CustomerAddress","v":0},null,null,null,null,null,null,null,null,null,null,null,null,null,null,null,null,null,null,null,null,null,null,null,{"$f":"CustomerCity","v":0},null,null,null,null,null,null,null,null,null,{"$f":"CustomerState","v":"UT"},null,null,null,null,{"$f":"CustomerZip","v":0}]
[null,null,null,null,null,"Contact name:",null,null,null,null,null,null,null,null,null,null,null,null,null,null,null,null,null,null,null,null,null,null,null,"Contact title:"]
[null,null,null,null,null,{"$f":"CustomerContactName","v":0},null,null,null,null,null,null,null,null,null,null,null,null,null,null,null,null,null,null,null,null,null,null,null,{"$f":"CustomerContactTitle","v":0}]
[null,null,null,null,null,"Contact telephone number:",null,null,null,null,null,null,null,null,null,null,null,"Cell number:",null,null,null,null,null,null,null,null,null,null,false,"Contact email address:"]
[null,null,null,null,null,{"$f":"IF(CheckboxLink_CellPhone=FALSE,CustomerContactPhone,0)","v":0},null,null,null,null,null,null,null,null,null,null,null,{"$f":"IF(CheckboxLink_CellPhone=TRUE,CustomerContactPhone,0)","v":0},null,null,null,null,null,null,null,null,null,null,null,{"$f":"CustomerContactEmail","v":0}]
[]
[null,null,null,null,null,"TAXPAYER IDENTIFICATION (Must be complete in order to receive an incentive)"]
[null,null,null,null,null,"Participant Federal taxpayer ID number (EIN) or SS#:",null,null,null,null,null,null,null,null,null,null,null,null,null,null,null,null,null,null,null,null,null,null,null,null,null,"____ ____ ____ ____ ____ ____ ____ ____ ____"]
[null,null,null,null,null,"Please check the appropriate box:"]
[null,null,null,null,null,null,null,"Individual or Sole Proprietor",null,null,null,null,null,null,null,null,null,"LLC, LLP, or Partnership",null,null,null,null,null,null,null,null,"C Corporation",null,null,null,null,null,"S Corporation",null,null,null,null,null,"Trust/Estate",null,null,null,null,null,"Exempt Payee"]
[]
[]
[null,null,null,null,null,"PROJECT SITE INFORMATION"]
[null,null,null,null,null,"Facility/Project name:"]
[null,null,null,null,null,{"$f":"ProjectName","v":0}]
[null,null,null,null,null,"Facility address:",null,null,null,null,null,null,null,null,null,null,null,null,null,null,null,null,null,null,null,null,null,null,null,"City:",null,null,null,null,null,null,null,null,null,"State:",null,null,null,null,"Zip:"]
[null,null,null,null,null,{"$f":"InstallAddress","v":0},null,null,null,null,null,null,null,null,null,null,null,null,null,null,null,null,null,null,null,null,null,null,null,{"$f":"InstallCity","v":0},null,null,null,null,null,null,null,null,null,{"$f":"InstallState","v":"UT"},null,null,null,null,{"$f":"InstallZip","v":0}]
[null,null,null,null,null,"Commercial/Industrial electric account #:",null,null,null,null,null,null,null,null,null,null,{"$f":"AccountNumber","v":0},null,null,null,null,null,null,null,null,null,null,null,null,null,null,null,null,null,null,null,null,null,null,"Rate Schedule:",null,null,null,null,{"$f":"RateSchedule","v":0}]
[]
[null,null,null,null,null,"Electric meter number – seven or eight digits: (If multiple meters at site only enter one)",null,null,null,null,null,null,null,null,null,null,{"$f":"MeterNumber","v":0},null,null,null,null,null,null,null,null,null,null,null,null,"Customer name: (As shown on bill)"]
[null,null,null,null,null,null,null,null,null,null,null,null,null,null,null,null,null,null,null,null,null,null,null,null,null,null,null,null,null,{"$f":"AccountName","v":0}]
[null,null,null,null,null,"Please provide a description of your project so we may better help you: "]
[]
[null,null,null,null,null,null,null,"Lighting Retrofit",null,null,null,null,null,null,null,null,null,null,null,null,"Additional project information: (scope and schedule)"]
[]
[null,null,null,null,null,null,"X","Listed Equipment Incentives"]
[]
[null,null,null,null,null,null,{"$f":"IF(OR(ProjectType=\"New Construction\",ProjectType=\"Major Renovation\"),\"X\",\"\")","v":""},"New Construction"]
[]
[null,null,null,null,null,null,null,"Custom or Energy Management Incentives"]
[]
[null,null,null,null,null,null,null,"Other:________________________________"]
[]
[]
[null,null,null,null,null,"INCENTIVE ASSIGNMENT (Complete only if incentive is to be assigned to someone other than participant above)"]
[null,null,null,null,null,"Check should be made out to:"]
[null,null,null,null,null,{"$f":"IF(OR(IncentivePayeeSelector=\"Participant Business Address\",IncentivePayeeSelector=\"Project Address\"),\"n/a\",PayeeBusinessName)","v":"n/a"}]
[null,null,null,null,null,"Mailing address:",null,null,null,null,null,null,null,null,null,null,null,null,null,null,null,null,null,null,null,null,null,null,null,"City:",null,null,null,null,null,null,null,null,null,"State:",null,null,null,null,"Zip:"]
[null,null,null,null,null,{"$f":"IF(OR(IncentivePayeeSelector=\"Participant Business Address\",IncentivePayeeSelector=\"Project Address\"),\"n/a\",PayeeAddress)","v":"n/a"},null,null,null,null,null,null,null,null,null,null,null,null,null,null,null,null,null,null,null,null,null,null,null,{"$f":"IF(OR(IncentivePayeeSelector=\"Participant Business Address\",IncentivePayeeSelector=\"Project Address\"),\"n/a\",PayeeCity)","v":"n/a"},null,null,null,null,null,null,null,null,null,{"$f":"IF(OR(IncentivePayeeSelector=\"Participant Business Address\",IncentivePayeeSelector=\"Project Address\"),\"n/a\",PayeeState)","v":"n/a"},null,null,null,null,{"$f":"IF(OR(IncentivePayeeSelector=\"Participant Business Address\",IncentivePayeeSelector=\"Project Address\"),\"n/a\",PayeeZip)","v":"n/a"}]
[null,null,null,null,null,"Contact name:",null,null,null,null,null,null,null,null,null,null,null,null,null,null,null,null,null,null,null,null,null,null,null,"Contact telephone:"]
[null,null,null,null,null,{"$f":"IF(OR(IncentivePayeeSelector=\"Participant Business Address\",IncentivePayeeSelector=\"Project Address\"),\"n/a\",PayeeContactName)","v":"n/a"},null,null,null,null,null,null,null,null,null,null,null,null,null,null,null,null,null,null,null,null,null,null,null,{"$f":"IF(OR(IncentivePayeeSelector=\"Participant Business Address\",IncentivePayeeSelector=\"Project Address\"),\"n/a\",PayeeContactPhone)","v":"n/a"}]
[]
[null,null,null,null,null,"APPLICATION ACKNOWLEDGEMENT"]
[null,null,null,null,null,{"$f":"\"By my signature below, I certify that all information provided for participation will be accurate including but not limited to supplemental material and claims of \" & \"participant and equipment information. I confirm I have read, understand and agree with the TERMS AND CONDITIONS and agree to be bound by them. I authorize \" & INDEX(UtilityName_List,MATCH(InstallState,StateAbrev_List,0)) & \" to provide my electric account information to consultants associated with the wattsmart Business program.\"","v":"By my signature below, I certify that all information provided for participation will be accurate including but not limited to supplemental material and claims of participant and equipment information. I confirm I have read, understand and agree with the TERMS AND CONDITIONS and agree to be bound by them. I authorize Rocky Mountain Power to provide my electric account information to consultants associated with the wattsmart Business program."}]
[null,null,null,null,null,"                                                                            Under penalties of perjury, I certify that: 1) The taxpayer identification number is correct, and 2) I am not subject to backup withholding due to failure to report interest and dividend income, and 3) I am a U.S. citizen, resident alien or other U.S. person. The Internal Revenue Service does not require your consent to any provision of this document other than the certifications required to avoid backup withholding."]
[]
[null,null,null,null,null,null,"Signatory name & title (please print)",null,null,null,null,null,null,null,null,null,null,null,null,null,null,null,"Participant signature",null,null,null,null,null,null,null,null,null,null,null,null,null,null,null,"Date"]
[null,null,null,null,null,null,{"$f":"\"Effective \" & VLOOKUP(InstallState,HVAC!$AE$4:$AG$8,2,FALSE) & \"    v12/23/2013\"","v":"Effective November 15, 2024    v12/23/2013"},null,null,null,null,null,null,null,null,null,null,null,null,null,null,null,null,null,null,null,null,null,null,null,null,null,null,null,null,null,null,null,null,null,null,null,null,null,null,null,null,"wattsmart is registered in U.S. Patent and Trademark Office."]
[]
[null,null,null,null,null,"TERMS & CONDITIONS"]
[]
[null,null,null,null,null,"How to participate:",null,null,null,null,null,null,null,null,null,null,null,null,null,null,null,null,null,null,null,null,null,null,{"$f":"INDEX(UtilityName_List,MATCH(InstallState,StateAbrev_List,0)) & \" does not warrant the performance of qualifying installed equipment/energy management measures and does not warrant that the qualifying installed equipment/energy management measures will deliver any specified amount of energy or cost savings. \" & \"Participant shall independently evaluate any advice or direction given by \" & INDEX(UtilityName_List,MATCH(InstallState,StateAbrev_List,0)) & \" or its consultants related to the estimates of electricity savings or the cost, selection or installation of qualifying equipment/energy management measures. \" & \"In no event will \" & INDEX(UtilityName_List,MATCH(InstallState,StateAbrev_List,0)) & \" or its consultants be liable for the failure of the participant to achieve its expected amount of energy savings, for any personal injury or harm to participant’s facilities of any kind, \" & \"or for any incidental or consequential damages of any kind including hazardous material identification in connection with installation or inspection of qualifying equipment and energy management measures. \" & INDEX(UtilityName_List,MATCH(InstallState,StateAbrev_List,0)) & \" is not responsible if a third party provides inaccurate information about the amount and/or conditions of the actual incentive and \" & INDEX(UtilityName_List,MATCH(InstallState,StateAbrev_List,0)) & \" will not pay incentives for equipment that is mislabeled or misrepresented by third parties regarding incentive qualifications.\"","v":"Rocky Mountain Power does not warrant the performance of qualifying installed equipment/energy management measures and does not warrant that the qualifying installed equipment/energy management measures will deliver any specified amount of energy or cost savings. Participant shall independently evaluate any advice or direction given by Rocky Mountain Power or its consultants related to the estimates of electricity savings or the cost, selection or installation of qualifying equipment/energy management measures. In no event will Rocky Mountain Power or its consultants be liable for the failure of the participant to achieve its expected amount of energy savings, for any personal injury or harm to participant’s facilities of any kind, or for any incidental or consequential damages of any kind including hazardous material identification in connection with installation or inspection of qualifying equipment and energy management measures. Rocky Mountain Power is not responsible if a third party provides inaccurate information about the amount and/or conditions of the actual incentive and Rocky Mountain Power will not pay incentives for equipment that is mislabeled or misrepresented by third parties regarding incentive qualifications."}]
[null,null,null,null,null,"Typical incentives:"]
[null,null,null,null,null,null,"1.","Pre-qualification is recommended but not required."]
[null,null,null,null,null,null,"2.","Purchase and install qualifying equipment."]
[null,null,null,null,null,null,"3.","Complete general application, technology-specific supplemental equipment form(s), and IRS Form W-9."]
[null,null,null,null,null,null,"4.","Submit application and all required supplemental forms as directed on supplemental form(s)."]
[]
[null,null,null,null,null,"Lighting retrofit incentives: "]
[null,null,null,null,null,null,"1.","Pre-qualification is required prior to equipment purchase. Submit general application and IRS Form W-9 to your Project Manager or a wattsmart Business Vendor."]
[null,null,null,null,null,null,"2.","Participate in inspections prior to the installation or removal of any equipment."]
[null,null,null,null,null,null,"3.","Incentive offer will be provided to eligible participants. \nReturn signed incentive offer.",null,null,null,null,null,null,null,null,null,null,null,null,null,null,null,null,null,null,null,null,{"$f":"\"                             \" & \"  The incentive offer is an estimate. The final incentive will be based on actual electric savings and approved actual project costs incurred by the participant for implemented approved energy efficiency measures. \" & \"Participant agrees to provide any reasonable documentation to allow \" & INDEX(UtilityName_List,MATCH(InstallState,StateAbrev_List,0)) & \" to determine electric savings and actual costs incurred. To the extent that \" & INDEX(UtilityName_List,MATCH(InstallState,StateAbrev_List,0)) & \" determines (at its sole discretion) that any of the recommended measures have not been installed and commissioned in a satisfactory manner, \" & \"participant shall receive a reduced incentive, if any, based on the inspection and verification of installed and commissioned measures.\"","v":"                               The incentive offer is an estimate. The final incentive will be based on actual electric savings and approved actual project costs incurred by the participant for implemented approved energy efficiency measures. Participant agrees to provide any reasonable documentation to allow Rocky Mountain Power to determine electric savings and actual costs incurred. To the extent that Rocky Mountain Power determines (at its sole discretion) that any of the recommended measures have not been installed and commissioned in a satisfactory manner, participant shall receive a reduced incentive, if any, based on the inspection and verification of installed and commissioned measures."}]
[null,null,null,null,null,null,"4.","Complete project and notify your assigned Project Manager or wattsmart Vendor."]
[]
[null,null,null,null,null,null,"5.","Provide all required documentation and participate in any required inspections."]
[null,null,null,null,null,"Custom and energy management incentives: "]
[null,null,null,null,null,null,"1.","Pre-qualification is required prior to equipment purchase/project implementation. Submit general application and IRS Form W-9."]
[null,null,null,null,null,null,"2.","Participate in project scoping meeting(s), inspections and engineering analysis(s) prior to installation or removal of equipment. Provide additional supplemental applications or information as needed.",null,null,null,null,null,null,null,null,null,null,null,null,null,null,null,null,null,null,null,null,{"$f":"\"                                                               \"&\"If Participant terminates a material portion of its electric service requirements from \"&INDEX(UtilityName_List,MATCH(InstallState,StateAbrev_List,0))&\"for Participant's Facility within up to 120 months of the date of final incentive payment, Participant is obligated to repay the final incentive to \"&INDEX(UtilityName_List,MATCH(InstallState,StateAbrev_List,0))&\"within 30 days of written request. The repayment (\"\"Repayment\"\"\"&\") will be determined as follows:\"&CONCATENATE(\" Repayment = final incentive x (120-Savings Delivery Term)/120, where Savings Delivery Term = number of months between the month the Final Incentive payment was made and the month the Facility terminated a material portion of its electric service.\")&CONCATENATE(\"For determining the repayment, the dates will be the first day of the month in which they occur.\")","v":"                                                               If Participant terminates a material portion of its electric service requirements from Rocky Mountain Powerfor Participant's Facility within up to 120 months of the date of final incentive payment, Participant is obligated to repay the final incentive to Rocky Mountain Powerwithin 30 days of written request. The repayment (\"Repayment\") will be determined as follows: Repayment = final incentive x (120-Savings Delivery Term)/120, where Savings Delivery Term = number of months between the month the Final Incentive payment was made and the month the Facility terminated a material portion of its electric service.For determining the repayment, the dates will be the first day of the month in which they occur."}]
[]
[null,null,null,null,null,null,"3.","Incentive offer(s) will be provided to eligible participants. Return signed incentive offer within the required time."]
[null,null,null,null,null,null,"4.","Complete project and provide completion notification to your assigned Project Manager."]
[null,null,null,null,null,null,"5.","Provide all required documentation and participate in any required inspections."]
[null,null,null,null,null,{"$f":"\"                                                                     \" & \"In the event that \" & INDEX(UtilityName_List,MATCH(InstallState,StateAbrev_List,0)) & \" does not pay the incentive as a result of the participant’s failure to comply with the terms and conditions, the assignee’s sole recourse shall be against participant.\"","v":"                                                                     In the event that Rocky Mountain Power does not pay the incentive as a result of the participant’s failure to comply with the terms and conditions, the assignee’s sole recourse shall be against participant."},null,null,null,null,null,null,null,null,null,null,null,null,null,null,null,null,null,null,null,null,null,null,{"$f":"\"                                                                       \" & \"  Participant hereby transfers to \" & INDEX(UtilityName_List,MATCH(InstallState,StateAbrev_List,0)) & \" all \"\"Environmental Attributes\"\" attributable to the installation of the qualifying equipment or its operation. \" & \"Environmental Attributes include any and all credits, benefits, emissions reductions, offsets and allowances, howsoever entitled, resulting from the avoidance of the emission of any substance to the air, \" & \"soil or water at or by the company’s generating facilities, through reduced generation of energy or other savings or offsets on account of the qualifying equipment.  \" & \"Participant will not claim ownership of any Environmental Attributes.  \" & \"As long as participant at the same time states the installation of the qualifying equipment was made possible with funding from \" & INDEX(UtilityName_List,MATCH(InstallState,StateAbrev_List,0)) & \", participant may claim that it is facilitating the production of the Environmental Attributes attributable to the qualifying equipment.\"","v":"                                                                         Participant hereby transfers to Rocky Mountain Power all \"Environmental Attributes\" attributable to the installation of the qualifying equipment or its operation. Environmental Attributes include any and all credits, benefits, emissions reductions, offsets and allowances, howsoever entitled, resulting from the avoidance of the emission of any substance to the air, soil or water at or by the company’s generating facilities, through reduced generation of energy or other savings or offsets on account of the qualifying equipment.  Participant will not claim ownership of any Environmental Attributes.  As long as participant at the same time states the installation of the qualifying equipment was made possible with funding from Rocky Mountain Power, participant may claim that it is facilitating the production of the Environmental Attributes attributable to the qualifying equipment."}]
[null,null,null,null,null,{"$f":"\"                                               \" & \"   Participant agrees to cooperate with \" & INDEX(UtilityName_List,MATCH(InstallState,StateAbrev_List,0)) & \" and its consultants to conduct energy analysis and inspections at the participant's site. \" & INDEX(UtilityName_List,MATCH(InstallState,StateAbrev_List,0)) & \" reserves the right to inspect qualifying equipment/energy management measures, which may include a telephone survey, site visit, \" & \"and/or the installation of temporary monitoring equipment at any time up to 36 months after installation for quality control or program performance evaluations.\"","v":"                                                  Participant agrees to cooperate with Rocky Mountain Power and its consultants to conduct energy analysis and inspections at the participant's site. Rocky Mountain Power reserves the right to inspect qualifying equipment/energy management measures, which may include a telephone survey, site visit, and/or the installation of temporary monitoring equipment at any time up to 36 months after installation for quality control or program performance evaluations."}]
[]
[]
[null,null,null,null,null,{"$f":"\"                         \" & \"Neither \" & INDEX(UtilityName_List,MATCH(InstallState,StateAbrev_List,0)) & \" nor its Program Administrator is providing tax advice or responsible for any tax liability which may be imposed on the participant as a result of any incentive payment. \" & \"Participant may be responsible for the tax reporting to the IRS of any incentive payments directed to third parties.                                       \"","v":"                         Neither Rocky Mountain Power nor its Program Administrator is providing tax advice or responsible for any tax liability which may be imposed on the participant as a result of any incentive payment. Participant may be responsible for the tax reporting to the IRS of any incentive payments directed to third parties.                                       "},null,null,null,null,null,null,null,null,null,null,null,null,null,null,null,null,null,null,null,null,null,null,{"$f":"\"                                   \" & \"  Incentive qualifications and amounts are subject to change and termination at any time. \" & \"Visit the program’s website or contact a wattsmart Business vendor or \" & INDEX(UtilityName_List,MATCH(InstallState,StateAbrev_List,0)) & \" for current program information.\"","v":"                                     Incentive qualifications and amounts are subject to change and termination at any time. Visit the program’s website or contact a wattsmart Business vendor or Rocky Mountain Power for current program information."}]
[null,null,null,null,null,{"$f":"\"                                                                                        \" & \"Participants may not receive custom incentives in lieu of typical (listed) incentives. \" & \"Participants are responsible for ensuring that equipment installed for this program meets all applicable codes, standards, environmental regulations and regulatory requirements.\"","v":"                                                                                        Participants may not receive custom incentives in lieu of typical (listed) incentives. Participants are responsible for ensuring that equipment installed for this program meets all applicable codes, standards, environmental regulations and regulatory requirements."},null,null,null,null,null,null,null,null,null,null,null,null,null,null,null,null,null,null,null,null,null,null,{"$f":"\"                                                \" & \"Confidential information provided to \" & INDEX(UtilityName_List,MATCH(InstallState,StateAbrev_List,0)) & \" or consultants shall not be disclosed to any third party. Confidential information shall mean data disclosed during the course of the energy analysis, \" & \"and identified by the participant in writing as confidential. The obligation to protect confidential information will remain in force for two (2) years from the date the energy analysis is performed.\"","v":"                                                Confidential information provided to Rocky Mountain Power or consultants shall not be disclosed to any third party. Confidential information shall mean data disclosed during the course of the energy analysis, and identified by the participant in writing as confidential. The obligation to protect confidential information will remain in force for two (2) years from the date the energy analysis is performed."}]
[]
[null,null,null,null,null,"Application Supplemental"]
[null,null,null,null,null,"HVAC - Air-conditioners & Heat Pumps"]
[]
[null,null,null,null,null,"To apply for wattsmart Business incentives, complete this application supplement and send it with the general incentive application to the address to the right. Please review and confirm each of the qualifying criteria below, as applicable.",null,null,null,null,null,null,null,null,null,null,null,null,null,null,null,null,null,null,null,null,null,null,null,null,null,null,null,"Send completed application by email, mail, or fax to:"]
[null,null,null,null,null,null,null,null,null,null,null,null,null,null,null,null,null,null,null,null,null,null,null,null,null,null,null,null,null,null,null,null,null,{"$f":"INDEX(HVACEmail_List,MATCH(InstallState,StateAbrev_List,0))","v":"ut.hvacr@rockymountainpower.net"}]
[null,null,null,null,null,null,null,null,null,null,null,null,null,null,null,null,null,null,null,null,null,null,null,null,null,null,null,null,null,null,null,null,null,{"$f":"\"wattsmart Business\n\" &\nINDEX(MailAddress1_List,MATCH(InstallState,StateAbrev_List,0)) & \"\n\" &\nINDEX(MailCity_List,MATCH(InstallState,StateAbrev_List,0)) & \", \" & INDEX(MailState,MATCH(InstallState,StateAbrev_List,0)) & \"  \" & INDEX(MailZip_List,MATCH(InstallState,StateAbrev_List,0))","v":"wattsmart Business\n2223 S Highland Drive #E6-333\nSalt Lake City, UT  84106"}]
[]
[null,null,null,null,null,null,null,"Equipment is installed and operating at the site listed on the general application."]
[]
[null,null,null,null,null,null,null,"The dated sales receipt or invoice is included with labor and material costs itemized."]
[null,null,null,null,null,null,null,null,null,null,null,null,null,null,null,null,null,null,null,null,null,null,null,null,null,null,null,null,null,null,null,null,null,{"$f":"INDEX(ApplyToFaxNL_List,MATCH(InstallState,StateAbrev_List,0)) & \" - fax\"","v":"1-801-266-4786 - fax"}]
[null,null,null,null,null,null,null,"Manufacturer’s specification sheet for each installed equipment model is included."]
[]
[null,null,null,null,null,null,null,"Completed application is submitted within six months of project completion.",null,null,null,null,null,null,null,null,null,null,null,null,null,null,null,null,null,null,null,null,null,null,null,null,null,"For additional information or assistance,\nplease call 1-855-805-7231"]

{"sheet":"Program Requirements","index":5,"n_rows":151,"n_cols":28,"rows_kept":151,"cut":false,"hidden":true,"merged":[[37,3,37,5],[37,15,37,16],[1,2,1,15],[33,3,33,5],[33,15,33,16],[34,3,34,5],[34,15,34,16],[35,3,35,5],[35,15,35,16],[28,13,30,14],[28,15,30,16],[31,3,31,5],[31,15,31,16],[32,3,32,5],[24,15,24,16],[36,3,36,5],[27,2,27,5],[28,2,30,5],[28,6,30,6],[28,7,30,7],[28,8,30,8],[28,10,30,10],[28,11,30,12],[16,8,18,8],[24,3,24,5],[16,2,18,5],[16,9,18,9],[16,10,18,11],[25,15,25,16],[16,14,18,15],[25,3,25,5],[23,15,23,16],[19,3,19,5],[19,14,19,15],[20,3,20,5],[40,3,40,7],[43,7,44,7],[45,7,46,7],[7,3,7,5],[7,14,7,15],[8,3,8,5],[11,3,11,5],[11,15,11,16],[12,15,12,16],[13,3,13,5],[13,15,13,16],[36,15,36,16],[16,6,18,6],[16,7,18,7],[12,3,12,5],[16,12,18,13],[20,14,20,15],[21,3,21,5],[21,14,21,15],[22,3,22,5],[22,15,22,16],[23,3,23,5],[32,15,32,16],[15,2,15,5],[4,9,6,9],[4,10,6,11],[4,12,6,13],[4,14,6,15],[4,7,6,7],[4,8,6,8],[3,2,3,8],[10,3,10,5],[10,15,10,16],[8,14,8,15],[9,3,9,5],[9,14,9,15],[4,2,6,5],[4,6,6,6],[65,7,70,7],[65,3,70,5],[59,3,64,5],[47,7,48,7],[49,7,50,7],[51,6,52,6],[51,7,52,7],[53,6,54,6],[53,7,54,7],[61,6,62,6],[63,6,64,6],[65,6,66,6],[55,6,56,6],[57,6,58,6],[55,7,56,7],[57,7,58,7],[59,6,60,6],[59,7,64,7],[85,9,86,9],[85,10,86,10],[147,7,147,9],[148,7,148,9],[132,3,133,5],[134,8,135,10],[80,3,80,10],[81,3,81,10],[40,8,40,10],[41,3,41,5],[43,3,58,5],[43,6,46,6],[47,6,50,6],[71,3,71,10],[72,3,72,10],[73,3,73,10],[74,3,74,10],[75,3,75,10],[76,3,76,10],[77,3,77,10],[78,3,78,10],[79,3,79,10],[67,6,68,6],[69,6,70,6],[121,6,124,6],[130,3,131,5],[130,6,131,6],[101,3,108,5],[101,6,102,6],[103,6,104,6],[84,8,84,10],[151,3,151,6],[149,7,149,9],[150,7,150,9],[151,7,151,9],[145,3,145,10],[146,3,146,10],[147,3,147,5],[148,3,148,5],[149,3,149,5],[144,3,144,10],[132,6,133,6],[128,6,129,6],[126,6,127,6],[115,7,116,7],[119,7,120,7],[123,7,124,7],[85,6,86,6],[138,6,139,6],[140,3,140,10],[141,3,141,10],[142,3,142,10],[125,3,129,5],[85,7,86,7],[136,8,136,10],[137,8,137,10],[138,8,138,10],[139,8,139,10],[87,3,100,5],[87,6,90,6],[87,7,88,7],[89,7,90,7],[91,6,94,6],[91,7,92,7],[93,7,94,7],[95,6,96,6],[95,7,96,7],[97,6,98,6],[97,7,98,7],[99,6,100,6],[99,7,100,7],[121,7,122,7],[105,6,106,6],[107,6,108,6],[109,3,110,5],[109,6,110,6],[117,6,120,6],[117,7,118,7],[0,1,0,10],[0,11,0,16],[150,3,150,5],[84,3,84,7],[134,3,135,5],[134,6,135,6],[134,7,135,7],[143,3,143,10],[113,7,114,7],[111,7,112,7],[85,3,86,5],[111,6,112,6],[113,6,116,6],[111,3,124,5],[85,8,86,8],[136,3,137,5],[136,6,137,6],[138,3,139,5]]}
[null,{"$f":"IF(InstallState<>\"\",IF(InstallState=\"UT\",\"Utah\",IF(InstallState=\"WA\",\"Washington\",IF(InstallState=\"CA\",\"California\",IF(InstallState=\"WY\",\"Wyoming\",IF(InstallState=\"ID\",\"Idaho\",\"\"))))) & \" Program Incentive Offerings and \nEfficiency Requirements for HVAC Equipment\",\"You Must Select an Install State before viewing this page.\")","v":"Utah Program Incentive Offerings and \nEfficiency Requirements for HVAC Equipment"},null,null,null,null,null,null,null,null,null,{"$f":"IF(AND('HVAC-Tool'!#REF!=\"\",'HVAC-Tool'!#REF!=\"\"),\"You can see requirements specific to your equipment by selecting the HVAC Type and entering the cooling capacity under the Equipment Information section in the HVAC Tool for at least one equipment line.\",\"\")","v":{"$error":"#REF!"}}]
[null,null,{"$f":"\"Project-Specific HVAC Incentive Tiers and Minimum Efficiency Requirements\"","v":"Project-Specific HVAC Incentive Tiers and Minimum Efficiency Requirements"}]
[]
[null,null,null,null,null,null,null,null,null,null,null,null,null,null,null,{"$f":"IF(State=\"WY\",\"$100/Ton Incentive Tier\",\"$75/Ton Incentive Tier\")","v":"$75/Ton Incentive Tier"}]
[null,null,"HVAC Type\n(selected)",null,null,null,"System Type\n(selected)","Cooling Capacity (BTU/Hr)\n(selected)","Cooling Capacity\n(Tons)","Minimum\nEER","Minimum\nSEER /  IEER",null,"Minimum \n(HSPF / COP)",null,"Wet/Dry Bulb\nTemperature (F°)"]
[]
[]
[null,null,1,{"$f":"IF('HVAC-Tool'!#REF!=\"\",\"\",'HVAC-Tool'!#REF!)","v":{"$error":"#REF!"}},null,null,{"$f":"IF('HVAC-Tool'!#REF!=\"\",IF(OR('HVAC-Tool'!#REF!=\"Heat Pump (Water Cooled)\",'HVAC-Tool'!#REF!=\"Ground-Source Heat Pump\",'HVAC-Tool'!#REF!=\"Groundwater Source Heat Pump\"),\"\",\"selection needed\"),'HVAC-Tool'!#REF!)","v":{"$error":"#REF!"}},{"$f":"IF('HVAC-Tool'!#REF!=\"\",\"\",'HVAC-Tool'!#REF!)","v":{"$error":"#REF!"}},{"$f":"IF(H8=\"\",\"\",H8/12000)","v":{"$error":"#REF!"}},{"$f":"IF(I8=\"\",\"\",IF(VLOOKUP(HVAC!$Y17,HVAC!$BF$10:$CI$63,25)=0,\" - \",VLOOKUP(HVAC!$Y$17,HVAC!$BF$10:$CI$63,25)))","v":{"$error":"#REF!"}},{"$f":"IF(I8=\"\",\"\",IF(VLOOKUP(HVAC!$Y17,HVAC!$BF$10:$CI$63,IF(H20<65000,26,27))=0,\" - \",VLOOKUP(HVAC!$Y17,HVAC!$BF$10:$CI$63,IF(H20<65000,26,27))))","v":{"$error":"#REF!"}},{"$f":"IF(K8=\"\",\"\",IF(K8=\" - \",\" - \",IF(H8<65000,\"SEER\",\"IEER\")))","v":{"$error":"#REF!"}},{"$f":"IF(D8=\"\",\"\",IF(OR(D8=\"Unitary AC (Air Cooled)\",D8=\"Unitary AC (Water Cooled)\",D8=\"Unitary AC (Evaporatively Cooled)\"),\"n/a\",IF(VLOOKUP(HVAC!$Y17,HVAC!$BF$10:$CI$63,28)=0,\" - \",VLOOKUP(HVAC!$Y17,HVAC!$BF$10:$CI$63,28))))","v":{"$error":"#REF!"}},{"$f":"IF(M8=\"\",\"\",IF(M8=\"n/a\",\"n/a\",IF(M8=\" - \",\" - \",IF(H8<65000,\"HSPF\",\"COP\"))))","v":{"$error":"#REF!"}},{"$f":"IF(M8=\"\",\"\",IF(M8=\"n/a\",\"n/a\",IF(M8=\" - \",\" - \",\"47/43\")))","v":{"$error":"#REF!"}}]
[null,null,2,{"$f":"IF('HVAC-Tool'!#REF!=\"\",\"\",'HVAC-Tool'!#REF!)","v":{"$error":"#REF!"}},null,null,{"$f":"IF('HVAC-Tool'!#REF!=\"\",IF(OR('HVAC-Tool'!#REF!=\"Heat Pump (Water Cooled)\",'HVAC-Tool'!#REF!=\"Ground-Source Heat Pump\",'HVAC-Tool'!#REF!=\"Groundwater Source Heat Pump\"),\"\",\"selection needed\"),'HVAC-Tool'!#REF!)","v":{"$error":"#REF!"}},{"$f":"IF('HVAC-Tool'!#REF!=\"\",\"\",'HVAC-Tool'!#REF!)","v":{"$error":"#REF!"}},{"$error":"#REF!"},{"$f":"IF(I9=\"\",\"\",IF(VLOOKUP(HVAC!$Y18,HVAC!$BF$10:$CI$63,25)=0,\" - \",VLOOKUP(HVAC!$Y$17,HVAC!$BF$10:$CI$63,25)))","v":{"$error":"#REF!"}},{"$f":"IF(I9=\"\",\"\",IF(VLOOKUP(HVAC!$Y18,HVAC!$BF$10:$CI$63,IF(H21<65000,26,27))=0,\" - \",VLOOKUP(HVAC!$Y18,HVAC!$BF$10:$CI$63,IF(H21<65000,26,27))))","v":{"$error":"#REF!"}},{"$f":"IF(K9=\"\",\"\",IF(K9=\" - \",\" - \",IF(H9<65000,\"SEER\",\"IEER\")))","v":{"$error":"#REF!"}},{"$f":"IF(D9=\"\",\"\",IF(OR(D9=\"Unitary AC (Air Cooled)\",D9=\"Unitary AC (Water Cooled)\",D9=\"Unitary AC (Evaporatively Cooled)\"),\"n/a\",IF(VLOOKUP(HVAC!$Y18,HVAC!$BF$10:$CI$63,28)=0,\" - \",VLOOKUP(HVAC!$Y18,HVAC!$BF$10:$CI$63,28))))","v":{"$error":"#REF!"}},{"$f":"IF(M9=\"\",\"\",IF(M9=\"n/a\",\"n/a\",IF(M9=\" - \",\" - \",IF(H9<65000,\"HSPF\",\"COP\"))))","v":{"$error":"#REF!"}},{"$f":"IF(M9=\"\",\"\",IF(M9=\"n/a\",\"n/a\",IF(M9=\" - \",\" - \",\"47/43\")))","v":{"$error":"#REF!"}}]
[null,null,3,{"$f":"IF('HVAC-Tool'!#REF!=\"\",\"\",'HVAC-Tool'!#REF!)","v":{"$error":"#REF!"}},null,null,{"$f":"IF('HVAC-Tool'!#REF!=\"\",IF(OR('HVAC-Tool'!#REF!=\"Heat Pump (Water Cooled)\",'HVAC-Tool'!#REF!=\"Ground-Source Heat Pump\",'HVAC-Tool'!#REF!=\"Groundwater Source Heat Pump\"),\"\",\"selection needed\"),'HVAC-Tool'!#REF!)","v":{"$error":"#REF!"}},{"$f":"IF('HVAC-Tool'!#REF!=\"\",\"\",'HVAC-Tool'!#REF!)","v":{"$error":"#REF!"}},{"$error":"#REF!"},{"$f":"IF(I10=\"\",\"\",IF(VLOOKUP(HVAC!$Y19,HVAC!$BF$10:$CI$63,25)=0,\" - \",VLOOKUP(HVAC!$Y$17,HVAC!$BF$10:$CI$63,25)))","v":{"$error":"#REF!"}},{"$f":"IF(I10=\"\",\"\",IF(VLOOKUP(HVAC!$Y19,HVAC!$BF$10:$CI$63,IF(H22<65000,26,27))=0,\" - \",VLOOKUP(HVAC!$Y19,HVAC!$BF$10:$CI$63,IF(H22<65000,26,27))))","v":{"$error":"#REF!"}},{"$f":"IF(K10=\"\",\"\",IF(K10=\" - \",\" - \",IF(H10<65000,\"SEER\",\"IEER\")))","v":{"$error":"#REF!"}},{"$f":"IF(D10=\"\",\"\",IF(OR(D10=\"Unitary AC (Air Cooled)\",D10=\"Unitary AC (Water Cooled)\",D10=\"Unitary AC (Evaporatively Cooled)\"),\"n/a\",IF(VLOOKUP(HVAC!$Y19,HVAC!$BF$10:$CI$63,28)=0,\" - \",VLOOKUP(HVAC!$Y19,HVAC!$BF$10:$CI$63,28))))","v":{"$error":"#REF!"}},{"$f":"IF(M10=\"\",\"\",IF(M10=\"n/a\",\"n/a\",IF(M10=\" - \",\" - \",IF(H10<65000,\"HSPF\",\"COP\"))))","v":{"$error":"#REF!"}},{"$error":"#REF!"}]
[null,null,4,{"$f":"IF('HVAC-Tool'!#REF!=\"\",\"\",'HVAC-Tool'!#REF!)","v":{"$error":"#REF!"}},null,null,{"$f":"IF('HVAC-Tool'!#REF!=\"\",IF(OR('HVAC-Tool'!#REF!=\"Heat Pump (Water Cooled)\",'HVAC-Tool'!#REF!=\"Ground-Source Heat Pump\",'HVAC-Tool'!#REF!=\"Groundwater Source Heat Pump\"),\"\",\"selection needed\"),'HVAC-Tool'!#REF!)","v":{"$error":"#REF!"}},{"$f":"IF('HVAC-Tool'!#REF!=\"\",\"\",'HVAC-Tool'!#REF!)","v":{"$error":"#REF!"}},{"$error":"#REF!"},null,{"$f":"IF(I11=\"\",\"\",IF(VLOOKUP(HVAC!$Y20,HVAC!$BF$10:$CI$63,25)=0,\" - \",VLOOKUP(HVAC!$Y$17,HVAC!$BF$10:$CI$63,25)))","v":{"$error":"#REF!"}},{"$f":"IF(I11=\"\",\"\",IF(VLOOKUP(HVAC!$Y20,HVAC!$BF$10:$CI$63,IF(H23<65000,26,27))=0,\" - \",VLOOKUP(HVAC!$Y20,HVAC!$BF$10:$CI$63,IF(H23<65000,26,27))))","v":{"$error":"#REF!"}},{"$f":"IF(L11=\"\",\"\",IF(L11=\" - \",\" - \",IF(H11<65000,\"SEER\",\"IEER\")))","v":{"$error":"#REF!"}},{"$f":"IF(D11=\"\",\"\",IF(OR(D11=\"Unitary AC (Air Cooled)\",D11=\"Unitary AC (Water Cooled)\",D11=\"Unitary AC (Evaporatively Cooled)\"),\"n/a\",IF(VLOOKUP(HVAC!$Y20,HVAC!$BF$10:$CI$63,28)=0,\" - \",VLOOKUP(HVAC!$Y20,HVAC!$BF$10:$CI$63,28))))","v":{"$error":"#REF!"}},{"$f":"IF(N11=\"\",\"\",IF(N11=\"n/a\",\"n/a\",IF(N11=\" - \",\" - \",IF(H11<65000,\"HSPF\",\"COP\"))))","v":{"$error":"#REF!"}},{"$error":"#REF!"}]
[null,null,5,{"$f":"IF('HVAC-Tool'!#REF!=\"\",\"\",'HVAC-Tool'!#REF!)","v":{"$error":"#REF!"}},null,null,{"$f":"IF('HVAC-Tool'!#REF!=\"\",IF(OR('HVAC-Tool'!#REF!=\"Heat Pump (Water Cooled)\",'HVAC-Tool'!#REF!=\"Ground-Source Heat Pump\",'HVAC-Tool'!#REF!=\"Groundwater Source Heat Pump\"),\"\",\"selection needed\"),'HVAC-Tool'!#REF!)","v":{"$error":"#REF!"}},{"$f":"IF('HVAC-Tool'!#REF!=\"\",\"\",'HVAC-Tool'!#REF!)","v":{"$error":"#REF!"}},{"$error":"#REF!"},null,{"$f":"IF(I12=\"\",\"\",IF(VLOOKUP(HVAC!$Y21,HVAC!$BF$10:$CI$63,25)=0,\" - \",VLOOKUP(HVAC!$Y$17,HVAC!$BF$10:$CI$63,25)))","v":{"$error":"#REF!"}},{"$f":"IF(I12=\"\",\"\",IF(VLOOKUP(HVAC!$Y21,HVAC!$BF$10:$CI$63,IF(H24<65000,26,27))=0,\" - \",VLOOKUP(HVAC!$Y21,HVAC!$BF$10:$CI$63,IF(H24<65000,26,27))))","v":{"$error":"#REF!"}},{"$f":"IF(L12=\"\",\"\",IF(L12=\" - \",\" - \",IF(H12<65000,\"SEER\",\"IEER\")))","v":{"$error":"#REF!"}},{"$f":"IF(D12=\"\",\"\",IF(OR(D12=\"Unitary AC (Air Cooled)\",D12=\"Unitary AC (Water Cooled)\",D12=\"Unitary AC (Evaporatively Cooled)\"),\"n/a\",IF(VLOOKUP(HVAC!$Y21,HVAC!$BF$10:$CI$63,28)=0,\" - \",VLOOKUP(HVAC!$Y21,HVAC!$BF$10:$CI$63,28))))","v":{"$error":"#REF!"}},{"$f":"IF(N12=\"\",\"\",IF(N12=\"n/a\",\"n/a\",IF(N12=\" - \",\" - \",IF(H12<65000,\"HSPF\",\"COP\"))))","v":{"$error":"#REF!"}},{"$error":"#REF!"}]
[null,null,6,{"$f":"IF('HVAC-Tool'!#REF!=\"\",\"\",'HVAC-Tool'!#REF!)","v":{"$error":"#REF!"}},null,null,{"$f":"IF('HVAC-Tool'!#REF!=\"\",IF(OR('HVAC-Tool'!#REF!=\"Heat Pump (Water Cooled)\",'HVAC-Tool'!#REF!=\"Ground-Source Heat Pump\",'HVAC-Tool'!#REF!=\"Groundwater Source Heat Pump\"),\"\",\"selection needed\"),'HVAC-Tool'!#REF!)","v":{"$error":"#REF!"}},{"$f":"IF('HVAC-Tool'!#REF!=\"\",\"\",'HVAC-Tool'!#REF!)","v":{"$error":"#REF!"}},{"$error":"#REF!"},null,{"$f":"IF(I13=\"\",\"\",IF(VLOOKUP(HVAC!$Y22,HVAC!$BF$10:$CI$63,25)=0,\" - \",VLOOKUP(HVAC!$Y$17,HVAC!$BF$10:$CI$63,25)))","v":{"$error":"#REF!"}},{"$f":"IF(I13=\"\",\"\",IF(VLOOKUP(HVAC!$Y22,HVAC!$BF$10:$CI$63,IF(H25<65000,26,27))=0,\" - \",VLOOKUP(HVAC!$Y22,HVAC!$BF$10:$CI$63,IF(H25<65000,26,27))))","v":{"$error":"#REF!"}},{"$f":"IF(L13=\"\",\"\",IF(L13=\" - \",\" - \",IF(H13<65000,\"SEER\",\"IEER\")))","v":{"$error":"#REF!"}},{"$f":"IF(D13=\"\",\"\",IF(OR(D13=\"Unitary AC (Air Cooled)\",D13=\"Unitary AC (Water Cooled)\",D13=\"Unitary AC (Evaporatively Cooled)\"),\"n/a\",IF(VLOOKUP(HVAC!$Y22,HVAC!$BF$10:$CI$63,28)=0,\" - \",VLOOKUP(HVAC!$Y22,HVAC!$BF$10:$CI$63,28))))","v":{"$error":"#REF!"}},{"$f":"IF(N13=\"\",\"\",IF(N13=\"n/a\",\"n/a\",IF(N13=\" - \",\" - \",IF(H13<65000,\"HSPF\",\"COP\"))))","v":{"$error":"#REF!"}},{"$error":"#REF!"}]
[null,null,7,{"$f":"IF('HVAC-Tool'!#REF!=\"\",\"\",'HVAC-Tool'!#REF!)","v":{"$error":"#REF!"}},null,null,{"$f":"IF('HVAC-Tool'!#REF!=\"\",IF(OR('HVAC-Tool'!#REF!=\"Heat Pump (Water Cooled)\",'HVAC-Tool'!#REF!=\"Ground-Source Heat Pump\",'HVAC-Tool'!#REF!=\"Groundwater Source Heat Pump\"),\"\",\"selection needed\"),'HVAC-Tool'!#REF!)","v":{"$error":"#REF!"}},{"$f":"IF('HVAC-Tool'!#REF!=\"\",\"\",'HVAC-Tool'!#REF!)","v":{"$error":"#REF!"}},{"$error":"#REF!"},null,{"$f":"IF(I14=\"\",\"\",IF(VLOOKUP(HVAC!$Y23,HVAC!$BF$10:$CI$63,25)=0,\" - \",VLOOKUP(HVAC!$Y$17,HVAC!$BF$10:$CI$63,25)))","v":{"$error":"#REF!"}},{"$f":"IF(I14=\"\",\"\",IF(VLOOKUP(HVAC!$Y23,HVAC!$BF$10:$CI$63,IF(H26<65000,26,27))=0,\" - \",VLOOKUP(HVAC!$Y23,HVAC!$BF$10:$CI$63,IF(H26<65000,26,27))))","v":{"$error":"#REF!"}},{"$f":"IF(L14=\"\",\"\",IF(L14=\" - \",\" - \",IF(H14<65000,\"SEER\",\"IEER\")))","v":{"$error":"#REF!"}},{"$f":"IF(D14=\"\",\"\",IF(OR(D14=\"Unitary AC (Air Cooled)\",D14=\"Unitary AC (Water Cooled)\",D14=\"Unitary AC (Evaporatively Cooled)\"),\"n/a\",IF(VLOOKUP(HVAC!$Y23,HVAC!$BF$10:$CI$63,28)=0,\" - \",VLOOKUP(HVAC!$Y23,HVAC!$BF$10:$CI$63,28))))","v":{"$error":"#REF!"}},{"$f":"IF(N14=\"\",\"\",IF(N14=\"n/a\",\"n/a\",IF(N14=\" - \",\" - \",IF(H14<65000,\"HSPF\",\"COP\"))))","v":{"$error":"#REF!"}},{"$error":"#REF!"}]
[]
[null,null,null,null,null,null,null,null,null,null,null,null,null,null,null,null,{"$f":"IF(State=\"WY\",\"$75/Ton Incentive Tier\",\"$50/Ton Incentive Tier\")","v":"$50/Ton Incentive Tier"}]
[null,null,"HVAC Type\n(selected)",null,null,null,"System Type\n(selected)","Cooling Capacity (BTU/Hr)\n(selected)","Cooling Capacity\n(Tons)","Minimum\nEER","Minimum\nSEER /  IEER",null,"Minimum \n(HSPF / COP)",null,"Wet/Dry Bulb\nTemperature (F°)"]
[]
[]
[null,null,1,{"$f":"IF('HVAC-Tool'!#REF!=\"\",\"\",'HVAC-Tool'!#REF!)","v":{"$error":"#REF!"}},null,null,{"$f":"IF('HVAC-Tool'!#REF!=\"\",IF(OR('HVAC-Tool'!#REF!=\"Heat Pump (Water Cooled)\",'HVAC-Tool'!#REF!=\"Ground-Source Heat Pump\",'HVAC-Tool'!#REF!=\"Groundwater Source Heat Pump\"),\"\",\"selection needed\"),'HVAC-Tool'!#REF!)","v":{"$error":"#REF!"}},{"$f":"IF('HVAC-Tool'!#REF!=\"\",\"\",'HVAC-Tool'!#REF!)","v":{"$error":"#REF!"}},{"$f":"IF(H20=\"\",\"\",H20/12000)","v":{"$error":"#REF!"}},{"$f":"IF(I20=\"\",\"\",IF(VLOOKUP(HVAC!$Y17,HVAC!$BF$10:$CI$63,19)=0,\" - \",VLOOKUP(HVAC!$Y17,HVAC!$BF$10:$CI$63,19)))","v":{"$error":"#REF!"}},{"$f":"IF(I20=\"\",\"\",IF(VLOOKUP(HVAC!$Y17,HVAC!$BF$10:$CI$63,IF(H20<65000,20,21))=0,\" - \",VLOOKUP(HVAC!$Y17,HVAC!$BF$10:$CI$63,IF(H20<65000,20,21))))","v":{"$error":"#REF!"}},{"$f":"IF(K20=\"\",\"\",IF(K20=\" - \",\" - \",IF(H20<65000,\"SEER\",\"IEER\")))","v":{"$error":"#REF!"}},{"$f":"IF(D20=\"\",\"\",IF(OR(D20=\"Unitary AC (Air Cooled)\",D20=\"Unitary AC (Water Cooled)\",D20=\"Unitary AC (Evaporatively Cooled)\"),\"n/a\",IF(VLOOKUP(HVAC!$Y17,HVAC!$BF$10:$CI$63,22)=0,\" - \",VLOOKUP(HVAC!$Y17,HVAC!$BF$10:$CI$63,22))))","v":{"$error":"#REF!"}},{"$f":"IF(M20=\"\",\"\",IF(M20=\"n/a\",\"n/a\",IF(M20=\" - \",\" - \",IF(H20<65000,\"HSPF\",\"COP\"))))","v":{"$error":"#REF!"}},{"$f":"IF(M20=\"\",\"\",IF(M20=\"n/a\",\"n/a\",IF(M20=\" - \",\" - \",\"47/43\")))","v":{"$error":"#REF!"}}]
[null,null,2,{"$f":"IF('HVAC-Tool'!#REF!=\"\",\"\",'HVAC-Tool'!#REF!)","v":{"$error":"#REF!"}},null,null,{"$f":"IF('HVAC-Tool'!#REF!=\"\",IF(OR('HVAC-Tool'!#REF!=\"Heat Pump (Water Cooled)\",'HVAC-Tool'!#REF!=\"Ground-Source Heat Pump\",'HVAC-Tool'!#REF!=\"Groundwater Source Heat Pump\"),\"\",\"selection needed\"),'HVAC-Tool'!#REF!)","v":{"$error":"#REF!"}},{"$f":"IF('HVAC-Tool'!#REF!=\"\",\"\",'HVAC-Tool'!#REF!)","v":{"$error":"#REF!"}},{"$error":"#REF!"},{"$f":"IF(I21=\"\",\"\",IF(VLOOKUP(HVAC!$Y18,HVAC!$BF$10:$CI$63,19)=0,\" - \",VLOOKUP(HVAC!$Y18,HVAC!$BF$10:$CI$63,19)))","v":{"$error":"#REF!"}},{"$f":"IF(I21=\"\",\"\",IF(VLOOKUP(HVAC!$Y18,HVAC!$BF$10:$CI$63,IF(H21<65000,20,21))=0,\" - \",VLOOKUP(HVAC!$Y18,HVAC!$BF$10:$CI$63,IF(H21<65000,20,21))))","v":{"$error":"#REF!"}},{"$f":"IF(K21=\"\",\"\",IF(K21=\" - \",\" - \",IF(H21<65000,\"SEER\",\"IEER\")))","v":{"$error":"#REF!"}},{"$f":"IF(D21=\"\",\"\",IF(OR(D21=\"Unitary AC (Air Cooled)\",D21=\"Unitary AC (Water Cooled)\",D21=\"Unitary AC (Evaporatively Cooled)\"),\"n/a\",IF(VLOOKUP(HVAC!$Y18,HVAC!$BF$10:$CI$63,22)=0,\" - \",VLOOKUP(HVAC!$Y18,HVAC!$BF$10:$CI$63,22))))","v":{"$error":"#REF!"}},{"$f":"IF(M21=\"\",\"\",IF(M21=\"n/a\",\"n/a\",IF(M21=\" - \",\" - \",IF(H21<65000,\"HSPF\",\"COP\"))))","v":{"$error":"#REF!"}},{"$f":"IF(M21=\"\",\"\",IF(M21=\"n/a\",\"n/a\",IF(M21=\" - \",\" - \",\"47/43\")))","v":{"$error":"#REF!"}}]
[null,null,3,{"$f":"IF('HVAC-Tool'!#REF!=\"\",\"\",'HVAC-Tool'!#REF!)","v":{"$error":"#REF!"}},null,null,{"$f":"IF('HVAC-Tool'!#REF!=\"\",IF(OR('HVAC-Tool'!#REF!=\"Heat Pump (Water Cooled)\",'HVAC-Tool'!#REF!=\"Ground-Source Heat Pump\",'HVAC-Tool'!#REF!=\"Groundwater Source Heat Pump\"),\"\",\"selection needed\"),'HVAC-Tool'!#REF!)","v":{"$error":"#REF!"}},{"$f":"IF('HVAC-Tool'!#REF!=\"\",\"\",'HVAC-Tool'!#REF!)","v":{"$error":"#REF!"}},{"$error":"#REF!"},{"$f":"IF(I22=\"\",\"\",IF(VLOOKUP(HVAC!$Y19,HVAC!$BF$10:$CI$63,19)=0,\" - \",VLOOKUP(HVAC!$Y19,HVAC!$BF$10:$CI$63,19)))","v":{"$error":"#REF!"}},{"$f":"IF(I22=\"\",\"\",IF(VLOOKUP(HVAC!$Y19,HVAC!$BF$10:$CI$63,IF(H22<65000,20,21))=0,\" - \",VLOOKUP(HVAC!$Y19,HVAC!$BF$10:$CI$63,IF(H22<65000,20,21))))","v":{"$error":"#REF!"}},{"$f":"IF(K22=\"\",\"\",IF(K22=\" - \",\" - \",IF(H22<65000,\"SEER\",\"IEER\")))","v":{"$error":"#REF!"}},{"$f":"IF(D22=\"\",\"\",IF(OR(D22=\"Unitary AC (Air Cooled)\",D22=\"Unitary AC (Water Cooled)\",D22=\"Unitary AC (Evaporatively Cooled)\"),\"n/a\",IF(VLOOKUP(HVAC!$Y19,HVAC!$BF$10:$CI$63,22)=0,\" - \",VLOOKUP(HVAC!$Y19,HVAC!$BF$10:$CI$63,22))))","v":{"$error":"#REF!"}},{"$f":"IF(M22=\"\",\"\",IF(M22=\"n/a\",\"n/a\",IF(M22=\" - \",\" - \",IF(H22<65000,\"HSPF\",\"COP\"))))","v":{"$error":"#REF!"}},{"$error":"#REF!"}]
[null,null,4,{"$f":"IF('HVAC-Tool'!#REF!=\"\",\"\",'HVAC-Tool'!#REF!)","v":{"$error":"#REF!"}},null,null,{"$f":"IF('HVAC-Tool'!#REF!=\"\",IF(OR('HVAC-Tool'!#REF!=\"Heat Pump (Water Cooled)\",'HVAC-Tool'!#REF!=\"Ground-Source Heat Pump\",'HVAC-Tool'!#REF!=\"Groundwater Source Heat Pump\"),\"\",\"selection needed\"),'HVAC-Tool'!#REF!)","v":{"$error":"#REF!"}},{"$f":"IF('HVAC-Tool'!#REF!=\"\",\"\",'HVAC-Tool'!#REF!)","v":{"$error":"#REF!"}},{"$error":"#REF!"},null,{"$f":"IF(I23=\"\",\"\",IF(VLOOKUP(HVAC!$Y20,HVAC!$BF$10:$CI$63,19)=0,\" - \",VLOOKUP(HVAC!$Y20,HVAC!$BF$10:$CI$63,19)))","v":{"$error":"#REF!"}},{"$f":"IF(I23=\"\",\"\",IF(VLOOKUP(HVAC!$Y20,HVAC!$BF$10:$CI$63,IF(H23<65000,20,21))=0,\" - \",VLOOKUP(HVAC!$Y20,HVAC!$BF$10:$CI$63,IF(H23<65000,20,21))))","v":{"$error":"#REF!"}},{"$f":"IF(L23=\"\",\"\",IF(L23=\" - \",\" - \",IF(H23<65000,\"SEER\",\"IEER\")))","v":{"$error":"#REF!"}},{"$f":"IF(D23=\"\",\"\",IF(OR(D23=\"Unitary AC (Air Cooled)\",D23=\"Unitary AC (Water Cooled)\",D23=\"Unitary AC (Evaporatively Cooled)\"),\"n/a\",IF(VLOOKUP(HVAC!$Y20,HVAC!$BF$10:$CI$63,22)=0,\" - \",VLOOKUP(HVAC!$Y20,HVAC!$BF$10:$CI$63,22))))","v":{"$error":"#REF!"}},{"$f":"IF(N23=\"\",\"\",IF(N23=\"n/a\",\"n/a\",IF(N23=\" - \",\" - \",IF(H23<65000,\"HSPF\",\"COP\"))))","v":{"$error":"#REF!"}},{"$error":"#REF!"}]
[null,null,5,{"$f":"IF('HVAC-Tool'!#REF!=\"\",\"\",'HVAC-Tool'!#REF!)","v":{"$error":"#REF!"}},null,null,{"$f":"IF('HVAC-Tool'!#REF!=\"\",IF(OR('HVAC-Tool'!#REF!=\"Heat Pump (Water Cooled)\",'HVAC-Tool'!#REF!=\"Ground-Source Heat Pump\",'HVAC-Tool'!#REF!=\"Groundwater Source Heat Pump\"),\"\",\"selection needed\"),'HVAC-Tool'!#REF!)","v":{"$error":"#REF!"}},{"$f":"IF('HVAC-Tool'!#REF!=\"\",\"\",'HVAC-Tool'!#REF!)","v":{"$error":"#REF!"}},{"$error":"#REF!"},null,{"$f":"IF(I24=\"\",\"\",IF(VLOOKUP(HVAC!$Y21,HVAC!$BF$10:$CI$63,19)=0,\" - \",VLOOKUP(HVAC!$Y21,HVAC!$BF$10:$CI$63,19)))","v":{"$error":"#REF!"}},{"$f":"IF(I24=\"\",\"\",IF(VLOOKUP(HVAC!$Y21,HVAC!$BF$10:$CI$63,IF(H24<65000,20,21))=0,\" - \",VLOOKUP(HVAC!$Y21,HVAC!$BF$10:$CI$63,IF(H24<65000,20,21))))","v":{"$error":"#REF!"}},{"$f":"IF(L24=\"\",\"\",IF(L24=\" - \",\" - \",IF(H24<65000,\"SEER\",\"IEER\")))","v":{"$error":"#REF!"}},{"$f":"IF(D24=\"\",\"\",IF(OR(D24=\"Unitary AC (Air Cooled)\",D24=\"Unitary AC (Water Cooled)\",D24=\"Unitary AC (Evaporatively Cooled)\"),\"n/a\",IF(VLOOKUP(HVAC!$Y21,HVAC!$BF$10:$CI$63,22)=0,\" - \",VLOOKUP(HVAC!$Y21,HVAC!$BF$10:$CI$63,22))))","v":{"$error":"#REF!"}},{"$f":"IF(N24=\"\",\"\",IF(N24=\"n/a\",\"n/a\",IF(N24=\" - \",\" - \",IF(H24<65000,\"HSPF\",\"COP\"))))","v":{"$error":"#REF!"}},{"$error":"#REF!"}]
[null,null,6,{"$f":"IF('HVAC-Tool'!#REF!=\"\",\"\",'HVAC-Tool'!#REF!)","v":{"$error":"#REF!"}},null,null,{"$f":"IF('HVAC-Tool'!#REF!=\"\",IF(OR('HVAC-Tool'!#REF!=\"Heat Pump (Water Cooled)\",'HVAC-Tool'!#REF!=\"Ground-Source Heat Pump\",'HVAC-Tool'!#REF!=\"Groundwater Source Heat Pump\"),\"\",\"selection needed\"),'HVAC-Tool'!#REF!)","v":{"$error":"#REF!"}},{"$f":"IF('HVAC-Tool'!#REF!=\"\",\"\",'HVAC-Tool'!#REF!)","v":{"$error":"#REF!"}},{"$error":"#REF!"},null,{"$f":"IF(I25=\"\",\"\",IF(VLOOKUP(HVAC!$Y22,HVAC!$BF$10:$CI$63,19)=0,\" - \",VLOOKUP(HVAC!$Y22,HVAC!$BF$10:$CI$63,19)))","v":{"$error":"#REF!"}},{"$f":"IF(I25=\"\",\"\",IF(VLOOKUP(HVAC!$Y22,HVAC!$BF$10:$CI$63,IF(H25<65000,20,21))=0,\" - \",VLOOKUP(HVAC!$Y22,HVAC!$BF$10:$CI$63,IF(H25<65000,20,21))))","v":{"$error":"#REF!"}},{"$f":"IF(L25=\"\",\"\",IF(L25=\" - \",\" - \",IF(H25<65000,\"SEER\",\"IEER\")))","v":{"$error":"#REF!"}},{"$f":"IF(D25=\"\",\"\",IF(OR(D25=\"Unitary AC (Air Cooled)\",D25=\"Unitary AC (Water Cooled)\",D25=\"Unitary AC (Evaporatively Cooled)\"),\"n/a\",IF(VLOOKUP(HVAC!$Y22,HVAC!$BF$10:$CI$63,22)=0,\" - \",VLOOKUP(HVAC!$Y22,HVAC!$BF$10:$CI$63,22))))","v":{"$error":"#REF!"}},{"$f":"IF(N25=\"\",\"\",IF(N25=\"n/a\",\"n/a\",IF(N25=\" - \",\" - \",IF(H25<65000,\"HSPF\",\"COP\"))))","v":{"$error":"#REF!"}},{"$error":"#REF!"}]
[null,null,7,{"$f":"IF('HVAC-Tool'!#REF!=\"\",\"\",'HVAC-Tool'!#REF!)","v":{"$error":"#REF!"}},null,null,{"$f":"IF('HVAC-Tool'!#REF!=\"\",IF(OR('HVAC-Tool'!#REF!=\"Heat Pump (Water Cooled)\",'HVAC-Tool'!#REF!=\"Ground-Source Heat Pump\",'HVAC-Tool'!#REF!=\"Groundwater Source Heat Pump\"),\"\",\"selection needed\"),'HVAC-Tool'!#REF!)","v":{"$error":"#REF!"}},{"$f":"IF('HVAC-Tool'!#REF!=\"\",\"\",'HVAC-Tool'!#REF!)","v":{"$error":"#REF!"}},{"$error":"#REF!"},null,{"$f":"IF(I26=\"\",\"\",IF(VLOOKUP(HVAC!$Y23,HVAC!$BF$10:$CI$63,19)=0,\" - \",VLOOKUP(HVAC!$Y23,HVAC!$BF$10:$CI$63,19)))","v":{"$error":"#REF!"}},{"$f":"IF(I26=\"\",\"\",IF(VLOOKUP(HVAC!$Y23,HVAC!$BF$10:$CI$63,IF(H26<65000,20,21))=0,\" - \",VLOOKUP(HVAC!$Y23,HVAC!$BF$10:$CI$63,IF(H26<65000,20,21))))","v":{"$error":"#REF!"}},{"$f":"IF(L26=\"\",\"\",IF(L26=\" - \",\" - \",IF(H26<65000,\"SEER\",\"IEER\")))","v":{"$error":"#REF!"}},{"$f":"IF(D26=\"\",\"\",IF(OR(D26=\"Unitary AC (Air Cooled)\",D26=\"Unitary AC (Water Cooled)\",D26=\"Unitary AC (Evaporatively Cooled)\"),\"n/a\",IF(VLOOKUP(HVAC!$Y23,HVAC!$BF$10:$CI$63,22)=0,\" - \",VLOOKUP(HVAC!$Y23,HVAC!$BF$10:$CI$63,22))))","v":{"$error":"#REF!"}},{"$f":"IF(N26=\"\",\"\",IF(N26=\"n/a\",\"n/a\",IF(N26=\" - \",\" - \",IF(H26<65000,\"HSPF\",\"COP\"))))","v":{"$error":"#REF!"}},{"$error":"#REF!"}]
[]
[null,null,null,null,null,null,null,null,null,null,null,null,null,null,null,null,{"$f":"IF(State=\"WY\",\"$50/Ton Incentive Tier\",\"$25/Ton Incentive Tier\")","v":"$25/Ton Incentive Tier"}]
[null,null,"HVAC Type",null,null,null,"System Type","Cooling Capacity (BTU/Hr)","Cooling Capacity\n(Tons)",null,"Minimum\nEER","Minimum\nSEER /  IEER",null,"Minimum \n(HSPF / COP)",null,"Wet/Dry Bulb\nTemperature (F°)"]
[]
[]
[null,null,1,{"$f":"IF('HVAC-Tool'!#REF!=\"\",\"\",'HVAC-Tool'!#REF!)","v":{"$error":"#REF!"}},null,null,{"$f":"IF('HVAC-Tool'!#REF!=\"\",IF(OR('HVAC-Tool'!#REF!=\"Heat Pump (Water Cooled)\",'HVAC-Tool'!#REF!=\"Ground-Source Heat Pump\",'HVAC-Tool'!#REF!=\"Groundwater Source Heat Pump\"),\"\",\"selection needed\"),'HVAC-Tool'!#REF!)","v":{"$error":"#REF!"}},{"$f":"IF('HVAC-Tool'!#REF!=\"\",\"\",'HVAC-Tool'!#REF!)","v":{"$error":"#REF!"}},{"$f":"IF(H32=\"\",\"\",H32/12000)","v":{"$error":"#REF!"}},null,{"$f":"IF(I32=\"\",\"\",IF(VLOOKUP(HVAC!$Y17,HVAC!$BF$10:$CI$63,13)=0,\" - \",VLOOKUP(HVAC!$Y17,HVAC!$BF$10:$CI$63,13)))","v":{"$error":"#REF!"}},{"$f":"IF(I32=\"\",\"\",IF(VLOOKUP(HVAC!$Y17,HVAC!$BF$10:$CI$63,IF(H32<65000,14,15))=0,\" - \",VLOOKUP(HVAC!$Y17,HVAC!$BF$10:$CI$63,IF(H32<65000,14,15))))","v":{"$error":"#REF!"}},{"$f":"IF(L32=\"\",\"\",IF(L32=\" - \",\" - \",IF(H32<65000,\"SEER\",\"IEER\")))","v":{"$error":"#REF!"}},{"$f":"IF(D32=\"\",\"\",IF(OR(D32=\"Unitary AC (Air Cooled)\",D32=\"Unitary AC (Water Cooled)\",D32=\"Unitary AC (Evaporatively Cooled)\"),\"n/a\",IF(VLOOKUP(HVAC!$Y17,HVAC!$BF$10:$CI$63,16)=0,\" - \",VLOOKUP(HVAC!$Y17,HVAC!$BF$10:$CI$63,16))))","v":{"$error":"#REF!"}},{"$f":"IF(N32=\"\",\"\",IF(N32=\"n/a\",\"n/a\",IF(N32=\" - \",\" - \",IF(H32<65000,\"HSPF\",\"COP\"))))","v":{"$error":"#REF!"}},{"$f":"IF(N32=\"\",\"\",IF(N32=\"n/a\",\"n/a\",IF(N32=\" - \",\" - \",\"47/43\")))","v":{"$error":"#REF!"}}]
[null,null,2,{"$f":"IF('HVAC-Tool'!#REF!=\"\",\"\",'HVAC-Tool'!#REF!)","v":{"$error":"#REF!"}},null,null,{"$f":"IF('HVAC-Tool'!#REF!=\"\",IF(OR('HVAC-Tool'!#REF!=\"Heat Pump (Water Cooled)\",'HVAC-Tool'!#REF!=\"Ground-Source Heat Pump\",'HVAC-Tool'!#REF!=\"Groundwater Source Heat Pump\"),\"\",\"selection needed\"),'HVAC-Tool'!#REF!)","v":{"$error":"#REF!"}},{"$f":"IF('HVAC-Tool'!#REF!=\"\",\"\",'HVAC-Tool'!#REF!)","v":{"$error":"#REF!"}},{"$error":"#REF!"},null,{"$f":"IF(I33=\"\",\"\",IF(VLOOKUP(HVAC!$Y18,HVAC!$BF$10:$CI$63,13)=0,\" - \",VLOOKUP(HVAC!$Y18,HVAC!$BF$10:$CI$63,13)))","v":{"$error":"#REF!"}},{"$f":"IF(I33=\"\",\"\",IF(VLOOKUP(HVAC!$Y18,HVAC!$BF$10:$CI$63,IF(H33<65000,14,15))=0,\" - \",VLOOKUP(HVAC!$Y18,HVAC!$BF$10:$CI$63,IF(H33<65000,14,15))))","v":{"$error":"#REF!"}},{"$error":"#REF!"},{"$f":"IF(D33=\"\",\"\",IF(OR(D33=\"Unitary AC (Air Cooled)\",D33=\"Unitary AC (Water Cooled)\",D33=\"Unitary AC (Evaporatively Cooled)\"),\"n/a\",IF(VLOOKUP(HVAC!$Y18,HVAC!$BF$10:$CI$63,16)=0,\" - \",VLOOKUP(HVAC!$Y18,HVAC!$BF$10:$CI$63,16))))","v":{"$error":"#REF!"}},{"$error":"#REF!"},{"$f":"IF(N33=\"\",\"\",IF(N33=\"n/a\",\"n/a\",IF(N33=\" - \",\" - \",\"47/43\")))","v":{"$error":"#REF!"}}]
[null,null,3,{"$f":"IF('HVAC-Tool'!#REF!=\"\",\"\",'HVAC-Tool'!#REF!)","v":{"$error":"#REF!"}},null,null,{"$f":"IF('HVAC-Tool'!#REF!=\"\",IF(OR('HVAC-Tool'!#REF!=\"Heat Pump (Water Cooled)\",'HVAC-Tool'!#REF!=\"Ground-Source Heat Pump\",'HVAC-Tool'!#REF!=\"Groundwater Source Heat Pump\"),\"\",\"selection needed\"),'HVAC-Tool'!#REF!)","v":{"$error":"#REF!"}},{"$f":"IF('HVAC-Tool'!#REF!=\"\",\"\",'HVAC-Tool'!#REF!)","v":{"$error":"#REF!"}},{"$error":"#REF!"},null,{"$f":"IF(I34=\"\",\"\",IF(VLOOKUP(HVAC!$Y19,HVAC!$BF$10:$CI$63,13)=0,\" - \",VLOOKUP(HVAC!$Y19,HVAC!$BF$10:$CI$63,13)))","v":{"$error":"#REF!"}},{"$f":"IF(I34=\"\",\"\",IF(VLOOKUP(HVAC!$Y19,HVAC!$BF$10:$CI$63,IF(H34<65000,14,15))=0,\" - \",VLOOKUP(HVAC!$Y19,HVAC!$BF$10:$CI$63,IF(H34<65000,14,15))))","v":{"$error":"#REF!"}},{"$error":"#REF!"},{"$f":"IF(D34=\"\",\"\",IF(OR(D34=\"Unitary AC (Air Cooled)\",D34=\"Unitary AC (Water Cooled)\",D34=\"Unitary AC (Evaporatively Cooled)\"),\"n/a\",IF(VLOOKUP(HVAC!$Y19,HVAC!$BF$10:$CI$63,16)=0,\" - \",VLOOKUP(HVAC!$Y19,HVAC!$BF$10:$CI$63,16))))","v":{"$error":"#REF!"}},{"$error":"#REF!"},{"$error":"#REF!"}]
[null,null,4,{"$f":"IF('HVAC-Tool'!#REF!=\"\",\"\",'HVAC-Tool'!#REF!)","v":{"$error":"#REF!"}},null,null,{"$f":"IF('HVAC-Tool'!#REF!=\"\",IF(OR('HVAC-Tool'!#REF!=\"Heat Pump (Water Cooled)\",'HVAC-Tool'!#REF!=\"Ground-Source Heat Pump\",'HVAC-Tool'!#REF!=\"Groundwater Source Heat Pump\"),\"\",\"selection needed\"),'HVAC-Tool'!#REF!)","v":{"$error":"#REF!"}},{"$f":"IF('HVAC-Tool'!#REF!=\"\",\"\",'HVAC-Tool'!#REF!)","v":{"$error":"#REF!"}},{"$error":"#REF!"},null,{"$f":"IF(I35=\"\",\"\",IF(VLOOKUP(HVAC!$Y20,HVAC!$BF$10:$CI$63,13)=0,\" - \",VLOOKUP(HVAC!$Y20,HVAC!$BF$10:$CI$63,13)))","v":{"$error":"#REF!"}},{"$f":"IF(I35=\"\",\"\",IF(VLOOKUP(HVAC!$Y20,HVAC!$BF$10:$CI$63,IF(H35<65000,14,15))=0,\" - \",VLOOKUP(HVAC!$Y20,HVAC!$BF$10:$CI$63,IF(H35<65000,14,15))))","v":{"$error":"#REF!"}},{"$error":"#REF!"},{"$f":"IF(D35=\"\",\"\",IF(OR(D35=\"Unitary AC (Air Cooled)\",D35=\"Unitary AC (Water Cooled)\",D35=\"Unitary AC (Evaporatively Cooled)\"),\"n/a\",IF(VLOOKUP(HVAC!$Y20,HVAC!$BF$10:$CI$63,16)=0,\" - \",VLOOKUP(HVAC!$Y20,HVAC!$BF$10:$CI$63,16))))","v":{"$error":"#REF!"}},{"$error":"#REF!"},{"$error":"#REF!"}]
[null,null,5,{"$f":"IF('HVAC-Tool'!#REF!=\"\",\"\",'HVAC-Tool'!#REF!)","v":{"$error":"#REF!"}},null,null,{"$f":"IF('HVAC-Tool'!#REF!=\"\",IF(OR('HVAC-Tool'!#REF!=\"Heat Pump (Water Cooled)\",'HVAC-Tool'!#REF!=\"Ground-Source Heat Pump\",'HVAC-Tool'!#REF!=\"Groundwater Source Heat Pump\"),\"\",\"selection needed\"),'HVAC-Tool'!#REF!)","v":{"$error":"#REF!"}},{"$f":"IF('HVAC-Tool'!#REF!=\"\",\"\",'HVAC-Tool'!#REF!)","v":{"$error":"#REF!"}},{"$error":"#REF!"},null,{"$f":"IF(I36=\"\",\"\",IF(VLOOKUP(HVAC!$Y21,HVAC!$BF$10:$CI$63,13)=0,\" - \",VLOOKUP(HVAC!$Y21,HVAC!$BF$10:$CI$63,13)))","v":{"$error":"#REF!"}},{"$f":"IF(I36=\"\",\"\",IF(VLOOKUP(HVAC!$Y21,HVAC!$BF$10:$CI$63,IF(H36<65000,14,15))=0,\" - \",VLOOKUP(HVAC!$Y21,HVAC!$BF$10:$CI$63,IF(H36<65000,14,15))))","v":{"$error":"#REF!"}},{"$error":"#REF!"},{"$f":"IF(D36=\"\",\"\",IF(OR(D36=\"Unitary AC (Air Cooled)\",D36=\"Unitary AC (Water Cooled)\",D36=\"Unitary AC (Evaporatively Cooled)\"),\"n/a\",IF(VLOOKUP(HVAC!$Y21,HVAC!$BF$10:$CI$63,16)=0,\" - \",VLOOKUP(HVAC!$Y21,HVAC!$BF$10:$CI$63,16))))","v":{"$error":"#REF!"}},{"$error":"#REF!"},{"$error":"#REF!"}]
[null,null,6,{"$f":"IF('HVAC-Tool'!#REF!=\"\",\"\",'HVAC-Tool'!#REF!)","v":{"$error":"#REF!"}},null,null,{"$f":"IF('HVAC-Tool'!#REF!=\"\",IF(OR('HVAC-Tool'!#REF!=\"Heat Pump (Water Cooled)\",'HVAC-Tool'!#REF!=\"Ground-Source Heat Pump\",'HVAC-Tool'!#REF!=\"Groundwater Source Heat Pump\"),\"\",\"selection needed\"),'HVAC-Tool'!#REF!)","v":{"$error":"#REF!"}},{"$f":"IF('HVAC-Tool'!#REF!=\"\",\"\",'HVAC-Tool'!#REF!)","v":{"$error":"#REF!"}},{"$error":"#REF!"},null,{"$f":"IF(I37=\"\",\"\",IF(VLOOKUP(HVAC!$Y22,HVAC!$BF$10:$CI$63,13)=0,\" - \",VLOOKUP(HVAC!$Y22,HVAC!$BF$10:$CI$63,13)))","v":{"$error":"#REF!"}},{"$f":"IF(I37=\"\",\"\",IF(VLOOKUP(HVAC!$Y22,HVAC!$BF$10:$CI$63,IF(H37<65000,14,15))=0,\" - \",VLOOKUP(HVAC!$Y22,HVAC!$BF$10:$CI$63,IF(H37<65000,14,15))))","v":{"$error":"#REF!"}},{"$error":"#REF!"},{"$f":"IF(D37=\"\",\"\",IF(OR(D37=\"Unitary AC (Air Cooled)\",D37=\"Unitary AC (Water Cooled)\",D37=\"Unitary AC (Evaporatively Cooled)\"),\"n/a\",IF(VLOOKUP(HVAC!$Y22,HVAC!$BF$10:$CI$63,16)=0,\" - \",VLOOKUP(HVAC!$Y22,HVAC!$BF$10:$CI$63,16))))","v":{"$error":"#REF!"}},{"$error":"#REF!"},{"$error":"#REF!"}]
[null,null,7,{"$f":"IF('HVAC-Tool'!#REF!=\"\",\"\",'HVAC-Tool'!#REF!)","v":{"$error":"#REF!"}},null,null,{"$f":"IF('HVAC-Tool'!#REF!=\"\",IF(OR('HVAC-Tool'!#REF!=\"Heat Pump (Water Cooled)\",'HVAC-Tool'!#REF!=\"Ground-Source Heat Pump\",'HVAC-Tool'!#REF!=\"Groundwater Source Heat Pump\"),\"\",\"selection needed\"),'HVAC-Tool'!#REF!)","v":{"$error":"#REF!"}},{"$f":"IF('HVAC-Tool'!#REF!=\"\",\"\",'HVAC-Tool'!#REF!)","v":{"$error":"#REF!"}},{"$error":"#REF!"},null,{"$f":"IF(I38=\"\",\"\",IF(VLOOKUP(HVAC!$Y23,HVAC!$BF$10:$CI$63,13)=0,\" - \",VLOOKUP(HVAC!$Y23,HVAC!$BF$10:$CI$63,13)))","v":{"$error":"#REF!"}},{"$f":"IF(I38=\"\",\"\",IF(VLOOKUP(HVAC!$Y23,HVAC!$BF$10:$CI$63,IF(H38<65000,14,15))=0,\" - \",VLOOKUP(HVAC!$Y23,HVAC!$BF$10:$CI$63,IF(H38<65000,14,15))))","v":{"$error":"#REF!"}},{"$error":"#REF!"},{"$f":"IF(D38=\"\",\"\",IF(OR(D38=\"Unitary AC (Air Cooled)\",D38=\"Unitary AC (Water Cooled)\",D38=\"Unitary AC (Evaporatively Cooled)\"),\"n/a\",IF(VLOOKUP(HVAC!$Y23,HVAC!$BF$10:$CI$63,16)=0,\" - \",VLOOKUP(HVAC!$Y23,HVAC!$BF$10:$CI$63,16))))","v":{"$error":"#REF!"}},{"$error":"#REF!"},{"$error":"#REF!"}]
[]
[]
[null,null,null,{"$f":"\"A/C Efficiency Requirements & Incentive Levels\"","v":"A/C Efficiency Requirements & Incentive Levels"},null,null,null,null,"Minimum Efficiency Requirement(s) & Customer Incentive"]
[null,null,null,"Equipment Type",null,null,"Size Category","Sub-Category",{"$f":"IF(InstallState=\"WY\",\"Tier 1 $50/ton*\",IF(InstallState=\"CA\", \"Tier 1 $25/ton*\",\"\"))","v":""},{"$f":"IF(InstallState=\"WY\",\"Tier 2 $75/ton*\",\"CEE Tier 1 $50/ton*\")","v":"CEE Tier 1 $50/ton*"},{"$f":"IF(InstallState=\"WY\",\"Tier 3 $100/ton*\",\"CEE Tier 2 $75/ton*\")","v":"CEE Tier 2 $75/ton*"}]
[null,null,null,null,null,null,null,null,"Tier 0","Tier 1","Tier 2"]
[null,null,null,"Unitary Commercial Air Conditioners, \nAir-Cooled",null,null,"< 65, 000 Btu/hr (single phase)","Split System ",{"$f":"IF(INDIRECT(\"HVAC!\"&INDEX(INDIRECT($T44),MATCH(I$43,Tiers,0))&$S44)=0,\" -- \",INDIRECT(\"HVAC!\"&INDEX(INDIRECT($T44),MATCH(I$43,Tiers,0))&$S44)&\" \"&$T44)","v":" -- "},{"$f":"IF(INDIRECT(\"HVAC!\"&INDEX(INDIRECT($T44),MATCH(J$43,Tiers,0))&$S44)=0,\" -- \",INDIRECT(\"HVAC!\"&INDEX(INDIRECT($T44),MATCH(J$43,Tiers,0))&$S44)&\" \"&$T44)","v":"16 SEER"},"18 SEER",null,null,null,null,null,null,null,20,"SEER"]
[null,null,null,null,null,null,null,null," -- ","11 EER","11 EER",null,null,null,null,null,null,null,20,"EER"]
[null,null,null,null,null,null,null,"Single Package"," -- ","10000 SEER","10000 SEER",null,null,null,null,null,null,null,22,"SEER"]
[null,null,null,null,null,null,null,null," -- ","10000 EER","10000 EER",null,null,null,null,null,null,null,22,"EER"]
[null,null,null,null,null,null,"< 65, 000 Btu/hr (three phase)","Split System "," -- ","16 SEER","18 SEER",null,null,null,null,null,null,null,23,"SEER"]
[null,null,null,null,null,null,null,null," -- ","11 EER","11 EER",null,null,null,null,null,null,null,23,"EER"]
[null,null,null,null,null,null,null,"Single Package"," -- ","10000 SEER","10000 SEER",null,null,null,null,null,null,null,24,"SEER"]
[null,null,null,null,null,null,null,null," -- ","10000 EER","10000 EER",null,null,null,null,null,null,null,24,"EER"]
[null,null,null,null,null,null,"≥ 65,000 Btu/hr and < 135,000 Btu/hr","Split System and Single Package"," -- ","11 EER","11 EER",null,null,null,null,null,null,null,25,"EER"]
[null,null,null,null,null,null,null,null," -- ","16.1 IEER","17.8 IEER",null,null,null,null,null,null,null,25,"IEER"]
[null,null,null,null,null,null,"≥ 135,000 Btu/hr and < 240,000 Btu/hr","Split System and Single Package"," -- ","10.8 EER","10.8 EER",null,null,null,null,null,null,null,26,"EER"]
[null,null,null,null,null,null,null,null," -- ","15.4 IEER","16.8 IEER",null,null,null,null,null,null,null,26,"IEER"]
[null,null,null,null,null,null,"≥ 240,000 Btu/hr and < 760,000 Btu/hr","Split System and Single Package"," -- ","9.8 EER","9.8 EER",null,null,null,null,null,null,null,27,"EER"]
[null,null,null,null,null,null,null,null," -- ","14.3 IEER","15.6 IEER",null,null,null,null,null,null,null,27,"IEER"]
[null,null,null,null,null,null,"≥ 760,000 Btu/hr","Split System and Single Package"," -- ","9.5 EER","9.5 EER",null,null,null,null,null,null,null,28,"EER"]
[null,null,null,null,null,null,null,null," -- ","13.6 IEER","14.9 IEER",null,null,null,null,null,null,null,28,"IEER",null,null,null,null,null,"COP 47","COP 17"]
[null,null,null,"Unitary Commercial Air Conditioners, \nWater Cooled",null,null,"< 65,000 Btu/hr ","Split system and Single Package"," -- ","14 EER"," -- ",null,null,null,null,null,null,null,34,"EER",null,null,"EER","SEER ","IEER","COP","COP.","HSPF"]
[null,null,null,null,null,null,null,null," -- "," -- "," -- ",null,null,null,null,null,null,null,34,"IEER",null,"Tier 0","BR","BS","BT","BU","BV","BU"]
[null,null,null,null,null,null,"≥ 65,000 Btu/hr and < 135,000 Btu/hr",null," -- ","11.9 EER"," -- ",null,null,null,null,null,null,null,35,"EER",null,"Tier 1","BX","BY","BZ","CA","CB","CA"]
[null,null,null,null,null,null,null,null," -- ","15.1 IEER"," -- ",null,null,null,null,null,null,null,35,"IEER",null,"Tier 2","CD","CE","CF","CG","CH","CG"]
[null,null,null,null,null,null,"≥ 135,000 Btu/hr",null," -- ","12.3 EER"," -- ",null,null,null,null,null,null,null,36,"EER"]
[null,null,null,null,null,null,null,null," -- ","14.6 IEER"," -- ",null,null,null,null,null,null,null,36,"IEER"]
[null,null,null,"Unitary Commercial Air Conditioners, Evaporatively Cooled",null,null,"< 65,000 Btu/hr ","Split System and Single Package"," -- ","14 EER"," -- ",null,null,null,null,null,null,null,42,"EER"]
[null,null,null,null,null,null,null,null," -- "," -- "," -- ",null,null,null,null,null,null,null,42,"IEER"]
[null,null,null,null,null,null,"≥ 65,000 Btu/hr and < 135,000 Btu/hr",null," -- ","11.9 EER"," -- ",null,null,null,null,null,null,null,43,"EER"]
[null,null,null,null,null,null,null,null," -- ","15.1 IEER"," -- ",null,null,null,null,null,null,null,43,"IEER"]
[null,null,null,null,null,null,"≥ 135,000 Btu/hr",null," -- ","11.8 EER"," -- ",null,null,null,null,null,null,null,44,"EER"]
[null,null,null,null,null,null,null,null," -- ","14.1 IEER"," -- ",null,null,null,null,null,null,null,44,"IEER"]
[null,null,null,"1.        Equipment that meets or exceeds the efficiency requirements listed for the equipment category in the above table may qualify for the listed incentive. Equipment must meet both listed efficiency requirements to qualify for the listed incentives. "]
[null,null,null,"2.        Equipment size categories and capacities are specified in terms of net cooling capacity at AHRI standard conditions as determined by AHRI Standard 210/240 for units < 65,000 Btu/hr, AHRI Standard 340/360 for units ≥ 65,000 Btu/hr, and AHRI Standard 310/380 for PTAC and PTHP units."]
[null,null,null,"3.        Units rated only with an IPLV may qualify for the listed incentives if the value meets or exceeds the minimum IPLV established as part of the Consortium for Energy Efficiency Commercial Unitary Air Conditioning and Heat Pump Specification effective January 16, 2009."]
[]
[]
[null,null,null,"EER = Energy Efficiency Ratio"]
[null,null,null,"SEER = Seasonal Energy Efficiency Ratio"]
[null,null,null,"IEER = Integrated Energy Efficiency Ratio"]
[null,null,null,"IPLV = Integrated Part Load Value"]
[null,null,null,"CEE = Consortium for Energy Efficiency"]
[null,null,null,"AHRI = Air Conditioning, Heating, and Refrigeration Institute"]
[]
[]
[null,null,null,{"$f":"\"Heat Pump Efficiency Requirements & Incentive Levels\"","v":"Heat Pump Efficiency Requirements & Incentive Levels"},null,null,null,null,"Minimum Efficiency Requirement(s) & Customer Incentive"]
[null,null,null,"Equipment Type",null,null,"Size Category","Sub-Category","Tier 1 $25/ton*",{"$f":"IF(InstallState=\"WY\",\"Tier 2 $75/ton*\",\"CEE Tier 1 $50/ton*\")","v":"CEE Tier 1 $50/ton*"},{"$f":"IF(InstallState=\"WY\",\"Tier 2 $75/ton*\",\"CEE Tier 2 $75/ton*\")","v":"CEE Tier 2 $75/ton*"}]
[]
[null,null,null,"Heat Pumps, Air-Cooled (Cooling Mode)",null,null,"< 65, 000 Btu/hr (single phase)","Split System",{"$f":"IF(INDIRECT(\"HVAC!\"&INDEX(INDIRECT($T88),MATCH(I$43,Tiers,0))&$S88)=0,\" -- \",INDIRECT(\"HVAC!\"&INDEX(INDIRECT($T88),MATCH(I$43,Tiers,0))&$S88)&\"  \"&$T88)","v":" -- "},"16  SEER"," -- ",null,null,null,null,null,null,null,10,"SEER"]
[null,null,null,null,null,null,null,null," -- "," -- "," -- ",null,null,null,null,null,null,null,10,"EER"]
[null,null,null,null,null,null,null,"Single Package"," -- ","16  SEER"," -- ",null,null,null,null,null,null,null,11,"SEER"]
[null,null,null,null,null,null,null,null," -- "," -- "," -- ",null,null,null,null,null,null,null,11,"EER"]
[null,null,null,null,null,null,"< 65, 000 Btu/hr (three phase)","Split System","16  SEER","16  SEER"," -- ",null,null,null,null,null,null,null,12,"SEER"]
[null,null,null,null,null,null,null,null," -- "," -- "," -- ",null,null,null,null,null,null,null,12,"EER"]
[null,null,null,null,null,null,null,"Single Package","16  SEER","16  SEER"," -- ",null,null,null,null,null,null,null,13,"SEER"]
[null,null,null,null,null,null,null,null," -- "," -- "," -- ",null,null,null,null,null,null,null,13,"EER"]
[null,null,null,null,null,null,"≥ 65,000 Btu/hr and < 135,000 Btu/hr","Split system and single package","10.8  EER"," -- "," -- ",null,null,null,null,null,null,null,14,"EER"]
[null,null,null,null,null,null,null,null,"14.6  IEER"," -- "," -- ",null,null,null,null,null,null,null,14,"IEER"]
[null,null,null,null,null,null,"≥ 135,000 Btu/hr and < 240,000 Btu/hr","Split system and single package","10.4  EER"," -- "," -- ",null,null,null,null,null,null,null,15,"EER"]
[null,null,null,null,null,null,null,null,"13.8  IEER"," -- "," -- ",null,null,null,null,null,null,null,15,"IEER"]
[null,null,null,null,null,null,"≥ 240,000 Btu/hr ","Split system and single package","9.3  EER"," -- "," -- ",null,null,null,null,null,null,null,16,"EER"]
[null,null,null,null,null,null,null,null,"12.8  IEER"," -- "," -- ",null,null,null,null,null,null,null,16,"IEER"]
[null,null,null,"Heat Pumps, Air-Cooled (Heating Mode) (See Note 2)",null,null,"< 65, 000 Btu/hr  (single phase)","Split system"," -- ","9.2  HSPF"," -- ",null,null,null,null,null,null,null,10,"HSPF"]
[null,null,null,null,null,null,null,"Single package"," -- ","8.5  HSPF"," -- ",null,null,null,null,null,null,null,11,"HSPF"]
[null,null,null,null,null,null,"< 65, 000 Btu/hr  (three phase)","Split system","8.5  HSPF","9.2  HSPF"," -- ",null,null,null,null,null,null,null,12,"HSPF"]
[null,null,null,null,null,null,null,"Single package","8.2  HSPF","8.5  HSPF"," -- ",null,null,null,null,null,null,null,13,"HSPF"]
[null,null,null,null,null,null,"≥ 65,000 Btu/hr and < 135,000 Btu/hr","47°F db/43°F wb outdoor air","3.4  COP"," -- "," -- ",null,null,null,null,null,null,null,14,"COP"]
[null,null,null,null,null,null,null,"17°F db/15°F wb outdoor air","2.4  COP."," -- "," -- ",null,null,null,null,null,null,null,14,"COP."]
[null,null,null,null,null,null,"≥ 135,000 Btu/hr","47°F db/43°F wb outdoor air","3.3  COP"," -- "," -- ",null,null,null,null,null,null,null,15,"COP"]
[null,null,null,null,null,null,null,"17°F db/15°F wb outdoor air","2.1  COP."," -- "," -- ",null,null,null,null,null,null,null,15,"COP."]
[null,null,null,"Heat Pumps, Water-Source (See note 2)",null,null,"< 135,000 Btu/hr","86°F Entering Water (Cooling Mode)"," -- ","14  EER"," -- ",null,null,null,null,null,null,null,17,"EER"]
[null,null,null,null,null,null,null,"68°F Entering Water (Heating Mode)"," -- ","4.6  COP"," -- ",null,null,null,null,null,null,null,17,"COP"]
[null,null,null,"Variable Refrigerant Flow Heat Pumps, Air-Cooled (Cooling Mode)",null,null,"< 65, 000 Btu/hr ","Multi-split System",{"$f":"IF(INDIRECT(\"HVAC!\"&INDEX(INDIRECT($T112),MATCH(I$43,Tiers,0))&$S112)=0,\" -- \",INDIRECT(\"HVAC!\"&INDEX(INDIRECT($T112),MATCH(I$43,Tiers,0))&$S112)&\"  \"&$T112)","v":" -- "}," -- ","15.2  SEER",null,null,null,null,null,null,null,47,"SEER"]
[null,null,null,null,null,null,null,null," -- "," -- ","1  EER",null,null,null,null,null,null,null,47,"EER"]
[null,null,null,null,null,null,"≥ 65,000 Btu/hr and < 135,000 Btu/hr","Multi-split System"," -- "," -- ","10.8  EER",null,null,null,null,null,null,null,49,"EER"]
[null,null,null,null,null,null,null,null," -- "," -- ","17  IEER",null,null,null,null,null,null,null,49,"IEER"]
[null,null,null,null,null,null,null,"Multi-split System with\n Heat Recovery"," -- "," -- ","10.8  EER",null,null,null,null,null,null,null,50,"EER"]
[null,null,null,null,null,null,null,null," -- "," -- ","17  IEER",null,null,null,null,null,null,null,50,"IEER"]
[null,null,null,null,null,null,"≥ 135,000 Btu/hr and < 240,000 Btu/hr","Multi-split System"," -- "," -- ","10.4  EER",null,null,null,null,null,null,null,51,"EER"]
[null,null,null,null,null,null,null,null," -- "," -- ","16.4  IEER",null,null,null,null,null,null,null,51,"IEER"]
[null,null,null,null,null,null,null,"Multi-split System with\n Heat Recovery"," -- "," -- ","10.4  EER",null,null,null,null,null,null,null,52,"EER"]
[null,null,null,null,null,null,null,null," -- "," -- ","16.4  IEER",null,null,null,null,null,null,null,52,"IEER"]
[null,null,null,null,null,null,"≥ 240,000 Btu/hr ","Multi-split System"," -- "," -- ","9.3  EER",null,null,null,null,null,null,null,53,"EER"]
[null,null,null,null,null,null,null,null," -- "," -- ","15.3  IEER",null,null,null,null,null,null,null,53,"IEER"]
[null,null,null,null,null,null,null,"Multi-split System with\n Heat Recovery"," -- "," -- ","9.3  EER",null,null,null,null,null,null,null,54,"EER"]
[null,null,null,null,null,null,null,null," -- "," -- ","15.3  IEER",null,null,null,null,null,null,null,54,"IEER"]
[null,null,null,"Variable Refrigerant Flow Heat Pumps, Air-Cooled (Heating Mode) (See Note 2)",null,null,"< 65, 000 Btu/hr  (single phase)","Multi-split system"," -- "," -- ","8.7  HSPF",null,null,null,null,null,null,null,47,"HSPF"]
[null,null,null,null,null,null,"≥ 65,000 Btu/hr and < 135,000 Btu/hr","47°F db/43°F wb outdoor air"," -- "," -- ","3.5  COP",null,null,null,null,null,null,null,49,"COP"]
[null,null,null,null,null,null,null,"17°F db/15°F wb outdoor air"," -- "," -- ","2.3  COP.",null,null,null,null,null,null,null,49,"COP."]
[null,null,null,null,null,null,"≥ 135,000 Btu/hr","47°F db/43°F wb outdoor air"," -- "," -- ","3.4  COP",null,null,null,null,null,null,null,51,"COP"]
[null,null,null,null,null,null,null,"17°F db/15°F wb outdoor air"," -- "," -- ","2.1  COP.",null,null,null,null,null,null,null,51,"COP."]
[null,null,null,"Variable Refrigerant Flow Heat Pumps, Water-Source (See note 2)",null,null,"< 135,000 Btu/hr","Multi-split System, 86°F Entering Water (Cooling Mode)"," -- "," -- ","14  EER",null,null,null,null,null,null,null,55,"EER"]
[null,null,null,null,null,null,null,"Multi-split System, 68°F Entering Water (Heating Mode)"," -- "," -- ","4.6  COP",null,null,null,null,null,null,null,55,"COP"]
[null,null,null,"Variable Refrigerant Flow Heat Pumps, Water-Source (See note 2)",null,null,"< 135,000 Btu/hr","Multi-split System with Heat Recovery, 86°F Entering Water (Cooling Mode)"," -- "," -- ","13.8  EER",null,null,null,null,null,null,null,56,"EER"]
[null,null,null,null,null,null,null,"Multi-split System with Heat Recovery, 68°F Entering Water (Heating Mode)"," -- "," -- ","4.6  COP",null,null,null,null,null,null,null,55,"COP"]
[null,null,null,"Equipment Type",null,null,"Size Category","Sub-Category","Energy Star Qualified\n$50/ton"]
[]
[null,null,null,"Heat Pumps, Ground-source (Heating & Cooling Mode) – See note 2",null,null,"All sizes","77° Entering Water",{"$f":"IF(INDIRECT(\"HVAC!\"&INDEX(INDIRECT($T137),MATCH(J$43,Tiers,0))&$S137)=0,\" -- \",INDIRECT(\"HVAC!\"&INDEX(INDIRECT($T137),MATCH(J$43,Tiers,0))&$S137)&\"  \"&$T137)","v":"17.1  EER"},null,null,null,null,null,null,null,null,null,29,"EER"]
[null,null,null,null,null,null,null,"32° Entering Water",{"$f":"IF(INDIRECT(\"HVAC!\"&INDEX(INDIRECT($T138),MATCH(J$43,Tiers,0))&$S138)=0,\" -- \",INDIRECT(\"HVAC!\"&INDEX(INDIRECT($T138),MATCH(J$43,Tiers,0))&$S138)&\"  \"&$T138)","v":"3.6  COP"},null,null,null,null,null,null,null,null,null,29,"COP"]
[null,null,null,"Heat Pumps, Groundwater-source (Heating & Cooling Mode) – See note 2",null,null,"All sizes","59° Entering Water",{"$f":"IF(INDIRECT(\"HVAC!\"&INDEX(INDIRECT($T139),MATCH(J$43,Tiers,0))&$S139)=0,\" -- \",INDIRECT(\"HVAC!\"&INDEX(INDIRECT($T139),MATCH(J$43,Tiers,0))&$S139)&\"  \"&$T139)","v":"21.1  EER"},null,null,null,null,null,null,null,null,null,30,"EER"]
[null,null,null,null,null,null,null,"50° Entering Water",{"$f":"IF(INDIRECT(\"HVAC!\"&INDEX(INDIRECT($T140),MATCH(J$43,Tiers,0))&$S140)=0,\" -- \",INDIRECT(\"HVAC!\"&INDEX(INDIRECT($T140),MATCH(J$43,Tiers,0))&$S140)&\"  \"&$T140)","v":"4.1  COP"},null,null,null,null,null,null,null,null,null,30,"COP"]
[null,null,null,"1.        Equipment that meets or exceeds the efficiency requirements listed for the size category in the above table may qualify for the listed incentive. Equipment must meet both listed efficiency requirements to qualify for the listed incentives."]
[null,null,null,"2.        Incentives for heat pumps are available per ton of cooling capacity ONLY. No incentives are paid per ton of heating capacity. Heat pumps must meet both the cooling mode and heating mode efficiency requirements to qualify for per ton cooling efficiency incentives."]
[null,null,null,"3.        Equipment size categories and capacities are specified in terms of net cooling capacity at AHRI standard conditions as determined by AHRI Standard 210/240 for units < 65,000 btu/hr, AHRI Standard 340/360 for units ≥ 65,000 btu/hr, and AHRI Standard 310/380 for PTAC/PTHP units."]
[null,null,null,"4.        Ground and Water Source Heat Pumps must meet or exceed listed efficiency requirements when rated in accordance with ISO-13256-1 to qualify for an incentive."]
[null,null,null,"5.        Units rated only with an IPLV may qualify for the listed incentives if the value meets or exceeds the minimum IPLV established as part of the Consortium for Energy Efficiency Commercial Unitary Air Conditioning and Heat Pump Specification effective January 16, 2009."]
[]
[]
[null,null,null,"EER = Energy Efficiency Ratio",null,null,null,"IPLV = Integrated Part Load Value"]
[null,null,null,"SEER = Seasonal Energy Efficiency Ratio",null,null,null,"HSPF = Heating Seasonal Performance Factor"]
[null,null,null,"IEER = Integrated Energy Efficiency Ratio",null,null,null,"COP = Coefficient of Performance"]
[null,null,null,"CEE = Consortium for Energy Efficiency",null,null,null,"AHRI = Air Conditioning, Heating, and Refrigeration Institute"]

{"sheet":"Measures","index":6,"n_rows":7,"n_cols":11,"rows_kept":7,"cut":false,"hidden":true,"merged":[]}
["Measure Version ID","Measure Reference #","Measure Name","Version Number","Effective Start Date","Effective End Date","Customer Incentive ($/unit)","Unit","Capacity Low (kBTU/hr)","Capacity High (kBTU/hr)","Upgrade Type"]
[{"$f":"_xlfn.CONCAT(Measures[[#This Row],[Measure Reference '#]],\"-\",Measures[[#This Row],[Version Number]])","v":"TBD-UT-NewHP-1-1"},"TBD-UT-NewHP-1","Heat Pump Upgrade - Air Source - ENERGY STAR - < 65 kBtu/h - UT",1,"2023-11-15",null,120,"Ton",null,65,"Upgrade"]
[{"$f":"_xlfn.CONCAT(Measures[[#This Row],[Measure Reference '#]],\"-\",Measures[[#This Row],[Version Number]])","v":"TBD-UT-NewHP-2-1"},"TBD-UT-NewHP-2","Heat Pump Upgrade - Air Source - ENERGY STAR - 135 to 239 kBtu/h - UT",1,"2023-11-15",null,120,"Ton",135,240,"Upgrade"]
[{"$f":"_xlfn.CONCAT(Measures[[#This Row],[Measure Reference '#]],\"-\",Measures[[#This Row],[Version Number]])","v":"TBD-UT-NewHP-3-1"},"TBD-UT-NewHP-3","Heat Pump Upgrade - Air Source - ENERGY STAR - 65 to 134 kBtu/h - UT",1,"2023-11-15",null,120,"Ton",65,135,"Upgrade"]
[{"$f":"_xlfn.CONCAT(Measures[[#This Row],[Measure Reference '#]],\"-\",Measures[[#This Row],[Version Number]])","v":"TBD-UT-NewHP-4-1"},"TBD-UT-NewHP-4","Heat Pump Conversion - Air Source - ENERGY STAR - < 65 kBtu/h - UT",1,"2023-11-15",null,300,"Ton",null,65,"Conversion"]
[{"$f":"_xlfn.CONCAT(Measures[[#This Row],[Measure Reference '#]],\"-\",Measures[[#This Row],[Version Number]])","v":"TBD-UT-NewHP-5-1"},"TBD-UT-NewHP-5","Heat Pump Conversion - Air Source - ENERGY STAR - 135 to 239 kBtu/h - UT",1,"2023-11-15",null,300,"Ton",135,240,"Conversion"]
[{"$f":"_xlfn.CONCAT(Measures[[#This Row],[Measure Reference '#]],\"-\",Measures[[#This Row],[Version Number]])","v":"TBD-UT-NewHP-6-1"},"TBD-UT-NewHP-6","Heat Pump Conversion - Air Source - ENERGY STAR - 65 to 134 kBtu/h - UT",1,"2023-11-15",null,300,"Ton",65,135,"Conversion"]

{"sheet":"Equipment","index":7,"n_rows":343,"n_cols":8,"rows_kept":343,"cut":false,"hidden":true,"merged":[]}
["ID","Facility Type","Size Low","Size High","Baseline Equipment","Proposed Equipment","kWh Savings Per Unit","kW Savings Per Unit"]
[1,"Assembly",null,65,"Electric Heat Pump","Electric Heat Pump",609.84840978708917,0.14129944619719398]
[2,"Education - Primary School",null,65,"Electric Heat Pump","Electric Heat Pump",301.12123192873906,9.6513215361775345E-2]
[3,"Education - Secondary School",null,65,"Electric Heat Pump","Electric Heat Pump",301.12123192873906,9.6513215361775345E-2]
[4,"Education - Community College",null,65,"Electric Heat Pump","Electric Heat Pump",301.12123192873906,9.6513215361775345E-2]
[5,"Education - University",null,65,"Electric Heat Pump","Electric Heat Pump",301.12123192873906,9.6513215361775345E-2]
[6,"Grocery",null,65,"Electric Heat Pump","Electric Heat Pump",731.18073466197734,0.12554614262739996]
[7,"Health/Medical - Hospital",null,65,"Electric Heat Pump","Electric Heat Pump",472.52720178780777,8.1134478328950516E-2]
[8,"Health/Medical - Nursing Home",null,65,"Electric Heat Pump","Electric Heat Pump",472.52720178780777,8.1134478328950516E-2]
[9,"Lodging - Hotel",null,65,"Electric Heat Pump","Electric Heat Pump",689.01694746256385,7.8654902678374869E-2]
[10,"Lodging - Motel",null,65,"Electric Heat Pump","Electric Heat Pump",689.01694746256385,7.8654902678374869E-2]
[11,"Manufacturing - Light Industrial",null,65,"Electric Heat Pump","Electric Heat Pump"]
[12,"Office - Large",null,65,"Electric Heat Pump","Electric Heat Pump",274.16503648230128,0.10544809095473126]
[13,"Office - Small",null,65,"Electric Heat Pump","Electric Heat Pump",274.16503648230128,0.10544809095473126]
[14,"Restaurant - Sit-Down",null,65,"Electric Heat Pump","Electric Heat Pump",506.3904213502517,0.11593187301974626]
[15,"Restaurant - Fast-Food",null,65,"Electric Heat Pump","Electric Heat Pump",506.3904213502517,0.11593187301974626]
[16,"Retail - 3-Story Large",null,65,"Electric Heat Pump","Electric Heat Pump",365.14588969186008,9.0026106926001007E-2]
[17,"Retail - Single-Story Large",null,65,"Electric Heat Pump","Electric Heat Pump",365.14588969186008,9.0026106926001007E-2]
[18,"Retail - Small",null,65,"Electric Heat Pump","Electric Heat Pump",365.14588969186008,9.0026106926001007E-2]
[19,"Storage - Conditioned",null,65,"Electric Heat Pump","Electric Heat Pump"]
[20,"Assembly",65,135,"Electric Heat Pump","Electric Heat Pump",247.61002911923762,5.7370256978507325E-2]
[21,"Education - Primary School",65,135,"Electric Heat Pump","Electric Heat Pump",99.646560142267774,3.1938000045598644E-2]
[22,"Education - Secondary School",65,135,"Electric Heat Pump","Electric Heat Pump",99.646560142267774,3.1938000045598644E-2]
[23,"Education - Community College",65,135,"Electric Heat Pump","Electric Heat Pump",99.646560142267774,3.1938000045598644E-2]
[24,"Education - University",65,135,"Electric Heat Pump","Electric Heat Pump",99.646560142267774,3.1938000045598644E-2]
[25,"Grocery",65,135,"Electric Heat Pump","Electric Heat Pump",349.43368503321614,5.999891569938464E-2]
[26,"Health/Medical - Hospital",65,135,"Electric Heat Pump","Electric Heat Pump",303.99611359417742,5.2197134889110132E-2]
[27,"Health/Medical - Nursing Home",65,135,"Electric Heat Pump","Electric Heat Pump",303.99611359417742,5.2197134889110132E-2]
[28,"Lodging - Hotel",65,135,"Electric Heat Pump","Electric Heat Pump",197.16854401082898,2.2507824658770433E-2]
[29,"Lodging - Motel",65,135,"Electric Heat Pump","Electric Heat Pump",197.16854401082898,2.2507824658770433E-2]
[30,"Manufacturing - Light Industrial",65,135,"Electric Heat Pump","Electric Heat Pump"]
[31,"Office - Large",65,135,"Electric Heat Pump","Electric Heat Pump",141.52076079158718,5.4431061842918148E-2]
[32,"Office - Small",65,135,"Electric Heat Pump","Electric Heat Pump",141.52076079158718,5.4431061842918148E-2]
[33,"Restaurant - Sit-Down",65,135,"Electric Heat Pump","Electric Heat Pump",234.09988966278186,5.3594297083970205E-2]
[34,"Restaurant - Fast-Food",65,135,"Electric Heat Pump","Electric Heat Pump",234.09988966278186,5.3594297083970205E-2]
[35,"Retail - 3-Story Large",65,135,"Electric Heat Pump","Electric Heat Pump",163.08910297255559,4.0209344914338162E-2]
[36,"Retail - Single-Story Large",65,135,"Electric Heat Pump","Electric Heat Pump",163.08910297255559,4.0209344914338162E-2]
[37,"Retail - Small",65,135,"Electric Heat Pump","Electric Heat Pump",163.08910297255559,4.0209344914338162E-2]
[38,"Storage - Conditioned",65,135,"Electric Heat Pump","Electric Heat Pump"]
[39,"Assembly",135,240,"Electric Heat Pump","Electric Heat Pump",240.31985780735926,5.5681153338127724E-2]
[40,"Education - Primary School",135,240,"Electric Heat Pump","Electric Heat Pump",101.08974036662529,3.2400557809815801E-2]
[41,"Education - Secondary School",135,240,"Electric Heat Pump","Electric Heat Pump",101.08974036662529,3.2400557809815801E-2]
[42,"Education - Community College",135,240,"Electric Heat Pump","Electric Heat Pump",101.08974036662529,3.2400557809815801E-2]
[43,"Education - University",135,240,"Electric Heat Pump","Electric Heat Pump",101.08974036662529,3.2400557809815801E-2]
[44,"Grocery",135,240,"Electric Heat Pump","Electric Heat Pump",331.45978898007036,5.6912738492457135E-2]
[45,"Health/Medical - Hospital",135,240,"Electric Heat Pump","Electric Heat Pump",282.61029546453693,4.8525119413553731E-2]
[46,"Health/Medical - Nursing Home",135,240,"Electric Heat Pump","Electric Heat Pump",282.61029546453693,4.8525119413553731E-2]
[47,"Lodging - Hotel",135,240,"Electric Heat Pump","Electric Heat Pump",198.62469936307272,2.2674052438706932E-2]
[48,"Lodging - Motel",135,240,"Electric Heat Pump","Electric Heat Pump",198.62469936307272,2.2674052438706932E-2]
[49,"Manufacturing - Light Industrial",135,240,"Electric Heat Pump","Electric Heat Pump"]
[50,"Office - Large",135,240,"Electric Heat Pump","Electric Heat Pump",133.768630470158,5.1449473257753078E-2]
[51,"Office - Small",135,240,"Electric Heat Pump","Electric Heat Pump",133.768630470158,5.1449473257753078E-2]
[52,"Restaurant - Sit-Down",135,240,"Electric Heat Pump","Electric Heat Pump",223.02168815943728,5.1058078791079965E-2]
[53,"Restaurant - Fast-Food",135,240,"Electric Heat Pump","Electric Heat Pump",223.02168815943728,5.1058078791079965E-2]
[54,"Retail - 3-Story Large",135,240,"Electric Heat Pump","Electric Heat Pump",157.85506722206978,3.8918902175066515E-2]
[55,"Retail - Single-Story Large",135,240,"Electric Heat Pump","Electric Heat Pump",157.85506722206978,3.8918902175066515E-2]
[56,"Retail - Small",135,240,"Electric Heat Pump","Electric Heat Pump",157.85506722206978,3.8918902175066515E-2]
[57,"Storage - Conditioned",135,240,"Electric Heat Pump","Electric Heat Pump"]
[58,"Assembly",null,65,"Forced Air Furnace (gas/propane)","Electric Heat Pump",1149.2771243807433,0.26628292965262818]
[59,"Education - Primary School",null,65,"Forced Air Furnace (gas/propane)","Electric Heat Pump",608.12440622527311,0.19491166866194651]
[60,"Education - Secondary School",null,65,"Forced Air Furnace (gas/propane)","Electric Heat Pump",608.12440622527311,0.19491166866194651]
[61,"Education - Community College",null,65,"Forced Air Furnace (gas/propane)","Electric Heat Pump",608.12440622527311,0.19491166866194651]
[62,"Education - University",null,65,"Forced Air Furnace (gas/propane)","Electric Heat Pump",608.12440622527311,0.19491166866194651]
[63,"Grocery",null,65,"Forced Air Furnace (gas/propane)","Electric Heat Pump",952.12856584603378,0.16348361364114591]
[64,"Health/Medical - Hospital",null,65,"Forced Air Furnace (gas/propane)","Electric Heat Pump",381.10716008450572,6.5437355783740686E-2]
[65,"Health/Medical - Nursing Home",null,65,"Forced Air Furnace (gas/propane)","Electric Heat Pump",381.10716008450572,6.5437355783740686E-2]
[66,"Lodging - Hotel",null,65,"Forced Air Furnace (gas/propane)","Electric Heat Pump",1070.4074461270711,0.12219263083642365]
[67,"Lodging - Motel",null,65,"Forced Air Furnace (gas/propane)","Electric Heat Pump",1070.4074461270711,0.12219263083642365]
[68,"Manufacturing - Light Industrial",null,65,"Forced Air Furnace (gas/propane)","Electric Heat Pump"]
[69,"Office - Large",null,65,"Forced Air Furnace (gas/propane)","Electric Heat Pump",571.26956658676147,0.21971906407183134]
[70,"Office - Small",null,65,"Forced Air Furnace (gas/propane)","Electric Heat Pump",571.26956658676147,0.21971906407183134]
[71,"Restaurant - Sit-Down",null,65,"Forced Air Furnace (gas/propane)","Electric Heat Pump",1191.6279049720708,0.27280858630312976]
[72,"Restaurant - Fast-Food",null,65,"Forced Air Furnace (gas/propane)","Electric Heat Pump",1191.6279049720708,0.27280858630312976]
[73,"Retail - 3-Story Large",null,65,"Forced Air Furnace (gas/propane)","Electric Heat Pump",618.95116450983107,0.1526013719205698]
[74,"Retail - Single-Story Large",null,65,"Forced Air Furnace (gas/propane)","Electric Heat Pump",618.95116450983107,0.1526013719205698]
[75,"Retail - Small",null,65,"Forced Air Furnace (gas/propane)","Electric Heat Pump",618.95116450983107,0.1526013719205698]
[76,"Storage - Conditioned",null,65,"Forced Air Furnace (gas/propane)","Electric Heat Pump"]
[77,"Assembly",65,135,"Forced Air Furnace (gas/propane)","Electric Heat Pump",1028.1447831184057,0.23821704891529327]
[78,"Education - Primary School",65,135,"Forced Air Furnace (gas/propane)","Electric Heat Pump",534.22015380584799,0.17122440827110513]
[79,"Education - Secondary School",65,135,"Forced Air Furnace (gas/propane)","Electric Heat Pump",534.22015380584799,0.17122440827110513]
[80,"Education - Community College",65,135,"Forced Air Furnace (gas/propane)","Electric Heat Pump",534.22015380584799,0.17122440827110513]
[81,"Education - University",65,135,"Forced Air Furnace (gas/propane)","Electric Heat Pump",534.22015380584799,0.17122440827110513]
[82,"Grocery",65,135,"Forced Air Furnace (gas/propane)","Electric Heat Pump",1035.3239155920282,0.17776852946291694]
[83,"Health/Medical - Hospital",65,135,"Forced Air Furnace (gas/propane)","Electric Heat Pump",138.00319491256352,2.3695603522074778E-2]
[84,"Health/Medical - Nursing Home",65,135,"Forced Air Furnace (gas/propane)","Electric Heat Pump",138.00319491256352,2.3695603522074778E-2]
[85,"Lodging - Hotel",65,135,"Forced Air Furnace (gas/propane)","Electric Heat Pump",704.50370735185697,8.0422797642906052E-2]
[86,"Lodging - Motel",65,135,"Forced Air Furnace (gas/propane)","Electric Heat Pump",704.50370735185697,8.0422797642906052E-2]
[87,"Manufacturing - Light Industrial",65,135,"Forced Air Furnace (gas/propane)","Electric Heat Pump"]
[88,"Office - Large",65,135,"Forced Air Furnace (gas/propane)","Electric Heat Pump",454.36625780826233,0.17475625300317782]
[89,"Office - Small",65,135,"Forced Air Furnace (gas/propane)","Electric Heat Pump",454.36625780826233,0.17475625300317782]
[90,"Restaurant - Sit-Down",65,135,"Forced Air Furnace (gas/propane)","Electric Heat Pump",973.99955175505136,0.22298524536516742]
[91,"Restaurant - Fast-Food",65,135,"Forced Air Furnace (gas/propane)","Electric Heat Pump",973.99955175505136,0.22298524536516742]
[92,"Retail - 3-Story Large",65,135,"Forced Air Furnace (gas/propane)","Electric Heat Pump",474.87138918052341,0.11707874486699295]
[93,"Retail - Single-Story Large",65,135,"Forced Air Furnace (gas/propane)","Electric Heat Pump",474.87138918052341,0.11707874486699295]
[94,"Retail - Small",65,135,"Forced Air Furnace (gas/propane)","Electric Heat Pump",474.87138918052341,0.11707874486699295]
[95,"Storage - Conditioned",65,135,"Forced Air Furnace (gas/propane)","Electric Heat Pump"]
[96,"Assembly",135,240,"Forced Air Furnace (gas/propane)","Electric Heat Pump",916.7590288545174,0.21240941354367873]
[97,"Education - Primary School",135,240,"Forced Air Furnace (gas/propane)","Electric Heat Pump",534.82427576023019,0.17141803710263789]
[98,"Education - Secondary School",135,240,"Forced Air Furnace (gas/propane)","Electric Heat Pump",534.82427576023019,0.17141803710263789]
[99,"Education - Community College",135,240,"Forced Air Furnace (gas/propane)","Electric Heat Pump",534.82427576023019,0.17141803710263789]
[100,"Education - University",135,240,"Forced Air Furnace (gas/propane)","Electric Heat Pump",534.82427576023019,0.17141803710263789]
[101,"Grocery",135,240,"Forced Air Furnace (gas/propane)","Electric Heat Pump",952.26072684642452,0.1635063061206086]
[102,"Health/Medical - Hospital",135,240,"Forced Air Furnace (gas/propane)","Electric Heat Pump",277.54662618454478,4.7655670704763869E-2]
[103,"Health/Medical - Nursing Home",135,240,"Forced Air Furnace (gas/propane)","Electric Heat Pump",277.54662618454478,4.7655670704763869E-2]
[104,"Lodging - Hotel",135,240,"Forced Air Furnace (gas/propane)","Electric Heat Pump",639.00226308601543,7.29454638226045E-2]
[105,"Lodging - Motel",135,240,"Forced Air Furnace (gas/propane)","Electric Heat Pump",639.00226308601543,7.29454638226045E-2]
[106,"Manufacturing - Light Industrial",135,240,"Forced Air Furnace (gas/propane)","Electric Heat Pump"]
[107,"Office - Large",135,240,"Forced Air Furnace (gas/propane)","Electric Heat Pump",174.73134328358213,6.7204362801377746E-2]
[108,"Office - Small",135,240,"Forced Air Furnace (gas/propane)","Electric Heat Pump",174.73134328358213,6.7204362801377746E-2]
[109,"Restaurant - Sit-Down",135,240,"Forced Air Furnace (gas/propane)","Electric Heat Pump",907.96764016274744,0.20786804948780849]
[110,"Restaurant - Fast-Food",135,240,"Forced Air Furnace (gas/propane)","Electric Heat Pump",907.96764016274744,0.20786804948780849]
[111,"Retail - 3-Story Large",135,240,"Forced Air Furnace (gas/propane)","Electric Heat Pump",409.44594229945056,0.10094821062609728]
[112,"Retail - Single-Story Large",135,240,"Forced Air Furnace (gas/propane)","Electric Heat Pump",409.44594229945056,0.10094821062609728]
[113,"Retail - Small",135,240,"Forced Air Furnace (gas/propane)","Electric Heat Pump",409.44594229945056,0.10094821062609728]
[114,"Storage - Conditioned",135,240,"Forced Air Furnace (gas/propane)","Electric Heat Pump"]
[115,"Assembly",null,65,"Forced Air Furnace (gas/propane)","Dual Fuel Heat Pump",942.24388306924322,0.21831415270371715]
[116,"Education - Primary School",null,65,"Forced Air Furnace (gas/propane)","Dual Fuel Heat Pump",716.80044405748947,0.22974373206970816]
[117,"Education - Secondary School",null,65,"Forced Air Furnace (gas/propane)","Dual Fuel Heat Pump",716.80044405748947,0.22974373206970816]
[118,"Education - Community College",null,65,"Forced Air Furnace (gas/propane)","Dual Fuel Heat Pump",716.80044405748947,0.22974373206970816]
[119,"Education - University",null,65,"Forced Air Furnace (gas/propane)","Dual Fuel Heat Pump",716.80044405748947,0.22974373206970816]
[120,"Grocery",null,65,"Forced Air Furnace (gas/propane)","Dual Fuel Heat Pump",953.88675263774905,0.16378550010950363]
[121,"Health/Medical - Hospital",null,65,"Forced Air Furnace (gas/propane)","Dual Fuel Heat Pump",442.62027097987493,7.5999359714951059E-2]
[122,"Health/Medical - Nursing Home",null,65,"Forced Air Furnace (gas/propane)","Dual Fuel Heat Pump",442.62027097987493,7.5999359714951059E-2]
[123,"Lodging - Hotel",null,65,"Forced Air Furnace (gas/propane)","Dual Fuel Heat Pump",828.09636395499206,9.4531548396688592E-2]
[124,"Lodging - Motel",null,65,"Forced Air Furnace (gas/propane)","Dual Fuel Heat Pump",828.09636395499206,9.4531548396688592E-2]
[125,"Manufacturing - Light Industrial",null,65,"Forced Air Furnace (gas/propane)","Dual Fuel Heat Pump"]
[126,"Office - Large",null,65,"Forced Air Furnace (gas/propane)","Dual Fuel Heat Pump",317.50328078248845,0.12211664645480325]
[127,"Office - Small",null,65,"Forced Air Furnace (gas/propane)","Dual Fuel Heat Pump",317.50328078248845,0.12211664645480325]
[128,"Restaurant - Sit-Down",null,65,"Forced Air Furnace (gas/propane)","Dual Fuel Heat Pump",826.72479484173505,0.1892684969875767]
[129,"Restaurant - Fast-Food",null,65,"Forced Air Furnace (gas/propane)","Dual Fuel Heat Pump",826.72479484173505,0.1892684969875767]
[130,"Retail - 3-Story Large",null,65,"Forced Air Furnace (gas/propane)","Dual Fuel Heat Pump",428.09712449631633,0.10554662832749416]
[131,"Retail - Single-Story Large",null,65,"Forced Air Furnace (gas/propane)","Dual Fuel Heat Pump",428.09712449631633,0.10554662832749416]
[132,"Retail - Small",null,65,"Forced Air Furnace (gas/propane)","Dual Fuel Heat Pump",428.09712449631633,0.10554662832749416]
[133,"Storage - Conditioned",null,65,"Forced Air Furnace (gas/propane)","Dual Fuel Heat Pump"]
[134,"Assembly",65,135,"Forced Air Furnace (gas/propane)","Dual Fuel Heat Pump",890.6559391899558,0.20636143169368762]
[135,"Education - Primary School",65,135,"Forced Air Furnace (gas/propane)","Dual Fuel Heat Pump",671.5816041642961,0.21525051415522312]
[136,"Education - Secondary School",65,135,"Forced Air Furnace (gas/propane)","Dual Fuel Heat Pump",671.5816041642961,0.21525051415522312]
[137,"Education - Community College",65,135,"Forced Air Furnace (gas/propane)","Dual Fuel Heat Pump",671.5816041642961,0.21525051415522312]
[138,"Education - University",65,135,"Forced Air Furnace (gas/propane)","Dual Fuel Heat Pump",671.5816041642961,0.21525051415522312]
[139,"Grocery",65,135,"Forced Air Furnace (gas/propane)","Dual Fuel Heat Pump",818.42172723720205,0.14052570866023387]
[140,"Health/Medical - Hospital",65,135,"Forced Air Furnace (gas/propane)","Dual Fuel Heat Pump",301.48935894148104,5.1766716851215838E-2]
[141,"Health/Medical - Nursing Home",65,135,"Forced Air Furnace (gas/propane)","Dual Fuel Heat Pump",301.48935894148104,5.1766716851215838E-2]
[142,"Lodging - Hotel",65,135,"Forced Air Furnace (gas/propane)","Dual Fuel Heat Pump",746.02144039835139,8.516226488565655E-2]
[143,"Lodging - Motel",65,135,"Forced Air Furnace (gas/propane)","Dual Fuel Heat Pump",746.02144039835139,8.516226488565655E-2]
[144,"Manufacturing - Light Industrial",65,135,"Forced Air Furnace (gas/propane)","Dual Fuel Heat Pump"]
[145,"Office - Large",65,135,"Forced Air Furnace (gas/propane)","Dual Fuel Heat Pump",304.48954523980336,0.11711136355377053]
[146,"Office - Small",65,135,"Forced Air Furnace (gas/propane)","Dual Fuel Heat Pump",304.48954523980336,0.11711136355377053]
[147,"Restaurant - Sit-Down",65,135,"Forced Air Furnace (gas/propane)","Dual Fuel Heat Pump",743.92981518515967,0.17031360237755486]
[148,"Restaurant - Fast-Food",65,135,"Forced Air Furnace (gas/propane)","Dual Fuel Heat Pump",743.92981518515967,0.17031360237755486]
[149,"Retail - 3-Story Large",65,135,"Forced Air Furnace (gas/propane)","Dual Fuel Heat Pump",359.56576629077938,8.8650336856701026E-2]
[150,"Retail - Single-Story Large",65,135,"Forced Air Furnace (gas/propane)","Dual Fuel Heat Pump",359.56576629077938,8.8650336856701026E-2]
[151,"Retail - Small",65,135,"Forced Air Furnace (gas/propane)","Dual Fuel Heat Pump",359.56576629077938,8.8650336856701026E-2]
[152,"Storage - Conditioned",65,135,"Forced Air Furnace (gas/propane)","Dual Fuel Heat Pump"]
[153,"Assembly",135,240,"Forced Air Furnace (gas/propane)","Dual Fuel Heat Pump",812.26780244299061,0.18819921279958077]
[154,"Education - Primary School",135,240,"Forced Air Furnace (gas/propane)","Dual Fuel Heat Pump",659.69474355547675,0.21144062293444768]
[155,"Education - Secondary School",135,240,"Forced Air Furnace (gas/propane)","Dual Fuel Heat Pump",659.69474355547675,0.21144062293444768]
[156,"Education - Community College",135,240,"Forced Air Furnace (gas/propane)","Dual Fuel Heat Pump",659.69474355547675,0.21144062293444768]
[157,"Education - University",135,240,"Forced Air Furnace (gas/propane)","Dual Fuel Heat Pump",659.69474355547675,0.21144062293444768]
[158,"Grocery",135,240,"Forced Air Furnace (gas/propane)","Dual Fuel Heat Pump",786.7691676436109,0.13509085982891669]
[159,"Health/Medical - Hospital",135,240,"Forced Air Furnace (gas/propane)","Dual Fuel Heat Pump",275.54760007571315,4.7312431331681518E-2]
[160,"Health/Medical - Nursing Home",135,240,"Forced Air Furnace (gas/propane)","Dual Fuel Heat Pump",275.54760007571315,4.7312431331681518E-2]
[161,"Lodging - Hotel",135,240,"Forced Air Furnace (gas/propane)","Dual Fuel Heat Pump",716.34420964213632,8.1774453155495017E-2]
[162,"Lodging - Motel",135,240,"Forced Air Furnace (gas/propane)","Dual Fuel Heat Pump",716.34420964213632,8.1774453155495017E-2]
[163,"Manufacturing - Light Industrial",135,240,"Forced Air Furnace (gas/propane)","Dual Fuel Heat Pump"]
[164,"Office - Large",135,240,"Forced Air Furnace (gas/propane)","Dual Fuel Heat Pump",205.00229217336528,7.8847035451294331E-2]
[165,"Office - Small",135,240,"Forced Air Furnace (gas/propane)","Dual Fuel Heat Pump",205.00229217336528,7.8847035451294331E-2]
[166,"Restaurant - Sit-Down",135,240,"Forced Air Furnace (gas/propane)","Dual Fuel Heat Pump",715.06818495276184,0.16370608629870922]
[167,"Restaurant - Fast-Food",135,240,"Forced Air Furnace (gas/propane)","Dual Fuel Heat Pump",715.06818495276184,0.16370608629870922]
[168,"Retail - 3-Story Large",135,240,"Forced Air Furnace (gas/propane)","Dual Fuel Heat Pump",312.6895120419228,7.7093074961026326E-2]
[169,"Retail - Single-Story Large",135,240,"Forced Air Furnace (gas/propane)","Dual Fuel Heat Pump",312.6895120419228,7.7093074961026326E-2]
[170,"Retail - Small",135,240,"Forced Air Furnace (gas/propane)","Dual Fuel Heat Pump",312.6895120419228,7.7093074961026326E-2]
[171,"Storage - Conditioned",135,240,"Forced Air Furnace (gas/propane)","Dual Fuel Heat Pump"]
[172,"Assembly",null,65,"Electric Resistance/Electric Strip","Electric Heat Pump",1892.4069697084296,0.43846315331520613]
[173,"Education - Primary School",null,65,"Electric Resistance/Electric Strip","Electric Heat Pump",716.80044405748947,0.22974373206970816]
[174,"Education - Secondary School",null,65,"Electric Resistance/Electric Strip","Electric Heat Pump",716.80044405748947,0.22974373206970816]
[175,"Education - Community College",null,65,"Electric Resistance/Electric Strip","Electric Heat Pump",716.80044405748947,0.22974373206970816]
[176,"Education - University",null,65,"Electric Resistance/Electric Strip","Electric Heat Pump",716.80044405748947,0.22974373206970816]
[177,"Grocery",null,65,"Electric Resistance/Electric Strip","Electric Heat Pump",953.88675263774905,0.16378550010950363]
[178,"Health/Medical - Hospital",null,65,"Electric Resistance/Electric Strip","Electric Heat Pump",442.62027097987493,7.5999359714951059E-2]
[179,"Health/Medical - Nursing Home",null,65,"Electric Resistance/Electric Strip","Electric Heat Pump",442.62027097987493,7.5999359714951059E-2]
[180,"Lodging - Hotel",null,65,"Electric Resistance/Electric Strip","Electric Heat Pump",828.09636395499206,9.4531548396688592E-2]
[181,"Lodging - Motel",null,65,"Electric Resistance/Electric Strip","Electric Heat Pump",828.09636395499206,9.4531548396688592E-2]
[182,"Manufacturing - Light Industrial",null,65,"Electric Resistance/Electric Strip","Electric Heat Pump"]
[183,"Office - Large",null,65,"Electric Resistance/Electric Strip","Electric Heat Pump",317.50328078248845,0.12211664645480325]
[184,"Office - Small",null,65,"Electric Resistance/Electric Strip","Electric Heat Pump",317.50328078248845,0.12211664645480325]
[185,"Restaurant - Sit-Down",null,65,"Electric Resistance/Electric Strip","Electric Heat Pump",826.72479484173505,0.1892684969875767]
[186,"Restaurant - Fast-Food",null,65,"Electric Resistance/Electric Strip","Electric Heat Pump",826.72479484173505,0.1892684969875767]
[187,"Retail - 3-Story Large",null,65,"Electric Resistance/Electric Strip","Electric Heat Pump",428.09712449631633,0.10554662832749416]
[188,"Retail - Single-Story Large",null,65,"Electric Resistance/Electric Strip","Electric Heat Pump",428.09712449631633,0.10554662832749416]
[189,"Retail - Small",null,65,"Electric Resistance/Electric Strip","Electric Heat Pump",428.09712449631633,0.10554662832749416]
[190,"Storage - Conditioned",null,65,"Electric Resistance/Electric Strip","Electric Heat Pump"]
[191,"Assembly",65,135,"Electric Resistance/Electric Strip","Electric Heat Pump",890.6559391899558,0.20636143169368762]
[192,"Education - Primary School",65,135,"Electric Resistance/Electric Strip","Electric Heat Pump",671.5816041642961,0.21525051415522312]
[193,"Education - Secondary School",65,135,"Electric Resistance/Electric Strip","Electric Heat Pump",671.5816041642961,0.21525051415522312]
[194,"Education - Community College",65,135,"Electric Resistance/Electric Strip","Electric Heat Pump",671.5816041642961,0.21525051415522312]
[195,"Education - University",65,135,"Electric Resistance/Electric Strip","Electric Heat Pump",671.5816041642961,0.21525051415522312]
[196,"Grocery",65,135,"Electric Resistance/Electric Strip","Electric Heat Pump",818.42172723720205,0.14052570866023387]
[197,"Health/Medical - Hospital",65,135,"Electric Resistance/Electric Strip","Electric Heat Pump",301.48935894148104,5.1766716851215838E-2]
[198,"Health/Medical - Nursing Home",65,135,"Electric Resistance/Electric Strip","Electric Heat Pump",301.48935894148104,5.1766716851215838E-2]
[199,"Lodging - Hotel",65,135,"Electric Resistance/Electric Strip","Electric Heat Pump",746.02144039835139,8.516226488565655E-2]
[200,"Lodging - Motel",65,135,"Electric Resistance/Electric Strip","Electric Heat Pump",746.02144039835139,8.516226488565655E-2]
[201,"Manufacturing - Light Industrial",65,135,"Electric Resistance/Electric Strip","Electric Heat Pump"]
[202,"Office - Large",65,135,"Electric Resistance/Electric Strip","Electric Heat Pump",304.48954523980336,0.11711136355377053]
[203,"Office - Small",65,135,"Electric Resistance/Electric Strip","Electric Heat Pump",304.48954523980336,0.11711136355377053]
[204,"Restaurant - Sit-Down",65,135,"Electric Resistance/Electric Strip","Electric Heat Pump",743.92981518515967,0.17031360237755486]
[205,"Restaurant - Fast-Food",65,135,"Electric Resistance/Electric Strip","Electric Heat Pump",743.92981518515967,0.17031360237755486]
[206,"Retail - 3-Story Large",65,135,"Electric Resistance/Electric Strip","Electric Heat Pump",359.56576629077938,8.8650336856701026E-2]
[207,"Retail - Single-Story Large",65,135,"Electric Resistance/Electric Strip","Electric Heat Pump",359.56576629077938,8.8650336856701026E-2]
[208,"Retail - Small",65,135,"Electric Resistance/Electric Strip","Electric Heat Pump",359.56576629077938,8.8650336856701026E-2]
[209,"Storage - Conditioned",65,135,"Electric Resistance/Electric Strip","Electric Heat Pump"]
[210,"Assembly",135,240,"Electric Resistance/Electric Strip","Electric Heat Pump",812.26780244299061,0.18819921279958077]
[211,"Education - Primary School",135,240,"Electric Resistance/Electric Strip","Electric Heat Pump",659.69474355547675,0.21144062293444768]
[212,"Education - Secondary School",135,240,"Electric Resistance/Electric Strip","Electric Heat Pump",659.69474355547675,0.21144062293444768]
[213,"Education - Community College",135,240,"Electric Resistance/Electric Strip","Electric Heat Pump",659.69474355547675,0.21144062293444768]
[214,"Education - University",135,240,"Electric Resistance/Electric Strip","Electric Heat Pump",659.69474355547675,0.21144062293444768]
[215,"Grocery",135,240,"Electric Resistance/Electric Strip","Electric Heat Pump",786.7691676436109,0.13509085982891669]
[216,"Health/Medical - Hospital",135,240,"Electric Resistance/Electric Strip","Electric Heat Pump",275.54760007571315,4.7312431331681518E-2]
[217,"Health/Medical - Nursing Home",135,240,"Electric Resistance/Electric Strip","Electric Heat Pump",275.54760007571315,4.7312431331681518E-2]
[218,"Lodging - Hotel",135,240,"Electric Resistance/Electric Strip","Electric Heat Pump",716.34420964213632,8.1774453155495017E-2]
[219,"Lodging - Motel",135,240,"Electric Resistance/Electric Strip","Electric Heat Pump",716.34420964213632,8.1774453155495017E-2]
[220,"Manufacturing - Light Industrial",135,240,"Electric Resistance/Electric Strip","Electric Heat Pump"]
[221,"Office - Large",135,240,"Electric Resistance/Electric Strip","Electric Heat Pump",205.00229217336528,7.8847035451294331E-2]
[222,"Office - Small",135,240,"Electric Resistance/Electric Strip","Electric Heat Pump",205.00229217336528,7.8847035451294331E-2]
[223,"Restaurant - Sit-Down",135,240,"Electric Resistance/Electric Strip","Electric Heat Pump",715.06818495276184,0.16370608629870922]
[224,"Restaurant - Fast-Food",135,240,"Electric Resistance/Electric Strip","Electric Heat Pump",715.06818495276184,0.16370608629870922]
[225,"Retail - 3-Story Large",135,240,"Electric Resistance/Electric Strip","Electric Heat Pump",312.6895120419228,7.7093074961026326E-2]
[226,"Retail - Single-Story Large",135,240,"Electric Resistance/Electric Strip","Electric Heat Pump",312.6895120419228,7.7093074961026326E-2]
[227,"Retail - Small",135,240,"Electric Resistance/Electric Strip","Electric Heat Pump",312.6895120419228,7.7093074961026326E-2]
[228,"Storage - Conditioned",135,240,"Electric Resistance/Electric Strip","Electric Heat Pump"]
[229,"Assembly",null,65,"Electric Resistance/Electric Strip","Dual Fuel Heat Pump",1685.3737283969292,0.39049437636629497]
[230,"Education - Primary School",null,65,"Electric Resistance/Electric Strip","Dual Fuel Heat Pump",1256.0043161964547,0.40256548596040215]
[231,"Education - Secondary School",null,65,"Electric Resistance/Electric Strip","Dual Fuel Heat Pump",1256.0043161964547,0.40256548596040215]
[232,"Education - Community College",null,65,"Electric Resistance/Electric Strip","Dual Fuel Heat Pump",1256.0043161964547,0.40256548596040215]
[233,"Education - University",null,65,"Electric Resistance/Electric Strip","Dual Fuel Heat Pump",1256.0043161964547,0.40256548596040215]
[234,"Grocery",null,65,"Electric Resistance/Electric Strip","Dual Fuel Heat Pump",1964.8776865963266,0.3373759764073363]
[235,"Health/Medical - Hospital",null,65,"Electric Resistance/Electric Strip","Dual Fuel Heat Pump",747.83396224110982,0.12840555670348727]
[236,"Health/Medical - Nursing Home",null,65,"Electric Resistance/Electric Strip","Dual Fuel Heat Pump",747.83396224110982,0.12840555670348727]
[237,"Lodging - Hotel",null,65,"Electric Resistance/Electric Strip","Dual Fuel Heat Pump",2100.1574944706977,0.23974400621811617]
[238,"Lodging - Motel",null,65,"Electric Resistance/Electric Strip","Dual Fuel Heat Pump",2100.1574944706977,0.23974400621811617]
[239,"Manufacturing - Light Industrial",null,65,"Electric Resistance/Electric Strip","Dual Fuel Heat Pump"]
[240,"Office - Large",null,65,"Electric Resistance/Electric Strip","Dual Fuel Heat Pump",354.6871795769103,0.13641814599111934]
[241,"Office - Small",null,65,"Electric Resistance/Electric Strip","Dual Fuel Heat Pump",354.6871795769103,0.13641814599111934]
[242,"Restaurant - Sit-Down",null,65,"Electric Resistance/Electric Strip","Dual Fuel Heat Pump",1148.2917557409837,0.26288730671725818]
[243,"Restaurant - Fast-Food",null,65,"Electric Resistance/Electric Strip","Dual Fuel Heat Pump",1148.2917557409837,0.26288730671725818]
[244,"Retail - 3-Story Large",null,65,"Electric Resistance/Electric Strip","Dual Fuel Heat Pump",857.0746891730405,0.21131032770538474]
[245,"Retail - Single-Story Large",null,65,"Electric Resistance/Electric Strip","Dual Fuel Heat Pump",857.0746891730405,0.21131032770538474]
[246,"Retail - Small",null,65,"Electric Resistance/Electric Strip","Dual Fuel Heat Pump",857.0746891730405,0.21131032770538474]
[247,"Storage - Conditioned",null,65,"Electric Resistance/Electric Strip","Dual Fuel Heat Pump"]
[248,"Assembly",65,135,"Electric Resistance/Electric Strip","Dual Fuel Heat Pump",3062.320822145748,0.70952753061764318]
[249,"Education - Primary School",65,135,"Electric Resistance/Electric Strip","Dual Fuel Heat Pump",2022.4568843465765,0.64822336036749251]
[250,"Education - Secondary School",65,135,"Electric Resistance/Electric Strip","Dual Fuel Heat Pump",2022.4568843465765,0.64822336036749251]
[251,"Education - Community College",65,135,"Electric Resistance/Electric Strip","Dual Fuel Heat Pump",2022.4568843465765,0.64822336036749251]
[252,"Education - University",65,135,"Electric Resistance/Electric Strip","Dual Fuel Heat Pump",2022.4568843465765,0.64822336036749251]
[253,"Grocery",65,135,"Electric Resistance/Electric Strip","Dual Fuel Heat Pump",3178.9747166862053,0.54584043899145007]
[254,"Health/Medical - Hospital",65,135,"Electric Resistance/Electric Strip","Dual Fuel Heat Pump",863.43611853995696,0.14825482804600909]
[255,"Health/Medical - Nursing Home",65,135,"Electric Resistance/Electric Strip","Dual Fuel Heat Pump",863.43611853995696,0.14825482804600909]
[256,"Lodging - Hotel",65,135,"Electric Resistance/Electric Strip","Dual Fuel Heat Pump",3903.5227396333134,0.44560761867960197]
[257,"Lodging - Motel",65,135,"Electric Resistance/Electric Strip","Dual Fuel Heat Pump",3903.5227396333134,0.44560761867960197]
[258,"Manufacturing - Light Industrial",65,135,"Electric Resistance/Electric Strip","Dual Fuel Heat Pump"]
[259,"Office - Large",65,135,"Electric Resistance/Electric Strip","Dual Fuel Heat Pump",835.4131336284579,0.32131274370325302]
[260,"Office - Small",65,135,"Electric Resistance/Electric Strip","Dual Fuel Heat Pump",835.4131336284579,0.32131274370325302]
[261,"Restaurant - Sit-Down",65,135,"Electric Resistance/Electric Strip","Dual Fuel Heat Pump",2576.0678573891455,0.58975912486015236]
[262,"Restaurant - Fast-Food",65,135,"Electric Resistance/Electric Strip","Dual Fuel Heat Pump",2576.0678573891455,0.58975912486015236]
[263,"Retail - 3-Story Large",65,135,"Electric Resistance/Electric Strip","Dual Fuel Heat Pump",1818.4980362856318,0.44834764208225636]
[264,"Retail - Single-Story Large",65,135,"Electric Resistance/Electric Strip","Dual Fuel Heat Pump",1818.4980362856318,0.44834764208225636]
[265,"Retail - Small",65,135,"Electric Resistance/Electric Strip","Dual Fuel Heat Pump",1818.4980362856318,0.44834764208225636]
[266,"Storage - Conditioned",65,135,"Electric Resistance/Electric Strip","Dual Fuel Heat Pump"]
[267,"Assembly",135,240,"Electric Resistance/Electric Strip","Dual Fuel Heat Pump",3073.7676700828197,0.7121797196670111]
[268,"Education - Primary School",135,240,"Electric Resistance/Electric Strip","Dual Fuel Heat Pump",2009.059718851802,0.64392939706788521]
[269,"Education - Secondary School",135,240,"Electric Resistance/Electric Strip","Dual Fuel Heat Pump",2009.059718851802,0.64392939706788521]
[270,"Education - Community College",135,240,"Electric Resistance/Electric Strip","Dual Fuel Heat Pump",2009.059718851802,0.64392939706788521]
[271,"Education - University",135,240,"Electric Resistance/Electric Strip","Dual Fuel Heat Pump",2009.059718851802,0.64392939706788521]
[272,"Grocery",135,240,"Electric Resistance/Electric Strip","Dual Fuel Heat Pump",3194.8340367330993,0.54856353652697443]
[273,"Health/Medical - Hospital",135,240,"Electric Resistance/Electric Strip","Dual Fuel Heat Pump",687.19994077276294,0.11799449532499363]
[274,"Health/Medical - Nursing Home",135,240,"Electric Resistance/Electric Strip","Dual Fuel Heat Pump",687.19994077276294,0.11799449532499363]
[275,"Lodging - Hotel",135,240,"Electric Resistance/Electric Strip","Dual Fuel Heat Pump",3930.1246359120632,0.44864436483014419]
[276,"Lodging - Motel",135,240,"Electric Resistance/Electric Strip","Dual Fuel Heat Pump",3930.1246359120632,0.44864436483014419]
[277,"Manufacturing - Light Industrial",135,240,"Electric Resistance/Electric Strip","Dual Fuel Heat Pump"]
[278,"Office - Large",135,240,"Electric Resistance/Electric Strip","Dual Fuel Heat Pump",990.11487113086389,0.38081341197340918]
[279,"Office - Small",135,240,"Electric Resistance/Electric Strip","Dual Fuel Heat Pump",990.11487113086389,0.38081341197340918]
[280,"Restaurant - Sit-Down",135,240,"Electric Resistance/Electric Strip","Dual Fuel Heat Pump",2586.5629956554722,0.59216185797973264]
[281,"Restaurant - Fast-Food",135,240,"Electric Resistance/Electric Strip","Dual Fuel Heat Pump",2586.5629956554722,0.59216185797973264]
[282,"Retail - 3-Story Large",135,240,"Electric Resistance/Electric Strip","Dual Fuel Heat Pump",1821.2013294754433,0.44901413448605604]
[283,"Retail - Single-Story Large",135,240,"Electric Resistance/Electric Strip","Dual Fuel Heat Pump",1821.2013294754433,0.44901413448605604]
[284,"Retail - Small",135,240,"Electric Resistance/Electric Strip","Dual Fuel Heat Pump",1821.2013294754433,0.44901413448605604]
[285,"Storage - Conditioned",135,240,"Electric Resistance/Electric Strip","Dual Fuel Heat Pump"]
[286,"None",null,65,"Electric Heat Pump","Electric Heat Pump",609.84840978708917,0.14129944619719398]
[287,"None",null,65,"Electric Heat Pump","Electric Heat Pump",301.12123192873906,9.6513215361775345E-2]
[288,"None",null,65,"Electric Heat Pump","Electric Heat Pump",301.12123192873906,9.6513215361775345E-2]
[289,"None",null,65,"Electric Heat Pump","Electric Heat Pump",301.12123192873906,9.6513215361775345E-2]
[290,"None",null,65,"Electric Heat Pump","Electric Heat Pump",301.12123192873906,9.6513215361775345E-2]
[291,"None",null,65,"Electric Heat Pump","Electric Heat Pump",731.18073466197734,0.12554614262739996]
[292,"None",null,65,"Electric Heat Pump","Electric Heat Pump",472.52720178780777,8.1134478328950516E-2]
[293,"None",null,65,"Electric Heat Pump","Electric Heat Pump",472.52720178780777,8.1134478328950516E-2]
[294,"None",null,65,"Electric Heat Pump","Electric Heat Pump",689.01694746256385,7.8654902678374869E-2]
[295,"None",null,65,"Electric Heat Pump","Electric Heat Pump",689.01694746256385,7.8654902678374869E-2]
[296,"None",null,65,"Electric Heat Pump","Electric Heat Pump"]
[297,"None",null,65,"Electric Heat Pump","Electric Heat Pump",274.16503648230128,0.10544809095473126]
[298,"None",null,65,"Electric Heat Pump","Electric Heat Pump",274.16503648230128,0.10544809095473126]
[299,"None",null,65,"Electric Heat Pump","Electric Heat Pump",506.3904213502517,0.11593187301974626]
[300,"None",null,65,"Electric Heat Pump","Electric Heat Pump",506.3904213502517,0.11593187301974626]
[301,"None",null,65,"Electric Heat Pump","Electric Heat Pump",365.14588969186008,9.0026106926001007E-2]
[302,"None",null,65,"Electric Heat Pump","Electric Heat Pump",365.14588969186008,9.0026106926001007E-2]
[303,"None",null,65,"Electric Heat Pump","Electric Heat Pump",365.14588969186008,9.0026106926001007E-2]
[304,"None",null,65,"Electric Heat Pump","Electric Heat Pump"]
[305,"None",65,135,"Electric Heat Pump","Electric Heat Pump",247.61002911923762,5.7370256978507325E-2]
[306,"None",65,135,"Electric Heat Pump","Electric Heat Pump",99.646560142267774,3.1938000045598644E-2]
[307,"None",65,135,"Electric Heat Pump","Electric Heat Pump",99.646560142267774,3.1938000045598644E-2]
[308,"None",65,135,"Electric Heat Pump","Electric Heat Pump",99.646560142267774,3.1938000045598644E-2]
[309,"None",65,135,"Electric Heat Pump","Electric Heat Pump",99.646560142267774,3.1938000045598644E-2]
[310,"None",65,135,"Electric Heat Pump","Electric Heat Pump",349.43368503321614,5.999891569938464E-2]
[311,"None",65,135,"Electric Heat Pump","Electric Heat Pump",303.99611359417742,5.2197134889110132E-2]
[312,"None",65,135,"Electric Heat Pump","Electric Heat Pump",303.99611359417742,5.2197134889110132E-2]
[313,"None",65,135,"Electric Heat Pump","Electric Heat Pump",197.16854401082898,2.2507824658770433E-2]
[314,"None",65,135,"Electric Heat Pump","Electric Heat Pump",197.16854401082898,2.2507824658770433E-2]
[315,"None",65,135,"Electric Heat Pump","Electric Heat Pump"]
[316,"None",65,135,"Electric Heat Pump","Electric Heat Pump",141.52076079158718,5.4431061842918148E-2]
[317,"None",65,135,"Electric Heat Pump","Electric Heat Pump",141.52076079158718,5.4431061842918148E-2]
[318,"None",65,135,"Electric Heat Pump","Electric Heat Pump",234.09988966278186,5.3594297083970205E-2]
[319,"None",65,135,"Electric Heat Pump","Electric Heat Pump",234.09988966278186,5.3594297083970205E-2]
[320,"None",65,135,"Electric Heat Pump","Electric Heat Pump",163.08910297255559,4.0209344914338162E-2]
[321,"None",65,135,"Electric Heat Pump","Electric Heat Pump",163.08910297255559,4.0209344914338162E-2]
[322,"None",65,135,"Electric Heat Pump","Electric Heat Pump",163.08910297255559,4.0209344914338162E-2]
[323,"None",65,135,"Electric Heat Pump","Electric Heat Pump"]
[324,"None",135,240,"Electric Heat Pump","Electric Heat Pump",240.31985780735926,5.5681153338127724E-2]
[325,"None",135,240,"Electric Heat Pump","Electric Heat Pump",101.08974036662529,3.2400557809815801E-2]
[326,"None",135,240,"Electric Heat Pump","Electric Heat Pump",101.08974036662529,3.2400557809815801E-2]
[327,"None",135,240,"Electric Heat Pump","Electric Heat Pump",101.08974036662529,3.2400557809815801E-2]
[328,"None",135,240,"Electric Heat Pump","Electric Heat Pump",101.08974036662529,3.2400557809815801E-2]
[329,"None",135,240,"Electric Heat Pump","Electric Heat Pump",331.45978898007036,5.6912738492457135E-2]
[330,"None",135,240,"Electric Heat Pump","Electric Heat Pump",282.61029546453693,4.8525119413553731E-2]
[331,"None",135,240,"Electric Heat Pump","Electric Heat Pump",282.61029546453693,4.8525119413553731E-2]
[332,"None",135,240,"Electric Heat Pump","Electric Heat Pump",198.62469936307272,2.2674052438706932E-2]
[333,"None",135,240,"Electric Heat Pump","Electric Heat Pump",198.62469936307272,2.2674052438706932E-2]
[334,"None",135,240,"Electric Heat Pump","Electric Heat Pump"]
[335,"None",135,240,"Electric Heat Pump","Electric Heat Pump",133.768630470158,5.1449473257753078E-2]
[336,"None",135,240,"Electric Heat Pump","Electric Heat Pump",133.768630470158,5.1449473257753078E-2]
[337,"None",135,240,"Electric Heat Pump","Electric Heat Pump",223.02168815943728,5.1058078791079965E-2]
[338,"None",135,240,"Electric Heat Pump","Electric Heat Pump",223.02168815943728,5.1058078791079965E-2]
[339,"None",135,240,"Electric Heat Pump","Electric Heat Pump",157.85506722206978,3.8918902175066515E-2]
[340,"None",135,240,"Electric Heat Pump","Electric Heat Pump",157.85506722206978,3.8918902175066515E-2]
[341,"None",135,240,"Electric Heat Pump","Electric Heat Pump",157.85506722206978,3.8918902175066515E-2]
[342,"None",135,240,"Electric Heat Pump","Electric Heat Pump"]

{"sheet":"Sheet5","index":8,"n_rows":285,"n_cols":3,"rows_kept":285,"cut":false,"hidden":true,"merged":[]}
[609.84840978708917,0.14129944619719398,{"$f":"_xlfn.CONCAT(A1,B1)","v":"609.8484097870890.141299446197194"}]
[301.12123192873906,9.6513215361775345E-2,{"$f":"_xlfn.CONCAT(A2,B2)","v":"301.1212319287390.0965132153617753"}]
[301.12123192873906,301.12123192873906,"301.121231928739301.121231928739"]
[301.12123192873906,301.12123192873906,"301.121231928739301.121231928739"]
[301.12123192873906,301.12123192873906,"301.121231928739301.121231928739"]
[731.18073466197734,0.12554614262739996,"731.1807346619770.1255461426274"]
[472.52720178780777,8.1134478328950516E-2,"472.5272017878080.0811344783289505"]
[472.52720178780777,472.52720178780777,"472.527201787808472.527201787808"]
[689.01694746256385,7.8654902678374869E-2,"689.0169474625640.0786549026783749"]
[689.01694746256385,689.01694746256385,"689.016947462564689.016947462564"]
["NOT MODELED","NOT MODELED","NOT MODELEDNOT MODELED"]
[274.16503648230128,0.10544809095473126,"274.1650364823010.105448090954731"]
[274.16503648230128,274.16503648230128,"274.165036482301274.165036482301"]
[506.3904213502517,0.11593187301974626,"506.3904213502520.115931873019746"]
[506.3904213502517,506.3904213502517,"506.390421350252506.390421350252"]
[365.14588969186008,9.0026106926001007E-2,"365.145889691860.090026106926001"]
[365.14588969186008,365.14588969186008,"365.14588969186365.14588969186"]
[365.14588969186008,365.14588969186008,"365.14588969186365.14588969186"]
["NOT MODELED","NOT MODELED","NOT MODELEDNOT MODELED"]
[247.61002911923762,5.7370256978507325E-2,"247.6100291192380.0573702569785073"]
[99.646560142267774,3.1938000045598644E-2,"99.64656014226780.0319380000455986"]
[99.646560142267774,99.646560142267774,"99.646560142267899.6465601422678"]
[99.646560142267774,99.646560142267774,"99.646560142267899.6465601422678"]
[99.646560142267774,99.646560142267774,"99.646560142267899.6465601422678"]
[349.43368503321614,5.999891569938464E-2,"349.4336850332160.0599989156993846"]
[303.99611359417742,5.2197134889110132E-2,"303.9961135941770.0521971348891101"]
[303.99611359417742,303.99611359417742,"303.996113594177303.996113594177"]
[197.16854401082898,2.2507824658770433E-2,"197.1685440108290.0225078246587704"]
[197.16854401082898,197.16854401082898,"197.168544010829197.168544010829"]
["NOT MODELED","NOT MODELED","NOT MODELEDNOT MODELED"]
[141.52076079158718,5.4431061842918148E-2,"141.5207607915870.0544310618429181"]
[141.52076079158718,141.52076079158718,"141.520760791587141.520760791587"]
[234.09988966278186,5.3594297083970205E-2,"234.0998896627820.0535942970839702"]
[234.09988966278186,234.09988966278186,"234.099889662782234.099889662782"]
[163.08910297255559,4.0209344914338162E-2,"163.0891029725560.0402093449143382"]
[163.08910297255559,163.08910297255559,"163.089102972556163.089102972556"]
[163.08910297255559,163.08910297255559,"163.089102972556163.089102972556"]
["NOT MODELED","NOT MODELED","NOT MODELEDNOT MODELED"]
[240.31985780735926,5.5681153338127724E-2,"240.3198578073590.0556811533381277"]
[101.08974036662529,3.2400557809815801E-2,"101.0897403666250.0324005578098158"]
[101.08974036662529,101.08974036662529,"101.089740366625101.089740366625"]
[101.08974036662529,101.08974036662529,"101.089740366625101.089740366625"]
[101.08974036662529,101.08974036662529,"101.089740366625101.089740366625"]
[331.45978898007036,5.6912738492457135E-2,"331.459788980070.0569127384924571"]
[282.61029546453693,4.8525119413553731E-2,"282.6102954645370.0485251194135537"]
[282.61029546453693,282.61029546453693,"282.610295464537282.610295464537"]
[198.62469936307272,2.2674052438706932E-2,"198.6246993630730.0226740524387069"]
[198.62469936307272,198.62469936307272,"198.624699363073198.624699363073"]
["NOT MODELED","NOT MODELED","NOT MODELEDNOT MODELED"]
[133.768630470158,5.1449473257753078E-2,"133.7686304701580.0514494732577531"]
[133.768630470158,133.768630470158,"133.768630470158133.768630470158"]
[223.02168815943728,5.1058078791079965E-2,"223.0216881594370.05105807879108"]
[223.02168815943728,223.02168815943728,"223.021688159437223.021688159437"]
[157.85506722206978,3.8918902175066515E-2,"157.855067222070.0389189021750665"]
[157.85506722206978,157.85506722206978,"157.85506722207157.85506722207"]
[157.85506722206978,157.85506722206978,"157.85506722207157.85506722207"]
["NOT MODELED","NOT MODELED","NOT MODELEDNOT MODELED"]
[1149.2771243807433,0.26628292965262818,"1149.277124380740.266282929652628"]
[608.12440622527311,0.19491166866194651,"608.1244062252730.194911668661947"]
[608.12440622527311,608.12440622527311,"608.124406225273608.124406225273"]
[608.12440622527311,608.12440622527311,"608.124406225273608.124406225273"]
[608.12440622527311,608.12440622527311,"608.124406225273608.124406225273"]
[952.12856584603378,0.16348361364114591,"952.1285658460340.163483613641146"]
[381.10716008450572,6.5437355783740686E-2,"381.1071600845060.0654373557837407"]
[381.10716008450572,381.10716008450572,"381.107160084506381.107160084506"]
[1070.4074461270711,0.12219263083642365,{"$f":"_xlfn.CONCAT(A66,B66)","v":"1070.407446127070.122192630836424"}]
[1070.4074461270711,1070.4074461270711,"1070.407446127071070.40744612707"]
["NOT MODELED","NOT MODELED","NOT MODELEDNOT MODELED"]
[571.26956658676147,0.21971906407183134,"571.2695665867610.219719064071831"]
[571.26956658676147,571.26956658676147,"571.269566586761571.269566586761"]
[1191.6279049720708,0.27280858630312976,"1191.627904972070.27280858630313"]
[1191.6279049720708,1191.6279049720708,"1191.627904972071191.62790497207"]
[618.95116450983107,0.1526013719205698,"618.9511645098310.15260137192057"]
[618.95116450983107,618.95116450983107,"618.951164509831618.951164509831"]
[618.95116450983107,618.95116450983107,"618.951164509831618.951164509831"]
["NOT MODELED","NOT MODELED","NOT MODELEDNOT MODELED"]
[1028.1447831184057,0.23821704891529327,"1028.144783118410.238217048915293"]
[534.22015380584799,0.17122440827110513,"534.2201538058480.171224408271105"]
[534.22015380584799,534.22015380584799,"534.220153805848534.220153805848"]
[534.22015380584799,534.22015380584799,"534.220153805848534.220153805848"]
[534.22015380584799,534.22015380584799,"534.220153805848534.220153805848"]
[1035.3239155920282,0.17776852946291694,"1035.323915592030.177768529462917"]
[138.00319491256352,2.3695603522074778E-2,"138.0031949125640.0236956035220748"]
[138.00319491256352,138.00319491256352,"138.003194912564138.003194912564"]
[704.50370735185697,8.0422797642906052E-2,"704.5037073518570.0804227976429061"]
[704.50370735185697,704.50370735185697,"704.503707351857704.503707351857"]
["NOT MODELED","NOT MODELED","NOT MODELEDNOT MODELED"]
[454.36625780826233,0.17475625300317782,"454.3662578082620.174756253003178"]
[454.36625780826233,454.36625780826233,"454.366257808262454.366257808262"]
[973.99955175505136,0.22298524536516742,"973.9995517550510.222985245365167"]
[973.99955175505136,973.99955175505136,"973.999551755051973.999551755051"]
[474.87138918052341,0.11707874486699295,"474.8713891805230.117078744866993"]
[474.87138918052341,474.87138918052341,"474.871389180523474.871389180523"]
[474.87138918052341,474.87138918052341,"474.871389180523474.871389180523"]
["NOT MODELED","NOT MODELED","NOT MODELEDNOT MODELED"]
[916.7590288545174,0.21240941354367873,"916.7590288545170.212409413543679"]
[534.82427576023019,0.17141803710263789,"534.824275760230.171418037102638"]
[534.82427576023019,534.82427576023019,"534.82427576023534.82427576023"]
[534.82427576023019,534.82427576023019,"534.82427576023534.82427576023"]
[534.82427576023019,534.82427576023019,"534.82427576023534.82427576023"]
[952.26072684642452,0.1635063061206086,"952.2607268464250.163506306120609"]
[277.54662618454478,4.7655670704763869E-2,"277.5466261845450.0476556707047639"]
[277.54662618454478,277.54662618454478,"277.546626184545277.546626184545"]
[639.00226308601543,7.29454638226045E-2,"639.0022630860150.0729454638226045"]
[639.00226308601543,639.00226308601543,"639.002263086015639.002263086015"]
["NOT MODELED","NOT MODELED","NOT MODELEDNOT MODELED"]
[174.73134328358213,6.7204362801377746E-2,"174.7313432835820.0672043628013777"]
[174.73134328358213,174.73134328358213,"174.731343283582174.731343283582"]
[907.96764016274744,0.20786804948780849,"907.9676401627470.207868049487808"]
[907.96764016274744,907.96764016274744,"907.967640162747907.967640162747"]
[409.44594229945056,0.10094821062609728,"409.4459422994510.100948210626097"]
[409.44594229945056,409.44594229945056,"409.445942299451409.445942299451"]
[409.44594229945056,409.44594229945056,"409.445942299451409.445942299451"]
["NOT MODELED","NOT MODELED","NOT MODELEDNOT MODELED"]
[1892.4069697084296,0.43846315331520613,"1892.406969708430.438463153315206"]
[716.80044405748947,0.22974373206970816,"716.8004440574890.229743732069708"]
[716.80044405748947,716.80044405748947,"716.800444057489716.800444057489"]
[716.80044405748947,716.80044405748947,"716.800444057489716.800444057489"]
[716.80044405748947,716.80044405748947,"716.800444057489716.800444057489"]
[953.88675263774905,0.16378550010950363,"953.8867526377490.163785500109504"]
[442.62027097987493,7.5999359714951059E-2,"442.6202709798750.0759993597149511"]
[442.62027097987493,442.62027097987493,"442.620270979875442.620270979875"]
[828.09636395499206,9.4531548396688592E-2,"828.0963639549920.0945315483966886"]
[828.09636395499206,828.09636395499206,"828.096363954992828.096363954992"]
["NOT MODELED","NOT MODELED","NOT MODELEDNOT MODELED"]
[317.50328078248845,0.12211664645480325,"317.5032807824880.122116646454803"]
[317.50328078248845,317.50328078248845,"317.503280782488317.503280782488"]
[826.72479484173505,0.1892684969875767,"826.7247948417350.189268496987577"]
[826.72479484173505,826.72479484173505,"826.724794841735826.724794841735"]
[428.09712449631633,0.10554662832749416,{"$f":"_xlfn.CONCAT(A130,B130)","v":"428.0971244963160.105546628327494"}]
[428.09712449631633,428.09712449631633,"428.097124496316428.097124496316"]
[428.09712449631633,428.09712449631633,"428.097124496316428.097124496316"]
["NOT MODELED","NOT MODELED","NOT MODELEDNOT MODELED"]
[890.6559391899558,0.20636143169368762,"890.6559391899560.206361431693688"]
[671.5816041642961,0.21525051415522312,"671.5816041642960.215250514155223"]
[671.5816041642961,671.5816041642961,"671.581604164296671.581604164296"]
[671.5816041642961,671.5816041642961,"671.581604164296671.581604164296"]
[671.5816041642961,671.5816041642961,"671.581604164296671.581604164296"]
[818.42172723720205,0.14052570866023387,"818.4217272372020.140525708660234"]
[301.48935894148104,5.1766716851215838E-2,"301.4893589414810.0517667168512158"]
[301.48935894148104,301.48935894148104,"301.489358941481301.489358941481"]
[746.02144039835139,8.516226488565655E-2,"746.0214403983510.0851622648856565"]
[746.02144039835139,746.02144039835139,"746.021440398351746.021440398351"]
["NOT MODELED","NOT MODELED","NOT MODELEDNOT MODELED"]
[304.48954523980336,0.11711136355377053,"304.4895452398030.117111363553771"]
[304.48954523980336,304.48954523980336,"304.489545239803304.489545239803"]
[743.92981518515967,0.17031360237755486,"743.929815185160.170313602377555"]
[743.92981518515967,743.92981518515967,"743.92981518516743.92981518516"]
[359.56576629077938,8.8650336856701026E-2,"359.5657662907790.088650336856701"]
[359.56576629077938,359.56576629077938,"359.565766290779359.565766290779"]
[359.56576629077938,359.56576629077938,"359.565766290779359.565766290779"]
["NOT MODELED","NOT MODELED","NOT MODELEDNOT MODELED"]
[812.26780244299061,0.18819921279958077,"812.2678024429910.188199212799581"]
[659.69474355547675,0.21144062293444768,"659.6947435554770.211440622934448"]
[659.69474355547675,659.69474355547675,"659.694743555477659.694743555477"]
[659.69474355547675,659.69474355547675,"659.694743555477659.694743555477"]
[659.69474355547675,659.69474355547675,"659.694743555477659.694743555477"]
[786.7691676436109,0.13509085982891669,"786.7691676436110.135090859828917"]
[275.54760007571315,4.7312431331681518E-2,"275.5476000757130.0473124313316815"]
[275.54760007571315,275.54760007571315,"275.547600075713275.547600075713"]
[716.34420964213632,8.1774453155495017E-2,"716.3442096421360.081774453155495"]
[716.34420964213632,716.34420964213632,"716.344209642136716.344209642136"]
["NOT MODELED","NOT MODELED","NOT MODELEDNOT MODELED"]
[205.00229217336528,7.8847035451294331E-2,"205.0022921733650.0788470354512943"]
[205.00229217336528,205.00229217336528,"205.002292173365205.002292173365"]
[715.06818495276184,0.16370608629870922,"715.0681849527620.163706086298709"]
[715.06818495276184,715.06818495276184,"715.068184952762715.068184952762"]
[312.6895120419228,7.7093074961026326E-2,"312.6895120419230.0770930749610263"]
[312.6895120419228,312.6895120419228,"312.689512041923312.689512041923"]
[312.6895120419228,312.6895120419228,"312.689512041923312.689512041923"]
["NOT MODELED","NOT MODELED","NOT MODELEDNOT MODELED"]
[942.24388306924322,0.21831415270371715,"942.2438830692430.218314152703717"]
[716.80044405748947,0.22974373206970816,"716.8004440574890.229743732069708"]
[716.80044405748947,716.80044405748947,"716.800444057489716.800444057489"]
[716.80044405748947,716.80044405748947,"716.800444057489716.800444057489"]
[716.80044405748947,716.80044405748947,"716.800444057489716.800444057489"]
[953.88675263774905,0.16378550010950363,"953.8867526377490.163785500109504"]
[442.62027097987493,7.5999359714951059E-2,"442.6202709798750.0759993597149511"]
[442.62027097987493,442.62027097987493,"442.620270979875442.620270979875"]
[828.09636395499206,9.4531548396688592E-2,"828.0963639549920.0945315483966886"]
[828.09636395499206,828.09636395499206,"828.096363954992828.096363954992"]
["NOT MODELED","NOT MODELED","NOT MODELEDNOT MODELED"]
[317.50328078248845,0.12211664645480325,"317.5032807824880.122116646454803"]
[317.50328078248845,317.50328078248845,"317.503280782488317.503280782488"]
[826.72479484173505,0.1892684969875767,"826.7247948417350.189268496987577"]
[826.72479484173505,826.72479484173505,"826.724794841735826.724794841735"]
[428.09712449631633,0.10554662832749416,"428.0971244963160.105546628327494"]
[428.09712449631633,428.09712449631633,"428.097124496316428.097124496316"]
[428.09712449631633,428.09712449631633,"428.097124496316428.097124496316"]
["NOT MODELED","NOT MODELED","NOT MODELEDNOT MODELED"]
[890.6559391899558,0.20636143169368762,"890.6559391899560.206361431693688"]
[671.5816041642961,0.21525051415522312,"671.5816041642960.215250514155223"]
[671.5816041642961,671.5816041642961,"671.581604164296671.581604164296"]
[671.5816041642961,671.5816041642961,{"$f":"_xlfn.CONCAT(A194,B194)","v":"671.581604164296671.581604164296"}]
[671.5816041642961,671.5816041642961,"671.581604164296671.581604164296"]
[818.42172723720205,0.14052570866023387,"818.4217272372020.140525708660234"]
[301.48935894148104,5.1766716851215838E-2,"301.4893589414810.0517667168512158"]
[301.48935894148104,301.48935894148104,"301.489358941481301.489358941481"]
[746.02144039835139,8.516226488565655E-2,"746.0214403983510.0851622648856565"]
[746.02144039835139,746.02144039835139,"746.021440398351746.021440398351"]
["NOT MODELED","NOT MODELED","NOT MODELEDNOT MODELED"]
[304.48954523980336,0.11711136355377053,"304.4895452398030.117111363553771"]
[304.48954523980336,304.48954523980336,"304.489545239803304.489545239803"]
[743.92981518515967,0.17031360237755486,"743.929815185160.170313602377555"]
[743.92981518515967,743.92981518515967,"743.92981518516743.92981518516"]
[359.56576629077938,8.8650336856701026E-2,"359.5657662907790.088650336856701"]
[359.56576629077938,359.56576629077938,"359.565766290779359.565766290779"]
[359.56576629077938,359.56576629077938,"359.565766290779359.565766290779"]
["NOT MODELED","NOT MODELED","NOT MODELEDNOT MODELED"]
[812.26780244299061,0.18819921279958077,"812.2678024429910.188199212799581"]
[659.69474355547675,0.21144062293444768,"659.6947435554770.211440622934448"]
[659.69474355547675,659.69474355547675,"659.694743555477659.694743555477"]
[659.69474355547675,659.69474355547675,"659.694743555477659.694743555477"]
[659.69474355547675,659.69474355547675,"659.694743555477659.694743555477"]
[786.7691676436109,0.13509085982891669,"786.7691676436110.135090859828917"]
[275.54760007571315,4.7312431331681518E-2,"275.5476000757130.0473124313316815"]
[275.54760007571315,275.54760007571315,"275.547600075713275.547600075713"]
[716.34420964213632,8.1774453155495017E-2,"716.3442096421360.081774453155495"]
[716.34420964213632,716.34420964213632,"716.344209642136716.344209642136"]
["NOT MODELED","NOT MODELED","NOT MODELEDNOT MODELED"]
[205.00229217336528,7.8847035451294331E-2,"205.0022921733650.0788470354512943"]
[205.00229217336528,205.00229217336528,"205.002292173365205.002292173365"]
[715.06818495276184,0.16370608629870922,"715.0681849527620.163706086298709"]
[715.06818495276184,715.06818495276184,"715.068184952762715.068184952762"]
[312.6895120419228,7.7093074961026326E-2,"312.6895120419230.0770930749610263"]
[312.6895120419228,312.6895120419228,"312.689512041923312.689512041923"]
[312.6895120419228,312.6895120419228,"312.689512041923312.689512041923"]
["NOT MODELED","NOT MODELED","NOT MODELEDNOT MODELED"]
[1685.3737283969292,0.39049437636629497,"1685.373728396930.390494376366295"]
[1256.0043161964547,0.40256548596040215,"1256.004316196450.402565485960402"]
[1256.0043161964547,1256.0043161964547,"1256.004316196451256.00431619645"]
[1256.0043161964547,1256.0043161964547,"1256.004316196451256.00431619645"]
[1256.0043161964547,1256.0043161964547,"1256.004316196451256.00431619645"]
[1964.8776865963266,0.3373759764073363,"1964.877686596330.337375976407336"]
[747.83396224110982,0.12840555670348727,"747.833962241110.128405556703487"]
[747.83396224110982,747.83396224110982,"747.83396224111747.83396224111"]
[2100.1574944706977,0.23974400621811617,"2100.15749447070.239744006218116"]
[2100.1574944706977,2100.1574944706977,"2100.15749447072100.1574944707"]
["NOT MODELED","NOT MODELED","NOT MODELEDNOT MODELED"]
[354.6871795769103,0.13641814599111934,"354.687179576910.136418145991119"]
[354.6871795769103,354.6871795769103,"354.68717957691354.68717957691"]
[1148.2917557409837,0.26288730671725818,"1148.291755740980.262887306717258"]
[1148.2917557409837,1148.2917557409837,"1148.291755740981148.29175574098"]
[857.0746891730405,0.21131032770538474,"857.074689173040.211310327705385"]
[857.0746891730405,857.0746891730405,"857.07468917304857.07468917304"]
[857.0746891730405,857.0746891730405,"857.07468917304857.07468917304"]
["NOT MODELED","NOT MODELED","NOT MODELEDNOT MODELED"]
[3062.320822145748,0.70952753061764318,"3062.320822145750.709527530617643"]
[2022.4568843465765,0.64822336036749251,"2022.456884346580.648223360367493"]
[2022.4568843465765,2022.4568843465765,"2022.456884346582022.45688434658"]
[2022.4568843465765,2022.4568843465765,"2022.456884346582022.45688434658"]
[2022.4568843465765,2022.4568843465765,"2022.456884346582022.45688434658"]
[3178.9747166862053,0.54584043899145007,"3178.974716686210.54584043899145"]
[863.43611853995696,0.14825482804600909,"863.4361185399570.148254828046009"]
[863.43611853995696,863.43611853995696,"863.436118539957863.436118539957"]
[3903.5227396333134,0.44560761867960197,"3903.522739633310.445607618679602"]
[3903.5227396333134,3903.5227396333134,"3903.522739633313903.52273963331"]
["NOT MODELED","NOT MODELED",{"$f":"_xlfn.CONCAT(A258,B258)","v":"NOT MODELEDNOT MODELED"}]
[835.4131336284579,0.32131274370325302,"835.4131336284580.321312743703253"]
[835.4131336284579,835.4131336284579,"835.413133628458835.413133628458"]
[2576.0678573891455,0.58975912486015236,"2576.067857389150.589759124860152"]
[2576.0678573891455,2576.0678573891455,"2576.067857389152576.06785738915"]
[1818.4980362856318,0.44834764208225636,"1818.498036285630.448347642082256"]
[1818.4980362856318,1818.4980362856318,"1818.498036285631818.49803628563"]
[1818.4980362856318,1818.4980362856318,"1818.498036285631818.49803628563"]
["NOT MODELED","NOT MODELED","NOT MODELEDNOT MODELED"]
[3073.7676700828197,0.7121797196670111,"3073.767670082820.712179719667011"]
[2009.059718851802,0.64392939706788521,"2009.05971885180.643929397067885"]
[2009.059718851802,2009.059718851802,"2009.05971885182009.0597188518"]
[2009.059718851802,2009.059718851802,"2009.05971885182009.0597188518"]
[2009.059718851802,2009.059718851802,"2009.05971885182009.0597188518"]
[3194.8340367330993,0.54856353652697443,"3194.83403673310.548563536526974"]
[687.19994077276294,0.11799449532499363,"687.1999407727630.117994495324994"]
[687.19994077276294,687.19994077276294,"687.199940772763687.199940772763"]
[3930.1246359120632,0.44864436483014419,"3930.124635912060.448644364830144"]
[3930.1246359120632,3930.1246359120632,"3930.124635912063930.12463591206"]
["NOT MODELED","NOT MODELED","NOT MODELEDNOT MODELED"]
[990.11487113086389,0.38081341197340918,"990.1148711308640.380813411973409"]
[990.11487113086389,990.11487113086389,"990.114871130864990.114871130864"]
[2586.5629956554722,0.59216185797973264,"2586.562995655470.592161857979733"]
[2586.5629956554722,2586.5629956554722,"2586.562995655472586.56299565547"]
[1821.2013294754433,0.44901413448605604,"1821.201329475440.449014134486056"]
[1821.2013294754433,1821.2013294754433,"1821.201329475441821.20132947544"]
[1821.2013294754433,1821.2013294754433,"1821.201329475441821.20132947544"]
["NOT MODELED","NOT MODELED","NOT MODELEDNOT MODELED"]

{"sheet":"Lookups","index":9,"n_rows":50,"n_cols":106,"rows_kept":50,"cut":false,"hidden":true,"merged":[]}
["Baseline Equipment","Upgrade Type",null,"Proposed Equipment",null,"Project State",null,null,null,null,null,null,null,null,null,null,null,null,"Year","YearPlusOne","StateName","StateAbrev","UtilityName","UtilityWebsite","AllianceWebsite","UtilityHotline","FXHotline","UtilityEmail","UtilityFax","VersionNmbr","ApplicationVersionNmber","EffectiveDate","CustInct","CustCap","HVACEmail","MotorsEmail","FoodServiceEmail","IrrigationEmail","BldgEnvEmail","LightingEmail","CompAirEmail","FarmDairyEmail","OtherEmail","NLApplicationEmail","RateSchedule","MailAddress1","MailAddress2","MailCity","MailState","MailZip","States","OtherUtilityName","State1","State2","State3","State1Abb","State2Abb","State3Abb","ST1_RT_Schedule","ST2_RT_Schedule","ST3_RT_Schedule","ST1_CRD Name","ST1_CRD Info","ST1_CRD Number","ST1_CRD Email","ST2_CRD Name","ST2_CRD Number","ST2_CRD Info","ST2_CRD Email","ST3_CRD Name","ST3_CRD Number","ST3_CRD Info","ST3_CRD Email","Costpercentage","Purchase Directions","Purchase Directions","NC/MR Pre Purchase Directions","Letter of intent Note","Retrofit Directions","IA Retrofit Directions","Other Utility Directions","St1RetroLightingProcess","St1NCMRLightingProcess","St1NonlightProcess","St1CustomProcess","St2RetroLightingProcess","St2NCMRLightingProcess","St2NonlightProcess","St2CustomProcess","St3RetroLightingProcess","St3NCMRLightingProcess","St3NonlightProcess","St3CustomProcess","HESWebsite","ST1FinAnswerWebsite","ST2FinAnswerWebsite","ST3FinAnswerWebsite","BSTWebsite","EmailSuffix","EnergyCodeBaseline","CodeEffDate","AbbreviatedCode","Tariff #","ApplyToFaxNL","ApplyToFaxLtg","Program name"]
["Forced Air Furnace (gas/propane)","Conversion",null,"Electric Heat Pump",null,"UT",null,null,null,null,null,null,null,null,null,null,null,null,2020,{"$f":"S2+1","v":2021},"Utah","UT","Rocky Mountain Power","wattsmart.com","rockymountainpower.net/alliance","1-800-222-4335","1-866-415-9800","energy.expert@rockymountainpower.net","801-233-0883","V 11/14/12","V 07/01/13","2014-07-01",0.1,50,"ut.hvacr@rockymountainpower.net","ut.motors@rockymountainpower.net","ut.foodservice@rockymountainpower.net","ut.irrigation@rockymountainpower.net","ut.bldgenvelope@rockymountainpower.net","ut.lighting@rockymountainpower.net","ut.compair@rockymountainpower.net","ut.farmdairy@rockymountainpower.net","ut.othertech@rockymountainpower.net","ut.finanswerexpress@rockymountainpower.net","6, 6A, 6B, 8, 9, 9A, 10, 12, 15, 21, 23, Supplementary service under Schedule 31","2223 S Highland Drive #E6-333",null,"Salt Lake City","UT",84106,"Utah, Wyoming and Idaho","Pacific Power","Utah","Wyoming","Idaho","UT","WY","ID","6, 6A, 6B, 8, 9, 9A, 10, 12, 15, 21, 23, Supplementary service under Schedule 31","25, 28, 33, 40, 46, 48, 54, 58, 210, 212, 213","6, 6A, 8, 9, 12, 19, 23, 23A, 24, 35, 35A","Mark Clary",null,"801.233.0882","ut.lighting@rockymountainpower.net","Jim Soukup","307.235.0438",null,"wy.lighting@rockymountainpower.net","William Gatchel","541.727.5386",null,"id.lighting@rockymountainpower.net",50,"Lighting retrofits must have a signed incentive agreement prior to purchase of equipment",null,null,null,null,null,null,"Pre-purchase Agreement","Post-purchase Application","Post-purchase Application","Pre-purchase Agreement","Pre-purchase Agreement","Post-purchase Application","Post-purchase Application","Pre-purchase Agreement","Pre-purchase Agreement","Post-purchase Application","Post-purchase Application","Pre-purchase Agreement","www.homeenergysavings.net","www.rockymountainpower.net/bus/se/epi/utah/ilc/ef.html","www.rockymountainpower.net/bus/se/epi/wyoming/ilc/ef.html","www.rockymountainpower.net/bus/se/epi/idaho/ilc/ef.html","www.rockymountainpower.net/bus/bst.html","@rockymountainpower.net","International Energy Conservation Code 2021","2010-07-01","IECC 2021",140,"1-801-266-4786","1-801-233-0883","wattsmart Business"]
["Electric Resistance/Electric Strip","Conversion",null,"Dual Fuel Heat Pump",null,null,null,null,null,null,null,null,null,null,null,null,null,null,2020,{"$f":"S3+1","v":2021},"Wyoming","WY","Rocky Mountain Power","rockymountainpower.net/wattsmart","rockymountainpower.net/alliance","1-800-222-4335","1-866-415-9800","energy.expert@rockymountainpower.net","307-333-4952","V 10/01/11","V 01/01/13","2011-10-01",0.1,70,"wy.hvacr@rockymountainpower.net","wy.motors@rockymountainpower.net","wy.foodservice@rockymountainpower.net","wy.irrigation@rockymountainpower.net","wy.bldgenvelope@rockymountainpower.net","wy.lighting@rockymountainpower.net","wy.compair@rockymountainpower.net","wy.farmdairy@rockymountainpower.net","wy.othertech@rockymountainpower.net","wy.finanswerexpress@rockymountainpower.net","25, 28, 33, 40, 46, 48T, 54, 58, 210, 212, 213","2223 S Highland Drive #E6-333",null,"Salt Lake City","UT",84106,"Utah, Wyoming and Idaho","Pacific Power","Utah","Wyoming","Idaho","UT","WY","ID","6, 6A, 6B, 8, 9, 9A, 10, 12, 15, 21, 23, Supplementary service under Schedule 31","25, 28, 33, 40, 46, 48, 54, 58, 210, 212, 213","6, 6A, 8, 9, 12, 19, 23, 23A, 24, 35, 35A","Mark Clary",null,"801.233.0882","ut.lighting@rockymountainpower.net","Jim Soukup","307.235.0438",null,"wy.lighting@rockymountainpower.net","William Gatchel","541.727.5386",null,"id.lighting@rockymountainpower.net",50,null,null,null,null,null,null,null,"Pre-purchase Agreement","Post-purchase Application","Post-purchase Application","Pre-purchase Agreement","Pre-purchase Agreement","Post-purchase Application","Post-purchase Application","Pre-purchase Agreement","Pre-purchase Agreement","Post-purchase Application","Post-purchase Application","Pre-purchase Agreement","www.homeenergysavings.net","www.rockymountainpower.net/bus/se/epi/utah/ilc/ef.html","www.rockymountainpower.net/bus/se/epi/wyoming/ilc/ef.html","www.rockymountainpower.net/bus/se/epi/idaho/ilc/ef.html","www.rockymountainpower.net/bus/bst.html","@rockymountainpower.net","International Energy Conservation Code 2009","December 1, 2014 (as determined by Rocky Mountain Power)","IECC 2009",140,"1-801-266-4787","1-541-376-8446","wattsmart Business"]
["Electric Heat Pump","Upgrade",null,null,null,null,null,null,null,null,null,null,null,null,null,null,null,null,2020,{"$f":"S4+1","v":2021},"Idaho","ID","Rocky Mountain Power","rockymountainpower.net/wattsmart","rockymountainpower.net/alliance","1-800-222-4335","1-866-415-9800","energy.expert@rockymountainpower.net","541-376-8446","V 07/14/12","V 01/01/13","2014-11-01",0.1,50,"id.hvacr@rockymountainpower.net","id.motors@rockymountainpower.net","id.foodservice@rockymountainpower.net","id.irrigation@rockymountainpower.net","id.bldgenvelope@rockymountainpower.net","id.lighting@rockymountainpower.net","id.compair@rockymountainpower.net","id.farmdairy@rockymountainpower.net","id.othertech@rockymountainpower.net","id.finanswerexpress@rockymountainpower.net","6, 6A, 7, 7A, 9, 12, 19, 23, 23A, 24, 35, 35A","2223 S Highland Drive #E6-333",null,"Salt Lake City","UT",84106,"Utah, Wyoming and Idaho","Pacific Power","Utah","Wyoming","Idaho","UT","WY","ID","6, 6A, 6B, 8, 9, 9A, 10, 12, 15, 21, 23, Supplementary service under Schedule 31","25, 28, 33, 40, 46, 48, 54, 58, 210, 212, 213","6, 6A, 7, 7A, 9, 12, 19, 23, 23A, 24, 35, 35A","Mark Clary",null,"801.233.0882","ut.lighting@rockymountainpower.net","Jim Soukup","307.235.0438",null,"wy.lighting@rockymountainpower.net","William Gatchel","541.727.5386",null,"id.lighting@rockymountainpower.net",50,null,null,null,null,null,null,null,"Pre-purchase Agreement","Post-purchase Application","Post-purchase Application","Pre-purchase Agreement","Pre-purchase Agreement","Post-purchase Application","Post-purchase Application","Pre-purchase Agreement","Pre-purchase Agreement","Post-purchase Application","Post-purchase Application","Pre-purchase Agreement","www.homeenergysavings.net","www.rockymountainpower.net/bus/se/epi/utah/ilc/ef.html","www.rockymountainpower.net/bus/se/epi/wyoming/ilc/ef.html","www.rockymountainpower.net/bus/se/epi/idaho/ilc/ef.html","www.rockymountainpower.net/bus/bst.html","@rockymountainpower.net","International Energy Conservation Code 2018","2011-01-01","IECC 2018",140,"1-801-266-4788","1-503-482-7447","wattsmart Business"]
["None","Upgrade",null,null,null,null,null,null,null,null,null,null,null,null,null,null,null,null,2020,{"$f":"S5+1","v":2021},"California","CA","Pacific Power","pacificpower.net/wattsmart","pacificpower.net/alliance","1-800-222-4335","1-866-415-9800","energy.expert@pacificpower.net","(541) 770-2731","V 01/19/12","V 01/01/13","2014-07-01",0.1,70,"ca.hvacr@pacificpower.net","ca.motors@pacificpower.net","ca.foodservice@pacificpower.net","ca.irrigation@pacificpower.net","ca.bldgenvelope@pacificpower.net","ca.lighting@pacificpower.net","ca.compair@pacificpower.net","ca.farmdairy@pacificpower.net","ca.othertech@pacificpower.net","ca.finanswerexpress@pacificpower.net","A-25, A-32, A-33, A-36, AT-47, AT-48, LS-53, LS-58, OL-42, PA-20","6312 SW Capitol Way #1023",null,"Portland","OR",97239,"California and Washington","Rocky Mountain Power","California","Washington",null,"CA","WA",null,"A-25, A-32, A-33, A-36, AT-47, AT-48, AWH-31, LS-53, LS-58, OL-42, PA-20, PA-40","24, 33, 36, 40, 47T, 48T, 54",null,"Bob Greeley",null,"541.601.8088","ca.lighting@pacificpower.net","Lori Sanders","509.727.0394","- Yakima","wa.lighting@pacificpower.net","William Gatchel","541.377.7943","- Walla Walla","wa.lighting@pacificpower.net",60,"Lighting retrofits in Washington must have a signed incentive agreement prior to purchase of equipment.   Lighting retrofits in California may be done post-purchase, but pre-approval is recommended.",null,"Note that pre-purchase incentive agreements are only required in Washington for retrofit projects. Incentive Agreements and Letters of Intent are NOT required for any projects in California or for any New Construction/Major Renovation projects","Note: Letter of Intent is only required for retrofit projects in California.","For Washington retrofit projects, instruct customer not to purchase equipment until an incentive agreement is executed.","For retrofit projects (except in California), the incentive agreement must be signed BEFORE the customer signs purchase orders or installation contracts for the project.","For information on Rocky Mountain Power customer incentives in Oregon, contact the Energy Trust of Oregon at www.energytrust.org. ","Post-purchase Application","Post-purchase Application","Post-purchase Application","Pre-purchase Agreement","Pre-purchase Agreement","Post-purchase Application","Post-purchase Application","Pre-purchase Agreement",null,null,null,null,"www.homeenergysavings.net","www.pacificpower.net/bus/se/epi/california/ilc/ef.html","www.pacificpower.net/bus/se/epi/washington/ilc/ef.html",null,"www.pacificpower.net/bus/bst/index.html","@pacificpower.net","2019 Building Efficiency Standards","2010-01-01","Title 24 2013",140,"1-503-482-7447","1-503-482-7447","wattsmart Business"]
[null,null,null,null,null,null,null,null,null,null,null,null,null,null,null,null,null,null,2020,{"$f":"S6+1","v":2021},"Washington","WA","Pacific Power","bewattsmart.com","pacificpower.net/alliance","1-800-222-4335","1-866-415-9800","energy.expert@pacificpower.net","(541) 376-8446","V 01/01/14","V 01/01/14","2014-01-01",0.1,70,"wa.hvacr@pacificpower.net","wa.motors@pacificpower.net","wa.foodservice@pacificpower.net",null,"wa.bldgenvelope@pacificpower.net","wa.lighting@pacificpower.net","wa.compair@pacificpower.net","wa.farmdairy@pacificpower.net","wa.othertech@pacificpower.net","wa.finanswerexpress@pacificpower.net","24, 33, 36, 40, 47T, 48T, 53, 54","6312 SW Capitol Way #1023",null,"Portland","OR",97239,"California and Washington","Rocky Mountain Power","California","Washington",null,"CA","WA",null,"A-25, A-32, A-33, A-36, AT-47, AT-48, AWH-31, LS-53, LS-58, OL-42, PA-20, PA-40","24, 33, 36, 40, 47T, 48T, 54",null,"Bob Greeley",null,"541.601.8088","ca.lighting@pacificpower.net","Lori Sanders","509.727.0394","- Yakima","wa.lighting@pacificpower.net","William Gatchel","541.377.7943","- Walla Walla","wa.lighting@pacificpower.net",60,null,null,null,null,null,null,null,"Post-purchase Application","Post-purchase Application","Post-purchase Application","Pre-purchase Agreement","Pre-purchase Agreement","Post-purchase Application","Post-purchase Application","Pre-purchase Agreement",null,null,null,null,"www.homeenergysavings.net","www.pacificpower.net/bus/se/epi/california/ilc/ef.html","www.pacificpower.net/bus/se/epi/washington/ilc/ef.html",null,"www.pacificpower.net/bus/bst/index.html","@pacificpower.net","Washington State Energy Code 2015","2013-07-01","WSEC 2015",140,"1-503-482-7447","1-503-482-7447","wattsmart Business"]
[]
[]
[]
[]
[]
[null,null,null,null,null,null,null,null,null,null,null,null,null,null,null,null,null,null,"Business Type List","ID EFLCH","ID EFLHH","UT EFLCH","UT EFLHH","WY EFLCH","WY EFLHH",null,"Install States",null,"Rate Schedules","Rate Schedules(truncated)",null,"Incentive Recipient List",null,null,"Business Type","ID Cooling","ID Heat Pump","UT Cooling","UT Heat Pump","WY Cooling","WY Heat Pump"]
[null,null,null,null,null,null,null,null,null,null,null,null,null,null,null,null,null,null,"Assembly",476,1477,935,1386,519,1469,null,"UT",null,{"$f":"HVAC!BB11","v":"WY 212"},{"$f":"RIGHT(AC13,LEN(AC13)-3)","v":"212"},null,null,null,null,"Assembly",5.1146999999999998E-4,1.5306E-4,4.9646E-4,2.6735000000000002E-4,5.6426999999999996E-4,1.214E-4]
[null,null,null,null,null,null,null,null,null,null,null,null,null,null,null,null,null,null,"Education - Primary School",214,990,481,911,233,977,null,"ID",null,{"$f":"HVAC!BB12","v":"WY 210"},{"$f":"RIGHT(AC14,LEN(AC14)-3)","v":"210"},null,"Project Address",null,null,"Education - Primary School",3.7288000000000002E-4,4.8989999999999997E-5,7.7647999999999997E-4,2.6735000000000002E-4,5.5971000000000005E-4,1.5195000000000001E-4]
[null,null,null,null,null,null,null,null,null,null,null,null,null,null,null,null,null,null,"Education - Secondary School",275,1146,502,1061,292,1132,null,"UT",null,{"$f":"HVAC!BB13","v":"WY 58"},"58",null,"Participant Business Address",null,null,"Education - Secondary School",3.7288000000000002E-4,4.8989999999999997E-5,7.7647999999999997E-4,2.6735000000000002E-4,5.5971000000000005E-4,1.5195000000000001E-4]
[null,null,null,null,null,null,null,null,null,null,null,null,null,null,null,null,null,null,"Education - Community College",420,910,674,828,445,900,null,"WA",null,{"$f":"HVAC!BB14","v":"WY 54"},"54",null,"Other 3rd Party (enter below)",null,null,"Education - Community College",3.7288000000000002E-4,4.8989999999999997E-5,7.7647999999999997E-4,2.6735000000000002E-4,5.5971000000000005E-4,1.5195000000000001E-4]
[null,null,null,null,null,null,null,null,null,null,null,null,null,null,null,null,null,null,"Education - University",523,835,782,765,553,827,null,"WY",null,{"$f":"HVAC!BB15","v":"WY 48T"},"48T",null,null,null,null,"Education - University",3.7288000000000002E-4,4.8989999999999997E-5,7.7647999999999997E-4,2.6735000000000002E-4,5.5971000000000005E-4,1.5195000000000001E-4]
[null,null,null,null,null,null,null,null,null,null,null,null,null,null,null,null,null,null,"Grocery",465,1361,555,1307,480,1380,null,null,null,{"$f":"HVAC!BB16","v":"WY 46"},"46",null,null,null,null,"Grocery",3.3166000000000001E-4,1.5705E-4,3.6692000000000002E-4,2.6135999999999998E-4,3.3361000000000003E-4,1.5431E-4]
[null,null,null,null,null,null,null,null,null,null,null,null,null,null,null,null,null,null,"Health/Medical - Hospital",1031,765,1715,713,1095,764,null,null,null,{"$f":"HVAC!BB17","v":"WY 40"},"40",null,null,null,null,"Health/Medical - Hospital",4.7344999999999999E-4,9.3579999999999995E-5,4.7356999999999998E-4,2.1473999999999999E-4,5.5478000000000005E-4,7.4250000000000002E-5]
[null,null,null,null,null,null,null,null,null,null,null,null,null,null,null,null,null,null,"Health/Medical - Nursing Home",587,1524,1181,1383,640,1530,null,null,null,{"$f":"HVAC!BB18","v":"WY 33"},"33",null,null,null,null,"Health/Medical - Nursing Home",3.5532000000000001E-4,8.7039999999999993E-5,3.3520000000000002E-4,1.7836999999999999E-4,3.5735999999999998E-4,8.8059999999999994E-5]
[null,null,null,null,null,null,null,null,null,null,null,null,null,null,null,null,null,null,"Lodging - Hotel",867,1761,1435,1632,921,1739,null,null,null,{"$f":"HVAC!BB19","v":"WY 28"},"28",null,null,null,null,"Lodging - Hotel",3.5532000000000001E-4,8.7039999999999993E-5,3.3520000000000002E-4,1.7836999999999999E-4,3.5735999999999998E-4,8.8059999999999994E-5]
[null,null,null,null,null,null,null,null,null,null,null,null,null,null,null,null,null,null,"Lodging - Motel",731,1334,1283,1225,797,1333,null,null,null,{"$f":"HVAC!BB20","v":"WY 25"},"25",null,null,null,null,"Lodging - Motel",3.5532000000000001E-4,8.7039999999999993E-5,3.3520000000000002E-4,1.7836999999999999E-4,3.5735999999999998E-4,8.8059999999999994E-5]
[null,null,null,null,null,null,null,null,null,null,null,null,null,null,null,null,null,null,"Office - Large",636,696,1076,659,674,685,null,null,null,{"$f":"HVAC!BB21","v":0},{"$error":"#VALUE!"},null,null,null,null,"Manufacturing - Light Industrial",1.1229E-3,1.7913E-4,1.0413200000000001E-3,4.5110000000000001E-4,1.3740200000000001E-3,1.5714E-4]
[null,null,null,null,null,null,null,null,null,null,null,null,null,null,null,null,null,null,"Office - Small",536,1287,1133,1195,584,1266,null,null,null,{"$f":"HVAC!BB22","v":0},{"$error":"#VALUE!"},null,null,null,null,"Office - Large",4.7103999999999999E-4,1.1297E-4,4.2389000000000001E-4,2.6735000000000002E-4,5.4416999999999996E-4,9.0569999999999995E-5]
[null,null,null,null,null,null,null,null,null,null,null,null,null,null,null,null,null,null,"Restaurant - Sit-Down",483,1175,960,1097,526,1165,null,null,null,{"$f":"HVAC!BB23","v":0},{"$error":"#VALUE!"},null,null,null,null,"Office - Small",4.7103999999999999E-4,1.1297E-4,4.2389000000000001E-4,2.6735000000000002E-4,5.4416999999999996E-4,9.0569999999999995E-5]
[null,null,null,null,null,null,null,null,null,null,null,null,null,null,null,null,null,null,"Restaurant - Fast-Food",484,1241,965,1165,528,1232,null,null,null,{"$f":"HVAC!BB24","v":0},{"$error":"#VALUE!"},null,null,null,null,"Restaurant - Sit-Down",3.6257999999999999E-4,1.9803999999999999E-4,3.6298E-4,2.7783000000000001E-4,3.4519999999999999E-4,1.5629000000000001E-4]
[null,null,null,null,null,null,null,null,null,null,null,null,null,null,null,null,null,null,"Retail - 3-Story Large",465,1252,846,1094,507,1260,null,null,null,{"$f":"HVAC!BB25","v":0},{"$error":"#VALUE!"},null,null,null,null,"Restaurant - Fast-Food",3.6257999999999999E-4,1.9803999999999999E-4,3.6298E-4,2.7783000000000001E-4,3.4519999999999999E-4,1.5629000000000001E-4]
[null,null,null,null,null,null,null,null,null,null,null,null,null,null,null,null,null,null,"Retail - Single-Story Large",520,1123,867,1032,550,1122,null,null,null,{"$f":"HVAC!BB26","v":"UT 23"},"23",null,null,null,null,"Retail - 3-Story Large",5.5376999999999998E-4,1.9803999999999999E-4,5.7359999999999996E-4,3.3241E-4,5.8514000000000005E-4,1.5629000000000001E-4]
[null,null,null,null,null,null,null,null,null,null,null,null,null,null,null,null,null,null,"Retail - Small",424,1120,857,995,462,1123,null,null,null,{"$f":"HVAC!BB27","v":"UT 10"},"10",null,null,null,null,"Retail - Single-Story Large",5.5376999999999998E-4,1.9803999999999999E-4,5.7359999999999996E-4,3.3241E-4,5.8514000000000005E-4,1.5629000000000001E-4]
[null,null,null,null,null,null,null,null,null,null,null,null,null,null,null,null,null,null,"Storage - Conditioned",153,1160,325,1016,167,1158,null,null,null,{"$f":"HVAC!BB28","v":"UT 9"},"9",null,null,null,null,"Retail - Small",5.5376999999999998E-4,1.9803999999999999E-4,5.7359999999999996E-4,3.3241E-4,5.8514000000000005E-4,1.5629000000000001E-4]
[null,null,null,null,null,null,null,null,null,null,null,null,null,null,null,null,null,null,null,null,null,null,null,null,null,null,null,null,{"$f":"HVAC!BB29","v":"UT 9A"},"9A",null,null,null,null,"Storage - Conditioned",1.1229E-3,1.7913E-4,1.0413200000000001E-3,4.5110000000000001E-4,1.3740200000000001E-3,1.5714E-4]
[null,null,null,null,null,null,null,null,null,null,null,null,null,null,null,null,null,null,"Manufacturing - Light Industrial",430,1136,899,907,469,1151,null,null,null,{"$f":"HVAC!BB30","v":"UT 8"},"8"]
[null,null,null,null,null,null,null,null,null,null,null,null,null,null,null,null,null,null,null,null,null,null,null,null,null,null,null,null,{"$f":"HVAC!BB31","v":"UT 6"},"6"]
[null,null,null,null,null,null,null,null,null,null,null,null,null,null,null,null,null,null,null,null,null,null,null,null,null,null,null,null,{"$f":"HVAC!BB32","v":0},{"$error":"#VALUE!"}]
[null,null,null,null,null,null,null,null,null,null,null,null,null,null,null,null,null,null,null,null,null,null,null,null,null,null,null,null,{"$f":"HVAC!BB33","v":0},{"$error":"#VALUE!"}]
[null,null,null,null,null,null,null,null,null,null,null,null,null,null,null,null,null,null,null,null,null,null,null,null,null,null,null,null,{"$f":"HVAC!BB34","v":0},{"$error":"#VALUE!"}]
[null,null,null,null,null,null,null,null,null,null,null,null,null,null,null,null,null,null,null,null,null,null,null,null,null,null,null,null,{"$f":"HVAC!BB35","v":"ID 35"},"35"]
[null,null,null,null,null,null,null,null,null,null,null,null,null,null,null,null,null,null,null,null,null,null,null,null,null,null,null,null,{"$f":"HVAC!BB36","v":"ID 23"},"23"]
[null,null,null,null,null,null,null,null,null,null,null,null,null,null,null,null,null,null,null,null,null,null,null,null,null,null,null,null,{"$f":"HVAC!BB37","v":"ID 10"},"10"]
[null,null,null,null,null,null,null,null,null,null,null,null,null,null,null,null,null,null,null,null,null,null,null,null,null,null,null,null,{"$f":"HVAC!BB38","v":"ID 9"},"9"]
[null,null,null,null,null,null,null,null,null,null,null,null,null,null,null,null,null,null,null,null,null,null,null,null,null,null,null,null,{"$f":"HVAC!BB39","v":"ID 6"},"6"]
[null,null,null,null,null,null,null,null,null,null,null,null,null,null,null,null,null,null,null,null,null,null,null,null,null,null,null,null,{"$f":"HVAC!BB40","v":"ID 6A"},"6A"]
[null,null,null,null,null,null,null,null,null,null,null,null,null,null,null,null,null,null,null,null,null,null,null,null,null,null,null,null,{"$f":"HVAC!BB41","v":0},{"$error":"#VALUE!"}]
[null,null,null,null,null,null,null,null,null,null,null,null,null,null,null,null,null,null,null,null,null,null,null,null,null,null,null,null,{"$f":"HVAC!BB42","v":0},{"$error":"#VALUE!"}]
[null,null,null,null,null,null,null,null,null,null,null,null,null,null,null,null,null,null,null,null,null,null,null,null,null,null,null,null,{"$f":"HVAC!BB43","v":0},{"$error":"#VALUE!"}]
[null,null,null,null,null,null,null,null,null,null,null,null,null,null,null,null,null,null,null,null,null,null,null,null,null,null,null,null,{"$f":"HVAC!BB44","v":0},{"$error":"#VALUE!"}]
[null,null,null,null,null,null,null,null,null,null,null,null,null,null,null,null,null,null,null,null,null,null,null,null,null,null,null,null,{"$f":"HVAC!BB45","v":0},{"$error":"#VALUE!"}]
[null,null,null,null,null,null,null,null,null,null,null,null,null,null,null,null,null,null,null,null,null,null,null,null,null,null,null,null,{"$f":"HVAC!BB46","v":0}]
[null,null,null,null,null,null,null,null,null,null,null,null,null,null,null,null,null,null,null,null,null,null,null,null,null,null,null,null,{"$f":"HVAC!BB47","v":0}]
[null,null,null,null,null,null,null,null,null,null,null,null,null,null,null,null,null,null,null,null,null,null,null,null,null,null,null,null,{"$f":"HVAC!BB48","v":0}]

{"sheet":"CFR 10.430.32","index":10,"n_rows":0,"n_cols":0,"rows_kept":0,"cut":false,"hidden":true,"merged":[]}

{"sheet":"IECC 2009","index":11,"n_rows":0,"n_cols":0,"rows_kept":0,"cut":false,"hidden":true,"merged":[]}

{"sheet":"IECC 2012","index":12,"n_rows":0,"n_cols":0,"rows_kept":0,"cut":false,"hidden":true,"merged":[]}

{"sheet":"CFR Title 10.431.97","index":13,"n_rows":0,"n_cols":0,"rows_kept":0,"cut":false,"hidden":true,"merged":[]}

{"sheet":"Change Log","index":14,"n_rows":3,"n_cols":6,"rows_kept":3,"cut":false,"hidden":true,"merged":[]}
["Date","Change Description","Name","Previous Revision #","New Revision #","Current Revision\n(click to check)"]
["TBD","Updating for UT program change effective 11/15/2023\n- branched tool from HVAC Calculator Tool 111523.1\n- updated effective date table\n- updated rates for software in rate table\nnew tab for equipment table with heat pump equipment only","Drew Petersen",70123.100000000006,111523.1]
["2025-04-01","-Removed mention of FinExpress\n-Updated Rates to 2/6/2025 Rates \n-Ensured Efficiency requirements align with source docs","Emily Donohue",111523.1,4012025.1,"a"]